﻿執行日期,科目名稱,摘要,受款單位, 金額 
113/03/01,國民及學前教育行政及督導-對學生之獎助,112學年度上學期補助高級中等學校學生就學貸款利息,高雄銀行,"597,595"
113/03/01,國民及學前教育行政及督導-對各縣市政府之補助,112學年度學前融合教育教師專業學習社群第2期款,嘉義市政府,"42,180"
113/03/01,國民及學前教育行政及督導-對各縣市政府之補助,大額通報教補3月5日-112學年度我國少子女化對策計畫之各項幼生就學補助及育兒津貼等經費第4期款,屏東縣政府,"247,837,500"
113/03/01,國民及學前教育行政及督導-對各縣市政府之補助,112學年度科技教育推動總體計畫第3期款,連江縣政府,"945,000"
113/03/01,國民及學前教育行政及督導-對各縣市政府之補助,112學年度國民中小學本土教育整體推動方案暨教師及學生多元相關活動第2期款,苗栗縣政府,"1,932,930"
113/03/01,國民及學前教育行政及督導-對各縣市政府之補助,112學年度本土語文(閩南語、閩東語及客語)國中小教師及教學支援工作人員交通費第2期款,新竹縣政府,"365,200"
113/03/01,國民及學前教育行政及督導-對各縣市政府之補助,112學年度下學期中央課程與教學輔導諮詢教師團隊代理代課費暨課程與教學補助經費第2期款,南投縣政府,"325,000"
113/03/01,國民及學前教育行政及督導-對各縣市政府之補助,112學年度教保服務人員專業發展社群計畫第2期款,基隆市政府,"82,219"
113/03/01,國民及學前教育行政及督導-對各縣市政府之補助,113年度教保研習經費,嘉義市政府,"1,207,151"
113/03/01,國民及學前教育行政及督導-對各縣市政府之補助,112學年度活化教學~分組合作學習的理念與實踐方案第2期款,新竹市政府,"24,900"
113/03/01,國民及學前教育行政及督導-對各縣市政府之補助,113年度國民中小學閱讀推動計畫經費,基隆市政府,"235,600"
113/03/01,國民及學前教育行政及督導-對各縣市政府之補助,112學年度國民中小學本土語文(閩南語文、閩東語文、客語文)直播共學計畫之協同人員鐘點費第2期款,新竹市政府,"20,650"
113/03/01,國民及學前教育行政及督導-對各縣市政府之補助,112學年度公立幼兒園導師職務加給差額及教保費第2期款,雲林縣政府,"6,756,000"
113/03/01,國民及學前教育行政及督導-對各縣市政府之補助,112學年度私立教保服務機構導師職務加給差額及教保費第2期款,雲林縣政府,"10,934,000"
113/03/01,國民及學前教育行政及督導-對各縣市政府之補助,112學年度學前教育階段專業團隊專業人員及助理人員第2期款,澎湖縣政府,"810,000"
113/03/01,國民及學前教育行政及督導-對各縣市政府之補助,112學年度學前教育階段專業團隊專業人員及助理人員第2期款,屏東縣政府,"3,105,000"
113/03/01,國民及學前教育行政及督導-對各縣市政府之補助,112學年度學前教育階段專業團隊專業人員及助理人員第2期款,嘉義縣政府,"2,754,000"
113/03/01,國民及學前教育行政及督導-對直轄市政府之補助,112學年度第2學期高職優質化輔助方案,桃園市政府,"9,634,000"
113/03/01,國民及學前教育行政及督導-對直轄市政府之補助,112學年度第2學期高職優質化輔助方案,桃園市政府,"4,113,000"
113/03/01,國民及學前教育行政及督導-對各縣市政府之補助,112學年度第2學期高職優質化輔助方案,苗栗縣政府,"551,000"
113/03/01,國民及學前教育行政及督導-對各縣市政府之補助,112學年度第2學期高職優質化輔助方案,苗栗縣政府,"235,000"
113/03/01,國民及學前教育行政及督導-對各縣市政府之補助,112學年度偏遠地區及非山非市公立高級中等學校學生通學交通費實施計畫,雲林縣政府,"1,382,920"
113/03/01,國民及學前教育行政及督導-對各縣市政府之補助,113年度高級中等學校充實建置學生學習歷程檔案專責人員加班費,新竹縣政府,"26,383"
113/03/01,國民及學前教育行政及督導-對各縣市政府之補助,113年度高級中等學校充實建置學生學習歷程檔案專責人員加班費,苗栗縣政府,"54,000"
113/03/01,國民及學前教育行政及督導-對學生之獎助,112學年度第2學期高級中等學校學生免學費,南投縣政府,"1,511,593"
113/03/01,國民及學前教育行政及督導-對學生之獎助,112學年度第2學期高級中等學校學生免學費,屏東縣政府,"2,865,759"
113/03/01,國民及學前教育行政及督導-對學生之獎助,112學年度第2學期高級中等學校學生免學費,雲林縣政府,"2,396,058"
113/03/01,國民及學前教育行政及督導-對學生之獎助,112學年度第2學期高級中等學校學生免學費,新竹市政府,"3,663,456"
113/03/01,國民及學前教育行政及督導-對學生之獎助,112學年度第2學期高級中等學校學生免學費,嘉義縣政府,"2,147,062"
113/03/01,國民及學前教育行政及督導-對學生之獎助,112學年度第2學期高級中等學校學生免學費,南投縣政府,"850,271"
113/03/01,國民及學前教育行政及督導-對學生之獎助,112學年度第2學期高級中等學校學生免學費,屏東縣政府,"1,611,990"
113/03/01,國民及學前教育行政及督導-對學生之獎助,112學年度第2學期高級中等學校學生免學費,雲林縣政府,"1,347,783"
113/03/01,國民及學前教育行政及督導-對學生之獎助,112學年度第2學期高級中等學校學生免學費,新竹市政府,"2,060,694"
113/03/01,國民及學前教育行政及督導-對學生之獎助,112學年度第2學期高級中等學校學生免學費,嘉義縣政府,"1,207,722"
113/03/01,國民及學前教育行政及督導-對直轄市政府之補助,過嶺非營利幼兒園112學年度交接期間經費,桃園市政府,"25,000"
113/03/01,國民及學前教育行政及督導-對各縣市政府之補助,112學年度辦理非營利幼兒園相關業務經費第2期款,嘉義縣政府,"306,000"
113/03/01,國民及學前教育行政及督導-對各縣市政府之補助,112學年度提高國小教師員額編制至每班1.65名所需經費第2期款,雲林縣政府,"26,852,000"
113/03/01,國民及學前教育行政及督導-對各縣市政府之補助,112學年度國民中小學充實行政人力第2期款,連江縣政府,"260,000"
113/03/01,國民及學前教育行政及督導-對各縣市政府之補助,112學年度國民中小學充實行政人力第2期款,臺東縣政府,"6,500,000"
113/03/01,國民及學前教育行政及督導-對各縣市政府之補助,112學年度公立國民補習學校擔任導師工作人員之導師職務加給經費第2期款,彰化縣政府,"120,000"
113/03/01,國民及學前教育行政及督導-對各縣市政府之補助,112學年度公立國民補習學校擔任導師工作人員之導師職務加給經費第2期款,花蓮縣政府,"102,000"
113/03/01,國民及學前教育行政及督導-對各縣市政府之補助,112學年度公立國民補習學校擔任導師工作人員之導師職務加給經費第2期款,澎湖縣政府,"18,000"
113/03/01,國民及學前教育行政及督導-對各縣市政府之補助,安東國小112年度充實設施設備-購買音樂教學暨國樂團演奏設備經費,嘉義縣政府,"810,000"
113/03/01,國民及學前教育行政及督導-對各縣市政府之補助,112學年度準公共幼兒園未因調薪而調整收費者之「園務營運費」第2期款,屏東縣政府,"1,159,076"
113/03/01,國民及學前教育行政及督導-對各縣市政府之補助,112學年度國民中小學教職員工課稅配套方案之外國僑民學校及附設幼兒園第2期款,新竹市政府,"212,088"
113/03/01,國民及學前教育行政及督導-對直轄市政府之補助,113年度實施新住民子女華語文學習扶助課程,桃園市政府,"2,129,849"
113/03/01,國民及學前教育行政及督導-對各縣市政府之補助,113年度實施新住民子女華語文學習扶助課程,嘉義縣政府,"118,711"
113/03/01,國民及學前教育行政及督導-對各縣市政府之補助,113年度實施新住民子女華語文學習扶助課程,宜蘭縣政府,"146,716"
113/03/01,國民及學前教育行政及督導-對各縣市政府之補助,113年度實施新住民子女華語文學習扶助課程,基隆市政府,"182,061"
113/03/01,國民及學前教育行政及督導-對各縣市政府之補助,113年度實施新住民子女華語文學習扶助課程,雲林縣政府,"18,417"
113/03/01,國民及學前教育行政及督導-對各縣市政府之補助,113年度實施新住民子女華語文學習扶助課程,南投縣政府,"287,586"
113/03/01,國民及學前教育行政及督導-對各縣市政府之補助,112學年度國民中小學原住民族語文協同人員經費-第2期款,苗栗縣政府,"262,845"
113/03/01,國民及學前教育行政及督導-對各縣市政府之補助,112學年度國民中小學原住民族語文協同人員經費-第2期款,彰化縣政府,"163,620"
113/03/01,國民及學前教育行政及督導-對各縣市政府之補助,112學年度國民中小學原住民族語文協同人員經費-第2期款,屏東縣政府,"606,413"
113/03/01,國民及學前教育行政及督導-對直轄市政府之補助,113年度實施新住民子女華語文學習扶助課程,桃園市政府,"58,800"
113/03/01,國民及學前教育行政及督導-對各縣市政府之補助,112學年度國中小原住民族語教學人員交通費-第2期經費,嘉義市政府,"21,360"
113/03/01,國民及學前教育行政及督導-對各縣市政府之補助,辦理112學年度新住民語文開課經費(第2期),基隆市政府,"1,860,806"
113/03/01,國民及學前教育行政及督導-對各縣市政府之補助,辦理112學年度新住民語文開課經費(第2期),新竹市政府,"1,770,800"
113/03/01,國民及學前教育行政及督導-對各縣市政府之補助,辦理112學年度新住民語文開課經費(第2期),彰化縣政府,"3,080,612"
113/03/01,國民及學前教育行政及督導-對各縣市政府之補助,辦理112學年度新住民語文開課經費(第2期),雲林縣政府,"1,379,069"
113/03/01,國民及學前教育行政及督導-對各縣市政府之補助,辦理112學年度新住民語文開課經費(第2期),南投縣政府,"717,359"
113/03/01,國民及學前教育行政及督導-對各縣市政府之補助,辦理112學年度新住民語文開課經費(第2期),嘉義市政府,"647,536"
113/03/01,國民及學前教育行政及督導-對各縣市政府之補助,辦理112學年度新住民語文開課經費(第2期),屏東縣政府,"900,000"
113/03/01,國民及學前教育行政及督導-對各縣市政府之補助,辦理112學年度新住民語文開課經費(第2期),屏東縣政府,"1,630,000"
113/03/01,國民及學前教育行政及督導-對各縣市政府之補助,辦理112學年度新住民語文開課經費(第2期),屏東縣政府,"816,476"
113/03/01,國民及學前教育行政及督導-對各縣市政府之補助,辦理112學年度新住民語文開課經費(第2期),宜蘭縣政府,"2,306,447"
113/03/01,國民及學前教育行政及督導-對各縣市政府之補助,辦理112學年度新住民語文開課經費(第2期),臺東縣政府,"1,068,399"
113/03/01,國民及學前教育行政及督導-對直轄市政府之補助,辦理112學年度新住民語文開課經費(第2期),桃園市政府,"16,440,697"
113/03/01,國民及學前教育行政及督導-對直轄市政府之補助,113年度實施新住民子女華語文學習扶助課程,桃園市政府,"103,356"
113/03/01,國民及學前教育行政及督導-對各縣市政府之補助,113年度實施新住民子女華語文學習扶助課程,屏東縣政府,"69,357"
113/03/01,國民及學前教育行政及督導-對各縣市政府之補助,113年度實施新住民子女華語文學習扶助課程,宜蘭縣政府,"92,390"
113/03/01,國民及學前教育行政及督導-對各縣市政府之補助,113年度實施新住民子女華語文學習扶助課程,屏東縣政府,"462,727"
113/03/01,國民及學前教育行政及督導-對各縣市政府之補助,本署113年度補助直轄市、縣(市)政府辦理公私立幼兒園汰換及新購幼童專用車經費,彰化縣政府,"1,368,096"
113/03/01,國民及學前教育行政及督導-對各縣市政府之補助,補助113年校園拒毒萌芽推廣實施計畫經費,新竹縣政府,"97,486"
113/03/01,國民及學前教育行政及督導-對直轄市政府之補助,113年助理人員經費(第1期),桃園市政府,"6,468,000"
113/03/01,國民及學前教育行政及督導-對直轄市政府之補助,113年補助縣市政府辦理身心障礙教育經費,桃園市政府,"12,769,363"
113/03/01,國民及學前教育行政及督導-對直轄市政府之補助,113年補助縣市政府辦理身心障礙教育經費,桃園市政府,"4,215,868"
113/03/01,國民及學前教育行政及督導-對各縣市政府之補助,113年度補助地方政府暨本部主管學校執行強化校園安全防護工作經費,新竹縣政府,"606,060"
113/03/01,國民及學前教育行政及督導-對各縣市政府之補助,辦理112學年度中輟生預防追蹤及復學輔導工作計畫第3期,臺東縣政府,"1,563,675"
113/03/01,國民及學前教育行政及督導-對各縣市政府之補助,辦理112學年度中輟生預防追蹤及復學輔導工作計畫第3期,臺東縣政府,"32,993"
113/03/01,國民及學前教育行政及督導-對各縣市政府之補助,113年度充實偏遠地區國中小學校廚工薪資補助經費,新竹縣政府,"2,053,512"
113/03/01,國民及學前教育行政及督導-對各縣市政府之補助,113年度充實偏遠地區國中小學校廚工薪資補助經費,澎湖縣政府,"882,000"
113/03/01,國民及學前教育行政及督導-對各縣市政府之補助,113年度充實偏遠地區國中小學校廚工薪資補助經費,澎湖縣政府,"4,732,560"
113/03/01,國民及學前教育行政及督導-對特種基金之補助,113年子由數學小學堂3.0：AI出題與素養(II)案,國立中央大學,"1,262,742"
113/03/01,國民及學前教育行政及督導-對直轄市政府之補助,113年1、2月份921地震公私立學校修復重建教學建築與設施專案貸款利息差額及手續費,臺灣土地銀行,"6,595"
113/03/01,國立高級中等學校校務基金-投資,113年校務基金學校資本門經費-3,國立南投高級中學,"814,000"
113/03/01,國立高級中等學校校務基金-投資,113年校務基金學校資本門經費-3,國立竹山高級中學,"5,128,000"
113/03/01,國立高級中等學校校務基金-投資,113年校務基金學校資本門經費-3,國立中興高級中學,"1,120,000"
113/03/01,國立高級中等學校校務基金-投資,113年校務基金學校資本門經費-3,國立基隆高級中學,"357,000"
113/03/01,國立高級中等學校校務基金-投資,113年校務基金學校資本門經費-3,國立華僑高級中學,"1,000,000"
113/03/01,國立高級中等學校校務基金-投資,113年校務基金學校資本門經費-3,國立岡山高級中學,"300,000"
113/03/01,國立高級中等學校校務基金-投資,113年校務基金學校資本門經費-3,國立鳳山高級中學,"610,000"
113/03/01,國立高級中等學校校務基金-投資,113年校務基金學校資本門經費-3,國立鳳新高級中學,"1,500,000"
113/03/01,國立高級中等學校校務基金-投資,113年校務基金學校資本門經費-3,國立旗美高級中學,"405,000"
113/03/01,國立高級中等學校校務基金-投資,113年校務基金學校資本門經費-3,國立竹東高級中學,"200,000"
113/03/01,國立高級中等學校校務基金-投資,113年校務基金學校資本門經費-3,國立竹北高級中學,"380,000"
113/03/01,國立高級中等學校校務基金-投資,113年校務基金學校資本門經費-3,國立關西高級中學,"203,000"
113/03/01,國立高級中等學校校務基金-投資,113年校務基金學校資本門經費-3,國立苗栗高級中學,"95,000"
113/03/01,國立高級中等學校校務基金-投資,113年校務基金學校資本門經費-3,國立竹南高級中學,"472,000"
113/03/01,國立高級中等學校校務基金-投資,113年校務基金學校資本門經費-3,國立苑裡高級中學,"60,000"
113/03/01,國立高級中等學校校務基金-投資,113年校務基金學校資本門經費-3,國立嘉義特教學校,"305,000"
113/03/01,國立高級中等學校校務基金-投資,113年校務基金學校資本門經費-3,國立金門高級中學,"465,000"
113/03/01,國立高級中等學校校務基金-投資,113年校務基金學校資本門經費-3,國立馬祖高級中學,"230,000"
113/03/01,國立高級中等學校校務基金-投資,113年校務基金學校資本門經費-3,國立花蓮高級中學,"659,000"
113/03/01,國立高級中等學校校務基金-投資,113年校務基金學校資本門經費-3,國立玉里高級中學,"14,148,000"
113/03/01,國立高級中等學校校務基金-投資,113年校務基金學校資本門經費-3,國立斗六高級中學,"415,000"
113/03/01,國立高級中等學校校務基金-投資,113年校務基金學校資本門經費-3,國立虎尾高級中學,"260,000"
113/03/01,國立高級中等學校校務基金-投資,113年校務基金學校資本門經費-3,國立北港高級中學,"670,000"
113/03/01,國立高級中等學校校務基金-投資,113年校務基金學校資本門經費-3,國立東石高級中學,"36,000"
113/03/01,國立高級中等學校校務基金-投資,113年校務基金學校資本門經費-3,國立羅東高級中學,"230,000"
113/03/01,國立高級中等學校校務基金-投資,113年校務基金學校資本門經費-3,國立新營高級中學,"70,000"
113/03/01,國立高級中等學校校務基金-投資,113年校務基金學校資本門經費-3,國立後壁高級中學,"200,000"
113/03/01,國立高級中等學校校務基金-投資,113年校務基金學校資本門經費-3,國立新化高級中學,"420,000"
113/03/01,國立高級中等學校校務基金-投資,113年校務基金學校資本門經費-3,國立新豐高級中學,"148,000"
113/03/01,國立高級中等學校校務基金-投資,113年校務基金學校資本門經費-3,國立善化高級中學,"170,000"
113/03/01,國立高級中等學校校務基金-投資,113年校務基金學校資本門經費-3,國立彰化高級中學,"170,000"
113/03/01,國立高級中等學校校務基金-投資,113年校務基金學校資本門經費-3,國立員林高級中學,"174,000"
113/03/01,國立高級中等學校校務基金-投資,113年校務基金學校資本門經費-3,國立鹿港高級中學,"165,000"
113/03/01,國立高級中等學校校務基金-投資,113年校務基金學校資本門經費-3,國立溪湖高級中學,"250,000"
113/03/01,國立高級中等學校校務基金-投資,113年校務基金學校資本門經費-3,國立屏東高級中學,"10,500,000"
113/03/01,國立高級中等學校校務基金-投資,113年校務基金學校資本門經費-3,國立屏北高級中學,"352,000"
113/03/01,國民及學前教育行政及督導-投資,113年度改善或充實國立高級中等學校一般建築及設備(資),國立花蓮高級中學,"1,980,000"
113/03/01,國民及學前教育行政及督導-投資,113年度高級中等學校充實教學實習設備計畫-專業群科(資),國立中興高級中學,"208,000"
113/03/01,國民及學前教育行政及督導-投資,113年度高級中等學校充實教學及實習設備計畫-一般科目(資),國立苗栗高級中學,"859,500"
113/03/01,國民及學前教育行政及督導-投資,113年度高級中等學校充實教學及實習設備計畫-一般科目(資),國立苑裡高級中學,"749,500"
113/03/01,國民及學前教育行政及督導-投資,113年度高級中等學校充實教學及實習設備計畫-一般科目(資),國立鹿港高級中學,"520,100"
113/03/01,國民及學前教育行政及督導-投資,113年度高級中等學校充實教學及實習設備計畫-一般科目(資),國立北門高級中學,"873,000"
113/03/01,國民及學前教育行政及督導-投資,113年度高級中等學校充實教學及實習設備計畫-一般科目(資),國立新竹高級中學,"700,000"
113/03/01,國民及學前教育行政及督導-投資,113年度高級中等學校充實教學及實習設備計畫-一般科目(資),國立嘉義高級中學,"913,000"
113/03/01,國民及學前教育行政及督導-對直轄市政府之補助,112學年度準公共教保服務機構經濟需要協助幼兒課後延長照顧所需經費,臺北市政府教育局,"702,562"
113/03/01,國民及學前教育行政及督導-對直轄市政府之補助,112學年度國民小學及國民中學活化教學與多元學習計畫第2期款,臺南市政府教育局,"5,339,697"
113/03/01,國民及學前教育行政及督導-對直轄市政府之補助,112學年度國民小學及國民中學活化教學與多元學習計畫第2期款,臺南市政府教育局,"16,258,337"
113/03/01,國民及學前教育行政及督導-對特種基金之補助,112學年度國民小學及國民中學活化教學與多元學習計畫第2期款,臺南市政府教育局,"73,500"
113/03/01,國民及學前教育行政及督導-對直轄市政府之補助,112學年度科學班實驗計畫第2期款,高雄市政府教育局,"1,660,850"
113/03/01,國民及學前教育行政及督導-對特種基金之補助,113年度改善或充實國立高級中等學校一般建築及設備,國立花蓮高級中學,"5,370,000"
113/03/01,國民及學前教育行政及督導-對直轄市政府之補助,112學年度高級中等學校辦理交通安全教育課程活動實施計畫,臺中市政府教育局,"110,400"
113/03/01,國民及學前教育行政及督導-對特種基金之補助,112學年度高中優質化輔助方案,國立華僑高級中學,"650,000"
113/03/01,國民及學前教育行政及督導-對特種基金之補助,112學年度高中優質化輔助方案,國立馬祖高級中學,"715,000"
113/03/01,國民及學前教育行政及督導-對直轄市政府之補助,113年度高級中等學校充實建置學生學習歷程檔案專責人員加班費,新北市政府教育局,"182,700"
113/03/01,國民及學前教育行政及督導-對特種基金之補助,112學年度第2學期高級中等學校適性學習社區推動校訂課程及彈性學習時間與大專校院協作共好計畫,國立宜蘭高級中學,"75,000"
113/03/01,國民及學前教育行政及督導-對特種基金之補助,112學年度第2學期高級中等學校適性學習社區推動校訂課程及彈性學習時間與大專校院協作共好計畫,國立屏北高級中學,"110,000"
113/03/01,國民及學前教育行政及督導-對特種基金之補助,112學年度實施十二年國民基本教育課程新增鐘點費第2期款,國立旗美高級中學,"556,200"
113/03/01,國民及學前教育行政及督導-對特種基金之補助,113年度高級中等學校充實教學及實習設備計畫-一般科目,國立苗栗高級中學,"140,500"
113/03/01,國民及學前教育行政及督導-對特種基金之補助,113年度高級中等學校充實教學及實習設備計畫-一般科目,國立苑裡高級中學,"23,500"
113/03/01,國民及學前教育行政及督導-對特種基金之補助,113年度高級中等學校充實教學及實習設備計畫-一般科目,國立鹿港高級中學,"252,900"
113/03/01,國民及學前教育行政及督導-對特種基金之補助,113年度高級中等學校充實教學及實習設備計畫-一般科目,國立北門高級中學,"42,000"
113/03/01,國民及學前教育行政及督導-對特種基金之補助,113年度高級中等學校充實教學及實習設備計畫-一般科目,國立嘉義高級中學,"87,000"
113/03/01,國民及學前教育行政及督導-對特種基金之補助,113年度高級中等學校充實教學及實習設備計畫-一般科目,國立新竹高級中學,"300,000"
113/03/01,國民及學前教育行政及督導-對直轄市政府之補助,112學年度一般地區學校公立國民中學增置專長教師員額實施計畫第2期款,臺中市政府教育局,"20,292,930"
113/03/01,國民及學前教育行政及督導-對直轄市政府之補助,112學年度準公共幼兒園招收2歲幼兒補助經費第2期款,臺中市政府教育局,"28,485,000"
113/03/01,國民及學前教育行政及督導-對直轄市政府之補助,112學年度準公共幼兒園招收2歲幼兒補助經費第2期款,臺北市政府教育局,"18,495,000"
113/03/01,國民及學前教育行政及督導-對直轄市政府之補助,海東國小112年度充實設施設備-購買智慧學習教室教學設備經費,臺南市政府教育局,"679,000"
113/03/01,國民及學前教育行政及督導-對直轄市政府之補助,112學年度準公共幼兒園未因調薪而調整收費者之「園務營運費」第2期款,臺中市政府教育局,"2,168,500"
113/03/01,國民及學前教育行政及督導-對直轄市政府之補助,112學年度國民中小學教職員工課稅配套方案之外國僑民學校及附設幼兒園第2期款,新北市政府教育局,"195,236"
113/03/01,國民及學前教育行政及督導-對直轄市政府之補助,112學年度國民中小學教職員工課稅配套方案之外國僑民學校及附設幼兒園第2期款,新北市政府教育局,"195,236"
113/03/01,國民及學前教育行政及督導-對直轄市政府之補助,112學年度國民中小學教職員工課稅配套方案之外國僑民學校及附設幼兒園第2期款,高雄市政府教育局,"2,660,399"
113/03/01,國民及學前教育行政及督導-對直轄市政府之補助,112學年度國民中小學教職員工課稅配套方案之外國僑民學校及附設幼兒園第2期款,高雄市政府教育局,"591,333"
113/03/01,國民及學前教育行政及督導-對直轄市政府之補助,113年度實施新住民子女華語文學習扶助課程,臺北市政府教育局,"787,964"
113/03/01,國民及學前教育行政及督導-對直轄市政府之補助,113年度實施新住民子女華語文學習扶助課程,新北市政府教育局,"1,977,652"
113/03/01,國民及學前教育行政及督導-對直轄市政府之補助,辦理112學年度新住民語文開課經費(第2期),臺北市政府教育局,"5,791,417"
113/03/01,國民及學前教育行政及督導-對直轄市政府之補助,辦理112學年度新住民語文開課經費(第2期),新北市政府教育局,"16,656,779"
113/03/01,國民及學前教育行政及督導-對直轄市政府之補助,辦理112學年度新住民語文開課經費(第2期),臺南市政府教育局,"5,238,027"
113/03/01,國民及學前教育行政及督導-對直轄市政府之補助,113年度實施新住民子女華語文學習扶助課程,臺南市政府教育局,"1,184,457"
113/03/01,國民及學前教育行政及督導-對特種基金之補助,113年度全國高級中等學校學生校園刊物印製實施計畫經費,國立基隆高級中學,"30,000"
113/03/01,國民及學前教育行政及督導-對特種基金之補助,113年度全國高級中等學校學生校園刊物印製實施計畫經費,國立竹東高級中學,"30,000"
113/03/01,國民及學前教育行政及督導-對特種基金之補助,113年度全國高級中等學校學生校園刊物印製實施計畫經費,國立新竹高級中學,"30,000"
113/03/01,國民及學前教育行政及督導-對特種基金之補助,113年度全國高級中等學校學生校園刊物印製實施計畫經費,國立北門高級中學,"30,000"
113/03/01,國民及學前教育行政及督導-對特種基金之補助,113年度全國高級中等學校學生校園刊物印製實施計畫經費,國立羅東高級中學,"30,000"
113/03/01,國民及學前教育行政及督導-對特種基金之補助,113年度全國高級中等學校學生校園刊物印製實施計畫經費,國立關西高級中學,"30,000"
113/03/01,國民及學前教育行政及督導-對特種基金之補助,113年度全國高級中等學校學生校園刊物印製實施計畫經費,國立鹿港高級中學,"5,400"
113/03/01,國民及學前教育行政及督導-對學生之獎助,大額通報教補3月5日-112學年度第2學期高級中等學校學生免學費,臺中市政府教育局,"427,724,191"
113/03/01,國民及學前教育行政及督導-對學生之獎助,大額通報教補3月5日-112學年度第2學期高級中等學校學生免學費,臺中市政府教育局,"150,281,473"
113/03/01,國民及學前教育行政及督導-對私校之獎助,112學年度第2學期高級中等學校適性學習社區教育資源均質化實施方案,新竹市世界高級中學,"266,000"
113/03/01,國民及學前教育行政及督導-對私校之獎助,112學年度第2學期高級中等學校適性學習社區教育資源均質化實施方案(資),新竹市世界高級中學,"262,000"
113/03/01,國民及學前教育行政及督導-對直轄市政府之補助,113年1、2月份921地震公私立學校修復重建教學建築與設施專案貸款利息差額及手續費,台灣銀行企業金融部,"6,473"
113/03/01,國民及學前教育行政及督導-對私校之獎助,112學年度第2學期高級中等學校適性學習社區推動校訂課程及彈性學習時間與大專校院協作共好計畫,新竹市世界高級中學,"75,000"
113/03/01,國立高級中等學校校務基金-投資,113年校務基金學校資本門經費-3,國立基隆女子高級中學,"152,000"
113/03/01,國立高級中等學校校務基金-投資,113年校務基金學校資本門經費-3,國立卓蘭高級中等學校,"232,000"
113/03/01,國立高級中等學校校務基金-投資,113年校務基金學校資本門經費-3,國立新竹女子高級中學,"300,000"
113/03/01,國立高級中等學校校務基金-投資,113年校務基金學校資本門經費-3,國立彰化特殊教育學校,"241,000"
113/03/01,國立高級中等學校校務基金-投資,113年校務基金學校資本門經費-3,國立臺南特殊教育學校,"108,000"
113/03/01,國立高級中等學校校務基金-投資,113年校務基金學校資本門經費-3,國立花蓮特殊教育學校,"1,570,000"
113/03/01,國立高級中等學校校務基金-投資,113年校務基金學校資本門經費-3,國立宜蘭特殊教育學校,"912,000"
113/03/01,國立高級中等學校校務基金-投資,113年校務基金學校資本門經費-3,國立基隆特殊教育學校,"140,000"
113/03/01,國立高級中等學校校務基金-投資,113年校務基金學校資本門經費-3,國立雲林特殊教育學校,"180,000"
113/03/01,國立高級中等學校校務基金-投資,113年校務基金學校資本門經費-3,國立屏東特殊教育學校,"600,000"
113/03/01,國立高級中等學校校務基金-投資,113年校務基金學校資本門經費-3,國立新竹特殊教育學校,"210,000"
113/03/01,國立高級中等學校校務基金-投資,113年校務基金學校資本門經費-3,國立南投特殊教育學校,"500,000"
113/03/01,國立高級中等學校校務基金-投資,113年校務基金學校資本門經費-3,國立花蓮女子高級中學,"660,000"
113/03/01,國立高級中等學校校務基金-投資,113年校務基金學校資本門經費-3,國立新港藝術高級中學,"350,000"
113/03/01,國立高級中等學校校務基金-投資,113年校務基金學校資本門經費-3,國立蘭陽女子高級中學,"15,000"
113/03/01,國立高級中等學校校務基金-投資,113年校務基金學校資本門經費-3,國立台南第二高級中學,"500,000"
113/03/01,國立高級中等學校校務基金-投資,113年校務基金學校資本門經費-3,國立台南女子高級中學,"110,000"
113/03/01,國立高級中等學校校務基金-投資,113年校務基金學校資本門經費-3,國立台南家齊高級中學,"180,000"
113/03/01,國立高級中等學校校務基金-投資,113年校務基金學校資本門經費-3,國立彰化女子高級中學,"145,000"
113/03/01,國立高級中等學校校務基金-投資,113年校務基金學校資本門經費-3,國立屏東女子高級中學,"330,000"
113/03/01,國民及學前教育行政及督導-投資,112學年度高中優質化輔助方案(資),國立花蓮女子高級中學,"340,000"
113/03/01,國民及學前教育行政及督導-投資,113年度高級中等學校充實教學及實習設備計畫-一般科目(資),國立彰化女子高級中學,"873,100"
113/03/01,國民及學前教育行政及督導-對特種基金之補助,113年度國民中小學閱讀推動計畫經費,國立臺南大學附設實小,"20,000"
113/03/01,國民及學前教育行政及督導-對特種基金之補助,112學年度高中優質化輔助方案,國立花蓮女子高級中學,"956,000"
113/03/01,國民及學前教育行政及督導-對特種基金之補助,112學年度第2學期高級中等學校適性學習社區推動校訂課程及彈性學習時間與大專校院協作共好計畫,國立基隆女子高級中學,"572,000"
113/03/01,國民及學前教育行政及督導-對特種基金之補助,113年度高級中等學校充實教學及實習設備計畫-一般科目,國立彰化女子高級中學,"126,900"
113/03/01,國民及學前教育行政及督導-對特種基金之補助,112學年度國立中小學及直轄市立特殊教育學校調整教師授課節數及導師職務加給實施計畫第2期款,國立臺東大學附設實小,"582,932"
113/03/01,國民及學前教育行政及督導-對特種基金之補助,112學年度高級中等學校原住民族語課程開課經費-第2期款,國立卓蘭高級中等學校,"42,702"
113/03/01,國民及學前教育行政及督導-對特種基金之補助,113年度全國高級中等學校學生校園刊物印製實施計畫經費,國立基隆特殊教育學校,"12,500"
113/03/01,國民及學前教育行政及督導-對特種基金之補助,113年度全國高級中等學校學生校園刊物印製實施計畫經費,國立彰化女子高級中學,"30,000"
113/03/01,國民及學前教育行政及督導-對特種基金之補助,113年度全國高級中等學校學生校園刊物印製實施計畫經費,國立台南女子高級中學,"30,000"
113/03/01,國民及學前教育行政及督導-對特種基金之補助,113年度全國高級中等學校學生校園刊物印製實施計畫經費,國立台東女子高級中學,"30,000"
113/03/01,國民及學前教育行政及督導-對特種基金之補助,補助112學年度各地方政府及教育部轄管高中臺灣手語開班經費(第2期),國立卓蘭高級中等學校,"25,444"
113/03/01,國民及學前教育行政及督導-對私校之獎助,112學年度第2學期高級中等學校適性學習社區教育資源均質化實施方案,臺南市私立明達高級中學,"207,000"
113/03/01,國民及學前教育行政及督導-對私校之獎助,112學年度第2學期高級中等學校適性學習社區教育資源均質化實施方案(資),臺南市私立明達高級中學,"208,000"
113/03/01,國民及學前教育行政及督導-對學生之獎助,私立高級中等學校112學年度特殊教育學生獎補助金經費經費,花蓮縣私立四維高級中學,"2,400"
113/03/01,國民及學前教育行政及督導-對學生之獎助,112學年度第2學期高級中等學校特殊境遇家庭子女孫子女學雜費減免補助,臺南市私立明達高級中學,"5,412"
113/03/01,國民及學前教育行政及督導-對學生之獎助,112學年度第2學期高級中等學校低收入戶及中低收入戶學生學雜費減免補助,臺南市私立明達高級中學,"119,640"
113/03/01,國民及學前教育行政及督導-對學生之獎助,112學年度第2學期高級中等學校低收入戶及中低收入戶學生學雜費減免補助,臺南市私立明達高級中學,"18,942"
113/03/01,國民及學前教育行政及督導-對私校之獎助,112學年度高級中等學校提升學生實習實作能力計畫,新竹縣私立東泰高級中學,"215,200"
113/03/01,國民及學前教育行政及督導-對私校之獎助,112學年度原住民學生一般課業輔導鐘點費 (第二期),花蓮縣私立四維高級中學,"175,000"
113/03/01,國民及學前教育行政及督導-對私校之獎助,112學年度第2學期發展及改進原住民技職教育計畫,南投縣私立三育高級中學,"83,000"
113/03/01,國民及學前教育行政及督導-對私校之獎助,113年度全國高級中等學校學生校園刊物印製實施計畫經費,彰化縣私立精誠高級中學,"15,000"
113/03/01,國立高級中等學校校務基金-投資,113年校務基金學校資本門經費-3,國立埔里高級工業職業學校,"164,000"
113/03/01,國立高級中等學校校務基金-投資,113年校務基金學校資本門經費-3,國立南投高級商業職業學校,"30,000"
113/03/01,國立高級中等學校校務基金-投資,113年校務基金學校資本門經費-3,國立草屯高級商工職業學校,"684,000"
113/03/01,國立高級中等學校校務基金-投資,113年校務基金學校資本門經費-3,國立水里高級商工職業學校,"510,000"
113/03/01,國立高級中等學校校務基金-投資,113年校務基金學校資本門經費-3,國立政治大學附屬高級中學,"210,000"
113/03/01,國立高級中等學校校務基金-投資,113年校務基金學校資本門經費-3,國立基隆高級商工職業學校,"900,000"
113/03/01,國立高級中等學校校務基金-投資,113年校務基金學校資本門經費-3,國立岡山高級農工職業學校,"300,000"
113/03/01,國立高級中等學校校務基金-投資,113年校務基金學校資本門經費-3,國立旗山高級農工職業學校,"188,000"
113/03/01,國立高級中等學校校務基金-投資,113年校務基金學校資本門經費-3,國立鳳山高級商工職業學校,"735,000"
113/03/01,國立高級中等學校校務基金-投資,113年校務基金學校資本門經費-3,國立新竹高級工業職業學校,"752,000"
113/03/01,國立高級中等學校校務基金-投資,113年校務基金學校資本門經費-3,國立新竹高級商業職業學校,"174,000"
113/03/01,國立高級中等學校校務基金-投資,113年校務基金學校資本門經費-3,國立苗栗高級商業職業學校,"383,000"
113/03/01,國立高級中等學校校務基金-投資,113年校務基金學校資本門經費-3,國立苗栗高級農工職業學校,"240,000"
113/03/01,國立高級中等學校校務基金-投資,113年校務基金學校資本門經費-3,國立大湖高級農工職業學校,"1,134,000"
113/03/01,國立高級中等學校校務基金-投資,113年校務基金學校資本門經費-3,國立臺南大學附屬啟聰學校,"128,000"
113/03/01,國立高級中等學校校務基金-投資,113年校務基金學校資本門經費-3,國立金門高級農工職業學校,"300,000"
113/03/01,國立高級中等學校校務基金-投資,113年校務基金學校資本門經費-3,國立台東高級商業職業學校,"183,000"
113/03/01,國立高級中等學校校務基金-投資,113年校務基金學校資本門經費-3,國立關山高級工商職業學校,"200,000"
113/03/01,國立高級中等學校校務基金-投資,113年校務基金學校資本門經費-3,國立成功商業水產職業學校,"250,000"
113/03/01,國立高級中等學校校務基金-投資,113年校務基金學校資本門經費-3,國立花蓮高級工業職業學校,"380,000"
113/03/01,國立高級中等學校校務基金-投資,113年校務基金學校資本門經費-3,國立花蓮高級商業職業學校,"590,000"
113/03/01,國立高級中等學校校務基金-投資,113年校務基金學校資本門經費-3,國立光復高級商工職業學校,"250,000"
113/03/01,國立高級中等學校校務基金-投資,113年校務基金學校資本門經費-3,國立西螺高級農工職業學校,"500,000"
113/03/01,國立高級中等學校校務基金-投資,113年校務基金學校資本門經費-3,國立虎尾高級農工職業學校,"1,666,000"
113/03/01,國立高級中等學校校務基金-投資,113年校務基金學校資本門經費-3,國立北港高級農工職業學校,"20,000"
113/03/01,國立高級中等學校校務基金-投資,113年校務基金學校資本門經費-3,國立土庫高級商工職業學校,"220,000"
113/03/01,國立高級中等學校校務基金-投資,113年校務基金學校資本門經費-3,國立嘉義高級商業職業學校,"707,000"
113/03/01,國立高級中等學校校務基金-投資,113年校務基金學校資本門經費-3,國立華南高級商業職業學校,"1,305,000"
113/03/01,國立高級中等學校校務基金-投資,113年校務基金學校資本門經費-3,國立民雄高級農工職業學校,"450,000"
113/03/01,國立高級中等學校校務基金-投資,113年校務基金學校資本門經費-3,國立嘉義高級家事職業學校,"196,000"
113/03/01,國立高級中等學校校務基金-投資,113年校務基金學校資本門經費-3,國立中興大學附屬高級中學,"200,000"
113/03/01,國立高級中等學校校務基金-投資,113年校務基金學校資本門經費-3,國立羅東高級工業職業學校,"197,000"
113/03/01,國立高級中等學校校務基金-投資,113年校務基金學校資本門經費-3,國立宜蘭高級商業職業學校,"349,000"
113/03/01,國立高級中等學校校務基金-投資,113年校務基金學校資本門經費-3,國立羅東高級商業職業學校,"40,000"
113/03/01,國立高級中等學校校務基金-投資,113年校務基金學校資本門經費-3,國立臺南大學附屬高級中學,"1,530,000"
113/03/01,國立高級中等學校校務基金-投資,113年校務基金學校資本門經費-3,國立新營高級工業職業學校,"819,000"
113/03/01,國立高級中等學校校務基金-投資,113年校務基金學校資本門經費-3,國立新化高級工業職業學校,"215,000"
113/03/01,國立高級中等學校校務基金-投資,113年校務基金學校資本門經費-3,國立台南高級商業職業學校,"250,000"
113/03/01,國立高級中等學校校務基金-投資,113年校務基金學校資本門經費-3,國立曾文高級農工職業學校,"100,000"
113/03/01,國立高級中等學校校務基金-投資,113年校務基金學校資本門經費-3,國立白河高級商工職業學校,"245,000"
113/03/01,國立高級中等學校校務基金-投資,113年校務基金學校資本門經費-3,國立玉井高級工商職業學校,"280,000"
113/03/01,國立高級中等學校校務基金-投資,113年校務基金學校資本門經費-3,國立永靖高級工業職業學校,"745,000"
113/03/01,國立高級中等學校校務基金-投資,113年校務基金學校資本門經費-3,國立屏東高級工業職業學校,"482,000"
113/03/01,國立高級中等學校校務基金-投資,113年校務基金學校資本門經費-3,國立佳冬高級農業職業學校,"702,000"
113/03/01,國立高級中等學校校務基金-投資,113年校務基金學校資本門經費-3,國立員林高級農工職業學校,"1,060,000"
113/03/01,國立高級中等學校校務基金-投資,113年校務基金學校資本門經費-3,國立內埔高級農工職業學校,"200,000"
113/03/01,國立高級中等學校校務基金-投資,113年校務基金學校資本門經費-3,國立恆春高級工商職業學校,"43,000"
113/03/01,國民及學前教育行政及督導-投資,113年度高級中等學校新興科技教學遠距示範服務計畫之Fab Lab促進學校(資),國立花蓮高級工業職業學校,"100,000"
113/03/01,國民及學前教育行政及督導-投資,113年度高級中等學校充實教學實習設備計畫-專業群科(資),國立曾文高級農工職業學校,"935,250"
113/03/01,國民及學前教育行政及督導-投資,113年度高級中等學校充實教學及實習設備計畫-一般科目(資),國立二林高級工商職業學校,"750,000"
113/03/01,國民及學前教育行政及督導-投資,113年度高級中等學校充實教學及實習設備計畫-一般科目(資),國立秀水高級工業職業學校,"1,000,000"
113/03/01,國民及學前教育行政及督導-投資,113年度高級中等學校充實教學及實習設備計畫-一般科目(資),國立暨南大學附屬高級中學,"1,141,000"
113/03/01,國民及學前教育行政及督導-投資,113年度高級中等學校充實教學及實習設備計畫-一般科目(資),國立白河高級商工職業學校,"797,200"
113/03/01,國民及學前教育行政及督導-投資,113年度高級中等學校充實教學及實習設備計畫-一般科目(資),國立玉井高級工商職業學校,"1,229,500"
113/03/01,國民及學前教育行政及督導-投資,113年度高級中等學校充實教學及實習設備計畫-一般科目(資),國立華南高級商業職業學校,"675,600"
113/03/01,國民及學前教育行政及督導-投資,113年度高級中等學校充實教學及實習設備計畫-一般科目(資),國立嘉義高級工業職業學校,"853,000"
113/03/01,國民及學前教育行政及督導-投資,113年度高級中等學校充實教學及實習設備計畫-一般科目(資),國立嘉義高級商業職業學校,"712,500"
113/03/01,國民及學前教育行政及督導-對特種基金之補助,113年度高級中等學校新興科技教學遠距示範服務計畫之Fab Lab促進學校,國立花蓮高級工業職業學校,"1,400,000"
113/03/01,國民及學前教育行政及督導-對特種基金之補助,113年度高級中等學校充實教學實習設備計畫-專業群科,國立曾文高級農工職業學校,"64,750"
113/03/01,國民及學前教育行政及督導-對特種基金之補助,112學年度第2學期高級中等學校適性學習社區推動校訂課程及彈性學習時間與大專校院協作共好計畫,國立花蓮高級商業職業學校,"75,000"
113/03/01,國民及學前教育行政及督導-對特種基金之補助,112學年度實施十二年國民基本教育課程新增鐘點費第2期款,國立苗栗高級農工職業學校,"680,400"
113/03/01,國民及學前教育行政及督導-對特種基金之補助,112學年度實施十二年國民基本教育課程新增鐘點費第2期款,國立花蓮高級工業職業學校,"604,800"
113/03/01,國民及學前教育行政及督導-對特種基金之補助,113年度高級中等學校充實教學及實習設備計畫-一般科目,國立暨南大學附屬高級中學,"109,000"
113/03/01,國民及學前教育行政及督導-對特種基金之補助,113年度高級中等學校充實教學及實習設備計畫-一般科目,國立白河高級商工職業學校,"41,800"
113/03/01,國民及學前教育行政及督導-對特種基金之補助,113年度高級中等學校充實教學及實習設備計畫-一般科目,國立玉井高級工商職業學校,"20,500"
113/03/01,國民及學前教育行政及督導-對特種基金之補助,113年度高級中等學校充實教學及實習設備計畫-一般科目,國立華南高級商業職業學校,"97,400"
113/03/01,國民及學前教育行政及督導-對特種基金之補助,113年度高級中等學校充實教學及實習設備計畫-一般科目,國立嘉義高級工業職業學校,"51,000"
113/03/01,國民及學前教育行政及督導-對特種基金之補助,113年度高級中等學校充實教學及實習設備計畫-一般科目,國立嘉義高級商業職業學校,"60,500"
113/03/01,國民及學前教育行政及督導-對特種基金之補助,112學年度高級中等學校原住民族語課程開課經費-第2期款,國立新竹高級商業職業學校,"111,090"
113/03/01,國民及學前教育行政及督導-對特種基金之補助,112學年度高級中等學校原住民族語課程開課經費-第2期款,國立苗栗高級商業職業學校,"48,372"
113/03/01,國民及學前教育行政及督導-對特種基金之補助,112學年度高級中等學校本土語文(閩南語、閩東語、客語文)課程開課經費-第2期款,國立新竹高級商業職業學校,"80,576"
113/03/01,國民及學前教育行政及督導-對特種基金之補助,112學年度高級中等學校本土語文(閩南語、閩東語、客語文)課程開課經費-第2期款,國立苗栗高級商業職業學校,"62,272"
113/03/01,國民及學前教育行政及督導-對特種基金之補助,113年度全國高級中等學校學生校園刊物印製實施計畫經費,國立新竹高級商業職業學校,"15,000"
113/03/01,國民及學前教育行政及督導-對特種基金之補助,113年度全國高級中等學校學生校園刊物印製實施計畫經費,國立新竹高級工業職業學校,"30,000"
113/03/01,國民及學前教育行政及督導-對特種基金之補助,113年度全國高級中等學校學生校園刊物印製實施計畫經費,國立中興大學附屬高級中學,"30,000"
113/03/01,國民及學前教育行政及督導-對特種基金之補助,113年度全國高級中等學校學生校園刊物印製實施計畫經費,國立永靖高級工業職業學校,"30,000"
113/03/01,國民及學前教育行政及督導-對特種基金之補助,113年度全國高級中等學校學生校園刊物印製實施計畫經費,國立水里高級商工職業學校,"30,000"
113/03/01,國民及學前教育行政及督導-對特種基金之補助,113年度全國高級中等學校學生校園刊物印製實施計畫經費,國立草屯高級商工職業學校,"30,000"
113/03/01,國民及學前教育行政及督導-對特種基金之補助,113年度全國高級中等學校學生校園刊物印製實施計畫經費,國立嘉義高級商業職業學校,"30,000"
113/03/01,國民及學前教育行政及督導-對特種基金之補助,113年度全國高級中等學校學生校園刊物印製實施計畫經費,國立華南高級商業職業學校,"30,000"
113/03/01,國民及學前教育行政及督導-對特種基金之補助,113年度全國高級中等學校學生校園刊物印製實施計畫經費,國立新化高級工業職業學校,"15,000"
113/03/01,國民及學前教育行政及督導-對特種基金之補助,113年度全國高級中等學校學生校園刊物印製實施計畫經費,國立關山高級工商職業學校,"30,000"
113/03/01,國民及學前教育行政及督導-對特種基金之補助,113年度全國高級中等學校學生校園刊物印製實施計畫經費,國立苗栗高級農工職業學校,"30,000"
113/03/01,國民及學前教育行政及督導-對特種基金之補助,113年度全國高級中等學校學生校園刊物印製實施計畫經費,國立土庫高級商工職業學校,"30,000"
113/03/01,國民及學前教育行政及督導-對特種基金之補助,113年度全國高級中等學校學生校園刊物印製實施計畫經費,國立虎尾高級農工職業學校,"30,000"
113/03/01,國民及學前教育行政及督導-對特種基金之補助,113年度全國高級中等學校學生校園刊物印製實施計畫經費,國立民雄高級農工職業學校,"30,000"
113/03/01,國民及學前教育行政及督導-對特種基金之補助,113年度全國高級中等學校學生校園刊物印製實施計畫經費,國立臺南大學附屬高級中學,"30,000"
113/03/01,國民及學前教育行政及督導-對特種基金之補助,113年度全國高級中等學校學生校園刊物印製實施計畫經費,國立臺南大學附屬啟聰學校,"30,000"
113/03/01,國民及學前教育行政及督導-對特種基金之補助,113年度全國高級中等學校學生校園刊物印製實施計畫經費,國立屏東高級工業職業學校,"30,000"
113/03/01,國民及學前教育行政及督導-對特種基金之補助,補助112學年度各地方政府及教育部轄管高中臺灣手語開班經費(第2期),國立新竹高級商業職業學校,"7,802"
113/03/01,國民及學前教育行政及督導-對特種基金之補助,補助112學年度各地方政府及教育部轄管高中臺灣手語開班經費(第2期),國立苗栗高級商業職業學校,"22,103"
113/03/01,國民及學前教育行政及督導-對直轄市政府之補助,辦理113年度推動偏鄉學校中央廚房計畫熟食運輸租賃財務採購經費,匯豐協新租賃股份有限公司,"3,115,667"
113/03/01,國民及學前教育行政及督導-對直轄市政府之補助,辦理113年度推動偏鄉學校中央廚房計畫熟食運輸租賃財務採購經費,匯豐協新租賃股份有限公司,"7,117,813"
113/03/01,國民及學前教育行政及督導-對各縣市政府之補助,辦理113年度推動偏鄉學校中央廚房計畫熟食運輸租賃財務採購經費,匯豐協新租賃股份有限公司,"2,034,340"
113/03/01,國民及學前教育行政及督導-對各縣市政府之補助,辦理113年度推動偏鄉學校中央廚房計畫熟食運輸租賃財務採購經費,匯豐協新租賃股份有限公司,"4,655,780"
113/03/01,國民及學前教育行政及督導-對直轄市政府之補助,辦理113年度推動偏鄉學校中央廚房計畫熟食運輸租賃財務採購案後續擴充經費,匯豐協新租賃股份有限公司,"128,314"
113/03/01,國民及學前教育行政及督導-對直轄市政府之補助,辦理113年度推動偏鄉學校中央廚房計畫熟食運輸租賃財務採購案後續擴充經費,匯豐協新租賃股份有限公司,"268,286"
113/03/01,國民及學前教育行政及督導-對各縣市政府之補助,辦理113年度推動偏鄉學校中央廚房計畫熟食運輸租賃財務採購案後續擴充經費,匯豐協新租賃股份有限公司,"256,629"
113/03/01,國民及學前教育行政及督導-對各縣市政府之補助,辦理113年度推動偏鄉學校中央廚房計畫熟食運輸租賃財務採購案後續擴充經費,匯豐協新租賃股份有限公司,"536,571"
113/03/01,國民及學前教育行政及督導-對特種基金之補助,112學年度家庭教育經費(第2期),國立鳳山高級商工職業學校,"23,000"
113/03/01,國民及學前教育行政及督導-對國內團體之捐助,113年度民間團體辦理國民中小學閱讀推動計畫經費,社團法人高雄市故事媽媽協會,"608,000"
113/03/01,國民及學前教育行政及督導-對私校之獎助,112學年度十二年國民基本教育課程綱要普通型數位前導學校計畫,新竹市私立曙光女子高級中學,"1,050,000"
113/03/01,國民及學前教育行政及督導-對學生之獎助,私立高級中等學校112學年度特殊教育學生獎補助金經費經費,新竹市私立曙光女子高級中學,"3,000"
113/03/01,國民及學前教育行政及督導-對國內團體之捐助,112學年度獎勵非營利法人之補助經費,財團法人羅東高商教育基金會,"100,000"
113/03/01,國民及學前教育行政及督導-對國內團體之捐助,113新住民子女語文學習活動經費-生活營及學習班,社團法人台中市親子閱讀協會,"100,000"
113/03/01,國民及學前教育行政及督導-對國內團體之捐助,113新住民子女語文學習活動經費-生活營及學習班,社團法人台中市親子閱讀協會,"60,000"
113/03/01,國立高級中等學校校務基金-投資,113年校務基金學校資本門經費-3,國立中央大學附屬中壢高級中學,"15,000"
113/03/01,國立高級中等學校校務基金-投資,113年校務基金學校資本門經費-3,國立中山大學附屬國光高級中學,"800,000"
113/03/01,國立高級中等學校校務基金-投資,113年校務基金學校資本門經費-3,國立澎湖高級海事水產職業學校,"300,000"
113/03/01,國立高級中等學校校務基金-投資,113年校務基金學校資本門經費-3,國立臺東大學附屬體育高級中學,"288,000"
113/03/01,國立高級中等學校校務基金-投資,113年校務基金學校資本門經費-3,國立斗六高級家事商業職業學校,"200,000"
113/03/01,國立高級中等學校校務基金-投資,113年校務基金學校資本門經費-3,國立頭城高級家事商業職業學校,"500,000"
113/03/01,國立高級中等學校校務基金-投資,113年校務基金學校資本門經費-3,國立曾文高級家事商業職業學校,"650,000"
113/03/01,國立高級中等學校校務基金-投資,113年校務基金學校資本門經費-3,國立台南高級海事水產職業學校,"200,000"
113/03/01,國立高級中等學校校務基金-投資,113年校務基金學校資本門經費-3,國立員林高級家事商業職業學校,"660,000"
113/03/01,國立高級中等學校校務基金-投資,113年校務基金學校資本門經費-3,國立北斗高級家事商業職業學校,"460,000"
113/03/01,國立高級中等學校校務基金-投資,113年校務基金學校資本門經費-3,國立東港高級海事水產職業學校,"320,000"
113/03/01,國民及學前教育行政及督導-投資,112學年度高中優質化輔助方案(資),國立中山大學附屬國光高級中學,"450,000"
113/03/01,國民及學前教育行政及督導-投資,113年度高級中等學校充實教學及實習設備計畫-一般科目(資),國立中央大學附屬中壢高級中學,"977,500"
113/03/01,國民及學前教育行政及督導-投資,113年度高級中等學校充實教學及實習設備計畫-一般科目(資),國立東港高級海事水產職業學校,"457,000"
113/03/01,國民及學前教育行政及督導-投資,113年度高級中等學校充實教學及實習設備計畫-一般科目(資),國立台南高級海事水產職業學校,"491,500"
113/03/01,國民及學前教育行政及督導-對私校之獎助,112學年度高級中等學校辦理交通安全教育課程活動實施計畫,私立培德高級工業家事職業學校,"71,000"
113/03/01,國民及學前教育行政及督導-對特種基金之補助,112學年度高中優質化輔助方案,國立中山大學附屬國光高級中學,"850,000"
113/03/01,國民及學前教育行政及督導-對私校之獎助,112學年度第2學期高級中等學校適性學習社區教育資源均質化實施方案,私立培德高級工業家事職業學校,"280,000"
113/03/01,國民及學前教育行政及督導-對私校之獎助,112學年度第2學期高級中等學校適性學習社區教育資源均質化實施方案(資),私立培德高級工業家事職業學校,"276,000"
113/03/01,國民及學前教育行政及督導-對私校之獎助,112學年度第2學期高級中等學校適性學習社區教育資源均質化實施方案(資),臺灣省彰化縣私立文興高級中學,"258,000"
113/03/01,國民及學前教育行政及督導-對直轄市政府之補助,113年1、2月份921地震公私立學校修復重建教學建築與設施專案貸款利息差額及手續費,合作金庫商業銀行股份有限公司,"6,488"
113/03/01,國民及學前教育行政及督導-對直轄市政府之補助,113年1、2月份921地震公私立學校修復重建教學建築與設施專案貸款利息差額及手續費,臺灣中小企業銀行股份有限公司,"6,488"
113/03/01,國民及學前教育行政及督導-對學生之獎助,112學年度第2學期高級中等學校特殊境遇家庭子女孫子女學雜費減免補助,臺灣省彰化縣私立文興高級中學,"2,940"
113/03/01,國民及學前教育行政及督導-對學生之獎助,112學年度第2學期高級中等學校低收入戶及中低收入戶學生學雜費減免補助,臺灣省彰化縣私立文興高級中學,"120,640"
113/03/01,國民及學前教育行政及督導-對學生之獎助,112學年度第2學期高級中等學校低收入戶及中低收入戶學生學雜費減免補助,臺灣省彰化縣私立文興高級中學,"89,628"
113/03/01,國民及學前教育行政及督導-對特種基金之補助,113年度高級中等學校充實教學及實習設備計畫-一般科目,國立中央大學附屬中壢高級中學,"22,500"
113/03/01,國民及學前教育行政及督導-對特種基金之補助,113年度高級中等學校充實教學及實習設備計畫-一般科目,國立東港高級海事水產職業學校,"20,000"
113/03/01,國民及學前教育行政及督導-對特種基金之補助,113年度高級中等學校充實教學及實習設備計畫-一般科目,國立台南高級海事水產職業學校,"23,500"
113/03/01,國民及學前教育行政及督導-對特種基金之補助,112學年度國民中小學充實行政人力第2期款,國立政治大學附設實驗國民小學,"260,000"
113/03/01,國民及學前教育行政及督導-對特種基金之補助,112學年度國立中小學及直轄市立特殊教育學校調整教師授課節數及導師職務加給實施計畫第2期款,國立中山大學附屬國光高級中學,"774,339"
113/03/01,國民及學前教育行政及督導-對特種基金之補助,112學年度國立中小學及直轄市立特殊教育學校調整教師授課節數及導師職務加給實施計畫第2期款,國立屏東大學附設實驗國民小學,"180,375"
113/03/01,國民及學前教育行政及督導-對特種基金之補助,113年度全國高級中等學校學生校園刊物印製實施計畫經費,國立中央大學附屬中壢高級中學,"15,000"
113/03/01,國民及學前教育行政及督導-對私校之獎助,113年度全國高級中等學校學生校園刊物印製實施計畫經費,臺灣省嘉義市私立輔仁高級中學,"30,000"
113/03/01,國民及學前教育行政及督導-對國內團體之捐助,113年度民間團體辦理國民中小學閱讀推動計畫經費,社團法人花蓮縣新象社區交流協會,"1,024,000"
113/03/01,國民及學前教育行政及督導-對學生之獎助,"112學年度第2學期實用技能學程學生免學雜費補助(383,040、2,895,600)",彰化縣私立大慶高級商工職業學校,"3,278,640"
113/03/01,國民及學前教育行政及督導-對私校之獎助,112學年度高級中等學校辦理交通安全教育課程活動實施計畫,苗栗縣私立龍德家事商業職業學校,"98,000"
113/03/01,國民及學前教育行政及督導-對私校之獎助,113年度高級中等學校充實教學實習設備計畫-專業群科(資),彰化縣私立達德高級商工職業學校,"971,200"
113/03/01,國民及學前教育行政及督導-對學生之獎助,112學年度第2學期產業特殊需求類科學生免學雜費補助,高雄縣私立旗美高級商工職業學校,"640,240"
113/03/01,國民及學前教育行政及督導-對學生之獎助,112學年度第2學期產業特殊需求類科學生免學雜費補助,苗栗縣私立龍德家事商業職業學校,"373,945"
113/03/01,國民及學前教育行政及督導-對學生之獎助,私立高級中等學校112學年度特殊教育學生獎補助金經費經費,財團法人雲林縣私立正心高級中學,"4,000"
113/03/01,國民及學前教育行政及督導-對學生之獎助,112學年度第2學期高級中等學校低收入戶及中低收入戶學生學雜費減免補助,臺南市私立育德工業家事職業學校,"178,470"
113/03/01,國民及學前教育行政及督導-對學生之獎助,112學年度第2學期高級中等學校低收入戶及中低收入戶學生學雜費減免補助,臺南市私立育德工業家事職業學校,"24,033"
113/03/01,國民及學前教育行政及督導-對學生之獎助,112學年度第2學期高級中等學校低收入戶及中低收入戶學生學雜費減免補助,財團法人雲林縣私立正心高級中學,"120,030"
113/03/01,國民及學前教育行政及督導-對學生之獎助,112學年度第2學期高級中等學校低收入戶及中低收入戶學生學雜費減免補助,財團法人雲林縣私立正心高級中學,"2,706"
113/03/01,國民及學前教育行政及督導-對學生之獎助,112學年度第2學期高級中等學校低收入戶及中低收入戶學生學雜費減免補助,臺南市私立育德工業家事職業學校,"61,920"
113/03/01,國民及學前教育行政及督導-對學生之獎助,112學年度第2學期高級中等學校低收入戶及中低收入戶學生學雜費減免補助,臺南市私立育德工業家事職業學校,"566,410"
113/03/01,國民及學前教育行政及督導-對私校之獎助,112學年度高級中等學校提升學生實習實作能力計畫,雲林縣私立大成高級商工職業學校,"12,400"
113/03/01,國民及學前教育行政及督導-對私校之獎助,112學年度高級中等學校提升學生實習實作能力計畫,高雄縣私立高英高級工商職業學校,"342,800"
113/03/01,國民及學前教育行政及督導-對私校之獎助,112學年度高級中等學校提升學生實習實作能力計畫,高雄縣私立高苑高級工商職業學校,"284,600"
113/03/01,國民及學前教育行政及督導-對私校之獎助,112學年度高級中等學校提升學生實習實作能力計畫,臺東縣私立公東高級工業職業學校,"27,000"
113/03/01,國民及學前教育行政及督導-對私校之獎助,112學年度高級中等學校提升學生實習實作能力計畫,彰化縣私立大慶高級商工職業學校,"19,600"
113/03/01,國民及學前教育行政及督導-對私校之獎助,112學年度高級中等學校提升學生實習實作能力計畫,彰化縣私立達德高級商工職業學校,"343,800"
113/03/01,國民及學前教育行政及督導-對私校之獎助,112學年度高級中等學校提升學生實習實作能力計畫,雲林縣私立大德工業商業職業學校,"7,200"
113/03/01,國民及學前教育行政及督導-政府機關間之補助,112學年度獎勵無償提供場地、設施及設備辦理職場互助教保服務中心第2期款,勞動部勞動力發展署高屏澎東分署,"290,000"
113/03/01,國民及學前教育行政及督導-政府機關間之補助,112學年度獎勵無償提供場地、設施及設備辦理職場互助教保服務中心第2期款,勞動部勞動力發展署高屏澎東分署,"60,000"
113/03/01,國民及學前教育行政及督導-對特種基金之補助,112學年度國立中小學及直轄市立特殊教育學校調整教師授課節數及導師職務加給實施計畫第2期款,國立東華大學附設實小401專戶,"195,187"
113/03/01,國民及學前教育行政及督導-對私校之獎助,112學年度高級中等學校原住民族語課程開課經費-第2期款,高雄縣私立高英高級工商職業學校,"12,344"
113/03/01,國民及學前教育行政及督導-對私校之獎助,113年度全國高級中等學校學生校園刊物印製實施計畫經費,彰化縣私立達德高級商工職業學校,"30,000"
113/03/01,國民及學前教育行政及督導-對特種基金之補助,112學年度國立中小學及直轄市立特殊教育學校調整教師授課節數及導師職務加給實施計畫第2期款,國立新竹科學園區實驗高級中等學校,"4,298,293"
113/03/01,國民及學前教育行政及督導-對學生之獎助,私立高級中等學校112學年度特殊教育學生獎補助金經費經費,義峰學校財團法人雲林縣義峰高級中學,"14,400"
113/03/01,國民及學前教育行政及督導-對私校之獎助,112學年度高級中等學校提升學生實習實作能力計畫,義峰學校財團法人雲林縣義峰高級中學,"123,000"
113/03/01,國民及學前教育行政及督導-對私校之獎助,112學年度高級中等學校提升學生實習實作能力計畫,屏榮學校財團法人屏東縣屏榮高級中學,"48,000"
113/03/01,國民及學前教育行政及督導-對私校之獎助,112學年度高級中等學校提升學生實習實作能力計畫,屏東縣私立民生高級家事商業職業學校,"99,600"
113/03/01,國民及學前教育行政及督導-對特種基金之補助,112學年度職場互助教保服務中心業務費(含聘請簽證會計師經費)第2期款,台灣自來水股份有限公司第一區管理處,"120,000"
113/03/01,國立高級中等學校校務基金-投資,113年校務基金學校資本門經費-3,國立高雄餐旅大學附屬餐旅高級中等學校,"17,000"
113/03/01,國立高級中等學校校務基金-投資,113年校務基金學校資本門經費-3,國立中興大學附屬台中高級農業職業學校,"8,000,000"
113/03/01,國立高級中等學校校務基金-投資,113年校務基金學校資本門經費-3,國立成功大學附屬臺南工業高級中等學校,"767,000"
113/03/01,國立高級中等學校校務基金-投資,113年校務基金學校資本門經費-3,國立彰化師範大學附屬高級工業職業學校,"1,470,000"
113/03/01,國民及學前教育行政及督導-投資,113年充實公立國民中小學圖書館(室)藏書量經費,國立高雄餐旅大學附屬餐旅高級中等學校,"100,000"
113/03/01,國民及學前教育行政及督導-對私校之獎助,113年度高級中等學校充實教學實習設備計畫-專業群科(資),台灣省台南市私立慈幼高級工商職業學校,"192,000"
113/03/01,國民及學前教育行政及督導-對私校之獎助,112學年度第2學期高級中等學校適性學習社區教育資源均質化實施方案,財團法人台灣省雲林縣私立文生高級中學,"68,000"
113/03/01,國民及學前教育行政及督導-對私校之獎助,112學年度第2學期高級中等學校適性學習社區推動校訂課程及彈性學習時間與大專校院協作共好計畫,財團法人台灣省雲林縣私立文生高級中學,"75,000"
113/03/01,國民及學前教育行政及督導-對學生之獎助,112學年度第2學期高級中等學校低收入戶及中低收入戶學生學雜費減免補助,佛光山學校財團法人高雄市普門高級中學,"21,498"
113/03/01,國民及學前教育行政及督導-對私校之獎助,112學年度高級中等學校提升學生實習實作能力計畫,佛光山學校財團法人高雄市普門高級中學,"16,000"
113/03/01,國民及學前教育行政及督導-對私校之獎助,112學年度高級中等學校提升學生實習實作能力計畫,財團法人臺灣省苗栗縣私立君毅高級中學,"248,200"
113/03/01,國民及學前教育行政及督導-對私校之獎助,112學年度高級中等學校原住民族語課程開課經費-第2期款,佛光山學校財團法人高雄市普門高級中學,"11,890"
113/03/01,國民及學前教育行政及督導-對私校之獎助,112學年度高級中等學校本土語文(閩南語、閩東語、客語文)課程開課經費-第2期款,佛光山學校財團法人高雄市普門高級中學,"12,872"
113/03/01,國民及學前教育行政及督導-對私校之獎助,112學年度第2學期高級中等學校適性學習社區教育資源均質化實施方案(資),未來學校財團法人臺東縣育仁高級中等學校,"31,000"
113/03/01,國民及學前教育行政及督導-對學生之獎助,112學年度第2學期高級中等學校低收入戶及中低收入戶學生學雜費減免補助,未來學校財團法人臺東縣育仁高級中等學校,"30,020"
113/03/01,國民及學前教育行政及督導-對私校之獎助,112學年度高級中等學校提升學生實習實作能力計畫,同德學校財團法人南投縣同德高級中等學校,"157,800"
113/03/01,國立高級中等學校校務基金-投資,113年校務基金學校資本門經費-3,國立臺灣海洋大學附屬基隆海事高級中等學校,"200,000"
113/03/01,國民及學前教育行政及督導-對特種基金之補助,112學年度實施十二年國民基本教育課程新增鐘點費第2期款,國立臺北科技大學附屬桃園農工高級中等學校,"478,800"
113/03/01,國民及學前教育行政及督導-對特種基金之補助,113年度全國高級中等學校學生校園刊物印製實施計畫經費,國立臺灣海洋大學附屬基隆海事高級中等學校,"17,000"
113/03/01,國民及學前教育行政及督導-對學生之獎助,112學年度第2學期高級中等學校低收入戶及中低收入戶學生學雜費減免補助,陽明學校財團法人臺南市陽明高級工商職業學校,"187,015"
113/03/01,國民及學前教育行政及督導-對私校之獎助,112學年度高級中等學校提升學生實習實作能力計畫,中山學校財團法人高雄市中山高級工商職業學校,"1,416,800"
113/03/01,國民及學前教育行政及督導-對私校之獎助,112學年度高級中等學校提升學生實習實作能力計畫,上騰學校財團法人花蓮縣上騰高級工商職業學校,"119,900"
113/03/01,國民及學前教育行政及督導-對私校之獎助,112學年度高級中等學校提升學生實習實作能力計畫,內思學校財團法人新竹縣內思工業高級中等學校,"224,000"
113/03/01,國民及學前教育行政及督導-對私校之獎助,112學年度高級中等學校提升學生實習實作能力計畫,陽明學校財團法人臺南市陽明高級工商職業學校,"63,000"
113/03/01,國民及學前教育行政及督導-對私校之獎助,112學年度高級中等學校提升學生實習實作能力計畫,財團法人台灣省嘉義縣私立萬能高級工商職業學校,"441,000"
113/03/01,國民及學前教育行政及督導-對私校之獎助,112學年度高級中等學校提升學生實習實作能力計畫,財團法人台灣省苗栗縣私立中興高級商工職業學校,"33,500"
113/03/04,國民及學前教育行政及督導-對各縣市政府之補助,112學年度原住民族教育資源中心第3期款,基隆市政府,"550,400"
113/03/04,國民及學前教育行政及督導-對各縣市政府之補助,112學年度原住民族教育資源中心第3期款,苗栗縣政府,"576,000"
113/03/04,國民及學前教育行政及督導-對各縣市政府之補助,112學年度原住民族教育資源中心第3期款,彰化縣政府,"563,200"
113/03/04,國民及學前教育行政及督導-對各縣市政府之補助,112學年度原住民族教育資源中心第3期款,宜蘭縣政府,"563,200"
113/03/04,國民及學前教育行政及督導-對直轄市政府之補助,112學年度高級中等學校辦理交通安全教育課程活動實施計畫,桃園市政府,"83,300"
113/03/04,國民及學前教育行政及督導-對各縣市政府之補助,112學年度國立學校本土語文(閩南語﹑閩東語﹑客語及原住民族語)國中開課經費,屏東縣政府,"313,481"
113/03/04,國民及學前教育行政及督導-對各縣市政府之補助,112學年度國立學校本土語文(閩南語﹑閩東語﹑客語及原住民族語)及臺灣手語國中開課經費,宜蘭縣政府,"510,001"
113/03/04,國民及學前教育行政及督導-對各縣市政府之補助,112學年度國立學校本土語文(閩南語﹑閩東語﹑客語及原住民族語)及臺灣手語國中開課經費,宜蘭縣政府,"179,072"
113/03/04,國民及學前教育行政及督導-對各縣市政府之補助,112學年度國立學校本土語文(閩南語﹑閩東語﹑客語及原住民族語)及臺灣手語國中開課經費,宜蘭縣政府,"206,749"
113/03/04,國民及學前教育行政及督導-對各縣市政府之補助,112學年度國中小原住民族語教學人員交通費第2期款,花蓮縣政府,"372,910"
113/03/04,國民及學前教育行政及督導-對各縣市政府之補助,113年度實施新住民子女華語文學習扶助課程,屏東縣政府,"143,551"
113/03/04,國民及學前教育行政及督導-對各縣市政府之補助,113年度實施新住民子女華語文學習扶助課程,嘉義市政府,"139,813"
113/03/04,國民及學前教育行政及督導-對各縣市政府之補助,113年度實施新住民子女華語文學習扶助課程,彰化縣政府,"614,313"
113/03/04,國民及學前教育行政及督導-對各縣市政府之補助,112學年度新住民語文開課經費,新竹縣政府,"1,846,210"
113/03/04,國民及學前教育行政及督導-對各縣市政府之補助,112學年度新住民語文開課經費,嘉義縣政府,"880,816"
113/03/04,國民及學前教育行政及督導-對各縣市政府之補助,113年度實施新住民子女教育經費,基隆市政府,"235,803"
113/03/04,國民及學前教育行政及督導-對各縣市政府之補助,113年度實施新住民子女教育經費,嘉義市政府,"108,807"
113/03/04,國民及學前教育行政及督導-對各縣市政府之補助,113年度實施新住民子女教育經費,嘉義縣政府,"216,647"
113/03/04,國民及學前教育行政及督導-對各縣市政府之補助,113年度實施新住民子女教育經費,南投縣政府,"135,308"
113/03/04,國民及學前教育行政及督導-對各縣市政府之補助,113年度實施新住民子女教育經費,彰化縣政府,"507,986"
113/03/04,國民及學前教育行政及督導-對學生之獎助,大額通報教補3月6日-112學年度第2學期高級中等學校學生免學費,桃園市政府,"357,261,209"
113/03/04,國民及學前教育行政及督導-對學生之獎助,大額通報教補3月6日-112學年度第2學期高級中等學校學生免學費,桃園市政府,"125,524,208"
113/03/04,國民及學前教育行政及督導-對特種基金之補助,2024國際語言學奧林匹亞競賽-臺灣代表隊培育計畫經費,國立台灣大學,"1,000,000"
113/03/04,國民及學前教育行政及督導-投資,113年度新興科技教育AIoT及VR/AR推廣中心計畫(資),國立金門高級中學,"720,000"
113/03/04,國民及學前教育行政及督導-投資,113年度國立高級中等學校促進新興科技教育設備計畫,國立羅東高級中學,"192,000"
113/03/04,國民及學前教育行政及督導-投資,113年度國立高級中等學校促進新興科技教育設備計畫,國立基隆高級中學,"210,000"
113/03/04,國民及學前教育行政及督導-投資,113年度國立高級中等學校促進新興科技教育設備計畫,國立竹東高級中學,"240,000"
113/03/04,國民及學前教育行政及督導-投資,113年度國立高級中等學校促進新興科技教育設備計畫,國立苗栗高級中學,"192,000"
113/03/04,國民及學前教育行政及督導-投資,113年度國立高級中等學校促進新興科技教育設備計畫,國立南投高級中學,"270,000"
113/03/04,國民及學前教育行政及督導-投資,113年度國立高級中等學校促進新興科技教育設備計畫,國立竹山高級中學,"270,000"
113/03/04,國民及學前教育行政及督導-投資,113年度國立高級中等學校促進新興科技教育設備計畫,國立斗六高級中學,"216,000"
113/03/04,國民及學前教育行政及督導-投資,113年度國立高級中等學校促進新興科技教育設備計畫,國立北門高級中學,"240,000"
113/03/04,國民及學前教育行政及督導-投資,113年度國立高級中等學校促進新興科技教育設備計畫,國立鳳山高級中學,"270,000"
113/03/04,國民及學前教育行政及督導-投資,113年度國立高級中等學校促進新興科技教育設備計畫,國立花蓮高級中學,"240,000"
113/03/04,國民及學前教育行政及督導-對特種基金之補助,113年度自設廚房午餐廚務臨時人員人力經費,國立馬祖高級中學,"1,608,444"
113/03/04,國民及學前教育行政及督導-對直轄市政府之補助,112學年度原住民族教育資源中心第3期款,新北市政府教育局,"537,600"
113/03/04,國民及學前教育行政及督導-對直轄市政府之補助,112學年度原住民族教育資源中心第3期款,臺南市政府教育局,"464,400"
113/03/04,國民及學前教育行政及督導-對特種基金之補助,國立高級中等學校老舊危險電力系統改善計畫(110至112年度)第2期款,國立基隆高級中學,"2,000,000"
113/03/04,國民及學前教育行政及督導-對特種基金之補助,113年多元評量嵌入教學以促進科學學習表現與數位學習能力計畫-強化教材研發實踐社群運作與分享機制第1期款,國立臺灣師範大學,"3,000,000"
113/03/04,國民及學前教育行政及督導-對直轄市政府之補助,新北考區113年國中教育會考試務籌辦計畫第2期款,新北市政府教育局,"21,060,370"
113/03/04,國民及學前教育行政及督導-對直轄市政府之補助,新北考區113年國中教育會考試務籌辦計畫第2期款,新北市政府教育局,"133,980"
113/03/04,國民及學前教育行政及督導-對特種基金之補助,112學年度高級中等學校本土語文(閩南語、閩東語、客語文)課程開課經費(第2期),國立中興高級中學,"102,384"
113/03/04,國民及學前教育行政及督導-對特種基金之補助,112學年度高級中等學校推動家庭教育暨親職教育工作實施計畫經費,國立旗美高級中學,"23,000"
113/03/04,國民及學前教育行政及督導-對直轄市政府之補助,113年度實施新住民子女華語文學習扶助課程,高雄市政府教育局,"41,192"
113/03/04,國民及學前教育行政及督導-對特種基金之補助,112學年度高級中等學校原住民族語課程開課經費(第2期),國立中興高級中學,"61,716"
113/03/04,國民及學前教育行政及督導-對直轄市政府之補助,113年度實施新住民子女華語文學習扶助課程,臺南市政府教育局,"636,619"
113/03/04,國民及學前教育行政及督導-對特種基金之補助,112學年度第2學期原住民學生一般課業輔導鐘點費,國立花蓮高級中學,"83,000"
113/03/04,國民及學前教育行政及督導-對特種基金之補助,112學年度第2學期發展及改進原住民技職教育經費,國立玉里高級中學,"200,000"
113/03/04,國民及學前教育行政及督導-對特種基金之補助,112學年度十二年國民基本教育課程綱要普通型數位前導學校計畫第2期款,國立潮州高級中學,"1,050,000"
113/03/04,國民及學前教育行政及督導-對特種基金之補助,112學年度十二年國民基本教育課程綱要普通型數位前導學校計畫第2期款,國立斗六高級中學,"1,050,000"
113/03/04,國民及學前教育行政及督導-對直轄市政府之補助,113年度實施新住民子女教育經費,新北市政府教育局,"552,732"
113/03/04,國民及學前教育行政及督導-對特種基金之補助,113年度新興科技教育AIoT及VR/AR推廣中心計畫,國立金門高級中學,"1,867,162"
113/03/04,國民及學前教育行政及督導-對特種基金之補助,112學年度第2學期身心障礙學生學習扶助實施計畫,國立馬祖高級中學,"88,277"
113/03/04,國民及學前教育行政及督導-對特種基金之補助,112學年度第2學期身心障礙學生學習扶助實施計畫,國立華僑高級中學,"66,528"
113/03/04,國民及學前教育行政及督導-對特種基金之補助,112學年度第2學期身心障礙學生學習扶助實施計畫,國立宜蘭高級中學,"9,504"
113/03/04,國民及學前教育行政及督導-對特種基金之補助,112學年度第2學期身心障礙學生學習扶助實施計畫,國立新竹高級中學,"35,200"
113/03/04,國民及學前教育行政及督導-對特種基金之補助,112學年度第2學期身心障礙學生學習扶助實施計畫,國立竹北高級中學,"178,351"
113/03/04,國民及學前教育行政及督導-對特種基金之補助,112學年度第2學期身心障礙學生學習扶助實施計畫,國立關西高級中學,"106,790"
113/03/04,國民及學前教育行政及督導-對特種基金之補助,112學年度第2學期身心障礙學生學習扶助實施計畫,國立竹東高級中學,"110,471"
113/03/04,國民及學前教育行政及督導-對特種基金之補助,112學年度第2學期身心障礙學生學習扶助實施計畫,國立竹山高級中學,"62,596"
113/03/04,國民及學前教育行政及督導-對特種基金之補助,112學年度第2學期身心障礙學生學習扶助實施計畫,國立東石高級中學,"14,256"
113/03/04,國民及學前教育行政及督導-對特種基金之補助,112學年度第2學期身心障礙學生學習扶助實施計畫,國立新豐高級中學,"28,512"
113/03/04,國民及學前教育行政及督導-對特種基金之補助,112學年度第2學期身心障礙學生學習扶助實施計畫,國立鳳新高級中學,"15,832"
113/03/04,國民及學前教育行政及督導-對特種基金之補助,112學年度第2學期身心障礙學生學習扶助實施計畫,國立玉里高級中學,"99,817"
113/03/04,國民及學前教育行政及督導-對特種基金之補助,112學年度第2學期身心障礙學生學習扶助實施計畫,國立潮州高級中學,"38,016"
113/03/04,國立高級中等學校教學與訓輔輔助-對特種基金之補助,大額通報教補3月6日-113年校務基金學校經常門經費-3,國立南投高級中學,"15,815,000"
113/03/04,國立高級中等學校教學與訓輔輔助-對特種基金之補助,大額通報教補3月6日-113年校務基金學校經常門經費-3,國立竹山高級中學,"14,500,000"
113/03/04,國立高級中等學校教學與訓輔輔助-對特種基金之補助,大額通報教補3月6日-113年校務基金學校經常門經費-3,國立中興高級中學,"14,302,000"
113/03/04,國立高級中等學校教學與訓輔輔助-對特種基金之補助,大額通報教補3月6日-113年校務基金學校經常門經費-3,國立宜蘭高級中學,"9,353,000"
113/03/04,國立高級中等學校教學與訓輔輔助-對特種基金之補助,大額通報教補3月6日-113年校務基金學校經常門經費-3,國立羅東高級中學,"10,377,000"
113/03/04,國立高級中等學校教學與訓輔輔助-對特種基金之補助,大額通報教補3月6日-113年校務基金學校經常門經費-3,國立岡山高級中學,"11,300,000"
113/03/04,國立高級中等學校教學與訓輔輔助-對特種基金之補助,大額通報教補3月6日-113年校務基金學校經常門經費-3,國立鳳山高級中學,"7,483,000"
113/03/04,國立高級中等學校教學與訓輔輔助-對特種基金之補助,大額通報教補3月6日-113年校務基金學校經常門經費-3,國立鳳新高級中學,"10,405,000"
113/03/04,國立高級中等學校教學與訓輔輔助-對特種基金之補助,大額通報教補3月6日-113年校務基金學校經常門經費-3,國立旗美高級中學,"9,300,000"
113/03/04,國立高級中等學校教學與訓輔輔助-對特種基金之補助,大額通報教補3月6日-113年校務基金學校經常門經費-3,國立新竹高級中學,"9,000,000"
113/03/04,國立高級中等學校教學與訓輔輔助-對特種基金之補助,大額通報教補3月6日-113年校務基金學校經常門經費-3,國立竹東高級中學,"10,105,000"
113/03/04,國立高級中等學校教學與訓輔輔助-對特種基金之補助,大額通報教補3月6日-113年校務基金學校經常門經費-3,國立竹北高級中學,"10,000,000"
113/03/04,國立高級中等學校教學與訓輔輔助-對特種基金之補助,大額通報教補3月6日-113年校務基金學校經常門經費-3,國立關西高級中學,"9,500,000"
113/03/04,國立高級中等學校教學與訓輔輔助-對特種基金之補助,大額通報教補3月6日-113年校務基金學校經常門經費-3,國立苗栗高級中學,"9,000,000"
113/03/04,國立高級中等學校教學與訓輔輔助-對特種基金之補助,大額通報教補3月6日-113年校務基金學校經常門經費-3,國立竹南高級中學,"14,200,000"
113/03/04,國立高級中等學校教學與訓輔輔助-對特種基金之補助,大額通報教補3月6日-113年校務基金學校經常門經費-3,國立苑裡高級中學,"11,545,000"
113/03/04,國立高級中等學校教學與訓輔輔助-對特種基金之補助,大額通報教補3月6日-113年校務基金學校經常門經費-3,國立斗六高級中學,"12,586,000"
113/03/04,國立高級中等學校教學與訓輔輔助-對特種基金之補助,大額通報教補3月6日-113年校務基金學校經常門經費-3,國立虎尾高級中學,"9,972,000"
113/03/04,國立高級中等學校教學與訓輔輔助-對特種基金之補助,大額通報教補3月6日-113年校務基金學校經常門經費-3,國立北港高級中學,"7,700,000"
113/03/04,國立高級中等學校教學與訓輔輔助-對特種基金之補助,大額通報教補3月6日-113年校務基金學校經常門經費-3,國立嘉義高級中學,"11,221,000"
113/03/04,國立高級中等學校教學與訓輔輔助-對特種基金之補助,大額通報教補3月6日-113年校務基金學校經常門經費-3,國立東石高級中學,"12,498,000"
113/03/04,國立高級中等學校教學與訓輔輔助-對特種基金之補助,大額通報教補3月6日-113年校務基金學校經常門經費-3,國立和美實驗學校,"15,300,000"
113/03/04,國立高級中等學校教學與訓輔輔助-對特種基金之補助,大額通報教補3月6日-113年校務基金學校經常門經費-3,國立嘉義特教學校,"13,493,000"
113/03/04,國立高級中等學校教學與訓輔輔助-對特種基金之補助,大額通報教補3月6日-113年校務基金學校經常門經費-3,國立彰化高級中學,"10,006,000"
113/03/04,國立高級中等學校教學與訓輔輔助-對特種基金之補助,大額通報教補3月6日-113年校務基金學校經常門經費-3,國立員林高級中學,"15,662,000"
113/03/04,國立高級中等學校教學與訓輔輔助-對特種基金之補助,大額通報教補3月6日-113年校務基金學校經常門經費-3,國立鹿港高級中學,"9,981,000"
113/03/04,國立高級中等學校教學與訓輔輔助-對特種基金之補助,大額通報教補3月6日-113年校務基金學校經常門經費-3,國立溪湖高級中學,"15,220,000"
113/03/04,國立高級中等學校教學與訓輔輔助-對特種基金之補助,大額通報教補3月6日-113年校務基金學校經常門經費-3,國立屏東高級中學,"18,563,000"
113/03/04,國立高級中等學校教學與訓輔輔助-對特種基金之補助,大額通報教補3月6日-113年校務基金學校經常門經費-3,國立屏北高級中學,"9,500,000"
113/03/04,國立高級中等學校教學與訓輔輔助-對特種基金之補助,大額通報教補3月6日-113年校務基金學校經常門經費-3,國立潮州高級中學,"14,976,000"
113/03/04,國立高級中等學校教學與訓輔輔助-對特種基金之補助,大額通報教補3月6日-113年校務基金學校經常門經費-3,國立新營高級中學,"8,530,000"
113/03/04,國立高級中等學校教學與訓輔輔助-對特種基金之補助,大額通報教補3月6日-113年校務基金學校經常門經費-3,國立後壁高級中學,"11,081,000"
113/03/04,國立高級中等學校教學與訓輔輔助-對特種基金之補助,大額通報教補3月6日-113年校務基金學校經常門經費-3,國立新化高級中學,"10,178,000"
113/03/04,國立高級中等學校教學與訓輔輔助-對特種基金之補助,大額通報教補3月6日-113年校務基金學校經常門經費-3,國立新豐高級中學,"11,131,000"
113/03/04,國立高級中等學校教學與訓輔輔助-對特種基金之補助,大額通報教補3月6日-113年校務基金學校經常門經費-3,國立北門高級中學,"8,200,000"
113/03/04,國立高級中等學校教學與訓輔輔助-對特種基金之補助,大額通報教補3月6日-113年校務基金學校經常門經費-3,國立善化高級中學,"9,200,000"
113/03/04,國立高級中等學校教學與訓輔輔助-對特種基金之補助,大額通報教補3月6日-113年校務基金學校經常門經費-3,國立馬公高級中學,"15,353,000"
113/03/04,國立高級中等學校教學與訓輔輔助-對特種基金之補助,大額通報教補3月6日-113年校務基金學校經常門經費-3,國立金門高級中學,"7,631,000"
113/03/04,國立高級中等學校教學與訓輔輔助-對特種基金之補助,大額通報教補3月6日-113年校務基金學校經常門經費-3,國立馬祖高級中學,"6,694,000"
113/03/04,國立高級中等學校教學與訓輔輔助-對特種基金之補助,大額通報教補3月6日-113年校務基金學校經常門經費-3,國立基隆高級中學,"10,549,000"
113/03/04,國立高級中等學校教學與訓輔輔助-對特種基金之補助,大額通報教補3月6日-113年校務基金學校經常門經費-3,國立華僑高級中學,"11,868,000"
113/03/04,國立高級中等學校教學與訓輔輔助-對特種基金之補助,大額通報教補3月6日-113年校務基金學校經常門經費-3,國立台東高級中學,"13,286,000"
113/03/04,國立高級中等學校教學與訓輔輔助-對特種基金之補助,大額通報教補3月6日-113年校務基金學校經常門經費-3,國立花蓮高級中學,"12,623,000"
113/03/04,國立高級中等學校教學與訓輔輔助-對特種基金之補助,大額通報教補3月6日-113年校務基金學校經常門經費-3,國立玉里高級中學,"11,800,000"
113/03/04,國民及學前教育行政及督導-對私校之獎助,113年度高級中等學校充實教學及實習設備計畫-一般科目,新竹縣仰德高級中學,"8,000"
113/03/04,國民及學前教育行政及督導-投資,112學年度第2學期半導體課程經費(資),國立台東女子高級中學,"215,000"
113/03/04,國民及學前教育行政及督導-投資,113年執行強化校園安全防護工作經費,國立台南女子高級中學,"70,000"
113/03/04,國民及學前教育行政及督導-投資,113年度國立高級中等學校促進新興科技教育設備計畫,國立蘭陽女子高級中學,"240,000"
113/03/04,國民及學前教育行政及督導-投資,113年度國立高級中等學校促進新興科技教育設備計畫,國立台南第一高級中學,"210,000"
113/03/04,國民及學前教育行政及督導-對特種基金之補助,112學年度第2學期半導體課程經費,國立台東女子高級中學,"385,000"
113/03/04,國民及學前教育行政及督導-對國內團體之捐助,付(中華文創藝術公益協會)-關心兒少成長舞台劇活動,中華文創藝術公益協會,"12,000"
113/03/04,國民及學前教育行政及督導-對特種基金之補助,112學年度高級中等學校臺灣手語課程開課經費(第2期),國立中科實驗高級中學,"74,771"
113/03/04,國民及學前教育行政及督導-對特種基金之補助,112學年度高級中等學校原住民族語課程開課經費(第2期),國立中科實驗高級中學,"81,668"
113/03/04,國立高級中等學校教學與訓輔輔助-對特種基金之補助,大額通報教補3月6日-113年校務基金學校經常門經費-3,國立蘭陽女子高級中學,"10,129,000"
113/03/04,國立高級中等學校教學與訓輔輔助-對特種基金之補助,大額通報教補3月6日-113年校務基金學校經常門經費-3,國立卓蘭高級中等學校,"15,747,000"
113/03/04,國立高級中等學校教學與訓輔輔助-對特種基金之補助,大額通報教補3月6日-113年校務基金學校經常門經費-3,國立新竹女子高級中學,"2,026,000"
113/03/04,國立高級中等學校教學與訓輔輔助-對特種基金之補助,大額通報教補3月6日-113年校務基金學校經常門經費-3,國立新港藝術高級中學,"5,653,000"
113/03/04,國立高級中等學校教學與訓輔輔助-對特種基金之補助,大額通報教補3月6日-113年校務基金學校經常門經費-3,國立嘉義女子高級中學,"8,369,000"
113/03/04,國立高級中等學校教學與訓輔輔助-對特種基金之補助,大額通報教補3月6日-113年校務基金學校經常門經費-3,國立彰化特殊教育學校,"15,650,000"
113/03/04,國立高級中等學校教學與訓輔輔助-對特種基金之補助,大額通報教補3月6日-113年校務基金學校經常門經費-3,國立臺南特殊教育學校,"12,323,000"
113/03/04,國立高級中等學校教學與訓輔輔助-對特種基金之補助,大額通報教補3月6日-113年校務基金學校經常門經費-3,國立花蓮特殊教育學校,"8,200,000"
113/03/04,國立高級中等學校教學與訓輔輔助-對特種基金之補助,大額通報教補3月6日-113年校務基金學校經常門經費-3,國立宜蘭特殊教育學校,"9,344,000"
113/03/04,國立高級中等學校教學與訓輔輔助-對特種基金之補助,大額通報教補3月6日-113年校務基金學校經常門經費-3,國立基隆特殊教育學校,"7,623,000"
113/03/04,國立高級中等學校教學與訓輔輔助-對特種基金之補助,大額通報教補3月6日-113年校務基金學校經常門經費-3,國立苗栗特殊教育學校,"6,873,000"
113/03/04,國立高級中等學校教學與訓輔輔助-對特種基金之補助,大額通報教補3月6日-113年校務基金學校經常門經費-3,國立雲林特殊教育學校,"9,587,000"
113/03/04,國立高級中等學校教學與訓輔輔助-對特種基金之補助,大額通報教補3月6日-113年校務基金學校經常門經費-3,國立屏東特殊教育學校,"7,628,000"
113/03/04,國立高級中等學校教學與訓輔輔助-對特種基金之補助,大額通報教補3月6日-113年校務基金學校經常門經費-3,國立新竹特殊教育學校,"10,027,000"
113/03/04,國立高級中等學校教學與訓輔輔助-對特種基金之補助,大額通報教補3月6日-113年校務基金學校經常門經費-3,國立南投特殊教育學校,"7,494,000"
113/03/04,國立高級中等學校教學與訓輔輔助-對特種基金之補助,大額通報教補3月6日-113年校務基金學校經常門經費-3,國立彰化女子高級中學,"10,910,000"
113/03/04,國立高級中等學校教學與訓輔輔助-對特種基金之補助,大額通報教補3月6日-113年校務基金學校經常門經費-3,國立屏東女子高級中學,"14,843,000"
113/03/04,國立高級中等學校教學與訓輔輔助-對特種基金之補助,大額通報教補3月6日-113年校務基金學校經常門經費-3,國立台南第一高級中學,"7,931,000"
113/03/04,國立高級中等學校教學與訓輔輔助-對特種基金之補助,大額通報教補3月6日-113年校務基金學校經常門經費-3,國立台南第二高級中學,"16,662,000"
113/03/04,國立高級中等學校教學與訓輔輔助-對特種基金之補助,大額通報教補3月6日-113年校務基金學校經常門經費-3,國立台南女子高級中學,"5,072,000"
113/03/04,國立高級中等學校教學與訓輔輔助-對特種基金之補助,大額通報教補3月6日-113年校務基金學校經常門經費-3,國立台南家齊高級中學,"12,000,000"
113/03/04,國立高級中等學校教學與訓輔輔助-對特種基金之補助,大額通報教補3月6日-113年校務基金學校經常門經費-3,國立基隆女子高級中學,"13,066,000"
113/03/04,國立高級中等學校教學與訓輔輔助-對特種基金之補助,大額通報教補3月6日-113年校務基金學校經常門經費-3,國立台東女子高級中學,"9,022,000"
113/03/04,國立高級中等學校教學與訓輔輔助-對特種基金之補助,大額通報教補3月6日-113年校務基金學校經常門經費-3,國立花蓮女子高級中學,"10,950,000"
113/03/04,國民及學前教育行政及督導-對私校之獎助,112學年度高級中等學校推動家庭教育暨親職教育工作實施計畫經費,新竹縣私立東泰高級中學,"14,000"
113/03/04,國民及學前教育行政及督導-對私校之獎助,112學年度高級中等學校與大專校院攜手精進教學輔導原住民族學生計畫,花蓮縣私立四維高級中學,"250,000"
113/03/04,國民及學前教育行政及督導-對私校之獎助,112學年度高中優質化輔助方案(資),臺南市私立明達高級中學,"270,000"
113/03/04,國民及學前教育行政及督導-對私校之獎助,112學年度高中優質化輔助方案,臺南市私立明達高級中學,"380,000"
113/03/04,國民及學前教育行政及督導-對私校之獎助,112學年度高中優質化輔助方案,嘉義縣私立協同高級中學,"550,000"
113/03/04,國民及學前教育行政及督導-對私校之獎助,113年度高級中等學校充實教學及實習設備計畫-一般科目,苗栗縣私立建臺高級中學,"19,200"
113/03/04,國民及學前教育行政及督導-對私校之獎助,113年度高級中等學校充實教學及實習設備計畫-一般科目,嘉義縣私立協同高級中學,"26,400"
113/03/04,國民及學前教育行政及督導-對私校之獎助,113年度高級中等學校充實教學及實習設備計畫-一般科目,臺南市私立南光高級中學,"40,160"
113/03/04,國民及學前教育行政及督導-對私校之獎助,113年度高級中等學校充實教學及實習設備計畫-一般科目,臺南市私立新榮高級中學,"16,000"
113/03/04,國民及學前教育行政及督導-對私校之獎助,113年度高級中等學校充實教學及實習設備計畫-一般科目,屏東縣私立美和高級中學,"43,680"
113/03/04,國民及學前教育行政及督導-投資,113年執行強化校園安全防護工作經費,國立埔里高級工業職業學校,"84,000"
113/03/04,國民及學前教育行政及督導-投資,113年度新興科技教育AIoT及VR/AR推廣中心計畫(資),國立二林高級工商職業學校,"600,000"
113/03/04,國民及學前教育行政及督導-投資,113年度國立高級中等學校促進新興科技教育設備計畫,國立新營高級工業職業學校,"192,000"
113/03/04,國民及學前教育行政及督導-投資,113年度國立高級中等學校促進新興科技教育設備計畫,國立花蓮高級工業職業學校,"240,000"
113/03/04,國民及學前教育行政及督導-對特種基金之補助,112學年度第2學期高級中等學校原住民族教育校訂課程推廣計畫,國立花蓮高級農業職業學校,"100,000"
113/03/04,國民及學前教育行政及督導-對特種基金之補助,112學年度原住民藝能班(學程)計畫,國立關山高級工商職業學校,"160,000"
113/03/04,國民及學前教育行政及督導-對特種基金之補助,112學年度高級中等以下學校辦理原住民族實驗教育課程,國立關山高級工商職業學校,"82,000"
113/03/04,國民及學前教育行政及督導-對特種基金之補助,112學年度第2學期原住民學生一般課業輔導鐘點費,國立花蓮高級工業職業學校,"69,000"
113/03/04,國民及學前教育行政及督導-對特種基金之補助,112學年度第2學期發展及改進原住民技職教育經費,國立仁愛高級農業職業學校,"200,000"
113/03/04,國民及學前教育行政及督導-對特種基金之補助,113年度新興科技教育AIoT及VR/AR推廣中心計畫,國立二林高級工商職業學校,"1,532,692"
113/03/04,國民及學前教育行政及督導-對特種基金之補助,112學年度第2學期身心障礙學生學習扶助實施計畫,國立基隆高級商工職業學校,"341,521"
113/03/04,國民及學前教育行政及督導-對特種基金之補助,112學年度第2學期身心障礙學生學習扶助實施計畫,國立佳冬高級農業職業學校,"113,292"
113/03/04,國民及學前教育行政及督導-對特種基金之補助,112學年度第2學期身心障礙學生學習扶助實施計畫,國立恆春高級工商職業學校,"19,008"
113/03/04,國民及學前教育行政及督導-對特種基金之補助,112學年度第2學期身心障礙學生學習扶助實施計畫,國立臺東專科學校校務基金,"486,190"
113/03/04,國民及學前教育行政及督導-對特種基金之補助,112學年度第2學期身心障礙學生學習扶助實施計畫,國立關山高級工商職業學校,"71,172"
113/03/04,國民及學前教育行政及督導-對特種基金之補助,112學年度第2學期身心障礙學生學習扶助實施計畫,國立花蓮高級農業職業學校,"289,226"
113/03/04,國民及學前教育行政及督導-對特種基金之補助,112學年度第2學期身心障礙學生學習扶助實施計畫,國立花蓮高級工業職業學校,"187,129"
113/03/04,國民及學前教育行政及督導-對特種基金之補助,112學年度第2學期身心障礙學生學習扶助實施計畫,國立暨南大學附屬高級中學,"20,403"
113/03/04,國民及學前教育行政及督導-對特種基金之補助,112學年度第2學期身心障礙學生學習扶助實施計畫,國立臺南大學附屬高級中學,"75,770"
113/03/04,國立高級中等學校教學與訓輔輔助-對特種基金之補助,大額通報教補3月6日-113年校務基金學校經常門經費-3,國立暨南大學附屬高級中學,"10,452,000"
113/03/04,國立高級中等學校教學與訓輔輔助-對特種基金之補助,大額通報教補3月6日-113年校務基金學校經常門經費-3,國立埔里高級工業職業學校,"12,500,000"
113/03/04,國立高級中等學校教學與訓輔輔助-對特種基金之補助,大額通報教補3月6日-113年校務基金學校經常門經費-3,國立仁愛高級農業職業學校,"5,486,000"
113/03/04,國立高級中等學校教學與訓輔輔助-對特種基金之補助,大額通報教補3月6日-113年校務基金學校經常門經費-3,國立南投高級商業職業學校,"16,926,000"
113/03/04,國立高級中等學校教學與訓輔輔助-對特種基金之補助,大額通報教補3月6日-113年校務基金學校經常門經費-3,國立草屯高級商工職業學校,"16,286,000"
113/03/04,國立高級中等學校教學與訓輔輔助-對特種基金之補助,大額通報教補3月6日-113年校務基金學校經常門經費-3,國立水里高級商工職業學校,"15,274,000"
113/03/04,國立高級中等學校教學與訓輔輔助-對特種基金之補助,大額通報教補3月6日-113年校務基金學校經常門經費-3,國立中興大學附屬高級中學,"12,000,000"
113/03/04,國立高級中等學校教學與訓輔輔助-對特種基金之補助,大額通報教補3月6日-113年校務基金學校經常門經費-3,國立羅東高級工業職業學校,"16,800,000"
113/03/04,國立高級中等學校教學與訓輔輔助-對特種基金之補助,大額通報教補3月6日-113年校務基金學校經常門經費-3,國立宜蘭高級商業職業學校,"15,478,000"
113/03/04,國立高級中等學校教學與訓輔輔助-對特種基金之補助,大額通報教補3月6日-113年校務基金學校經常門經費-3,國立羅東高級商業職業學校,"9,000,000"
113/03/04,國立高級中等學校教學與訓輔輔助-對特種基金之補助,大額通報教補3月6日-113年校務基金學校經常門經費-3,國立岡山高級農工職業學校,"16,500,000"
113/03/04,國立高級中等學校教學與訓輔輔助-對特種基金之補助,大額通報教補3月6日-113年校務基金學校經常門經費-3,國立旗山高級農工職業學校,"14,000,000"
113/03/04,國立高級中等學校教學與訓輔輔助-對特種基金之補助,大額通報教補3月6日-113年校務基金學校經常門經費-3,國立鳳山高級商工職業學校,"17,800,000"
113/03/04,國立高級中等學校教學與訓輔輔助-對特種基金之補助,大額通報教補3月6日-113年校務基金學校經常門經費-3,國立新竹高級工業職業學校,"17,163,000"
113/03/04,國立高級中等學校教學與訓輔輔助-對特種基金之補助,大額通報教補3月6日-113年校務基金學校經常門經費-3,國立新竹高級商業職業學校,"12,450,000"
113/03/04,國立高級中等學校教學與訓輔輔助-對特種基金之補助,大額通報教補3月6日-113年校務基金學校經常門經費-3,國立苗栗高級商業職業學校,"11,531,000"
113/03/04,國立高級中等學校教學與訓輔輔助-對特種基金之補助,大額通報教補3月6日-113年校務基金學校經常門經費-3,國立苗栗高級農工職業學校,"22,455,000"
113/03/04,國立高級中等學校教學與訓輔輔助-對特種基金之補助,大額通報教補3月6日-113年校務基金學校經常門經費-3,國立大湖高級農工職業學校,"17,972,000"
113/03/04,國立高級中等學校教學與訓輔輔助-對特種基金之補助,大額通報教補3月6日-113年校務基金學校經常門經費-3,國立西螺高級農工職業學校,"15,154,000"
113/03/04,國立高級中等學校教學與訓輔輔助-對特種基金之補助,大額通報教補3月6日-113年校務基金學校經常門經費-3,國立虎尾高級農工職業學校,"15,000,000"
113/03/04,國立高級中等學校教學與訓輔輔助-對特種基金之補助,大額通報教補3月6日-113年校務基金學校經常門經費-3,國立北港高級農工職業學校,"12,800,000"
113/03/04,國立高級中等學校教學與訓輔輔助-對特種基金之補助,大額通報教補3月6日-113年校務基金學校經常門經費-3,國立土庫高級商工職業學校,"10,979,000"
113/03/04,國立高級中等學校教學與訓輔輔助-對特種基金之補助,大額通報教補3月6日-113年校務基金學校經常門經費-3,國立嘉義高級工業職業學校,"27,513,000"
113/03/04,國立高級中等學校教學與訓輔輔助-對特種基金之補助,大額通報教補3月6日-113年校務基金學校經常門經費-3,國立嘉義高級商業職業學校,"10,844,000"
113/03/04,國立高級中等學校教學與訓輔輔助-對特種基金之補助,大額通報教補3月6日-113年校務基金學校經常門經費-3,國立華南高級商業職業學校,"8,845,000"
113/03/04,國立高級中等學校教學與訓輔輔助-對特種基金之補助,大額通報教補3月6日-113年校務基金學校經常門經費-3,國立民雄高級農工職業學校,"15,242,000"
113/03/04,國立高級中等學校教學與訓輔輔助-對特種基金之補助,大額通報教補3月6日-113年校務基金學校經常門經費-3,國立嘉義高級家事職業學校,"10,714,000"
113/03/04,國立高級中等學校教學與訓輔輔助-對特種基金之補助,大額通報教補3月6日-113年校務基金學校經常門經費-3,國立臺南大學附屬啟聰學校,"15,626,000"
113/03/04,國立高級中等學校教學與訓輔輔助-對特種基金之補助,大額通報教補3月6日-113年校務基金學校經常門經費-3,國立永靖高級工業職業學校,"13,461,000"
113/03/04,國立高級中等學校教學與訓輔輔助-對特種基金之補助,大額通報教補3月6日-113年校務基金學校經常門經費-3,國立秀水高級工業職業學校,"17,221,000"
113/03/04,國立高級中等學校教學與訓輔輔助-對特種基金之補助,大額通報教補3月6日-113年校務基金學校經常門經費-3,國立屏東高級工業職業學校,"24,000,000"
113/03/04,國立高級中等學校教學與訓輔輔助-對特種基金之補助,大額通報教補3月6日-113年校務基金學校經常門經費-3,國立佳冬高級農業職業學校,"21,300,000"
113/03/04,國立高級中等學校教學與訓輔輔助-對特種基金之補助,大額通報教補3月6日-113年校務基金學校經常門經費-3,國立彰化高級商業職業學校,"22,000,000"
113/03/04,國立高級中等學校教學與訓輔輔助-對特種基金之補助,大額通報教補3月6日-113年校務基金學校經常門經費-3,國立員林高級農工職業學校,"16,805,000"
113/03/04,國立高級中等學校教學與訓輔輔助-對特種基金之補助,大額通報教補3月6日-113年校務基金學校經常門經費-3,國立內埔高級農工職業學校,"13,500,000"
113/03/04,國立高級中等學校教學與訓輔輔助-對特種基金之補助,大額通報教補3月6日-113年校務基金學校經常門經費-3,國立二林高級工商職業學校,"16,489,000"
113/03/04,國立高級中等學校教學與訓輔輔助-對特種基金之補助,大額通報教補3月6日-113年校務基金學校經常門經費-3,國立恆春高級工商職業學校,"12,038,000"
113/03/04,國立高級中等學校教學與訓輔輔助-對特種基金之補助,大額通報教補3月6日-113年校務基金學校經常門經費-3,國立臺南大學附屬高級中學,"14,932,000"
113/03/04,國立高級中等學校教學與訓輔輔助-對特種基金之補助,大額通報教補3月6日-113年校務基金學校經常門經費-3,國立新營高級工業職業學校,"16,990,000"
113/03/04,國立高級中等學校教學與訓輔輔助-對特種基金之補助,大額通報教補3月6日-113年校務基金學校經常門經費-3,國立新化高級工業職業學校,"12,384,000"
113/03/04,國立高級中等學校教學與訓輔輔助-對特種基金之補助,大額通報教補3月6日-113年校務基金學校經常門經費-3,國立台南高級商業職業學校,"18,000,000"
113/03/04,國立高級中等學校教學與訓輔輔助-對特種基金之補助,大額通報教補3月6日-113年校務基金學校經常門經費-3,國立曾文高級農工職業學校,"18,000,000"
113/03/04,國立高級中等學校教學與訓輔輔助-對特種基金之補助,大額通報教補3月6日-113年校務基金學校經常門經費-3,國立北門高級農工職業學校,"16,970,000"
113/03/04,國立高級中等學校教學與訓輔輔助-對特種基金之補助,大額通報教補3月6日-113年校務基金學校經常門經費-3,國立白河高級商工職業學校,"11,645,000"
113/03/04,國立高級中等學校教學與訓輔輔助-對特種基金之補助,大額通報教補3月6日-113年校務基金學校經常門經費-3,國立玉井高級工商職業學校,"11,997,000"
113/03/04,國立高級中等學校教學與訓輔輔助-對特種基金之補助,大額通報教補3月6日-113年校務基金學校經常門經費-3,國立金門高級農工職業學校,"15,493,000"
113/03/04,國立高級中等學校教學與訓輔輔助-對特種基金之補助,大額通報教補3月6日-113年校務基金學校經常門經費-3,國立政治大學附屬高級中學,"11,000,000"
113/03/04,國立高級中等學校教學與訓輔輔助-對特種基金之補助,大額通報教補3月6日-113年校務基金學校經常門經費-3,國立基隆高級商工職業學校,"17,920,000"
113/03/04,國立高級中等學校教學與訓輔輔助-對特種基金之補助,大額通報教補3月6日-113年校務基金學校經常門經費-3,國立台東高級商業職業學校,"13,000,000"
113/03/04,國立高級中等學校教學與訓輔輔助-對特種基金之補助,大額通報教補3月6日-113年校務基金學校經常門經費-3,國立關山高級工商職業學校,"9,133,000"
113/03/04,國立高級中等學校教學與訓輔輔助-對特種基金之補助,大額通報教補3月6日-113年校務基金學校經常門經費-3,國立成功商業水產職業學校,"6,000,000"
113/03/04,國立高級中等學校教學與訓輔輔助-對特種基金之補助,大額通報教補3月6日-113年校務基金學校經常門經費-3,國立花蓮高級工業職業學校,"18,582,000"
113/03/04,國立高級中等學校教學與訓輔輔助-對特種基金之補助,大額通報教補3月6日-113年校務基金學校經常門經費-3,國立花蓮高級農業職業學校,"12,000,000"
113/03/04,國立高級中等學校教學與訓輔輔助-對特種基金之補助,大額通報教補3月6日-113年校務基金學校經常門經費-3,國立花蓮高級商業職業學校,"11,373,000"
113/03/04,國立高級中等學校教學與訓輔輔助-對特種基金之補助,大額通報教補3月6日-113年校務基金學校經常門經費-3,國立光復高級商工職業學校,"6,800,000"
113/03/04,國民及學前教育行政及督導-投資,113年度國立高級中等學校促進新興科技教育設備計畫,國立臺灣師範大學附屬高級中學,"240,000"
113/03/04,國民及學前教育行政及督導-投資,113年度國立高級中等學校促進新興科技教育設備計畫,國立頭城高級家事商業職業學校,"240,000"
113/03/04,國民及學前教育行政及督導-投資,113年度國立高級中等學校促進新興科技教育設備計畫,國立台南高級海事水產職業學校,"270,000"
113/03/04,國民及學前教育行政及督導-對私校之獎助,112學年度高級中等學校穩定就學措施計畫,台灣省基隆市私立聖心高級中學,"160,000"
113/03/04,國民及學前教育行政及督導-對私校之獎助,112學年度高中優質化輔助方案(資),臺灣省彰化縣私立文興高級中學,"115,000"
113/03/04,國民及學前教育行政及督導-對私校之獎助,112學年度高中優質化輔助方案,臺灣省彰化縣私立文興高級中學,"600,000"
113/03/04,國民及學前教育行政及督導-對特種基金之補助,112學年度第2學期身心障礙學生學習扶助實施計畫,國立頭城高級家事商業職業學校,"186,859"
113/03/04,國立高級中等學校教學與訓輔輔助-對特種基金之補助,大額通報教補3月6日-113年校務基金學校經常門經費-3,國立頭城高級家事商業職業學校,"15,500,000"
113/03/04,國立高級中等學校教學與訓輔輔助-對特種基金之補助,大額通報教補3月6日-113年校務基金學校經常門經費-3,國立蘇澳高級海事水產職業學校,"13,600,000"
113/03/04,國立高級中等學校教學與訓輔輔助-對特種基金之補助,大額通報教補3月6日-113年校務基金學校經常門經費-3,國立高雄師範大學附屬高級中學,"12,000,000"
113/03/04,國立高級中等學校教學與訓輔輔助-對特種基金之補助,大額通報教補3月6日-113年校務基金學校經常門經費-3,國立中山大學附屬國光高級中學,"9,000,000"
113/03/04,國立高級中等學校教學與訓輔輔助-對特種基金之補助,大額通報教補3月6日-113年校務基金學校經常門經費-3,國立斗六高級家事商業職業學校,"11,281,000"
113/03/04,國立高級中等學校教學與訓輔輔助-對特種基金之補助,大額通報教補3月6日-113年校務基金學校經常門經費-3,國立臺東大學附屬特殊教育學校,"8,072,000"
113/03/04,國立高級中等學校教學與訓輔輔助-對特種基金之補助,大額通報教補3月6日-113年校務基金學校經常門經費-3,國立員林崇實高級工業職業學校,"17,695,000"
113/03/04,國立高級中等學校教學與訓輔輔助-對特種基金之補助,大額通報教補3月6日-113年校務基金學校經常門經費-3,國立員林高級家事商業職業學校,"17,329,000"
113/03/04,國立高級中等學校教學與訓輔輔助-對特種基金之補助,大額通報教補3月6日-113年校務基金學校經常門經費-3,國立北斗高級家事商業職業學校,"11,200,000"
113/03/04,國立高級中等學校教學與訓輔輔助-對特種基金之補助,大額通報教補3月6日-113年校務基金學校經常門經費-3,國立東港高級海事水產職業學校,"14,000,000"
113/03/04,國立高級中等學校教學與訓輔輔助-對特種基金之補助,大額通報教補3月6日-113年校務基金學校經常門經費-3,國立曾文高級家事商業職業學校,"9,000,000"
113/03/04,國立高級中等學校教學與訓輔輔助-對特種基金之補助,大額通報教補3月6日-113年校務基金學校經常門經費-3,國立台南高級海事水產職業學校,"7,490,000"
113/03/04,國立高級中等學校教學與訓輔輔助-對特種基金之補助,大額通報教補3月6日-113年校務基金學校經常門經費-3,國立澎湖高級海事水產職業學校,"17,386,000"
113/03/04,國立高級中等學校教學與訓輔輔助-對特種基金之補助,大額通報教補3月6日-113年校務基金學校經常門經費-3,國立臺灣師範大學附屬高級中學,"31,820,000"
113/03/04,國立高級中等學校教學與訓輔輔助-對特種基金之補助,大額通報教補3月6日-113年校務基金學校經常門經費-3,國立中央大學附屬中壢高級中學,"5,507,000"
113/03/04,國立高級中等學校教學與訓輔輔助-對特種基金之補助,大額通報教補3月6日-113年校務基金學校經常門經費-3,國立臺東大學附屬體育高級中學,"7,827,000"
113/03/04,國民及學前教育行政及督導-對私校之獎助,112學年度高中優質化輔助方案(資),財團法人花蓮縣私立海星高級中學,"400,000"
113/03/04,國民及學前教育行政及督導-對私校之獎助,112學年度高中優質化輔助方案,財團法人雲林縣私立正心高級中學,"722,000"
113/03/04,國民及學前教育行政及督導-對私校之獎助,113年度高級中等學校充實教學及實習設備計畫-一般科目,苗栗縣私立龍德家事商業職業學校,"38,160"
113/03/04,國民及學前教育行政及督導-對私校之獎助,113年度高級中等學校充實教學及實習設備計畫-一般科目,財團法人南投縣私立五育高級中學,"43,520"
113/03/04,國民及學前教育行政及督導-對私校之獎助,113年度高級中等學校充實教學及實習設備計畫-一般科目,高雄縣私立高英高級工商職業學校,"38,400"
113/03/04,國民及學前教育行政及督導-對私校之獎助,113年度高級中等學校充實教學及實習設備計畫-一般科目,臺東縣私立公東高級工業職業學校,"65,520"
113/03/04,國民及學前教育行政及督導-對私校之獎助,112學年度第2學期身心障礙學生學習扶助實施計畫,高雄縣私立旗美高級商工職業學校,"68,882"
113/03/04,國民及學前教育行政及督導-對私校之獎助,112學年度第2學期身心障礙學生學習扶助實施計畫,臺東縣私立公東高級工業職業學校,"368,271"
113/03/04,國民及學前教育行政及督導-對私校之獎助,112學年度第2學期身心障礙學生學習扶助實施計畫,財團法人花蓮縣私立海星高級中學,"21,772"
113/03/04,國民及學前教育行政及督導-對私校之獎助,113年度高級中等學校充實教學及實習設備計畫-一般科目,興國學校財團法人臺南市興國高級中學,"43,680"
113/03/04,國民及學前教育行政及督導-對私校之獎助,112學年度第2學期身心障礙學生學習扶助實施計畫,義峰學校財團法人雲林縣義峰高級中學,"142,225"
113/03/04,國民及學前教育行政及督導-投資,113年度國立高級中等學校促進新興科技教育設備計畫,國立中興大學附屬台中高級農業職業學校,"269,100"
113/03/04,國民及學前教育行政及督導-對私校之獎助,112學年度高中優質化輔助方案(資),財團法人台灣省宜蘭縣私立中道高級中學,"695,000"
113/03/04,國民及學前教育行政及督導-對私校之獎助,112學年度高中優質化輔助方案,財團法人台灣省宜蘭縣私立中道高級中學,"676,000"
113/03/04,國民及學前教育行政及督導-對私校之獎助,113年度高級中等學校充實教學及實習設備計畫-一般科目,佛光山學校財團法人高雄市普門高級中學,"30,600"
113/03/04,國民及學前教育行政及督導-對私校之獎助,112學年度第2學期身心障礙學生學習扶助實施計畫,台灣省台南市私立慈幼高級工商職業學校,"47,498"
113/03/04,國民及學前教育行政及督導-對私校之獎助,112學年度第2學期身心障礙學生學習扶助實施計畫,佛光山學校財團法人高雄市普門高級中學,"60,825"
113/03/04,國立高級中等學校教學與訓輔輔助-對特種基金之補助,大額通報教補3月6日-113年校務基金學校經常門經費-3,國立中興大學附屬台中高級農業職業學校,"23,200,000"
113/03/04,國立高級中等學校教學與訓輔輔助-對特種基金之補助,大額通報教補3月6日-113年校務基金學校經常門經費-3,國立高雄餐旅大學附屬餐旅高級中等學校,"5,280,000"
113/03/04,國立高級中等學校教學與訓輔輔助-對特種基金之補助,大額通報教補3月6日-113年校務基金學校經常門經費-3,國立彰化師範大學附屬高級工業職業學校,"25,174,000"
113/03/04,國立高級中等學校教學與訓輔輔助-對特種基金之補助,大額通報教補3月6日-113年校務基金學校經常門經費-3,國立成功大學附屬臺南工業高級中等學校,"25,852,000"
113/03/04,國民及學前教育行政及督導-對私校之獎助,113年度高級中等學校充實教學及實習設備計畫-一般科目,同德學校財團法人南投縣同德高級中等學校,"28,000"
113/03/04,國民及學前教育行政及督導-對私校之獎助,112學年度第2學期身心障礙學生學習扶助實施計畫,同德學校財團法人南投縣同德高級中等學校,"12,666"
113/03/04,國立高級中等學校教學與訓輔輔助-對特種基金之補助,大額通報教補3月6日-113年校務基金學校經常門經費-3,國立臺北科技大學附屬桃園農工高級中等學校,"19,363,000"
113/03/04,國立高級中等學校教學與訓輔輔助-對特種基金之補助,大額通報教補3月6日-113年校務基金學校經常門經費-3,國立臺灣海洋大學附屬基隆海事高級中等學校,"21,000,000"
113/03/04,國民及學前教育行政及督導-對私校之獎助,113年度高級中等學校充實教學及實習設備計畫-一般科目,內思學校財團法人新竹縣內思工業高級中等學校,"13,920"
113/03/04,國民及學前教育行政及督導-對私校之獎助,113年度高級中等學校充實教學及實習設備計畫-一般科目,中山學校財團法人高雄市中山高級工商職業學校,"51,600"
113/03/04,國民及學前教育行政及督導-對私校之獎助,113年度高級中等學校充實教學實習設備計畫-專業群科,財團法人台灣省苗栗縣私立中興高級商工職業學校,"416,000"
113/03/04,國民及學前教育行政及督導-對私校之獎助,113年度高級中等學校充實教學及實習設備計畫-一般科目,維多利亞學校財團法人雲林縣維多利亞實驗高級中學,"16,000"
113/03/05,國民及學前教育行政及督導-對各縣市政府之補助,113年度補助學校執行強化校園安全防護工作經費,新竹市政府,"323,840"
113/03/05,國民及學前教育行政及督導-對各縣市政府之補助,113年度補助學校執行強化校園安全防護工作經費,嘉義縣政府,"757,980"
113/03/05,國民及學前教育行政及督導-對各縣市政府之補助,補助113年足球踢毒品快樂學反毒體驗活動訓練計畫暨反毒教育系列推廣實施計畫經費,連江縣政府,"135,000"
113/03/05,國民及學前教育行政及督導-對直轄市政府之補助,112年度專案補助各縣市汰舊換新身心障礙學生交通車經費,桃園市政府,"966,397"
113/03/05,國民及學前教育行政及督導-對直轄市政府之補助,113年度僑生輔導經費,桃園市政府,"525,413"
113/03/05,國民及學前教育行政及督導-對學生之獎助,高級中等學校112學年度第2學期產學攜手合作僑生專班學費,僑務委員會,"67,897,200"
113/03/05,國民及學前教育行政及督導-對各縣市政府之補助,112學年度實施戶外教育與海洋教育計畫第2期款,嘉義市政府,"2,061,115"
113/03/05,國民及學前教育行政及督導-對各縣市政府之補助,112學年度實施戶外教育與海洋教育計畫第2期款,嘉義市政府,"34,710"
113/03/05,國民及學前教育行政及督導-對各縣市政府之補助,113年助理人員經費(第1期),屏東縣政府,"3,606,749"
113/03/05,國民及學前教育行政及督導-對各縣市政府之補助,113年助理人員經費(第1期),連江縣政府,"882,000"
113/03/05,國民及學前教育行政及督導-投資,113年度高級中等學校充實教學及實習設備計畫-一般科目(資),國立南投高級中學,"700,000"
113/03/05,國民及學前教育行政及督導-投資,113年度高級中等學校充實教學及實習設備計畫-一般科目(資),國立中興高級中學,"586,000"
113/03/05,國民及學前教育行政及督導-投資,113年度高級中等學校充實教學及實習設備計畫-一般科目(資),國立竹山高級中學,"789,000"
113/03/05,國民及學前教育行政及督導-投資,113年度高級中等學校充實教學及實習設備計畫-一般科目(資),國立斗六高級中學,"988,000"
113/03/05,國民及學前教育行政及督導-投資,113年度高級中等學校充實教學及實習設備計畫-一般科目(資),國立北港高級中學,"942,400"
113/03/05,國民及學前教育行政及督導-投資,113年度高級中等學校充實教學及實習設備計畫-一般科目(資),國立虎尾高級中學,"899,500"
113/03/05,國民及學前教育行政及督導-投資,113年度高級中等學校充實教學及實習設備計畫-一般科目(資),國立東石高級中學,"657,000"
113/03/05,國民及學前教育行政及督導-投資,113年度高級中等學校充實教學及實習設備計畫-一般科目(資),國立新豐高級中學,"703,920"
113/03/05,國民及學前教育行政及督導-投資,113年度高級中等學校充實教學及實習設備計畫-一般科目(資),國立新營高級中學,"559,000"
113/03/05,國民及學前教育行政及督導-投資,113年度高級中等學校充實教學及實習設備計畫-一般科目(資),國立後壁高級中學,"1,104,500"
113/03/05,國民及學前教育行政及督導-投資,113年度高級中等學校充實教學及實習設備計畫-一般科目(資),國立善化高級中學,"663,931"
113/03/05,國民及學前教育行政及督導-投資,113年度高級中等學校充實教學及實習設備計畫-一般科目(資),國立新化高級中學,"693,600"
113/03/05,國民及學前教育行政及督導-投資,113年度高級中等學校充實教學及實習設備計畫-一般科目(資),國立鳳山高級中學,"863,500"
113/03/05,國民及學前教育行政及督導-投資,113年度高級中等學校充實教學及實習設備計畫-一般科目(資),國立岡山高級中學,"815,420"
113/03/05,國民及學前教育行政及督導-投資,113年度高級中等學校充實教學及實習設備計畫-一般科目(資),國立旗美高級中學,"1,155,000"
113/03/05,國民及學前教育行政及督導-投資,113年度高級中等學校充實教學及實習設備計畫-一般科目(資),國立鳳新高級中學,"923,000"
113/03/05,國民及學前教育行政及督導-對特種基金之補助,112學年度補助高級中等學校辦理健康促進學校經費,國立屏北高級中學,"30,000"
113/03/05,國民及學前教育行政及督導-對特種基金之補助,112學年度補助高級中等學校辦理健康促進學校經費,國立潮州高級中學,"45,000"
113/03/05,國民及學前教育行政及督導-對特種基金之補助,112學年度補助高級中等學校辦理健康促進學校經費,國立屏東高級中學,"45,000"
113/03/05,國民及學前教育行政及督導-對特種基金之補助,112學年度補助高級中等學校辦理健康促進學校經費,國立馬公高級中學,"30,000"
113/03/05,國民及學前教育行政及督導-對特種基金之補助,112學年度補助高級中等學校辦理健康促進學校經費,國立基隆高級中學,"45,000"
113/03/05,國民及學前教育行政及督導-對特種基金之補助,112學年度補助高級中等學校辦理健康促進學校經費,國立華僑高級中學,"45,000"
113/03/05,國民及學前教育行政及督導-對特種基金之補助,112學年度補助高級中等學校辦理健康促進學校經費,國立竹北高級中學,"30,000"
113/03/05,國民及學前教育行政及督導-對特種基金之補助,112學年度補助高級中等學校辦理健康促進學校經費,國立竹南高級中學,"45,000"
113/03/05,國民及學前教育行政及督導-對特種基金之補助,112學年度補助高級中等學校辦理健康促進學校經費,國立彰化高級中學,"31,350"
113/03/05,國民及學前教育行政及督導-對特種基金之補助,112學年度補助高級中等學校辦理健康促進學校經費,國立虎尾高級中學,"30,000"
113/03/05,國民及學前教育行政及督導-對特種基金之補助,112學年度補助高級中等學校辦理健康促進學校經費,國立嘉義特教學校,"30,000"
113/03/05,國民及學前教育行政及督導-對特種基金之補助,112學年度補助高級中等學校辦理健康促進學校經費,國立新化高級中學,"30,000"
113/03/05,國民及學前教育行政及督導-對特種基金之補助,112學年度補助高級中等學校辦理健康促進學校經費,國立新豐高級中學,"30,000"
113/03/05,國民及學前教育行政及督導-對特種基金之補助,112學年度補助高級中等學校辦理健康促進學校經費,國立北門高級中學,"30,000"
113/03/05,國民及學前教育行政及督導-對特種基金之補助,112學年度補助高級中等學校辦理健康促進學校經費,國立後壁高級中學,"30,000"
113/03/05,國民及學前教育行政及督導-對特種基金之補助,112學年度補助高級中等學校辦理健康促進學校經費,國立善化高級中學,"30,000"
113/03/05,國民及學前教育行政及督導-對特種基金之補助,112學年度補助高級中等學校辦理健康促進學校經費,國立鳳新高級中學,"30,000"
113/03/05,國民及學前教育行政及督導-對直轄市政府之補助,112學年度科學班實驗計畫第2期款,臺中市政府教育局,"1,576,732"
113/03/05,國民及學前教育行政及督導-對各縣市政府之補助,112學年度1至7月暨113學年度國際教育總體工作計畫,高雄市政府教育局,"303,307"
113/03/05,國民及學前教育行政及督導-對特種基金之補助,113年度高級中等學校充實教學及實習設備計畫-一般科目,國立南投高級中學,"300,000"
113/03/05,國民及學前教育行政及督導-對特種基金之補助,113年度高級中等學校充實教學及實習設備計畫-一般科目,國立中興高級中學,"33,000"
113/03/05,國民及學前教育行政及督導-對特種基金之補助,113年度高級中等學校充實教學及實習設備計畫-一般科目,國立竹山高級中學,"238,000"
113/03/05,國民及學前教育行政及督導-對特種基金之補助,113年度高級中等學校充實教學及實習設備計畫-一般科目,國立斗六高級中學,"12,000"
113/03/05,國民及學前教育行政及督導-對特種基金之補助,113年度高級中等學校充實教學及實習設備計畫-一般科目,國立北港高級中學,"128,600"
113/03/05,國民及學前教育行政及督導-對特種基金之補助,113年度高級中等學校充實教學及實習設備計畫-一般科目,國立虎尾高級中學,"100,500"
113/03/05,國民及學前教育行政及督導-對特種基金之補助,113年度高級中等學校充實教學及實習設備計畫-一般科目,國立東石高級中學,"39,000"
113/03/05,國民及學前教育行政及督導-對特種基金之補助,113年度高級中等學校充實教學及實習設備計畫-一般科目,國立新豐高級中學,"69,080"
113/03/05,國民及學前教育行政及督導-對特種基金之補助,113年度高級中等學校充實教學及實習設備計畫-一般科目,國立新營高級中學,"214,000"
113/03/05,國民及學前教育行政及督導-對特種基金之補助,113年度高級中等學校充實教學及實習設備計畫-一般科目,國立後壁高級中學,"173,500"
113/03/05,國民及學前教育行政及督導-對特種基金之補助,113年度高級中等學校充實教學及實習設備計畫-一般科目,國立善化高級中學,"109,069"
113/03/05,國民及學前教育行政及督導-對特種基金之補助,113年度高級中等學校充實教學及實習設備計畫-一般科目,國立新化高級中學,"79,400"
113/03/05,國民及學前教育行政及督導-對特種基金之補助,113年度高級中等學校充實教學及實習設備計畫-一般科目,國立鳳山高級中學,"136,500"
113/03/05,國民及學前教育行政及督導-對特種基金之補助,113年度高級中等學校充實教學及實習設備計畫-一般科目,國立岡山高級中學,"112,580"
113/03/05,國民及學前教育行政及督導-對特種基金之補助,113年度高級中等學校充實教學及實習設備計畫-一般科目,國立旗美高級中學,"95,000"
113/03/05,國民及學前教育行政及督導-對特種基金之補助,113年度高級中等學校充實教學及實習設備計畫-一般科目,國立鳳新高級中學,"77,000"
113/03/05,國民及學前教育行政及督導-對特種基金之補助,112學年度學生校外職場參觀與校外實習及校內併校外實習計畫,國立竹山高級中學,"124,805"
113/03/05,國民及學前教育行政及督導-對特種基金之補助,112學年度學生校外職場參觀與校外實習及校內併校外實習計畫,國立關西高級中學,"88,709"
113/03/05,國民及學前教育行政及督導-對特種基金之補助,112學年度學生校外職場參觀與校外實習及校內併校外實習計畫,國立竹南高級中學,"70,782"
113/03/05,國民及學前教育行政及督導-對直轄市政府之補助,大額通報教補3月7日-112學年度一般地區學校推動國小合理教師員額事項所需經費第2期款,臺南市政府教育局,"167,763,456"
113/03/05,國民及學前教育行政及督導-對直轄市政府之補助,大額通報教補3月7日-112學年度一般地區學校推動國小合理教師員額事項所需經費第2期款,臺南市政府教育局,"52,228,031"
113/03/05,國民及學前教育行政及督導-對直轄市政府之補助,大額通報教補3月7日-112學年度一般地區學校推動國小合理教師員額事項所需經費第2期款,臺北市政府教育局,"234,243,072"
113/03/05,國民及學前教育行政及督導-對直轄市政府之補助,大額通報教補3月7日-112學年度一般地區學校推動國小合理教師員額事項所需經費第2期款,臺北市政府教育局,"33,799,199"
113/03/05,國民及學前教育行政及督導-對直轄市政府之補助,大額通報教補3月7日-112學年度一般地區學校推動國小合理教師員額事項所需經費第2期款,高雄市政府教育局,"247,223,424"
113/03/05,國民及學前教育行政及督導-對直轄市政府之補助,大額通報教補3月7日-112學年度一般地區學校推動國小合理教師員額事項所需經費第2期款,高雄市政府教育局,"76,499,368"
113/03/05,國民及學前教育行政及督導-對直轄市政府之補助,大額通報教補3月7日-112學年度提高國小教師員額編制至每班1.65名所需經費第2期款,臺南市政府教育局,"195,921,600"
113/03/05,國民及學前教育行政及督導-對私校之獎助,112學年度學生校外職場參觀與校外實習及校內併校外實習計畫,嘉義市立仁高級中學,"66,970"
113/03/05,國民及學前教育行政及督導-投資,113年度高級中等學校充實教學及實習設備計畫-一般科目(資),國立卓蘭高級中等學校,"1,206,000"
113/03/05,國民及學前教育行政及督導-投資,113年度高級中等學校充實教學及實習設備計畫-一般科目(資),國立新港藝術高級中學,"856,000"
113/03/05,國民及學前教育行政及督導-對特種基金之補助,112學年度補助高級中等學校辦理健康促進學校經費,國立屏東特殊教育學校,"45,000"
113/03/05,國民及學前教育行政及督導-對特種基金之補助,112學年度補助高級中等學校辦理健康促進學校經費,國立屏東女子高級中學,"45,000"
113/03/05,國民及學前教育行政及督導-對特種基金之補助,112學年度補助高級中等學校辦理健康促進學校經費,國立宜蘭特殊教育學校,"45,000"
113/03/05,國民及學前教育行政及督導-對特種基金之補助,112學年度補助高級中等學校辦理健康促進學校經費,國立南投特殊教育學校,"45,000"
113/03/05,國民及學前教育行政及督導-對特種基金之補助,112學年度補助高級中等學校辦理健康促進學校經費,國立新港藝術高級中學,"30,000"
113/03/05,國民及學前教育行政及督導-對特種基金之補助,112學年度補助高級中等學校辦理健康促進學校經費,國立台南家齊高級中學,"30,000"
113/03/05,國民及學前教育行政及督導-對特種基金之補助,112學年度補助高級中等學校辦理健康促進學校經費,國立台南女子高級中學,"45,000"
113/03/05,國民及學前教育行政及督導-對特種基金之補助,113年度高級中等學校充實教學及實習設備計畫-一般科目,國立新港藝術高級中學,"134,000"
113/03/05,國民及學前教育行政及督導-對特種基金之補助,112學年度學生校外職場參觀與校外實習及校內併校外實習計畫,國立卓蘭高級中等學校,"68,718"
113/03/05,國民及學前教育行政及督導-對學生之獎助,112學年度第2學期高級中等學校特殊境遇家庭子女孫子女學雜費減免補助,台南市私立長榮高級中學,"4,686"
113/03/05,國民及學前教育行政及督導-對學生之獎助,112學年度第1、2學期高級中等學校低收入戶及中低收入戶學生學雜費減免補助,嘉義縣私立同濟高級中學,"2,940"
113/03/05,國民及學前教育行政及督導-對學生之獎助,112學年度第1、2學期高級中等學校低收入戶及中低收入戶學生學雜費減免補助,嘉義縣私立同濟高級中學,"30,300"
113/03/05,國民及學前教育行政及督導-對私校之獎助,112學年度學生校外職場參觀與校外實習及校內併校外實習計畫,新竹縣私立義民高級中學,"244,146"
113/03/05,國民及學前教育行政及督導-對私校之獎助,112學年度學生校外職場參觀與校外實習及校內併校外實習計畫,新竹縣私立東泰高級中學,"375,355"
113/03/05,國民及學前教育行政及督導-對私校之獎助,112學年度學生校外職場參觀與校外實習及校內併校外實習計畫,基隆市私立二信高級中學,"66,802"
113/03/05,國民及學前教育行政及督導-對私校之獎助,112學年度學生校外職場參觀與校外實習及校內併校外實習計畫,新竹市私立光復高級中學,"451,139"
113/03/05,國民及學前教育行政及督導-投資,112學年度第2學期高級中等學校適性學習社區教育資源均質化實施方案(資),國立臺南大學附屬啟聰學校,"20,000"
113/03/05,國民及學前教育行政及督導-投資,113年度高級中等學校充實教學及實習設備計畫-一般科目(資),國立仁愛高級農業職業學校,"1,145,800"
113/03/05,國民及學前教育行政及督導-投資,113年度高級中等學校充實教學及實習設備計畫-一般科目(資),國立埔里高級工業職業學校,"813,960"
113/03/05,國民及學前教育行政及督導-投資,113年度高級中等學校充實教學及實習設備計畫-一般科目(資),國立南投高級商業職業學校,"515,000"
113/03/05,國民及學前教育行政及督導-投資,113年度高級中等學校充實教學及實習設備計畫-一般科目(資),國立草屯高級商工職業學校,"687,500"
113/03/05,國民及學前教育行政及督導-投資,113年度高級中等學校充實教學及實習設備計畫-一般科目(資),國立水里高級商工職業學校,"585,000"
113/03/05,國民及學前教育行政及督導-投資,113年度高級中等學校充實教學及實習設備計畫-一般科目(資),國立虎尾高級農工職業學校,"773,000"
113/03/05,國民及學前教育行政及督導-投資,113年度高級中等學校充實教學及實習設備計畫-一般科目(資),國立西螺高級農工職業學校,"520,100"
113/03/05,國民及學前教育行政及督導-投資,113年度高級中等學校充實教學及實習設備計畫-一般科目(資),國立北港高級農工職業學校,"225,000"
113/03/05,國民及學前教育行政及督導-投資,113年度高級中等學校充實教學及實習設備計畫-一般科目(資),國立土庫高級商工職業學校,"978,000"
113/03/05,國民及學前教育行政及督導-投資,113年度高級中等學校充實教學及實習設備計畫-一般科目(資),國立民雄高級農工職業學校,"625,500"
113/03/05,國民及學前教育行政及督導-投資,113年度高級中等學校充實教學及實習設備計畫-一般科目(資),國立臺南大學附屬高級中學,"811,410"
113/03/05,國民及學前教育行政及督導-投資,113年度高級中等學校充實教學及實習設備計畫-一般科目(資),國立新化高級工業職業學校,"1,346,400"
113/03/05,國民及學前教育行政及督導-投資,113年度高級中等學校充實教學及實習設備計畫-一般科目(資),國立北門高級農工職業學校,"1,167,000"
113/03/05,國民及學前教育行政及督導-投資,113年度高級中等學校充實教學及實習設備計畫-一般科目(資),國立曾文高級農工職業學校,"700,000"
113/03/05,國民及學前教育行政及督導-投資,113年度高級中等學校充實教學及實習設備計畫-一般科目(資),國立旗山高級農工職業學校,"1,240,100"
113/03/05,國民及學前教育行政及督導-投資,113年度高級中等學校充實教學及實習設備計畫-一般科目(資),國立岡山高級農工職業學校,"847,800"
113/03/05,國民及學前教育行政及督導-投資,113年度高級中等學校充實教學及實習設備計畫-一般科目(資),國立鳳山高級商工職業學校,"682,000"
113/03/05,國民及學前教育行政及督導-對學生之獎助,113年度補助高級中等學校學生工讀獎助金實施計畫經費,國立永靖高級工業職業學校,"672,983"
113/03/05,國民及學前教育行政及督導-對特種基金之補助,112學年度補助高級中等學校辦理健康促進學校經費,國立恆春高級工商職業學校,"45,000"
113/03/05,國民及學前教育行政及督導-對特種基金之補助,112學年度補助高級中等學校辦理健康促進學校經費,國立屏東高級工業職業學校,"30,000"
113/03/05,國民及學前教育行政及督導-對特種基金之補助,112學年度補助高級中等學校辦理健康促進學校經費,國立內埔高級農工職業學校,"45,000"
113/03/05,國民及學前教育行政及督導-對特種基金之補助,112學年度補助高級中等學校辦理健康促進學校經費,國立花蓮高級商業職業學校,"30,000"
113/03/05,國民及學前教育行政及督導-對特種基金之補助,112學年度補助高級中等學校辦理健康促進學校經費,國立花蓮高級工業職業學校,"30,000"
113/03/05,國民及學前教育行政及督導-對特種基金之補助,112學年度補助高級中等學校辦理健康促進學校經費,國立花蓮高級農業職業學校,"45,000"
113/03/05,國民及學前教育行政及督導-對特種基金之補助,112學年度補助高級中等學校辦理健康促進學校經費,國立臺東專科學校校務基金,"45,000"
113/03/05,國民及學前教育行政及督導-對特種基金之補助,112學年度補助高級中等學校辦理健康促進學校經費,國立成功商業水產職業學校,"30,000"
113/03/05,國民及學前教育行政及督導-對特種基金之補助,112學年度補助高級中等學校辦理健康促進學校經費,國立新竹高級工業職業學校,"30,000"
113/03/05,國民及學前教育行政及督導-對特種基金之補助,112學年度補助高級中等學校辦理健康促進學校經費,國立新竹高級商業職業學校,"45,000"
113/03/05,國民及學前教育行政及督導-對特種基金之補助,112學年度補助高級中等學校辦理健康促進學校經費,國立大湖高級農工職業學校,"30,000"
113/03/05,國民及學前教育行政及督導-對特種基金之補助,112學年度補助高級中等學校辦理健康促進學校經費,國立草屯高級商工職業學校,"45,000"
113/03/05,國民及學前教育行政及督導-對特種基金之補助,112學年度補助高級中等學校辦理健康促進學校經費,國立水里高級商工職業學校,"30,000"
113/03/05,國民及學前教育行政及督導-對特種基金之補助,112學年度補助高級中等學校辦理健康促進學校經費,國立北港高級農工職業學校,"45,000"
113/03/05,國民及學前教育行政及督導-對特種基金之補助,112學年度補助高級中等學校辦理健康促進學校經費,國立西螺高級農工職業學校,"45,000"
113/03/05,國民及學前教育行政及督導-對特種基金之補助,112學年度補助高級中等學校辦理健康促進學校經費,國立嘉義高級工業職業學校,"45,000"
113/03/05,國民及學前教育行政及督導-對特種基金之補助,112學年度補助高級中等學校辦理健康促進學校經費,國立華南高級商業職業學校,"30,000"
113/03/05,國民及學前教育行政及督導-對特種基金之補助,112學年度補助高級中等學校辦理健康促進學校經費,國立嘉義高級商業職業學校,"30,000"
113/03/05,國民及學前教育行政及督導-對特種基金之補助,112學年度補助高級中等學校辦理健康促進學校經費,國立新化高級工業職業學校,"30,000"
113/03/05,國民及學前教育行政及督導-對特種基金之補助,112學年度補助高級中等學校辦理健康促進學校經費,國立白河高級商工職業學校,"30,000"
113/03/05,國民及學前教育行政及督導-對特種基金之補助,112學年度補助高級中等學校辦理健康促進學校經費,國立北門高級農工職業學校,"30,000"
113/03/05,國民及學前教育行政及督導-對特種基金之補助,112學年度補助高級中等學校辦理健康促進學校經費,國立臺南大學附屬啟聰學校,"45,000"
113/03/05,國民及學前教育行政及督導-對特種基金之補助,112學年度補助高級中等學校辦理健康促進學校經費,國立台南高級商業職業學校,"30,000"
113/03/05,國民及學前教育行政及督導-對特種基金之補助,112學年度補助高級中等學校辦理健康促進學校經費,國立鳳山高級商工職業學校,"30,000"
113/03/05,國民及學前教育行政及督導-對特種基金之補助,112學年度補助高級中等學校辦理健康促進學校經費,國立岡山高級農工職業學校,"45,000"
113/03/05,國民及學前教育行政及督導-對特種基金之補助,112學年度第2學期高級中等學校適性學習社區教育資源均質化實施方案,國立臺南大學附屬啟聰學校,"427,000"
113/03/05,國民及學前教育行政及督導-對特種基金之補助,113年度國立高級中等學校教師每週基本教學節數標準調降之鐘點費,國立台南高級商業職業學校,"940,800"
113/03/05,國民及學前教育行政及督導-對特種基金之補助,113年度高級中等學校充實教學及實習設備計畫-一般科目,國立仁愛高級農業職業學校,"135,200"
113/03/05,國民及學前教育行政及督導-對特種基金之補助,113年度高級中等學校充實教學及實習設備計畫-一般科目,國立埔里高級工業職業學校,"56,040"
113/03/05,國民及學前教育行政及督導-對特種基金之補助,113年度高級中等學校充實教學及實習設備計畫-一般科目,國立草屯高級商工職業學校,"85,500"
113/03/05,國民及學前教育行政及督導-對特種基金之補助,113年度高級中等學校充實教學及實習設備計畫-一般科目,國立西螺高級農工職業學校,"252,900"
113/03/05,國民及學前教育行政及督導-對特種基金之補助,113年度高級中等學校充實教學及實習設備計畫-一般科目,國立北港高級農工職業學校,"150,000"
113/03/05,國民及學前教育行政及督導-對特種基金之補助,113年度高級中等學校充實教學及實習設備計畫-一般科目,國立土庫高級商工職業學校,"22,000"
113/03/05,國民及學前教育行政及督導-對特種基金之補助,113年度高級中等學校充實教學及實習設備計畫-一般科目,國立民雄高級農工職業學校,"70,500"
113/03/05,國民及學前教育行政及督導-對特種基金之補助,113年度高級中等學校充實教學及實習設備計畫-一般科目,國立臺南大學附屬高級中學,"188,590"
113/03/05,國民及學前教育行政及督導-對特種基金之補助,113年度高級中等學校充實教學及實習設備計畫-一般科目,國立新化高級工業職業學校,"168,600"
113/03/05,國民及學前教育行政及督導-對特種基金之補助,113年度高級中等學校充實教學及實習設備計畫-一般科目,國立北門高級農工職業學校,"83,000"
113/03/05,國民及學前教育行政及督導-對特種基金之補助,113年度高級中等學校充實教學及實習設備計畫-一般科目,國立曾文高級農工職業學校,"300,000"
113/03/05,國民及學前教育行政及督導-對特種基金之補助,113年度高級中等學校充實教學及實習設備計畫-一般科目,國立旗山高級農工職業學校,"9,900"
113/03/05,國民及學前教育行政及督導-對特種基金之補助,113年度高級中等學校充實教學及實習設備計畫-一般科目,國立岡山高級農工職業學校,"152,200"
113/03/05,國民及學前教育行政及督導-對特種基金之補助,113年度高級中等學校充實教學及實習設備計畫-一般科目,國立鳳山高級商工職業學校,"268,000"
113/03/05,國民及學前教育行政及督導-對特種基金之補助,112學年度學生校外職場參觀與校外實習及校內併校外實習計畫,國立苗栗高級農工職業學校,"126,793"
113/03/05,國民及學前教育行政及督導-對特種基金之補助,112學年度學生校外職場參觀與校外實習及校內併校外實習計畫,國立苗栗高級商業職業學校,"98,626"
113/03/05,國民及學前教育行政及督導-對特種基金之補助,112學年度學生校外職場參觀與校外實習及校內併校外實習計畫,國立二林高級工商職業學校,"82,187"
113/03/05,國民及學前教育行政及督導-對特種基金之補助,112學年度學生校外職場參觀與校外實習及校內併校外實習計畫,國立秀水高級工業職業學校,"48,909"
113/03/05,國民及學前教育行政及督導-對特種基金之補助,112學年度學生校外職場參觀與校外實習及校內併校外實習計畫,國立員林高級農工職業學校,"32,732"
113/03/05,國民及學前教育行政及督導-對特種基金之補助,112學年度學生校外職場參觀與校外實習及校內併校外實習計畫,國立仁愛高級農業職業學校,"85,625"
113/03/05,國民及學前教育行政及督導-對特種基金之補助,112學年度學生校外職場參觀與校外實習及校內併校外實習計畫,國立宜蘭高級商業職業學校,"104,842"
113/03/05,國民及學前教育行政及督導-對特種基金之補助,112學年度學生校外職場參觀與校外實習及校內併校外實習計畫,國立羅東高級工業職業學校,"15,278"
113/03/05,國民及學前教育行政及督導-對特種基金之補助,112學年度學生校外職場參觀與校外實習及校內併校外實習計畫,國立羅東高級商業職業學校,"55,122"
113/03/05,國民及學前教育行政及督導-對特種基金之補助,112學年度學生校外職場參觀與校外實習及校內併校外實習計畫,國立大湖高級農工職業學校,"276,345"
113/03/05,國民及學前教育行政及督導-投資,113年度高級中等學校充實教學及實習設備計畫-一般科目(資),國立員林高級家事商業職業學校,"753,200"
113/03/05,國民及學前教育行政及督導-投資,113年度高級中等學校充實教學及實習設備計畫-一般科目(資),國立北斗高級家事商業職業學校,"725,000"
113/03/05,國民及學前教育行政及督導-投資,113年度高級中等學校充實教學及實習設備計畫-一般科目(資),國立斗六高級家事商業職業學校,"434,500"
113/03/05,國民及學前教育行政及督導-投資,113年度高級中等學校充實教學及實習設備計畫-一般科目(資),國立曾文高級家事商業職業學校,"496,500"
113/03/05,國民及學前教育行政及督導-對特種基金之補助,112學年度補助高級中等學校辦理健康促進學校經費,國立頭城高級家事商業職業學校,"45,000"
113/03/05,國民及學前教育行政及督導-對特種基金之補助,112學年度補助高級中等學校辦理健康促進學校經費,國立蘇澳高級海事水產職業學校,"30,000"
113/03/05,國民及學前教育行政及督導-對特種基金之補助,112學年度補助高級中等學校辦理健康促進學校經費,國立高雄師範大學附屬高級中學,"45,000"
113/03/05,國民及學前教育行政及督導-對學生之獎助,112學年度第1、2學期高級中等學校低收入戶及中低收入戶學生學雜費減免補助,臺灣省雲林縣私立巨人高級中學,"4,752"
113/03/05,國民及學前教育行政及督導-對學生之獎助,112學年度第1、2學期高級中等學校低收入戶及中低收入戶學生學雜費減免補助,私立培德高級工業家事職業學校,"18,246"
113/03/05,國民及學前教育行政及督導-對學生之獎助,112學年度第1、2學期高級中等學校低收入戶及中低收入戶學生學雜費減免補助,私立培德高級工業家事職業學校,"61,516"
113/03/05,國民及學前教育行政及督導-對特種基金之補助,113年度高級中等學校充實教學及實習設備計畫-一般科目,國立員林高級家事商業職業學校,"19,800"
113/03/05,國民及學前教育行政及督導-對特種基金之補助,113年度高級中等學校充實教學及實習設備計畫-一般科目,國立北斗高級家事商業職業學校,"48,000"
113/03/05,國民及學前教育行政及督導-對特種基金之補助,113年度高級中等學校充實教學及實習設備計畫-一般科目,國立斗六高級家事商業職業學校,"80,500"
113/03/05,國民及學前教育行政及督導-對特種基金之補助,113年度高級中等學校充實教學及實習設備計畫-一般科目,國立曾文高級家事商業職業學校,"18,500"
113/03/05,國民及學前教育行政及督導-對特種基金之補助,112學年度學生校外職場參觀與校外實習及校內併校外實習計畫,國立員林崇實高級工業職業學校,"52,258"
113/03/05,國民及學前教育行政及督導-對特種基金之補助,112學年度學生校外職場參觀與校外實習及校內併校外實習計畫,國立員林高級家事商業職業學校,"238,643"
113/03/05,國民及學前教育行政及督導-對特種基金之補助,112學年度學生校外職場參觀與校外實習及校內併校外實習計畫,國立北斗高級家事商業職業學校,"35,900"
113/03/05,國民及學前教育行政及督導-對特種基金之補助,112學年度學生校外職場參觀與校外實習及校內併校外實習計畫,國立蘇澳高級海事水產職業學校,"53,915"
113/03/05,國民及學前教育行政及督導-對特種基金之補助,112學年度學生校外職場參觀與校外實習及校內併校外實習計畫,國立頭城高級家事商業職業學校,"284,214"
113/03/05,國民及學前教育行政及督導-對私校之獎助,112學年度學生校外職場參觀與校外實習及校內併校外實習計畫,臺灣省彰化縣私立文興高級中學,"69,563"
113/03/05,國民及學前教育行政及督導-對學生之獎助,113年度補助高級中等學校軍公教遺族與傷殘榮軍子女就學費用優待經費,臺灣省雲林縣私立巨人高級中學,"30,668"
113/03/05,國民及學前教育行政及督導-對學生之獎助,112學年度第2學期實用技能學程學生免學雜費補助,雲林縣私立大成高級商工職業學校,"5,917,507"
113/03/05,國民及學前教育行政及督導-對學生之獎助,113年度高級中等學校學生就學貸款利息,台北富邦銀行就學貸款補貼息專戶,"5,671"
113/03/05,國民及學前教育行政及督導-對學生之獎助,112學年度第2學期各校身心障礙學生及身心障礙人士子女就學費用減免,臺南市私立育德工業家事職業學校,"72,526"
113/03/05,國民及學前教育行政及督導-對私校之獎助,112學年度第2學期高級中等學校適性學習社區教育資源均質化實施方案(資),財團法人宜蘭縣私立慧燈高級中學,"73,000"
113/03/05,國民及學前教育行政及督導-對私校之獎助,112學年度第2學期高級中等學校適性學習社區教育資源均質化實施方案,財團法人宜蘭縣私立慧燈高級中學,"232,000"
113/03/05,國民及學前教育行政及督導-對私校之獎助,112學年度學生校外職場參觀與校外實習及校內併校外實習計畫,彰化縣私立大慶高級商工職業學校,"216,459"
113/03/05,國民及學前教育行政及督導-對私校之獎助,112學年度學生校外職場參觀與校外實習及校內併校外實習計畫,彰化縣私立達德高級商工職業學校,"297,224"
113/03/05,國民及學前教育行政及督導-對私校之獎助,112學年度學生校外職場參觀與校外實習及校內併校外實習計畫,財團法人南投縣私立五育高級中學,"120,069"
113/03/05,國民及學前教育行政及督導-對私校之獎助,112學年度學生校外職場參觀與校外實習及校內併校外實習計畫,雲林縣私立大成高級商工職業學校,"17,114"
113/03/05,國民及學前教育行政及督導-對私校之獎助,112學年度學生校外職場參觀與校外實習及校內併校外實習計畫,臺南市私立育德工業家事職業學校,"115,553"
113/03/05,國民及學前教育行政及督導-對私校之獎助,112學年度學生校外職場參觀與校外實習及校內併校外實習計畫,高雄縣私立高英高級工商職業學校,"45,877"
113/03/05,國民及學前教育行政及督導-對私校之獎助,112學年度學生校外職場參觀與校外實習及校內併校外實習計畫,高雄縣私立高苑高級工商職業學校,"181,804"
113/03/05,國民及學前教育行政及督導-對私校之獎助,112學年度學生校外職場參觀與校外實習及校內併校外實習計畫,財團法人花蓮縣私立海星高級中學,"32,755"
113/03/05,國民及學前教育行政及督導-對私校之獎助,112學年度學生校外職場參觀與校外實習及校內併校外實習計畫,雲林縣私立大德工業商業職業學校,"33,348"
113/03/05,國民及學前教育行政及督導-對私校之獎助,112學年度學生校外職場參觀與校外實習及校內併校外實習計畫,財團法人嘉義市私立興華高級中學,"93,133"
113/03/05,國民及學前教育行政及督導-對特種基金之補助,113年度國立高級中等學校教師每週基本教學節數標準調降之鐘點費,國立新竹科學園區實驗高級中等學校,"599,760"
113/03/05,國民及學前教育行政及督導-對私校之獎助,112學年度第2學期高級中等學校適性學習社區教育資源均質化實施方案(資),陸興學校財團法人屏東縣陸興高級中學,"214,000"
113/03/05,國民及學前教育行政及督導-對私校之獎助,112學年度第2學期高級中等學校適性學習社區教育資源均質化實施方案,陸興學校財團法人屏東縣陸興高級中學,"210,000"
113/03/05,國民及學前教育行政及督導-對私校之獎助,112學年度學生校外職場參觀與校外實習及校內併校外實習計畫,屏東縣私立民生高級家事商業職業學校,"54,718"
113/03/05,國民及學前教育行政及督導-對私校之獎助,112學年度學生校外職場參觀與校外實習及校內併校外實習計畫,基隆市私立光隆高級家事商業職業學校,"86,875"
113/03/05,國民及學前教育行政及督導-對私校之獎助,112學年度學生校外職場參觀與校外實習及校內併校外實習計畫,嘉義市私立東吳高級工業家事職業學校,"1,664,292"
113/03/05,國民及學前教育行政及督導-對私校之獎助,112學年度學生校外職場參觀與校外實習及校內併校外實習計畫,財團法人台南市私立長榮女子高級中學,"35,523"
113/03/05,國民及學前教育行政及督導-投資,113年度高級中等學校充實教學及實習設備計畫-一般科目(資),國立成功大學附屬臺南工業高級中等學校,"994,000"
113/03/05,國民及學前教育行政及督導-對學生之獎助,112學年度第2學期實用技能學程學生免學雜費補助,台灣省台南市私立慈幼高級工商職業學校,"5,041,456"
113/03/05,國民及學前教育行政及督導-對私校之獎助,112學年度第2學期高級中等學校適性學習社區推動校訂課程及彈性學習時間與大專校院協作共好計畫,台灣省台南市私立慈幼高級工商職業學校,"75,000"
113/03/05,國民及學前教育行政及督導-對學生之獎助,112學年度第1、2學期高級中等學校低收入戶及中低收入戶學生學雜費減免補助,佛光山學校財團法人高雄市普門高級中學,"487,205"
113/03/05,國民及學前教育行政及督導-對特種基金之補助,113年度高級中等學校充實教學及實習設備計畫-一般科目,國立成功大學附屬臺南工業高級中等學校,"6,000"
113/03/05,國民及學前教育行政及督導-對私校之獎助,112學年度學生校外職場參觀與校外實習及校內併校外實習計畫,財團法人臺灣省苗栗縣私立君毅高級中學,"193,063"
113/03/05,國民及學前教育行政及督導-對私校之獎助,112學年度學生校外職場參觀與校外實習及校內併校外實習計畫,臺灣省台南市私立南英高級商工職業學校,"48,893"
113/03/05,國民及學前教育行政及督導-對私校之獎助,112學年度學生校外職場參觀與校外實習及校內併校外實習計畫,台灣省台南市私立慈幼高級工商職業學校,"27,219"
113/03/05,國民及學前教育行政及督導-對私校之獎助,112學年度第2學期高級中等學校適性學習社區教育資源均質化實施方案,未來學校財團法人臺東縣育仁高級中等學校,"272,000"
113/03/05,國民及學前教育行政及督導-對私校之獎助,112學年度學生校外職場參觀與校外實習及校內併校外實習計畫,同德學校財團法人南投縣同德高級中等學校,"139,484"
113/03/05,國民及學前教育行政及督導-對私校之獎助,112學年度學生校外職場參觀與校外實習及校內併校外實習計畫,臺南光華學校財團法人臺南市光華高級中學,"343,251"
113/03/05,國民及學前教育行政及督導-對特種基金之補助,112學年度學生校外職場參觀與校外實習及校內併校外實習計畫,國立臺北科技大學附屬桃園農工高級中等學校,"134,284"
113/03/05,國民及學前教育行政及督導-對私校之獎助,112學年度學生校外職場參觀與校外實習及校內併校外實習計畫,內思學校財團法人新竹縣內思工業高級中等學校,"16,114"
113/03/05,國民及學前教育行政及督導-對私校之獎助,112學年度學生校外職場參觀與校外實習及校內併校外實習計畫,中山學校財團法人高雄市中山高級工商職業學校,"497,800"
113/03/05,國民及學前教育行政及督導-對私校之獎助,112學年度學生校外職場參觀與校外實習及校內併校外實習計畫,陽明學校財團法人臺南市陽明高級工商職業學校,"1,122,429"
113/03/05,國民及學前教育行政及督導-對私校之獎助,112學年度學生校外職場參觀與校外實習及校內併校外實習計畫,上騰學校財團法人花蓮縣上騰高級工商職業學校,"251,426"
113/03/05,國民及學前教育行政及督導-對私校之獎助,112學年度學生校外職場參觀與校外實習及校內併校外實習計畫,財團法人台灣省苗栗縣私立中興高級商工職業學校,"144,437"
113/03/06,國民及學前教育行政及督導-對各縣市政府之補助,112學年度偏遠地區學校及非山非市學校整合性計畫第2期款,屏東縣政府,"1,583,268"
113/03/06,國民及學前教育行政及督導-對各縣市政府之補助,112學年度偏遠地區學校及非山非市學校整合性計畫第2期款,屏東縣政府,"1,776,000"
113/03/06,國民及學前教育行政及督導-對各縣市政府之補助,112學年度科技教育推動總體計畫第3期款,嘉義縣政府,"3,105,000"
113/03/06,國民及學前教育行政及督導-對各縣市政府之補助,大額通報教補3月8日-112學年度我國少子女化對策計畫之各項幼生就學補助及育兒津貼等經費第4期款,南投縣政府,"158,542,500"
113/03/06,國民及學前教育行政及督導-對各縣市政府之補助,大額通報教補3月8日-112學年度我國少子女化對策計畫之各項幼生就學補助及育兒津貼等經費第4期款,彰化縣政府,"511,280,000"
113/03/06,國民及學前教育行政及督導-對各縣市政府之補助,112學年度非營利幼兒園配置助理人員第2期款,屏東縣政府,"5,861,544"
113/03/06,國民及學前教育行政及督導-對各縣市政府之補助,112學年度非營利幼兒園配置助理人員第2期款,新竹縣政府,"4,555,924"
113/03/06,國民及學前教育行政及督導-對各縣市政府之補助,112學年度本土語文指導員第2期款,南投縣政府,"747,600"
113/03/06,國民及學前教育行政及督導-對各縣市政府之補助,112學年度本土語文指導員第2期款,彰化縣政府,"1,121,400"
113/03/06,國民及學前教育行政及督導-對各縣市政府之補助,112學年度非營利幼兒園早期療育專業輔導費用第2期款,屏東縣政府,"499,000"
113/03/06,國民及學前教育行政及督導-對各縣市政府之補助,112學年度非營利幼兒園早期療育專業輔導費用第2期款,新竹縣政府,"205,700"
113/03/06,國民及學前教育行政及督導-對各縣市政府之補助,112學年度非營利幼兒園早期療育專業輔導費用第2期款,雲林縣政府,"144,500"
113/03/06,國民及學前教育行政及督導-對各縣市政府之補助,112學年度教育優先區計畫(除補助項目四)第2期款,屏東縣政府,"9,272,960"
113/03/06,國民及學前教育行政及督導-對各縣市政府之補助,112學年度教育優先區計畫(除補助項目四)第2期款,屏東縣政府,"2,460,798"
113/03/06,國民及學前教育行政及督導-對各縣市政府之補助,112學年度教育優先區計畫(除補助項目四)第2期款,花蓮縣政府,"2,149,911"
113/03/06,國民及學前教育行政及督導-對各縣市政府之補助,112學年度教育優先區計畫(除補助項目四)第2期款,花蓮縣政府,"3,828,614"
113/03/06,國民及學前教育行政及督導-對各縣市政府之補助,112學年度教育優先區計畫(除補助項目四)第2期款,彰化縣政府,"5,051,295"
113/03/06,國民及學前教育行政及督導-對各縣市政府之補助,112學年度教育優先區計畫(除補助項目四)第2期款,彰化縣政府,"189,379"
113/03/06,國民及學前教育行政及督導-對各縣市政府之補助,112學年度獎勵無償提供場地、設施及設備辦理非營利幼兒園第2期款,基隆市政府,"3,017,500"
113/03/06,國民及學前教育行政及督導-對各縣市政府之補助,112學年度獎勵無償提供場地、設施及設備辦理非營利幼兒園第2期款,基隆市政府,"2,414,000"
113/03/06,國民及學前教育行政及督導-對直轄市政府之補助,112學年度準公共幼兒園未因調薪而調整收費者之「園務營運費」第2期款,桃園市政府,"9,962,176"
113/03/06,國民及學前教育行政及督導-對各縣市政府之補助,112學年度準公共幼兒園未因調薪而調整收費者之「園務營運費」第2期款,南投縣政府,"1,732,237"
113/03/06,國民及學前教育行政及督導-對各縣市政府之補助,113年度國民中小學閱讀推動計畫經費,金門縣政府,"286,900"
113/03/06,國民及學前教育行政及督導-對直轄市政府之補助,興南非營利幼兒園新建園舍工程經費,桃園市政府,"52,344,500"
113/03/06,國民及學前教育行政及督導-對各縣市政府之補助,112學年度提高國小教師員額編制至每班1.65人第2期經費,嘉義縣政府,"19,992,000"
113/03/06,國民及學前教育行政及督導-對直轄市政府之補助,補助113年度全國高級中等學校學生校園刊物印製實施計畫經費,桃園市政府,"94,800"
113/03/06,國民及學前教育行政及督導-投資,112學年度獎勵無償提供場地、設施及設備辦理非營利幼兒園第2期款,國立中正大學,"380,000"
113/03/06,國民及學前教育行政及督導-對特種基金之補助,職場互助教保服務中心籌備期間經費,臺灣土地銀行,"106,000"
113/03/06,國民及學前教育行政及督導-對特種基金之補助,112學年度獎勵無償提供場地、設施及設備辦理非營利幼兒園第2期款,國立中正大學,"475,000"
113/03/06,國民及學前教育行政及督導-政府機關間之補助,112學年度辦理非營利幼兒園相關業務經費第2期款,中央警察大學,"120,000"
113/03/06,國民及學前教育行政及督導-投資,113年度高級中等學校充實教學及實習設備計畫-一般科目(資),國立羅東高級中學,"844,200"
113/03/06,國民及學前教育行政及督導-投資,113年度高級中等學校充實教學及實習設備計畫-一般科目(資),國立竹東高級中學,"749,760"
113/03/06,國民及學前教育行政及督導-投資,113年度高級中等學校充實教學及實習設備計畫-一般科目(資),國立關西高級中學,"839,000"
113/03/06,國民及學前教育行政及督導-投資,113年度高級中等學校充實教學及實習設備計畫-一般科目(資),國立竹南高級中學,"901,000"
113/03/06,國民及學前教育行政及督導-投資,113年度高級中等學校充實教學及實習設備計畫-一般科目(資),國立員林高級中學,"991,000"
113/03/06,國民及學前教育行政及督導-投資,113年度高級中等學校充實教學及實習設備計畫-一般科目(資),國立彰化高級中學,"1,000,000"
113/03/06,國民及學前教育行政及督導-投資,113年度高級中等學校充實教學及實習設備計畫-一般科目(資),國立金門高級中學,"826,000"
113/03/06,國民及學前教育行政及督導-投資,113年度高級中等學校充實教學及實習設備計畫-一般科目(資),國立和美實驗學校,"227,700"
113/03/06,國民及學前教育行政及督導-投資,113年度高級中等學校充實教學及實習設備計畫-一般科目(資),國立宜蘭高級中學,"776,000"
113/03/06,國民及學前教育行政及督導-投資,113年度高級中等學校充實教學及實習設備計畫-一般科目(資),國立屏東高級中學,"976,000"
113/03/06,國民及學前教育行政及督導-投資,113年度高級中等學校充實教學及實習設備計畫-一般科目(資),國立潮州高級中學,"873,800"
113/03/06,國民及學前教育行政及督導-投資,113年度高級中等學校充實教學及實習設備計畫-一般科目(資),國立屏北高級中學,"1,192,500"
113/03/06,國民及學前教育行政及督導-投資,113年度高級中等學校充實教學及實習設備計畫-一般科目(資),國立台東高級中學,"766,300"
113/03/06,國民及學前教育行政及督導-投資,113年度高級中等學校充實教學及實習設備計畫-一般科目(資),國立花蓮高級中學,"627,420"
113/03/06,國民及學前教育行政及督導-投資,113年度高級中等學校充實教學及實習設備計畫-一般科目(資),國立玉里高級中學,"1,167,100"
113/03/06,國民及學前教育行政及督導-投資,113年度高級中等學校充實教學及實習設備計畫-一般科目(資),國立馬公高級中學,"1,308,000"
113/03/06,國民及學前教育行政及督導-投資,113年度高級中等學校充實教學及實習設備計畫-一般科目(資),國立基隆高級中學,"441,500"
113/03/06,國民及學前教育行政及督導-對特種基金之補助,魔鏡魔境兒童戲劇教育工作室113年度戲劇公演經費,國立臺北教育大學,"200,000"
113/03/06,國民及學前教育行政及督導-對直轄市政府之補助,112學年度教學訪問教師計畫之原服務學校聘任代理教師第2期款,臺南市政府教育局,"1,045,000"
113/03/06,國民及學前教育行政及督導-對直轄市政府之補助,113年度國民中小學閱讀推動計畫經費,新北市政府教育局,"981,150"
113/03/06,國民及學前教育行政及督導-政府機關間之補助,112學年度辦理非營利幼兒園相關業務經費第2期款,國防部空軍司令部,"350,000"
113/03/06,國民及學前教育行政及督導-對直轄市政府之補助,淡海非營利幼兒園新建園舍工程經費,新北市政府教育局,"1,732,500"
113/03/06,國民及學前教育行政及督導-對特種基金之補助,113年高級中等以下學校友善提供多元生理用品經費,國立馬公高級中學,"180,000"
113/03/06,國民及學前教育行政及督導-對特種基金之補助,113年高級中等以下學校友善提供多元生理用品經費,國立馬祖高級中學,"33,600"
113/03/06,國民及學前教育行政及督導-對特種基金之補助,113年導師職務加給差額經費(第1期),國立臺灣戲曲學院,"151,200"
113/03/06,國民及學前教育行政及督導-對直轄市政府之補助,補助113年度全國高級中等學校學生校園刊物印製實施計畫經費,臺中市政府教育局,"371,175"
113/03/06,國民及學前教育行政及督導-對直轄市政府之補助,補助113年度全國高級中等學校學生校園刊物印製實施計畫經費,高雄市政府教育局,"72,000"
113/03/06,國民及學前教育行政及督導-對特種基金之補助,113年高級中等以下學校友善提供多元生理用品經費,國立羅東高級中學,"45,600"
113/03/06,國民及學前教育行政及督導-對特種基金之補助,113年高級中等以下學校友善提供多元生理用品經費,國立竹北高級中學,"21,600"
113/03/06,國民及學前教育行政及督導-對特種基金之補助,113年高級中等以下學校友善提供多元生理用品經費,國立竹南高級中學,"31,200"
113/03/06,國民及學前教育行政及督導-對特種基金之補助,113年高級中等以下學校友善提供多元生理用品經費,國立斗六高級中學,"100,800"
113/03/06,國民及學前教育行政及督導-對特種基金之補助,113年高級中等以下學校友善提供多元生理用品經費,國立北門高級中學,"144,000"
113/03/06,國民及學前教育行政及督導-對特種基金之補助,113年高級中等以下學校友善提供多元生理用品經費,國立後壁高級中學,"129,600"
113/03/06,國民及學前教育行政及督導-對特種基金之補助,113年度高級中等學校充實教學及實習設備計畫-一般科目,國立羅東高級中學,"155,800"
113/03/06,國民及學前教育行政及督導-對特種基金之補助,113年度高級中等學校充實教學及實習設備計畫-一般科目,國立竹東高級中學,"250,240"
113/03/06,國民及學前教育行政及督導-對特種基金之補助,113年度高級中等學校充實教學及實習設備計畫-一般科目,國立關西高級中學,"37,000"
113/03/06,國民及學前教育行政及督導-對特種基金之補助,113年度高級中等學校充實教學及實習設備計畫-一般科目,國立竹南高級中學,"99,000"
113/03/06,國民及學前教育行政及督導-對特種基金之補助,113年度高級中等學校充實教學及實習設備計畫-一般科目,國立員林高級中學,"9,000"
113/03/06,國民及學前教育行政及督導-對特種基金之補助,113年度高級中等學校充實教學及實習設備計畫-一般科目,國立金門高級中學,"20,000"
113/03/06,國民及學前教育行政及督導-對特種基金之補助,113年度高級中等學校充實教學及實習設備計畫-一般科目,國立和美實驗學校,"29,300"
113/03/06,國民及學前教育行政及督導-對特種基金之補助,113年度高級中等學校充實教學及實習設備計畫-一般科目,國立宜蘭高級中學,"49,000"
113/03/06,國民及學前教育行政及督導-對特種基金之補助,113年度高級中等學校充實教學及實習設備計畫-一般科目,國立屏東高級中學,"24,000"
113/03/06,國民及學前教育行政及督導-對特種基金之補助,113年度高級中等學校充實教學及實習設備計畫-一般科目,國立潮州高級中學,"126,200"
113/03/06,國民及學前教育行政及督導-對特種基金之補助,113年度高級中等學校充實教學及實習設備計畫-一般科目,國立屏北高級中學,"57,500"
113/03/06,國民及學前教育行政及督導-對特種基金之補助,113年度高級中等學校充實教學及實習設備計畫-一般科目,國立台東高級中學,"6,700"
113/03/06,國民及學前教育行政及督導-對特種基金之補助,113年度高級中等學校充實教學及實習設備計畫-一般科目,國立花蓮高級中學,"145,580"
113/03/06,國民及學前教育行政及督導-對特種基金之補助,113年度高級中等學校充實教學及實習設備計畫-一般科目,國立玉里高級中學,"332,900"
113/03/06,國民及學前教育行政及督導-對特種基金之補助,113年度高級中等學校充實教學及實習設備計畫-一般科目,國立馬公高級中學,"192,000"
113/03/06,國民及學前教育行政及督導-對特種基金之補助,113年度高級中等學校充實教學及實習設備計畫-一般科目,國立基隆高級中學,"55,500"
113/03/06,國民及學前教育行政及督導-政府機關間之補助,112學年度獎勵無償提供場地、設施及設備辦理職場互助教保服務中心第2期款,國立臺東生活美學館,"50,000"
113/03/06,國民及學前教育行政及督導-政府機關間之補助,112學年度獎勵無償提供場地、設施及設備辦理職場互助教保服務中心第2期款,國立臺東生活美學館,"300,000"
113/03/06,國民及學前教育行政及督導-政府機關間之補助,112學年度獎勵無償提供場地、設施及設備辦理職場互助教保服務中心第2期款,臺灣屏東地方檢察署,"50,000"
113/03/06,國民及學前教育行政及督導-政府機關間之補助,112學年度獎勵無償提供場地、設施及設備辦理職場互助教保服務中心第2期款,臺灣屏東地方檢察署,"300,000"
113/03/06,國民及學前教育行政及督導-對私校之獎助,113年高級中等以下學校友善提供多元生理用品經費,台南市德光高級中學,"26,400"
113/03/06,國民及學前教育行政及督導-對私校之獎助,113年高級中等以下學校友善提供多元生理用品經費,臺南市六信高級中學,"40,800"
113/03/06,國民及學前教育行政及督導-對私校之獎助,113年度高級中等學校充實教學及實習設備計畫-一般科目,雲林縣福智高級中學,"43,680"
113/03/06,國民及學前教育行政及督導-對私校之獎助,113年度高級中等學校充實教學及實習設備計畫-一般科目(資),臺南市六信高級中學,"96,160"
113/03/06,國民及學前教育行政及督導-對私校之獎助,113年度高級中等學校充實教學及實習設備計畫-一般科目(資),台南市德光高級中學,"294,400"
113/03/06,國民及學前教育行政及督導-對私校之獎助,113年度高級中等學校充實教學及實習設備計畫-一般科目(資),雲林縣福智高級中學,"127,520"
113/03/06,國民及學前教育行政及督導-對私校之獎助,113年度高級中等學校充實教學及實習設備計畫-一般科目(資),新竹縣仰德高級中學,"232,000"
113/03/06,國民及學前教育行政及督導-投資,113年度高級中等學校充實教學及實習設備計畫-一般科目(資),國立蘭陽女子高級中學,"985,000"
113/03/06,國民及學前教育行政及督導-投資,113年度高級中等學校充實教學及實習設備計畫-一般科目(資),國立嘉義女子高級中學,"700,000"
113/03/06,國民及學前教育行政及督導-投資,113年度高級中等學校充實教學及實習設備計畫-一般科目(資),國立台南第二高級中學,"700,000"
113/03/06,國民及學前教育行政及督導-投資,113年度高級中等學校充實教學及實習設備計畫-一般科目(資),國立台南第一高級中學,"1,000,000"
113/03/06,國民及學前教育行政及督導-投資,113年度高級中等學校充實教學及實習設備計畫-一般科目(資),國立台南女子高級中學,"869,500"
113/03/06,國民及學前教育行政及督導-投資,113年度高級中等學校充實教學及實習設備計畫-一般科目(資),國立台南家齊高級中學,"959,000"
113/03/06,國民及學前教育行政及督導-投資,113年度高級中等學校充實教學及實習設備計畫-一般科目(資),國立屏東女子高級中學,"543,500"
113/03/06,國民及學前教育行政及督導-投資,113年度高級中等學校充實教學及實習設備計畫-一般科目(資),國立台東女子高級中學,"515,000"
113/03/06,國民及學前教育行政及督導-投資,113年度高級中等學校充實教學及實習設備計畫-一般科目(資),國立花蓮女子高級中學,"666,500"
113/03/06,國民及學前教育行政及督導-投資,113年度高級中等學校充實教學及實習設備計畫-一般科目(資),國立基隆女子高級中學,"840,700"
113/03/06,國民及學前教育行政及督導-投資,113年度高級中等學校充實教學及實習設備計畫-一般科目(資),國立新竹女子高級中學,"544,500"
113/03/06,國民及學前教育行政及督導-對特種基金之補助,113年高級中等以下學校友善提供多元生理用品經費,國立台南女子高級中學,"72,000"
113/03/06,國民及學前教育行政及督導-對特種基金之補助,113年高級中等以下學校友善提供多元生理用品經費,國立新竹特殊教育學校,"33,600"
113/03/06,國民及學前教育行政及督導-對特種基金之補助,113年高級中等以下學校友善提供多元生理用品經費,國立彰化特殊教育學校,"52,800"
113/03/06,國民及學前教育行政及督導-對特種基金之補助,113年高級中等以下學校友善提供多元生理用品經費,國立南投特殊教育學校,"57,600"
113/03/06,國民及學前教育行政及督導-對特種基金之補助,113年高級中等以下學校友善提供多元生理用品經費,國立雲林特殊教育學校,"57,600"
113/03/06,國民及學前教育行政及督導-對特種基金之補助,113年高級中等以下學校友善提供多元生理用品經費,國立花蓮特殊教育學校,"40,800"
113/03/06,國民及學前教育行政及督導-對特種基金之補助,113年高級中等以下學校友善提供多元生理用品經費,國立基隆特殊教育學校,"62,400"
113/03/06,國民及學前教育行政及督導-對特種基金之補助,113年導師職務加給差額經費(第1期),國立中科實驗高級中學,"108,000"
113/03/06,國民及學前教育行政及督導-對特種基金之補助,113年度高級中等學校充實教學及實習設備計畫-一般科目,國立蘭陽女子高級中學,"15,000"
113/03/06,國民及學前教育行政及督導-對特種基金之補助,113年度高級中等學校充實教學及實習設備計畫-一般科目,國立嘉義女子高級中學,"300,000"
113/03/06,國民及學前教育行政及督導-對特種基金之補助,113年度高級中等學校充實教學及實習設備計畫-一般科目,國立台南第二高級中學,"300,000"
113/03/06,國民及學前教育行政及督導-對特種基金之補助,113年度高級中等學校充實教學及實習設備計畫-一般科目,國立台南女子高級中學,"130,500"
113/03/06,國民及學前教育行政及督導-對特種基金之補助,113年度高級中等學校充實教學及實習設備計畫-一般科目,國立台南家齊高級中學,"41,000"
113/03/06,國民及學前教育行政及督導-對特種基金之補助,113年度高級中等學校充實教學及實習設備計畫-一般科目,國立屏東女子高級中學,"33,500"
113/03/06,國民及學前教育行政及督導-對私校之獎助,113年度高級中等學校充實教學及實習設備計畫-一般科目,慈濟大學附屬高級中學,"26,720"
113/03/06,國民及學前教育行政及督導-對私校之獎助,113年度高級中等學校充實教學及實習設備計畫-一般科目(資),慈濟大學附屬高級中學,"144,480"
113/03/06,國民及學前教育行政及督導-對特種基金之補助,113年度高級中等學校充實教學及實習設備計畫-一般科目,國立花蓮女子高級中學,"106,500"
113/03/06,國民及學前教育行政及督導-對特種基金之補助,113年度高級中等學校充實教學及實習設備計畫-一般科目,國立基隆女子高級中學,"143,300"
113/03/06,國民及學前教育行政及督導-對特種基金之補助,113年度高級中等學校充實教學及實習設備計畫-一般科目,國立新竹女子高級中學,"209,500"
113/03/06,國民及學前教育行政及督導-對私校之獎助,113年高級中等以下學校友善提供多元生理用品經費,臺南市私立明達高級中學,"67,200"
113/03/06,國民及學前教育行政及督導-對私校之獎助,113年高級中等以下學校友善提供多元生理用品經費,新竹縣私立東泰高級中學,"105,600"
113/03/06,國民及學前教育行政及督導-對私校之獎助,113年高級中等以下學校友善提供多元生理用品經費,屏東縣私立美和高級中學,"84,000"
113/03/06,國民及學前教育行政及督導-對私校之獎助,113年度高級中等學校充實教學及實習設備計畫-一般科目,高雄市私立正義高級中學,"14,000"
113/03/06,國民及學前教育行政及督導-對私校之獎助,113年度高級中等學校充實教學及實習設備計畫-一般科目,新竹市私立光復高級中學,"4,000"
113/03/06,國民及學前教育行政及督導-對私校之獎助,113年度高級中等學校充實教學及實習設備計畫-一般科目,台南市私立長榮高級中學,"11,920"
113/03/06,國民及學前教育行政及督導-對私校之獎助,113年度高級中等學校充實教學及實習設備計畫-一般科目,臺南市私立瀛海高級中學,"72,000"
113/03/06,國民及學前教育行政及督導-對私校之獎助,113年度高級中等學校充實教學及實習設備計畫-一般科目(資),彰化縣私立精誠高級中學,"392,000"
113/03/06,國民及學前教育行政及督導-對私校之獎助,113年度高級中等學校充實教學及實習設備計畫-一般科目(資),臺南市私立港明高級中學,"440,000"
113/03/06,國民及學前教育行政及督導-對私校之獎助,113年度高級中等學校充實教學及實習設備計畫-一般科目(資),基隆市私立二信高級中學,"296,800"
113/03/06,國民及學前教育行政及督導-對私校之獎助,113年度高級中等學校充實教學及實習設備計畫-一般科目(資),新竹市私立磐石高級中學,"430,400"
113/03/06,國民及學前教育行政及督導-對私校之獎助,113年度高級中等學校充實教學及實習設備計畫-一般科目(資),嘉義市私立嘉華高級中學,"131,280"
113/03/06,國民及學前教育行政及督導-對私校之獎助,113年度高級中等學校充實教學及實習設備計畫-一般科目(資),臺南市私立慈濟高級中學,"112,240"
113/03/06,國民及學前教育行政及督導-對私校之獎助,113年度高級中等學校充實教學及實習設備計畫-一般科目(資),新竹縣私立東泰高級中學,"687,200"
113/03/06,國民及學前教育行政及督導-對私校之獎助,113年度高級中等學校充實教學及實習設備計畫-一般科目(資),高雄市私立正義高級中學,"157,200"
113/03/06,國民及學前教育行政及督導-對私校之獎助,113年度高級中等學校充實教學及實習設備計畫-一般科目(資),新竹市私立光復高級中學,"751,200"
113/03/06,國民及學前教育行政及督導-對私校之獎助,113年度高級中等學校充實教學及實習設備計畫-一般科目(資),台南市私立長榮高級中學,"675,280"
113/03/06,國民及學前教育行政及督導-對私校之獎助,113年度高級中等學校充實教學及實習設備計畫-一般科目(資),臺南市私立瀛海高級中學,"271,200"
113/03/06,國民及學前教育行政及督導-對私校之獎助,113年度高級中等學校充實教學及實習設備計畫-一般科目(資),苗栗縣私立建臺高級中學,"152,000"
113/03/06,國民及學前教育行政及督導-對私校之獎助,113年度高級中等學校充實教學及實習設備計畫-一般科目(資),嘉義縣私立協同高級中學,"274,400"
113/03/06,國民及學前教育行政及督導-對私校之獎助,113年度高級中等學校充實教學及實習設備計畫-一般科目(資),臺南市私立南光高級中學,"303,040"
113/03/06,國民及學前教育行政及督導-對私校之獎助,113年度高級中等學校充實教學及實習設備計畫-一般科目(資),臺南市私立新榮高級中學,"112,800"
113/03/06,國民及學前教育行政及督導-對私校之獎助,113年度高級中等學校充實教學及實習設備計畫-一般科目(資),屏東縣私立美和高級中學,"127,520"
113/03/06,國民及學前教育行政及督導-投資,113年度高級中等學校充實教學及實習設備計畫-一般科目(資),國立宜蘭高級商業職業學校,"848,000"
113/03/06,國民及學前教育行政及督導-投資,113年度高級中等學校充實教學及實習設備計畫-一般科目(資),國立羅東高級商業職業學校,"380,000"
113/03/06,國民及學前教育行政及督導-投資,113年度高級中等學校充實教學及實習設備計畫-一般科目(資),國立大湖高級農工職業學校,"1,151,000"
113/03/06,國民及學前教育行政及督導-投資,113年度高級中等學校充實教學及實習設備計畫-一般科目(資),國立苗栗高級農工職業學校,"1,000,000"
113/03/06,國民及學前教育行政及督導-投資,113年度高級中等學校充實教學及實習設備計畫-一般科目(資),國立苗栗高級商業職業學校,"466,000"
113/03/06,國民及學前教育行政及督導-投資,113年度高級中等學校充實教學及實習設備計畫-一般科目(資),國立中興大學附屬高級中學,"892,000"
113/03/06,國民及學前教育行政及督導-投資,113年度高級中等學校充實教學及實習設備計畫-一般科目(資),國立永靖高級工業職業學校,"194,000"
113/03/06,國民及學前教育行政及督導-投資,113年度高級中等學校充實教學及實習設備計畫-一般科目(資),國立彰化高級商業職業學校,"831,000"
113/03/06,國民及學前教育行政及督導-投資,113年度高級中等學校充實教學及實習設備計畫-一般科目(資),國立員林高級農工職業學校,"753,000"
113/03/06,國民及學前教育行政及督導-投資,113年度高級中等學校充實教學及實習設備計畫-一般科目(資),國立花蓮高級農業職業學校,"515,000"
113/03/06,國民及學前教育行政及督導-投資,113年度高級中等學校充實教學及實習設備計畫-一般科目(資),國立基隆高級商工職業學校,"733,500"
113/03/06,國民及學前教育行政及督導-投資,113年度高級中等學校充實教學及實習設備計畫-一般科目(資),國立嘉義高級家事職業學校,"515,000"
113/03/06,國民及學前教育行政及督導-投資,113年度高級中等學校充實教學及實習設備計畫-一般科目(資),國立台南高級商業職業學校,"421,000"
113/03/06,國民及學前教育行政及督導-投資,113年度高級中等學校充實教學及實習設備計畫-一般科目(資),國立金門高級農工職業學校,"1,358,000"
113/03/06,國民及學前教育行政及督導-投資,113年度高級中等學校充實教學及實習設備計畫-一般科目(資),國立羅東高級工業職業學校,"765,000"
113/03/06,國民及學前教育行政及督導-投資,113年度高級中等學校充實教學及實習設備計畫-一般科目(資),國立內埔高級農工職業學校,"756,000"
113/03/06,國民及學前教育行政及督導-投資,113年度高級中等學校充實教學及實習設備計畫-一般科目(資),國立屏東高級工業職業學校,"746,700"
113/03/06,國民及學前教育行政及督導-投資,113年度高級中等學校充實教學及實習設備計畫-一般科目(資),國立佳冬高級農業職業學校,"1,500,000"
113/03/06,國民及學前教育行政及督導-投資,113年度高級中等學校充實教學及實習設備計畫-一般科目(資),國立恆春高級工商職業學校,"1,437,000"
113/03/06,國民及學前教育行政及督導-投資,113年度高級中等學校充實教學及實習設備計畫-一般科目(資),國立關山高級工商職業學校,"598,000"
113/03/06,國民及學前教育行政及督導-投資,113年度高級中等學校充實教學及實習設備計畫-一般科目(資),國立台東高級商業職業學校,"428,000"
113/03/06,國民及學前教育行政及督導-投資,113年度高級中等學校充實教學及實習設備計畫-一般科目(資),國立成功商業水產職業學校,"937,550"
113/03/06,國民及學前教育行政及督導-投資,113年度高級中等學校充實教學及實習設備計畫-一般科目(資),國立花蓮高級工業職業學校,"696,800"
113/03/06,國民及學前教育行政及督導-投資,113年度高級中等學校充實教學及實習設備計畫-一般科目(資),國立花蓮高級商業職業學校,"495,000"
113/03/06,國民及學前教育行政及督導-投資,113年度高級中等學校充實教學及實習設備計畫-一般科目(資),國立新竹高級商業職業學校,"520,100"
113/03/06,國民及學前教育行政及督導-投資,113年度高級中等學校充實教學及實習設備計畫-一般科目(資),國立新竹高級工業職業學校,"460,000"
113/03/06,國民及學前教育行政及督導-投資,113年度高級中等學校充實教學及實習設備計畫-一般科目(資),國立臺東專科學校校務基金,"419,300"
113/03/06,國民及學前教育行政及督導-對特種基金之補助,辦理113年度執行學生校外生活輔導工作經費,國立基隆高級商工職業學校,"192,000"
113/03/06,國民及學前教育行政及督導-對特種基金之補助,113年高級中等以下學校友善提供多元生理用品經費,國立恆春高級工商職業學校,"264,000"
113/03/06,國民及學前教育行政及督導-對特種基金之補助,113年高級中等以下學校友善提供多元生理用品經費,國立台東高級商業職業學校,"120,000"
113/03/06,國民及學前教育行政及督導-對特種基金之補助,113年高級中等以下學校友善提供多元生理用品經費,國立成功商業水產職業學校,"19,200"
113/03/06,國民及學前教育行政及督導-對特種基金之補助,113年高級中等以下學校友善提供多元生理用品經費,國立新竹高級商業職業學校,"117,600"
113/03/06,國民及學前教育行政及督導-對特種基金之補助,113年高級中等以下學校友善提供多元生理用品經費,國立新竹高級工業職業學校,"26,000"
113/03/06,國民及學前教育行政及督導-對特種基金之補助,113年高級中等以下學校友善提供多元生理用品經費,國立嘉義高級商業職業學校,"153,600"
113/03/06,國民及學前教育行政及督導-對特種基金之補助,113年高級中等以下學校友善提供多元生理用品經費,國立嘉義高級家事職業學校,"249,600"
113/03/06,國民及學前教育行政及督導-對特種基金之補助,113年高級中等以下學校友善提供多元生理用品經費,國立台南高級商業職業學校,"160,800"
113/03/06,國民及學前教育行政及督導-對特種基金之補助,113年高級中等以下學校友善提供多元生理用品經費,國立金門高級農工職業學校,"86,400"
113/03/06,國民及學前教育行政及督導-對特種基金之補助,113年導師職務加給差額經費(第1期),國立南科國際實驗高級中學,"108,000"
113/03/06,國民及學前教育行政及督導-對特種基金之補助,113年導師職務加給差額經費(第1期),國立臺東專科學校校務基金,"259,200"
113/03/06,國民及學前教育行政及督導-對特種基金之補助,113年高級中等以下學校友善提供多元生理用品經費,國立羅東高級商業職業學校,"132,000"
113/03/06,國民及學前教育行政及督導-對特種基金之補助,113年高級中等以下學校友善提供多元生理用品經費,國立二林高級工商職業學校,"235,200"
113/03/06,國民及學前教育行政及督導-對特種基金之補助,113年高級中等以下學校友善提供多元生理用品經費,國立員林高級農工職業學校,"240,000"
113/03/06,國民及學前教育行政及督導-對特種基金之補助,113年高級中等以下學校友善提供多元生理用品經費,國立埔里高級工業職業學校,"40,800"
113/03/06,國民及學前教育行政及督導-對特種基金之補助,113年高級中等以下學校友善提供多元生理用品經費,國立草屯高級商工職業學校,"115,200"
113/03/06,國民及學前教育行政及督導-對特種基金之補助,113年高級中等以下學校友善提供多元生理用品經費,國立北港高級農工職業學校,"48,000"
113/03/06,國民及學前教育行政及督導-對特種基金之補助,113年高級中等以下學校友善提供多元生理用品經費,國立白河高級商工職業學校,"69,600"
113/03/06,國民及學前教育行政及督導-對特種基金之補助,113年高級中等以下學校友善提供多元生理用品經費,國立新營高級工業職業學校,"57,600"
113/03/06,國民及學前教育行政及督導-對特種基金之補助,113年高級中等以下學校友善提供多元生理用品經費,國立曾文高級農工職業學校,"105,600"
113/03/06,國民及學前教育行政及督導-對特種基金之補助,113年度高級中等學校充實教學及實習設備計畫-一般科目,國立宜蘭高級商業職業學校,"152,000"
113/03/06,國民及學前教育行政及督導-對特種基金之補助,113年度高級中等學校充實教學及實習設備計畫-一般科目,國立羅東高級商業職業學校,"27,000"
113/03/06,國民及學前教育行政及督導-對特種基金之補助,113年度高級中等學校充實教學及實習設備計畫-一般科目,國立大湖高級農工職業學校,"154,000"
113/03/06,國民及學前教育行政及督導-對特種基金之補助,113年度高級中等學校充實教學及實習設備計畫-一般科目,國立苗栗高級商業職業學校,"49,000"
113/03/06,國民及學前教育行政及督導-對特種基金之補助,113年度高級中等學校充實教學及實習設備計畫-一般科目,國立中興大學附屬高級中學,"108,000"
113/03/06,國民及學前教育行政及督導-對特種基金之補助,113年度高級中等學校充實教學及實習設備計畫-一般科目,國立永靖高級工業職業學校,"31,000"
113/03/06,國民及學前教育行政及督導-對特種基金之補助,113年度高級中等學校充實教學及實習設備計畫-一般科目,國立員林高級農工職業學校,"20,000"
113/03/06,國民及學前教育行政及督導-對特種基金之補助,113年度高級中等學校充實教學及實習設備計畫-一般科目,國立基隆高級商工職業學校,"266,500"
113/03/06,國民及學前教育行政及督導-對特種基金之補助,113年度高級中等學校充實教學及實習設備計畫-一般科目,國立台南高級商業職業學校,"5,000"
113/03/06,國民及學前教育行政及督導-對特種基金之補助,113年度高級中等學校充實教學及實習設備計畫-一般科目,國立金門高級農工職業學校,"142,000"
113/03/06,國民及學前教育行政及督導-對特種基金之補助,113年度高級中等學校充實教學及實習設備計畫-一般科目,國立羅東高級工業職業學校,"8,000"
113/03/06,國民及學前教育行政及督導-對特種基金之補助,113年度高級中等學校充實教學及實習設備計畫-一般科目,國立內埔高級農工職業學校,"180,000"
113/03/06,國民及學前教育行政及督導-對特種基金之補助,113年度高級中等學校充實教學及實習設備計畫-一般科目,國立屏東高級工業職業學校,"253,300"
113/03/06,國民及學前教育行政及督導-對特種基金之補助,113年度高級中等學校充實教學及實習設備計畫-一般科目,國立恆春高級工商職業學校,"16,000"
113/03/06,國民及學前教育行政及督導-對特種基金之補助,113年度高級中等學校充實教學及實習設備計畫-一般科目,國立臺東專科學校校務基金,"41,700"
113/03/06,國民及學前教育行政及督導-對特種基金之補助,113年度高級中等學校充實教學及實習設備計畫-一般科目,國立台東高級商業職業學校,"87,000"
113/03/06,國民及學前教育行政及督導-對特種基金之補助,113年度高級中等學校充實教學及實習設備計畫-一般科目,國立成功商業水產職業學校,"9,450"
113/03/06,國民及學前教育行政及督導-對特種基金之補助,113年度高級中等學校充實教學及實習設備計畫-一般科目,國立花蓮高級工業職業學校,"76,200"
113/03/06,國民及學前教育行政及督導-對特種基金之補助,113年度高級中等學校充實教學及實習設備計畫-一般科目,國立花蓮高級商業職業學校,"20,000"
113/03/06,國民及學前教育行政及督導-對特種基金之補助,113年度高級中等學校充實教學及實習設備計畫-一般科目,國立新竹高級商業職業學校,"252,900"
113/03/06,國民及學前教育行政及督導-對特種基金之補助,113年度高級中等學校充實教學及實習設備計畫-一般科目,國立新竹高級工業職業學校,"14,000"
113/03/06,國民及學前教育行政及督導-對私校之獎助,112學年度家庭教育經費(第2期),新竹市私立曙光女子高級中學,"15,000"
113/03/06,國民及學前教育行政及督導-投資,113年度高級中等學校充實教學及實習設備計畫-一般科目(資),國立蘇澳高級海事水產職業學校,"190,000"
113/03/06,國民及學前教育行政及督導-投資,113年度高級中等學校充實教學及實習設備計畫-一般科目(資),國立員林崇實高級工業職業學校,"658,000"
113/03/06,國民及學前教育行政及督導-投資,113年度高級中等學校充實教學及實習設備計畫-一般科目(資),國立中山大學附屬國光高級中學,"172,700"
113/03/06,國民及學前教育行政及督導-投資,113年度高級中等學校充實教學及實習設備計畫-一般科目(資),國立頭城高級家事商業職業學校,"605,500"
113/03/06,國民及學前教育行政及督導-投資,113年度高級中等學校充實教學及實習設備計畫-一般科目(資),國立澎湖高級海事水產職業學校,"975,200"
113/03/06,國民及學前教育行政及督導-對特種基金之補助,113年高級中等以下學校友善提供多元生理用品經費,國立台南高級海事水產職業學校,"33,600"
113/03/06,國民及學前教育行政及督導-對私校之獎助,113年高級中等以下學校友善提供多元生理用品經費,臺灣省彰化縣私立文興高級中學,"84,000"
113/03/06,國民及學前教育行政及督導-對私校之獎助,113年高級中等以下學校友善提供多元生理用品經費,臺灣省雲林縣私立巨人高級中學,"16,800"
113/03/06,國民及學前教育行政及督導-對特種基金之補助,113年高級中等以下學校友善提供多元生理用品經費,國立蘇澳高級海事水產職業學校,"38,400"
113/03/06,國民及學前教育行政及督導-對特種基金之補助,113年高級中等以下學校友善提供多元生理用品經費,國立員林崇實高級工業職業學校,"69,600"
113/03/06,國民及學前教育行政及督導-對私校之獎助,113年高級中等以下學校友善提供多元生理用品經費,台灣省基隆市私立聖心高級中學,"16,800"
113/03/06,國民及學前教育行政及督導-對私校之獎助,113年高級中等以下學校友善提供多元生理用品經費,臺灣省嘉義市私立輔仁高級中學,"24,000"
113/03/06,國民及學前教育行政及督導-對特種基金之補助,113年度高級中等學校充實教學及實習設備計畫-一般科目,國立員林崇實高級工業職業學校,"38,000"
113/03/06,國民及學前教育行政及督導-對特種基金之補助,113年度高級中等學校充實教學及實習設備計畫-一般科目,國立中山大學附屬國光高級中學,"84,300"
113/03/06,國民及學前教育行政及督導-對特種基金之補助,113年度高級中等學校充實教學及實習設備計畫-一般科目,國立頭城高級家事商業職業學校,"167,500"
113/03/06,國民及學前教育行政及督導-對私校之獎助,113年度高級中等學校充實教學及實習設備計畫-一般科目,臺灣省彰化縣私立文興高級中學,"43,680"
113/03/06,國民及學前教育行政及督導-對私校之獎助,113年度高級中等學校充實教學及實習設備計畫-一般科目,私立培德高級工業家事職業學校,"30,400"
113/03/06,國民及學前教育行政及督導-對私校之獎助,113年度高級中等學校充實教學及實習設備計畫-一般科目(資),台灣省基隆市私立聖心高級中學,"127,520"
113/03/06,國民及學前教育行政及督導-對私校之獎助,113年度高級中等學校充實教學及實習設備計畫-一般科目(資),臺灣省嘉義市私立輔仁高級中學,"171,200"
113/03/06,國民及學前教育行政及督導-對私校之獎助,113年度高級中等學校充實教學及實習設備計畫-一般科目(資),臺南市天主教聖功女子高級中學,"127,520"
113/03/06,國民及學前教育行政及督導-對私校之獎助,113年度高級中等學校充實教學及實習設備計畫-一般科目(資),臺灣省彰化縣私立文興高級中學,"127,520"
113/03/06,國民及學前教育行政及督導-對私校之獎助,113年度高級中等學校充實教學及實習設備計畫-一般科目(資),私立培德高級工業家事職業學校,"140,800"
113/03/06,國民及學前教育行政及督導-對特種基金之補助,113年度高級中等學校充實教學及實習設備計畫-一般科目,國立澎湖高級海事水產職業學校,"106,800"
113/03/06,國民及學前教育行政及督導-對私校之獎助,113年2月私立學校教職人員保險費,臺灣銀行股份有限公司公教保險部,"4,644,681"
113/03/06,國民及學前教育行政及督導-對私校之獎助,113年高級中等以下學校友善提供多元生理用品經費,財團法人南投縣私立五育高級中學,"120,000"
113/03/06,國民及學前教育行政及督導-對私校之獎助,113年高級中等以下學校友善提供多元生理用品經費,雲林縣私立大德工業商業職業學校,"122,400"
113/03/06,國民及學前教育行政及督導-對私校之獎助,113年高級中等以下學校友善提供多元生理用品經費,臺南市私立育德工業家事職業學校,"74,400"
113/03/06,國民及學前教育行政及督導-對私校之獎助,112學年度家庭教育經費(第2期),雲林縣私立大成高級商工職業學校,"14,000"
113/03/06,國民及學前教育行政及督導-對私校之獎助,113年高級中等以下學校友善提供多元生理用品經費,高雄縣私立高英高級工商職業學校,"225,600"
113/03/06,國民及學前教育行政及督導-對私校之獎助,113年高級中等以下學校友善提供多元生理用品經費,屏東縣私立日新高級工商職業學校,"4,800"
113/03/06,國民及學前教育行政及督導-對私校之獎助,113年高級中等以下學校友善提供多元生理用品經費,臺東縣私立公東高級工業職業學校,"105,600"
113/03/06,國民及學前教育行政及督導-對私校之獎助,113年高級中等以下學校友善提供多元生理用品經費,財團法人嘉義市私立興華高級中學,"45,600"
113/03/06,國民及學前教育行政及督導-對私校之獎助,113年度高級中等學校充實教學及實習設備計畫-一般科目,財團法人宜蘭縣私立慧燈高級中學,"43,680"
113/03/06,國民及學前教育行政及督導-對私校之獎助,113年度高級中等學校充實教學及實習設備計畫-一般科目,臺南市私立育德工業家事職業學校,"25,200"
113/03/06,國民及學前教育行政及督導-對私校之獎助,113年度高級中等學校充實教學及實習設備計畫-一般科目(資),財團法人宜蘭縣私立慧燈高級中學,"127,520"
113/03/06,國民及學前教育行政及督導-對私校之獎助,113年度高級中等學校充實教學及實習設備計畫-一般科目(資),臺南市私立育德工業家事職業學校,"146,000"
113/03/06,國民及學前教育行政及督導-對私校之獎助,113年度高級中等學校充實教學及實習設備計畫-一般科目(資),苗栗縣私立龍德家事商業職業學校,"112,240"
113/03/06,國民及學前教育行政及督導-對私校之獎助,113年度高級中等學校充實教學及實習設備計畫-一般科目(資),彰化縣私立達德高級商工職業學校,"687,200"
113/03/06,國民及學前教育行政及督導-對私校之獎助,113年度高級中等學校充實教學及實習設備計畫-一般科目(資),財團法人南投縣私立五育高級中學,"127,680"
113/03/06,國民及學前教育行政及督導-對私校之獎助,113年度高級中等學校充實教學及實習設備計畫-一般科目(資),雲林縣私立大德工業商業職業學校,"171,200"
113/03/06,國民及學前教育行政及督導-對私校之獎助,113年度高級中等學校充實教學及實習設備計畫-一般科目(資),高雄縣私立高英高級工商職業學校,"476,800"
113/03/06,國民及學前教育行政及督導-對私校之獎助,113年度高級中等學校充實教學及實習設備計畫-一般科目(資),臺東縣私立公東高級工業職業學校,"192,080"
113/03/06,國民及學前教育行政及督導-對特種基金之補助,113年導師職務加給差額經費(第1期),國立新竹科學園區實驗高級中等學校,"158,400"
113/03/06,國民及學前教育行政及督導-對私校之獎助,113年高級中等以下學校友善提供多元生理用品經費,財團法人台南市私立長榮女子高級中學,"81,600"
113/03/06,國民及學前教育行政及督導-對私校之獎助,113年高級中等以下學校友善提供多元生理用品經費,財團法人台南市亞洲高級餐旅職業學校,"153,600"
113/03/06,國民及學前教育行政及督導-對私校之獎助,113年高級中等以下學校友善提供多元生理用品經費,正德學校財團法人彰化縣正德高級中學,"38,400"
113/03/06,國民及學前教育行政及督導-對私校之獎助,113年高級中等以下學校友善提供多元生理用品經費,基隆市私立光隆高級家事商業職業學校,"48,000"
113/03/06,國民及學前教育行政及督導-對私校之獎助,113年高級中等以下學校友善提供多元生理用品經費,嘉義市私立東吳高級工業家事職業學校,"804,000"
113/03/06,國民及學前教育行政及督導-對私校之獎助,113年度高級中等學校充實教學及實習設備計畫-一般科目,屏榮學校財團法人屏東縣屏榮高級中學,"45,600"
113/03/06,國民及學前教育行政及督導-對私校之獎助,113年度高級中等學校充實教學及實習設備計畫-一般科目,財團法人台南市亞洲高級餐旅職業學校,"38,400"
113/03/06,國民及學前教育行政及督導-對私校之獎助,113年度高級中等學校充實教學及實習設備計畫-一般科目(資),財團法人台南市私立長榮女子高級中學,"144,000"
113/03/06,國民及學前教育行政及督導-對私校之獎助,113年度高級中等學校充實教學及實習設備計畫-一般科目(資),屏榮學校財團法人屏東縣屏榮高級中學,"292,000"
113/03/06,國民及學前教育行政及督導-對私校之獎助,113年度高級中等學校充實教學及實習設備計畫-一般科目(資),財團法人台南市亞洲高級餐旅職業學校,"132,800"
113/03/06,國民及學前教育行政及督導-對私校之獎助,113年度高級中等學校充實教學及實習設備計畫-一般科目(資),興國學校財團法人臺南市興國高級中學,"127,520"
113/03/06,國民及學前教育行政及督導-對私校之獎助,113年度高級中等學校充實教學及實習設備計畫-一般科目(資),高雄縣私立華德高級工業家事職業學校,"300,800"
113/03/06,國民及學前教育行政及督導-投資,113年度高級中等學校充實教學及實習設備計畫-一般科目(資),國立彰化師範大學附屬高級工業職業學校,"395,000"
113/03/06,國民及學前教育行政及督導-投資,113年度高級中等學校充實教學及實習設備計畫-一般科目(資),國立高雄餐旅大學附屬餐旅高級中等學校,"221,000"
113/03/06,國民及學前教育行政及督導-投資,113年度高級中等學校充實教學及實習設備計畫-一般科目(資),國立中興大學附屬台中高級農業職業學校,"700,000"
113/03/06,國民及學前教育行政及督導-對特種基金之補助,113年導師職務加給差額經費(第1期),國立成功大學附屬臺南工業高級中等學校,"108,000"
113/03/06,國民及學前教育行政及督導-對私校之獎助,112學年度家庭教育經費(第2期),臺灣省台南市私立南英高級商工職業學校,"23,000"
113/03/06,國民及學前教育行政及督導-對特種基金之補助,113年高級中等以下學校友善提供多元生理用品經費,國立中興大學附屬台中高級農業職業學校,"146,400"
113/03/06,國民及學前教育行政及督導-對私校之獎助,113年高級中等以下學校友善提供多元生理用品經費,臺灣省台南市私立南英高級商工職業學校,"79,200"
113/03/06,國民及學前教育行政及督導-對私校之獎助,113年高級中等以下學校友善提供多元生理用品經費,台灣省台南市私立慈幼高級工商職業學校,"86,400"
113/03/06,國民及學前教育行政及督導-對特種基金之補助,113年度高級中等學校充實教學及實習設備計畫-一般科目,國立高雄餐旅大學附屬餐旅高級中等學校,"36,000"
113/03/06,國民及學前教育行政及督導-對私校之獎助,113年度高級中等學校充實教學及實習設備計畫-一般科目,財團法人台灣省宜蘭縣私立中道高級中學,"43,680"
113/03/06,國民及學前教育行政及督導-對私校之獎助,113年度高級中等學校充實教學及實習設備計畫-一般科目(資),方濟會學校財團法人臺南市黎明高級中學,"138,880"
113/03/06,國民及學前教育行政及督導-對私校之獎助,113年度高級中等學校充實教學及實習設備計畫-一般科目(資),臺灣省台南市私立南英高級商工職業學校,"272,000"
113/03/06,國民及學前教育行政及督導-對私校之獎助,113年度高級中等學校充實教學及實習設備計畫-一般科目(資),財團法人台灣省宜蘭縣私立中道高級中學,"127,520"
113/03/06,國民及學前教育行政及督導-對私校之獎助,113年度高級中等學校充實教學及實習設備計畫-一般科目(資),佛光山學校財團法人高雄市普門高級中學,"140,600"
113/03/06,國民及學前教育行政及督導-對特種基金之補助,113年度高級中等學校充實教學及實習設備計畫-一般科目,國立中興大學附屬台中高級農業職業學校,"300,000"
113/03/06,國民及學前教育行政及督導-對私校之獎助,113年高級中等以下學校友善提供多元生理用品經費,揚子學校財團法人雲林縣揚子高級中等學校,"21,600"
113/03/06,國民及學前教育行政及督導-對私校之獎助,113年高級中等以下學校友善提供多元生理用品經費,高鳳學校財團法人屏東縣崇華高級中等學校,"7,200"
113/03/06,國民及學前教育行政及督導-對私校之獎助,113年度高級中等學校充實教學及實習設備計畫-一般科目,高鳳學校財團法人屏東縣崇華高級中等學校,"2,800"
113/03/06,國民及學前教育行政及督導-對私校之獎助,113年度高級中等學校充實教學及實習設備計畫-一般科目(資),臺南光華學校財團法人臺南市光華高級中學,"333,600"
113/03/06,國民及學前教育行政及督導-對私校之獎助,113年度高級中等學校充實教學及實習設備計畫-一般科目(資),高鳳學校財團法人屏東縣崇華高級中等學校,"67,600"
113/03/06,國民及學前教育行政及督導-對私校之獎助,113年度高級中等學校充實教學及實習設備計畫-一般科目(資),同德學校財團法人南投縣同德高級中等學校,"315,200"
113/03/06,國民及學前教育行政及督導-投資,113年度高級中等學校充實教學及實習設備計畫-一般科目(資),國立臺北科技大學附屬桃園農工高級中等學校,"964,700"
113/03/06,國民及學前教育行政及督導-投資,113年度高級中等學校充實教學及實習設備計畫-一般科目(資),國立臺灣海洋大學附屬基隆海事高級中等學校,"708,200"
113/03/06,國民及學前教育行政及督導-對私校之獎助,113年高級中等以下學校友善提供多元生理用品經費,臺灣省苗栗縣私立育民高級工業家事職業學校,"3,600"
113/03/06,國民及學前教育行政及督導-對私校之獎助,112學年度家庭教育經費(第2期),臺灣省苗栗縣私立育民高級工業家事職業學校,"23,000"
113/03/06,國民及學前教育行政及督導-對特種基金之補助,113年高級中等以下學校友善提供多元生理用品經費,國立臺北科技大學附屬桃園農工高級中等學校,"336,000"
113/03/06,國民及學前教育行政及督導-對特種基金之補助,113年度高級中等學校充實教學及實習設備計畫-一般科目,國立臺北科技大學附屬桃園農工高級中等學校,"35,300"
113/03/06,國民及學前教育行政及督導-對特種基金之補助,113年度高級中等學校充實教學及實習設備計畫-一般科目,國立臺灣海洋大學附屬基隆海事高級中等學校,"64,800"
113/03/06,國民及學前教育行政及督導-對私校之獎助,113年高級中等以下學校友善提供多元生理用品經費,陽明學校財團法人臺南市陽明高級工商職業學校,"19,200"
113/03/06,國民及學前教育行政及督導-對私校之獎助,113年高級中等以下學校友善提供多元生理用品經費,崑山國際學校財團法人臺南市崑山高級中等學校,"16,800"
113/03/06,國民及學前教育行政及督導-對私校之獎助,113年度高級中等學校充實教學及實習設備計畫-一般科目(資),上騰學校財團法人花蓮縣上騰高級工商職業學校,"332,800"
113/03/06,國民及學前教育行政及督導-對私校之獎助,113年度高級中等學校充實教學及實習設備計畫-一般科目(資),崑山國際學校財團法人臺南市崑山高級中等學校,"171,200"
113/03/06,國民及學前教育行政及督導-對私校之獎助,113年度高級中等學校充實教學及實習設備計畫-一般科目(資),內思學校財團法人新竹縣內思工業高級中等學校,"329,280"
113/03/06,國民及學前教育行政及督導-對私校之獎助,113年度高級中等學校充實教學及實習設備計畫-一般科目(資),中山學校財團法人高雄市中山高級工商職業學校,"807,600"
113/03/06,國民及學前教育行政及督導-對私校之獎助,113年高級中等以下學校友善提供多元生理用品經費,財團法人台灣省嘉義縣私立萬能高級工商職業學校,"64,800"
113/03/06,國民及學前教育行政及督導-對私校之獎助,113年度高級中等學校充實教學及實習設備計畫-一般科目(資),財團法人台灣省苗栗縣私立中興高級商工職業學校,"252,000"
113/03/06,國民及學前教育行政及督導-對私校之獎助,113年度高級中等學校充實教學及實習設備計畫-一般科目(資),維多利亞學校財團法人雲林縣維多利亞實驗高級中學,"155,200"
113/03/07,國民及學前教育行政及督導-對各縣市政府之補助,113年度新住民子女教育經費,雲林縣政府,"438,414"
113/03/07,國民及學前教育行政及督導-對各縣市政府之補助,113年度新住民子女教育經費,澎湖縣政府,"32,917"
113/03/07,國民及學前教育行政及督導-對各縣市政府之補助,113年度華語文學習扶助經費,新竹市政府,"131,796"
113/03/07,國民及學前教育行政及督導-對各縣市政府之補助,112學年度國小原住民族語開課經費-第2期款,苗栗縣政府,"227,061"
113/03/07,國民及學前教育行政及督導-對各縣市政府之補助,112學年度國小原住民族語開課經費-第2期款,彰化縣政府,"441,238"
113/03/07,國民及學前教育行政及督導-對各縣市政府之補助,112學年度準公共教保服務機構親職教育第2期款,花蓮縣政府,"31,343"
113/03/07,國民及學前教育行政及督導-對各縣市政府之補助,112學年度學前特教服務據點第2期款,臺東縣政府,"1,286,204"
113/03/07,國民及學前教育行政及督導-對各縣市政府之補助,海濱非營利幼兒園113學年度永續經營之房舍修繕及設施設備改善、維護與購置經費,屏東縣政府,"1,088,000"
113/03/07,國民及學前教育行政及督導-對各縣市政府之補助,載熙國小112年度充實設施設備-全校廣播擴音設備第1期款,新竹市政府,"420,000"
113/03/07,國民及學前教育行政及督導-對直轄市政府之補助,112年度新明國小附設幼兒園等3園為轉型2歲專班申請充實及改善教學環境設施設備經費,桃園市政府,"430,500"
113/03/07,國民及學前教育行政及督導-對直轄市政府之補助,112年度新明國小附設幼兒園等3園為轉型2歲專班申請充實及改善教學環境設施設備經費,桃園市政府,"3,485,250"
113/03/07,國民及學前教育行政及督導-對直轄市政府之補助,112年度大埔國小附設幼兒園等3園為轉型2歲專班申請充實及改善教學環境設施設備經費,桃園市政府,"285,525"
113/03/07,國民及學前教育行政及督導-對直轄市政府之補助,112年度大埔國小附設幼兒園等3園為轉型2歲專班申請充實及改善教學環境設施設備經費,桃園市政府,"1,441,500"
113/03/07,國民及學前教育行政及督導-對各縣市政府之補助,112學年度推動本土語言融入教保活動課程第2期款,南投縣政府,"133,264"
113/03/07,國民及學前教育行政及督導-對直轄市政府之補助,112學年度推動本土語言融入教保活動課程第2期款,桃園市政府,"410,529"
113/03/07,國民及學前教育行政及督導-對各縣市政府之補助,113年度國民中小學閱讀推動計畫經費,屏東縣政府,"959,120"
113/03/07,國民及學前教育行政及督導-對各縣市政府之補助,113年度國民中小學閱讀推動計畫經費,新竹市政府,"205,200"
113/03/07,國民及學前教育行政及督導-對各縣市政府之補助,112學年度幼兒園英語融入式課程試辦計畫第2期款,南投縣政府,"82,996"
113/03/07,國民及學前教育行政及督導-對各縣市政府之補助,112學年度教保服務機構親職教育第2期款,南投縣政府,"99,242"
113/03/07,國民及學前教育行政及督導-對直轄市政府之補助,112學年度教保服務機構親職教育第2期款,桃園市政府,"382,870"
113/03/07,國民及學前教育行政及督導-對各縣市政府之補助,龍山國小112年度充實設施設備-充實音樂教學器材之樂器採購經費,新竹市政府,"693,000"
113/03/07,國民及學前教育行政及督導-對各縣市政府之補助,112學年度學前階段巡迴輔導教師及專業人員巡迴服務交通費第2期款,苗栗縣政府,"675,045"
113/03/07,國民及學前教育行政及督導-對各縣市政府之補助,112學年度國民小學及國民中學活化教學與多元學習計畫第2期款,連江縣政府,"157,074"
113/03/07,國民及學前教育行政及督導-對各縣市政府之補助,112學年度國民中小學本土教育整體推動方案暨教師及學生多元相關活動第2期款,南投縣政府,"2,136,000"
113/03/07,國民及學前教育行政及督導-對各縣市政府之補助,職場互助教保服務中心112學年度配置助理人員及早期療育專業團隊專業人員輔導第2期款,花蓮縣政府,"370,865"
113/03/07,國民及學前教育行政及督導-對各縣市政府之補助,113年度推動學前教保、少子女化對策計畫、幼兒園稽核及辦理相關人員違法對待幼兒案件等相關業務增置人力經費第1期款,嘉義市政府,"1,453,200"
113/03/07,國民及學前教育行政及督導-對各縣市政府之補助,113年度推動學前教保、少子女化對策計畫、幼兒園稽核及辦理相關人員違法對待幼兒案件等相關業務增置人力經費第1期款,彰化縣政府,"2,566,200"
113/03/07,國民及學前教育行政及督導-對各縣市政府之補助,113年度推動學前教保、少子女化對策計畫、幼兒園稽核及辦理相關人員違法對待幼兒案件等相關業務增置人力經費第1期款,彰化縣政府,"1,121,400"
113/03/07,國民及學前教育行政及督導-對各縣市政府之補助,112學年度推動閩南語沉浸式教學融入教保活動課程第2期款,嘉義市政府,"466,649"
113/03/07,國民及學前教育行政及督導-對各縣市政府之補助,112學年度推動閩南語沉浸式教學融入教保活動課程第2期款,金門縣政府,"154,000"
113/03/07,國民及學前教育行政及督導-對各縣市政府之補助,112學年度推動閩南語沉浸式教學融入教保活動課程第2期款,花蓮縣政府,"687,774"
113/03/07,國民及學前教育行政及督導-對各縣市政府之補助,112學年度提高國小教師員額編制至每班1.65人第2期經費,苗栗縣政府,"24,206,000"
113/03/07,國民及學前教育行政及督導-對各縣市政府之補助,112學年度提高國小教師員額編制至每班1.65人第2期經費,臺東縣政府,"21,658,000"
113/03/07,國民及學前教育行政及督導-對各縣市政府之補助,112學年度提高國小教師員額編制至每班1.65人第2期經費,連江縣政府,"1,029,000"
113/03/07,國民及學前教育行政及督導-對各縣市政府之補助,112學年度提高國小教師員額編制至每班1.65人第2期經費,金門縣政府,"3,332,000"
113/03/07,國民及學前教育行政及督導-對各縣市政府之補助,112學年度國小原住民族語開課經費(第2期款),臺東縣政府,"5,896,986"
113/03/07,國民及學前教育行政及督導-對各縣市政府之補助,112學年度臺灣手語國中開課經費,屏東縣政府,"179,228"
113/03/07,國民及學前教育行政及督導-對各縣市政府之補助,112學年度國中及國小臺灣手語教學人員交通費,宜蘭縣政府,"7,120"
113/03/07,國民及學前教育行政及督導-對各縣市政府之補助,112學年度國民中小學原住民族語文協同人員經費(第2期),連江縣政府,890
113/03/07,國民及學前教育行政及督導-對各縣市政府之補助,112學年度辦理品德教育推廣與深耕學校實施計畫,花蓮縣政府,"142,648"
113/03/07,國民及學前教育行政及督導-對各縣市政府之補助,112學年度高級中等以下學校原住民族實驗班及實驗教育課程第2期款,臺東縣政府,"3,392,550"
113/03/07,國民及學前教育行政及督導-對各縣市政府之補助,112學年度高級中等以下學校原住民族實驗班及實驗教育課程第2期款,臺東縣政府,"321,300"
113/03/07,國民及學前教育行政及督導-對各縣市政府之補助,112學年度社區教保資源中心業務第2期經費,新竹縣政府,"227,008"
113/03/07,國民及學前教育行政及督導-對各縣市政府之補助,112學年度社區教保資源中心業務第2期經費,新竹縣政府,"14,910"
113/03/07,國民及學前教育行政及督導-對各縣市政府之補助,113年度全國高級中等學校學生校園刊物印製實施計畫,彰化縣政府,"25,500"
113/03/07,國民及學前教育行政及督導-對各縣市政府之補助,113年度全國高級中等學校學生校園刊物印製實施計畫,雲林縣政府,"54,000"
113/03/07,國民及學前教育行政及督導-對各縣市政府之補助,113年度實施新住民子女教育經費,金門縣政府,"125,975"
113/03/07,國民及學前教育行政及督導-對各縣市政府之補助,113年度實施新住民子女教育經費,花蓮縣政府,"44,423"
113/03/07,國民及學前教育行政及督導-對各縣市政府之補助,113年度實施新住民子女教育經費,臺東縣政府,"117,621"
113/03/07,國民及學前教育行政及督導-對各縣市政府之補助,113年度高級中等學校充實教學及實習設備計畫-一般科目(資),臺東縣政府,"477,000"
113/03/07,國民及學前教育行政及督導-對特種基金之補助,112學年度獎勵無償提供場地、設施及設備辦理職場互助教保服務中心第2期款,臺灣土地銀行,"150,000"
113/03/07,國民及學前教育行政及督導-對特種基金之補助,112學年度獎勵無償提供場地、設施及設備辦理職場互助教保服務中心第2期款,臺灣土地銀行,"900,000"
113/03/07,國民及學前教育行政及督導-對直轄市政府之補助,113年原住民學生課後扶植計畫,原住民族委員會,"4,188,590"
113/03/07,國民及學前教育行政及督導-對各縣市政府之補助,113年原住民學生課後扶植計畫,原住民族委員會,"26,341,060"
113/03/07,國民及學前教育行政及督導-對直轄市政府之補助,113年度新住民子女教育經費,高雄市政府教育局,"363,945"
113/03/07,國民及學前教育行政及督導-對直轄市政府之補助,113年度新住民子女教育經費,臺北市政府教育局,"1,020,473"
113/03/07,國民及學前教育行政及督導-對直轄市政府之補助,113年度華語文學習扶助經費,高雄市政府教育局,"1,594,040"
113/03/07,國民及學前教育行政及督導-對特種基金之補助,112學年度高級中等學校本土語文(閩南語、閩東語、客語文)課程開課經費-第2期款,國立關西高級中學,"39,884"
113/03/07,國民及學前教育行政及督導-對特種基金之補助,多元評量嵌入教學以促進科學學習表現與數位學習能力計畫-強化教材研發實踐社群運作與分享機制第2期款,國立臺灣師範大學,"1,976,770"
113/03/07,國民及學前教育行政及督導-對直轄市政府之補助,112年度吉慶國小附設幼兒園充實及改善教學環境設施設備經費,新北市政府教育局,"45,630"
113/03/07,國民及學前教育行政及督導-對直轄市政府之補助,112學年度幼兒園英語融入式課程試辦計畫第2期款,新北市政府教育局,"232,902"
113/03/07,國民及學前教育行政及督導-對直轄市政府之補助,112學年度教保服務人員專業發展社群計畫第2期款,新北市政府教育局,"596,333"
113/03/07,國民及學前教育行政及督導-對直轄市政府之補助,112年度偏遠地區學校及非山非市學校(非原住民學校)設施設備計畫第3期款,臺中市政府教育局,"5,001,056"
113/03/07,國民及學前教育行政及督導-對直轄市政府之補助,112學年度偏遠地區學校國中合理教師員額事項經費第2期款,臺中市政府教育局,"12,178,488"
113/03/07,國民及學前教育行政及督導-對直轄市政府之補助,112學年度偏遠地區學校國中合理教師員額事項經費第2期款,臺中市政府教育局,"2,836,512"
113/03/07,國民及學前教育行政及督導-對直轄市政府之補助,112學年度學前教育階段專業團隊專業人員及助理人員第2期款,臺北市政府教育局,"5,610,000"
113/03/07,國民及學前教育行政及督導-對直轄市政府之補助,112學年度學前教育階段專業團隊專業人員及助理人員第2期款,高雄市政府教育局,"5,808,000"
113/03/07,國民及學前教育行政及督導-對直轄市政府之補助,112學年度獎勵無償提供場地、設施及設備辦理非營利幼兒園第2期款,高雄市政府教育局,"19,155,700"
113/03/07,國民及學前教育行政及督導-對直轄市政府之補助,112學年度獎勵無償提供場地、設施及設備辦理非營利幼兒園第2期款,高雄市政府教育局,"15,246,800"
113/03/07,國民及學前教育行政及督導-對直轄市政府之補助,112學年度準公共幼兒園未因調薪而調整收費者之「園務營運費」第2期款,新北市政府教育局,"10,979,036"
113/03/07,國民及學前教育行政及督導-對直轄市政府之補助,112學年度準公共幼兒園未因調薪而調整收費者之「園務營運費」第2期款,臺中市政府教育局,"5,266,166"
113/03/07,國民及學前教育行政及督導-對直轄市政府之補助,高級中等學校辦理交通安全教育課程活動實施計畫,新北市政府教育局,"30,000"
113/03/07,國民及學前教育行政及督導-對直轄市政府之補助,112年度教保服務人員及助理人員在職進修照顧服務知能,臺北市政府教育局,"4,250"
113/03/07,國民及學前教育行政及督導-對直轄市政府之補助,112學年度原住民藝能班經費,新北市政府教育局,"383,040"
113/03/07,國民及學前教育行政及督導-對特種基金之補助,112學年度第2學期高級中等學校原住民族教育校訂課程推廣計畫,國立新竹高級中學,"100,000"
113/03/07,國民及學前教育行政及督導-對直轄市政府之補助,113年度實施新住民子女華語文學習扶助課程,臺中市政府教育局,"744,157"
113/03/07,國民及學前教育行政及督導-對特種基金之補助,112學年度高級中等學校臺灣手語課程開課經費(第2期),國立新竹高級中學,"50,882"
113/03/07,國民及學前教育行政及督導-對直轄市政府之補助,112學年度高級中等學校臺灣手語課程開課經費(第2期),新北市政府教育局,"784,871"
113/03/07,國民及學前教育行政及督導-對特種基金之補助,112學年度高級中等學校原住民族語課程開課經費(第2期),國立新竹高級中學,"33,046"
113/03/07,國民及學前教育行政及督導-對特種基金之補助,112學年度第2學期辦理兒童課後照顧服務經費,國立和美實驗學校,"510,537"
113/03/07,國民及學前教育行政及督導-對直轄市政府之補助,113年度實施新住民子女教育經費,臺中市政府教育局,"1,149,705"
113/03/07,國民及學前教育行政及督導-對直轄市政府之補助,大額通報教補3月11日-113年臺中市政府承接教育部國、私立高級中等學校功能調整及業務移撥所需經費-3,臺中市政府教育局,"209,520,000"
113/03/07,國民及學前教育行政及督導-政府機關間之補助,112學年度獎勵無償提供場地、設施及設備辦理職場互助教保服務中心第2期款,臺灣南投地方檢察署,"160,000"
113/03/07,國民及學前教育行政及督導-政府機關間之補助,112學年度獎勵無償提供場地、設施及設備辦理職場互助教保服務中心第2期款,臺灣南投地方檢察署,"120,000"
113/03/07,國民及學前教育行政及督導-對私校之獎助,113年度高級中等學校充實教學及實習設備計畫-一般科目,臺南市六信高級中學,"32,640"
113/03/07,國民及學前教育行政及督導-對私校之獎助,113年度高級中等學校充實教學及實習設備計畫-一般科目,台南市德光高級中學,"48,800"
113/03/07,國民及學前教育行政及督導-對特種基金之補助,113年臨時約聘(僱)職業輔導員經費,國立臺南特殊教育學校,"599,860"
113/03/07,國民及學前教育行政及督導-對特種基金之補助,112學年度第2學期辦理兒童課後照顧服務經費,國立南投特殊教育學校,"877,045"
113/03/07,國民及學前教育行政及督導-對特種基金之補助,112學年度第2學期辦理兒童課後照顧服務經費,國立彰化特殊教育學校,"1,045,612"
113/03/07,國民及學前教育行政及督導-對學生之獎助,111學年度第2學期及112學年度第1學期高級中等學校學生免學費,慈濟大學附屬高級中學,"6,623"
113/03/07,國民及學前教育行政及督導-對私校之獎助,112學年度高級中等學校及校外會(聯絡處)學務創新人力第2期款,基隆市私立二信高級中學,"1,600,000"
113/03/07,國民及學前教育行政及督導-對私校之獎助,112學年度高級中等學校及校外會(聯絡處)學務創新人力第2期款,嘉義縣私立協同高級中學,"800,000"
113/03/07,國民及學前教育行政及督導-對學生之獎助,112學年度第2學期各校身心障礙學生及身心障礙人士子女就學費用減免,臺南市私立明達高級中學,"69,742"
113/03/07,國民及學前教育行政及督導-對學生之獎助,112學年度第2學期高級中等學校特殊境遇家庭子女孫子女學雜費減免補助,新竹市私立磐石高級中學,"7,602"
113/03/07,國民及學前教育行政及督導-對學生之獎助,112學年度第2學期高級中等學校低收入戶及中低收入戶學生學雜費減免補助,臺南市私立港明高級中學,"90,120"
113/03/07,國民及學前教育行政及督導-對學生之獎助,112學年度第2學期高級中等學校低收入戶及中低收入戶學生學雜費減免補助,臺南市私立港明高級中學,"11,256"
113/03/07,國民及學前教育行政及督導-對私校之獎助,113年度高級中等學校充實教學及實習設備計畫-一般科目,彰化縣私立精誠高級中學,"123,200"
113/03/07,國民及學前教育行政及督導-對私校之獎助,113年度高級中等學校充實教學及實習設備計畫-一般科目,臺南市私立港明高級中學,"75,200"
113/03/07,國民及學前教育行政及督導-對私校之獎助,113年度高級中等學校充實教學及實習設備計畫-一般科目,新竹市私立磐石高級中學,"20,800"
113/03/07,國民及學前教育行政及督導-對私校之獎助,113年度高級中等學校充實教學及實習設備計畫-一般科目,嘉義市私立嘉華高級中學,"39,920"
113/03/07,國民及學前教育行政及督導-對私校之獎助,113年度高級中等學校充實教學及實習設備計畫-一般科目,臺南市私立慈濟高級中學,"38,160"
113/03/07,國民及學前教育行政及督導-對學生之獎助,111學年度第2學期及112學年度第1學期高級中等學校學生免學費,苗栗縣私立建臺高級中學,"6,623"
113/03/07,國民及學前教育行政及督導-對學生之獎助,111學年度第2學期及112學年度第1學期高級中等學校學生免學費,嘉義市私立嘉華高級中學,"17,800"
113/03/07,國民及學前教育行政及督導-對學生之獎助,111學年度第2學期及112學年度第1學期高級中等學校學生免學費,臺南市私立瀛海高級中學,"25,941"
113/03/07,國民及學前教育行政及督導-對學生之獎助,111學年度第2學期及112學年度第1學期高級中等學校學生免學費,臺南市私立瀛海高級中學,"18,271,773"
113/03/07,國民及學前教育行政及督導-對學生之獎助,111學年度第2學期及112學年度第1學期高級中等學校學生免學費,台南市私立長榮高級中學,"24,423"
113/03/07,國民及學前教育行政及督導-對學生之獎助,111學年度第2學期及112學年度第1學期高級中等學校學生免學費,台南市私立長榮高級中學,"6,623"
113/03/07,國民及學前教育行政及督導-對國內團體之捐助,113年學思達教育推廣計畫第2期款,財團法人學思達教育基金會,"2,182,464"
113/03/07,國民及學前教育行政及督導-對特種基金之補助,112學年度國立學校附設幼兒園導師職務加給差額及教保費第2期款,國立臺北教育大學附設實小,"108,000"
113/03/07,國民及學前教育行政及督導-對國內團體之捐助,「離不開我的好朋友」愛滋防治教育宣導動畫影片製作與愛滋防治教學LULU-BOX互動學習創新教案模組開發計畫,財團法人台灣紅絲帶基金會,"50,200"
113/03/07,國民及學前教育行政及督導-對特種基金之補助,112學年度高級中等學校穩定就學措施計畫,國立花蓮高級農業職業學校,"160,000"
113/03/07,國民及學前教育行政及督導-對特種基金之補助,112學年度高級中等學校原住民族語課程開課經費(第2期),國立臺東專科學校校務基金,"149,496"
113/03/07,國民及學前教育行政及督導-對特種基金之補助,112學年度技術型及綜合型高級中等學校十二年國民基本教育課程綱要前導學校工作計畫,國立花蓮高級農業職業學校,"750,000"
113/03/07,國民及學前教育行政及督導-對特種基金之補助,112學年度技術型及綜合型高級中等學校十二年國民基本教育課程綱要前導學校工作計畫,國立花蓮高級工業職業學校,"750,000"
113/03/07,國民及學前教育行政及督導-對學生之獎助,112學年度第2學期高級中等學校低收入戶及中低收入戶學生學雜費減免補助,南投縣私立弘明實驗高級中學,"30,020"
113/03/07,國民及學前教育行政及督導-對學生之獎助,112學年度第2學期高級中等學校低收入戶及中低收入戶學生學雜費減免補助,嘉義市私立宏仁女子高級中學,"2,772"
113/03/07,國民及學前教育行政及督導-對學生之獎助,112學年度第2學期高級中等學校低收入戶及中低收入戶學生學雜費減免補助,南投縣私立弘明實驗高級中學,"2,772"
113/03/07,國民及學前教育行政及督導-對私校之獎助,112學年度高級中等學校本土語文(閩南語、閩東語、客語文)課程開課經費-第2期款,臺南市天主教聖功女子高級中學,"18,486"
113/03/07,國民及學前教育行政及督導-對國內團體之捐助,113年度民間團體辦理國民中小學閱讀推動計畫經費,社團法人台灣前瞻閱讀發展協會,"120,000"
113/03/07,國民及學前教育行政及督導-對特種基金之補助,112學年度高級中等學校臺灣手語課程開課經費(第2期),國立北斗高級家事商業職業學校,"25,532"
113/03/07,國民及學前教育行政及督導-對私校之獎助,112學年度高級中等學校臺灣手語課程開課經費(第2期),臺南市天主教聖功女子高級中學,"37,022"
113/03/07,國民及學前教育行政及督導-對私校之獎助,112學年度高級中等學校本土語文(閩南語、閩東語、客語文)課程開課經費(第2期),私立培德高級工業家事職業學校,"23,402"
113/03/07,國民及學前教育行政及督導-對特種基金之補助,112學年度高級中等學校原住民族語課程開課經費(第2期),國立中山大學附屬國光高級中學,"29,724"
113/03/07,國民及學前教育行政及督導-對學生之獎助,112學年度第2學期高級中等學校低收入戶及中低收入戶學生學雜費減免補助,臺灣省雲林縣私立巨人高級中學,"58,720"
113/03/07,國民及學前教育行政及督導-對私校之獎助,113年度高級中等學校充實教學及實習設備計畫-一般科目,台灣省基隆市私立聖心高級中學,"43,680"
113/03/07,國民及學前教育行政及督導-對私校之獎助,113年度高級中等學校充實教學及實習設備計畫-一般科目,臺南市天主教聖功女子高級中學,"43,680"
113/03/07,國民及學前教育行政及督導-對學生之獎助,111學年度第2學期及112學年度第1學期高級中等學校學生免學費,臺南市天主教聖功女子高級中學,"31,046"
113/03/07,國民及學前教育行政及督導-對私校之獎助,112學年度第2學期高職優質化輔助方案(資),彰化縣私立大慶高級商工職業學校,"148,000"
113/03/07,國民及學前教育行政及督導-對私校之獎助,112學年度第2學期高職優質化輔助方案,彰化縣私立大慶高級商工職業學校,"347,000"
113/03/07,國民及學前教育行政及督導-對學生之獎助,112學年度第2學期各校身心障礙學生及身心障礙人士子女就學費用減免,財團法人雲林縣私立正心高級中學,"179,273"
113/03/07,國民及學前教育行政及督導-對學生之獎助,112學年度第2學期各校身心障礙學生及身心障礙人士子女就學費用減免,臺南市私立育德工業家事職業學校,"167,691"
113/03/07,國民及學前教育行政及督導-對學生之獎助,112學年度第2學期高級中等學校低收入戶及中低收入戶學生學雜費減免補助,臺東縣私立公東高級工業職業學校,"879,130"
113/03/07,國民及學前教育行政及督導-對學生之獎助,112學年度第2學期高級中等學校低收入戶及中低收入戶學生學雜費減免補助,雲林縣私立大德工業商業職業學校,"89,235"
113/03/07,國民及學前教育行政及督導-對學生之獎助,112學年度第2學期高級中等學校低收入戶及中低收入戶學生學雜費減免補助,雲林縣私立大德工業商業職業學校,"1,183,466"
113/03/07,國民及學前教育行政及督導-對學生之獎助,111學年度第2學期及112學年度第1學期高級中等學校學生免學費,財團法人花蓮縣私立海星高級中學,"24,423"
113/03/07,國民及學前教育行政及督導-對學生之獎助,111學年度第2學期及112學年度第1學期高級中等學校學生免學費,高雄縣私立高苑高級工商職業學校,"18,183"
113/03/07,國民及學前教育行政及督導-對學生之獎助,111學年度第2學期及112學年度第1學期高級中等學校學生免學費,財團法人雲林縣私立正心高級中學,"24,423"
113/03/07,國民及學前教育行政及督導-對私校之獎助,112學年度第2學期高職優質化輔助方案(資),嘉義市私立東吳高級工業家事職業學校,"345,000"
113/03/07,國民及學前教育行政及督導-對私校之獎助,112學年度第2學期高職優質化輔助方案(資),屏榮學校財團法人屏東縣屏榮高級中學,"343,000"
113/03/07,國民及學前教育行政及督導-對私校之獎助,112學年度第2學期高職優質化輔助方案,嘉義市私立東吳高級工業家事職業學校,"805,000"
113/03/07,國民及學前教育行政及督導-對私校之獎助,112學年度第2學期高職優質化輔助方案,屏榮學校財團法人屏東縣屏榮高級中學,"802,000"
113/03/07,國民及學前教育行政及督導-對學生之獎助,112學年度第2學期高級中等學校低收入戶及中低收入戶學生學雜費減免補助,屏榮學校財團法人屏東縣屏榮高級中學,"2,621,920"
113/03/07,國民及學前教育行政及督導-對私校之獎助,113年度高級中等學校充實教學及實習設備計畫-一般科目,財團法人台南市私立長榮女子高級中學,"27,200"
113/03/07,國民及學前教育行政及督導-對學生之獎助,111學年度第2學期及112學年度第1學期高級中等學校學生免學費,財團法人台南市私立長榮女子高級中學,"24,423"
113/03/07,國民及學前教育行政及督導-對學生之獎助,112學年度第2學期各校身心障礙學生及身心障礙人士子女就學費用減免,佛光山學校財團法人高雄市普門高級中學,"132,237"
113/03/07,國民及學前教育行政及督導-對學生之獎助,112學年度第2學期高級中等學校低收入戶及中低收入戶學生學雜費減免補助,台灣省台南市私立慈幼高級工商職業學校,"698,050"
113/03/07,國民及學前教育行政及督導-對學生之獎助,112學年度第2學期高級中等學校低收入戶及中低收入戶學生學雜費減免補助,台灣省台南市私立慈幼高級工商職業學校,"179,784"
113/03/07,國民及學前教育行政及督導-對私校之獎助,113年度高級中等學校充實教學及實習設備計畫-一般科目,方濟會學校財團法人臺南市黎明高級中學,"32,320"
113/03/07,國民及學前教育行政及督導-政府機關間之補助,112學年度獎勵無償提供場地、設施及設備辦理非營利幼兒園第2期款,國軍退除役官兵輔導委員會馬蘭榮譽國民之家,"350,000"
113/03/07,國民及學前教育行政及督導-政府機關間之補助,112學年度獎勵無償提供場地、設施及設備辦理非營利幼兒園第2期款,國軍退除役官兵輔導委員會馬蘭榮譽國民之家,"280,000"
113/03/07,國民及學前教育行政及督導-對私校之獎助,112學年度高級中等學校及校外會(聯絡處)學務創新人力第2期款,中山學校財團法人高雄市中山高級工商職業學校,"1,600,000"
113/03/07,國民及學前教育行政及督導-對學生之獎助,112學年度第2學期高級中等學校低收入戶及中低收入戶學生學雜費減免補助,崑山國際學校財團法人臺南市崑山高級中等學校,"60,340"
113/03/07,國民及學前教育行政及督導-對學生之獎助,112學年度第2學期高級中等學校低收入戶及中低收入戶學生學雜費減免補助,崑山國際學校財團法人臺南市崑山高級中等學校,"5,724"
113/03/07,國民及學前教育行政及督導-對私校之獎助,113年度高級中等學校充實教學及實習設備計畫-一般科目,上騰學校財團法人花蓮縣上騰高級工商職業學校,"10,400"
113/03/07,國民及學前教育行政及督導-對私校之獎助,112學年度高級中等學校及校外會(聯絡處)學務創新人力第2期款,財團法人台灣省苗栗縣私立中興高級商工職業學校,"800,000"
113/03/08,國民及學前教育行政及督導-對各縣市政府之補助,員林市立重劃區幼兒園園舍興建工程第1期款,彰化縣政府,"9,402,000"
113/03/08,國民及學前教育行政及督導-對各縣市政府之補助,新竹幼兒園新建公共化幼兒園園舍工程第1期款,新竹市政府,"24,904,000"
113/03/08,國民及學前教育行政及督導-對各縣市政府之補助,112學年度社區教保資源中心業務第2期款,苗栗縣政府,"461,613"
113/03/08,國民及學前教育行政及督導-對各縣市政府之補助,112學年度社區教保資源中心業務第2期款,苗栗縣政府,"49,966"
113/03/08,國民及學前教育行政及督導-對各縣市政府之補助,112學年度社區教保資源中心業務第2期款,嘉義縣政府,"1,038,869"
113/03/08,國民及學前教育行政及督導-對各縣市政府之補助,112學年度社區教保資源中心業務第2期款,嘉義縣政府,"50,176"
113/03/08,國民及學前教育行政及督導-對各縣市政府之補助,112學年度社區教保資源中心業務第2期款,彰化縣政府,"324,124"
113/03/08,國民及學前教育行政及督導-對各縣市政府之補助,112學年度社區教保資源中心業務第2期款,臺東縣政府,"36,820"
113/03/08,國民及學前教育行政及督導-對各縣市政府之補助,112學年度社區教保資源中心業務第2期款,臺東縣政府,"611,567"
113/03/08,國民及學前教育行政及督導-對各縣市政府之補助,112學年度社區教保資源中心業務第2期款,屏東縣政府,"31,892"
113/03/08,國民及學前教育行政及督導-對各縣市政府之補助,112學年度社區教保資源中心業務第2期款,屏東縣政府,"513,555"
113/03/08,國民及學前教育行政及督導-對各縣市政府之補助,113年度學前特殊教育專業知能研習經費,基隆市政府,"440,543"
113/03/08,國民及學前教育行政及督導-對各縣市政府之補助,113年度學前特殊教育專業知能研習經費,新竹縣政府,"319,508"
113/03/08,國民及學前教育行政及督導-對各縣市政府之補助,113年度學前特殊教育專業知能研習經費,金門縣政府,"429,176"
113/03/08,國民及學前教育行政及督導-對各縣市政府之補助,113年度學前特殊教育專業知能研習經費,屏東縣政府,"383,624"
113/03/08,國民及學前教育行政及督導-對各縣市政府之補助,113年度學前特殊教育專業知能研習經費,新竹市政府,"343,500"
113/03/08,國民及學前教育行政及督導-對各縣市政府之補助,113年度學前特殊教育專業知能研習經費,花蓮縣政府,"296,556"
113/03/08,國民及學前教育行政及督導-對直轄市政府之補助,113年度學前特殊教育專業知能研習經費,桃園市政府,"1,271,876"
113/03/08,國民及學前教育行政及督導-對各縣市政府之補助,113年度教保研習經費,嘉義縣政府,"2,135,885"
113/03/08,國民及學前教育行政及督導-對各縣市政府之補助,113年度教保研習經費,花蓮縣政府,"1,147,296"
113/03/08,國民及學前教育行政及督導-對直轄市政府之補助,112年度提供私立幼兒園教保服務人員在職進修特教專業知能及進用專任合格學前特教教師經費,桃園市政府,"30,000"
113/03/08,國民及學前教育行政及督導-對各縣市政府之補助,112年度提供私立幼兒園教保服務人員在職進修特教專業知能及進用專任合格學前特教教師經費,臺東縣政府,"30,000"
113/03/08,國民及學前教育行政及督導-對各縣市政府之補助,112年度提供私立幼兒園教保服務人員在職進修特教專業知能及進用專任合格學前特教教師經費,嘉義縣政府,"10,000"
113/03/08,國民及學前教育行政及督導-對各縣市政府之補助,112年度提供私立幼兒園教保服務人員在職進修特教專業知能及進用專任合格學前特教教師經費,新竹市政府,"80,000"
113/03/08,國民及學前教育行政及督導-對各縣市政府之補助,112年度提供私立幼兒園教保服務人員在職進修特教專業知能及進用專任合格學前特教教師經費,苗栗縣政府,"40,000"
113/03/08,國民及學前教育行政及督導-對各縣市政府之補助,112年度提供私立幼兒園教保服務人員在職進修特教專業知能及進用專任合格學前特教教師經費,嘉義市政府,"50,000"
113/03/08,國民及學前教育行政及督導-對各縣市政府之補助,112年度提供私立幼兒園教保服務人員在職進修特教專業知能及進用專任合格學前特教教師經費,彰化縣政府,"30,000"
113/03/08,國民及學前教育行政及督導-對各縣市政府之補助,112年度提供私立幼兒園教保服務人員在職進修特教專業知能及進用專任合格學前特教教師經費,雲林縣政府,"90,000"
113/03/08,國民及學前教育行政及督導-對各縣市政府之補助,112年度提供私立幼兒園教保服務人員在職進修特教專業知能及進用專任合格學前特教教師經費,屏東縣政府,"40,000"
113/03/08,國民及學前教育行政及督導-對各縣市政府之補助,大額通報教補3月12日-112學年度一般地區學校推動國小合理教師員額事項所需經費第2期款,花蓮縣政府,"21,834,624"
113/03/08,國民及學前教育行政及督導-對各縣市政府之補助,大額通報教補3月12日-112學年度一般地區學校推動國小合理教師員額事項所需經費第2期款,花蓮縣政府,"12,480,159"
113/03/08,國民及學前教育行政及督導-對各縣市政府之補助,大額通報教補3月12日-112學年度一般地區學校推動國小合理教師員額事項所需經費第2期款,嘉義市政府,"28,640,640"
113/03/08,國民及學前教育行政及督導-對各縣市政府之補助,大額通報教補3月12日-112學年度一般地區學校推動國小合理教師員額事項所需經費第2期款,嘉義市政府,"14,430,732"
113/03/08,國民及學前教育行政及督導-對各縣市政府之補助,大額通報教補3月12日-112學年度一般地區學校推動國小合理教師員額事項所需經費第2期款,宜蘭縣政府,"47,849,088"
113/03/08,國民及學前教育行政及督導-對各縣市政府之補助,大額通報教補3月12日-112學年度一般地區學校推動國小合理教師員額事項所需經費第2期款,宜蘭縣政府,"37,570,900"
113/03/08,國民及學前教育行政及督導-對各縣市政府之補助,112學年度國民小學及國民中學活化教學與多元學習計畫第2期款,南投縣政府,"1,585,308"
113/03/08,國民及學前教育行政及督導-對各縣市政府之補助,112學年度國民小學及國民中學活化教學與多元學習計畫第2期款,南投縣政府,"12,428,088"
113/03/08,國民及學前教育行政及督導-對各縣市政府之補助,職場互助教保服務中心112學年度配置助理人員及早期療育專業團隊專業人員輔導第2期款,屏東縣政府,"278,148"
113/03/08,國民及學前教育行政及督導-對各縣市政府之補助,112學年度準公共幼兒園未因調薪而調整收費者之「園務營運費」經費,基隆市政府,"583,334"
113/03/08,國民及學前教育行政及督導-對各縣市政府之補助,112學年度我國少子女化對策計畫之各項幼生就學補助及育兒津貼等經費第4期款,臺東縣政府,"63,622,500"
113/03/08,國民及學前教育行政及督導-對各縣市政府之補助,112學年度非營利幼兒園配置助理人員第2期款,臺東縣政府,"975,779"
113/03/08,國民及學前教育行政及督導-對直轄市政府之補助,113學年度健康促進學校計畫經費,桃園市政府,"2,200,800"
113/03/08,國民及學前教育行政及督導-對各縣市政府之補助,113學年度健康促進學校計畫經費,宜蘭縣政府,"1,031,472"
113/03/08,國民及學前教育行政及督導-對各縣市政府之補助,113學年度健康促進學校計畫經費,南投縣政府,"993,600"
113/03/08,國民及學前教育行政及督導-對各縣市政府之補助,113學年度健康促進學校計畫經費,花蓮縣政府,"827,968"
113/03/08,國民及學前教育行政及督導-對各縣市政府之補助,113學年度健康促進學校計畫經費,澎湖縣政府,"327,840"
113/03/08,國民及學前教育行政及督導-對各縣市政府之補助,113學年度健康促進學校計畫經費,澎湖縣政府,"372,832"
113/03/08,國民及學前教育行政及督導-對各縣市政府之補助,113學年度健康促進學校計畫經費,新竹市政府,"1,150,312"
113/03/08,國民及學前教育行政及督導-對各縣市政府之補助,113學年度健康促進學校計畫經費,嘉義市政府,"854,040"
113/03/08,國民及學前教育行政及督導-對各縣市政府之補助,113學年度健康促進學校計畫經費,金門縣政府,"612,648"
113/03/08,國民及學前教育行政及督導-對各縣市政府之補助,113學年度健康促進學校計畫經費,連江縣政府,"512,000"
113/03/08,國民及學前教育行政及督導-對各縣市政府之補助,113年度友善提供多元生理用品及推動月經平權計畫經費,基隆市政府,"3,343,200"
113/03/08,國民及學前教育行政及督導-對各縣市政府之補助,113年度友善提供多元生理用品及推動月經平權計畫經費,金門縣政府,"523,200"
113/03/08,國民及學前教育行政及督導-對各縣市政府之補助,113年度友善提供多元生理用品及推動月經平權計畫經費,苗栗縣政府,"3,805,600"
113/03/08,國民及學前教育行政及督導-對各縣市政府之補助,113年度友善提供多元生理用品及推動月經平權計畫經費,臺東縣政府,"4,463,200"
113/03/08,國民及學前教育行政及督導-對各縣市政府之補助,113年度友善提供多元生理用品及推動月經平權計畫經費,屏東縣政府,"10,008,800"
113/03/08,國民及學前教育行政及督導-對直轄市政府之補助,113學年度新設四張犁非營利幼兒園建築物裝修環境改善及購置教學設備經費,臺中市政府教育局,"349,532"
113/03/08,國民及學前教育行政及督導-對直轄市政府之補助,臺北考區113年國中教育會考試務籌辦計畫第2期款,臺北市政府教育局,"16,100,920"
113/03/08,國民及學前教育行政及督導-對直轄市政府之補助,臺北考區113年國中教育會考試務籌辦計畫第2期款,臺北市政府教育局,"191,780"
113/03/08,國民及學前教育行政及督導-對直轄市政府之補助,113年度學前特殊教育專業知能研習經費,臺中市政府教育局,"503,242"
113/03/08,國民及學前教育行政及督導-對直轄市政府之補助,113年度學前特殊教育專業知能研習經費,高雄市政府教育局,"1,179,670"
113/03/08,國民及學前教育行政及督導-對直轄市政府之補助,113年度教保研習經費,臺北市政府教育局,"1,746,846"
113/03/08,國民及學前教育行政及督導-對直轄市政府之補助,113年度教保研習經費,臺南市政府教育局,"2,815,500"
113/03/08,國民及學前教育行政及督導-對直轄市政府之補助,113年度教保研習經費,新北市政府教育局,"3,283,524"
113/03/08,國民及學前教育行政及督導-對直轄市政府之補助,112年度提供私立幼兒園教保服務人員在職進修特教專業知能及進用專任合格學前特教教師經費,新北市政府教育局,"103,200"
113/03/08,國民及學前教育行政及督導-對直轄市政府之補助,112年度提供私立幼兒園教保服務人員在職進修特教專業知能及進用專任合格學前特教教師經費,臺北市政府教育局,"51,000"
113/03/08,國民及學前教育行政及督導-對直轄市政府之補助,112年度提供私立幼兒園教保服務人員在職進修特教專業知能及進用專任合格學前特教教師經費,高雄市政府教育局,"180,000"
113/03/08,國民及學前教育行政及督導-對直轄市政府之補助,112年度提供私立幼兒園教保服務人員在職進修特教專業知能及進用專任合格學前特教教師經費,臺南市政府教育局,"290,000"
113/03/08,國民及學前教育行政及督導-對直轄市政府之補助,改善無障礙校園環境計畫-新建無障礙電梯經費,臺南市政府教育局,"2,115,494"
113/03/08,國民及學前教育行政及督導-對直轄市政府之補助,111年度改善無障礙校園環境計畫(新建無障礙電梯),新北市政府教育局,"3,000,000"
113/03/08,國民及學前教育行政及督導-對直轄市政府之補助,113年度高級中等學校充實教學及實習設備計畫-一般科目,新北市政府教育局,"2,686,004"
113/03/08,國民及學前教育行政及督導-對直轄市政府之補助,113年度高級中等學校充實教學及實習設備計畫-一般科目,新北市政府教育局,"25,605,816"
113/03/08,國民及學前教育行政及督導-對特種基金之補助,112學年度第2學期辦理兒童課後照顧服務經費,國立嘉義特教學校,"1,450,061"
113/03/08,國民及學前教育行政及督導-對特種基金之補助,113學年度健康促進學校計畫經費,國立斗六高級中學,"45,000"
113/03/08,國民及學前教育行政及督導-對特種基金之補助,113學年度健康促進學校計畫經費,國立台東高級中學,"30,000"
113/03/08,國民及學前教育行政及督導-對直轄市政府之補助,113學年度健康促進學校計畫經費,新北市政府教育局,"3,299,520"
113/03/08,國民及學前教育行政及督導-對直轄市政府之補助,113學年度健康促進學校計畫經費,臺北市政府教育局,"1,887,872"
113/03/08,國民及學前教育行政及督導-對直轄市政府之補助,113學年度健康促進學校計畫經費,臺中市政府教育局,"2,313,600"
113/03/08,國民及學前教育行政及督導-對直轄市政府之補助,113學年度健康促進學校計畫經費,臺南市政府教育局,"2,273,040"
113/03/08,國民及學前教育行政及督導-對直轄市政府之補助,113學年度健康促進學校計畫經費,高雄市政府教育局,"2,741,848"
113/03/08,國民及學前教育行政及督導-對直轄市政府之補助,113年度友善提供多元生理用品及推動月經平權計畫經費,臺中市政府教育局,"29,673,600"
113/03/08,國民及學前教育行政及督導-對特種基金之補助,113年度高級中等以下學校友善提供多元生理用品及推動月經平權計畫,國立東石高級中學,"132,000"
113/03/08,國民及學前教育行政及督導-對特種基金之補助,113年度高級中等以下學校友善提供多元生理用品及推動月經平權計畫,國立新營高級中學,"108,000"
113/03/08,國民及學前教育行政及督導-對特種基金之補助,113年度高級中等以下學校友善提供多元生理用品及推動月經平權計畫,國立鳳山高級中學,"38,400"
113/03/08,國民及學前教育行政及督導-對特種基金之補助,113年度高級中等以下學校友善提供多元生理用品及推動月經平權計畫,國立岡山高級中學,"120,000"
113/03/08,國民及學前教育行政及督導-對特種基金之補助,113年度高級中等以下學校友善提供多元生理用品及推動月經平權計畫,國立鳳新高級中學,"105,600"
113/03/08,國民及學前教育行政及督導-對特種基金之補助,113年度高級中等以下學校友善提供多元生理用品及推動月經平權計畫,國立屏北高級中學,"129,600"
113/03/08,國民及學前教育行政及督導-對特種基金之補助,113年度高級中等以下學校友善提供多元生理用品及推動月經平權計畫,國立華僑高級中學,"115,200"
113/03/08,國民及學前教育行政及督導-對特種基金之補助,113年度高級中等以下學校友善提供多元生理用品及推動月經平權計畫,國立苑裡高級中學,"105,600"
113/03/08,國民及學前教育行政及督導-對特種基金之補助,113年度高級中等以下學校友善提供多元生理用品及推動月經平權計畫,國立善化高級中學,"31,200"
113/03/08,國民及學前教育行政及督導-對特種基金之補助,113年度高級中等以下學校友善提供多元生理用品及推動月經平權計畫,國立玉里高級中學,"321,600"
113/03/08,國民及學前教育行政及督導-對特種基金之補助,113年度高級中等以下學校友善提供多元生理用品及推動月經平權計畫,國立宜蘭高級中學,"26,400"
113/03/08,國民及學前教育行政及督導-對特種基金之補助,113年度高級中等以下學校友善提供多元生理用品及推動月經平權計畫,國立竹東高級中學,"60,000"
113/03/08,國民及學前教育行政及督導-對特種基金之補助,113年度高級中等以下學校友善提供多元生理用品及推動月經平權計畫,國立苗栗高級中學,"88,800"
113/03/08,國民及學前教育行政及督導-對特種基金之補助,113年度高級中等以下學校友善提供多元生理用品及推動月經平權計畫,國立員林高級中學,"252,000"
113/03/08,國民及學前教育行政及督導-對特種基金之補助,113年度高級中等以下學校友善提供多元生理用品及推動月經平權計畫,國立鹿港高級中學,"264,000"
113/03/08,國民及學前教育行政及督導-對特種基金之補助,113年度高級中等以下學校友善提供多元生理用品及推動月經平權計畫,國立南投高級中學,"81,600"
113/03/08,國民及學前教育行政及督導-對特種基金之補助,113年度高級中等以下學校友善提供多元生理用品及推動月經平權計畫,國立中興高級中學,"156,000"
113/03/08,國民及學前教育行政及督導-對特種基金之補助,113年度高級中等以下學校友善提供多元生理用品及推動月經平權計畫,國立竹山高級中學,"81,600"
113/03/08,國民及學前教育行政及督導-對特種基金之補助,113年度高級中等以下學校友善提供多元生理用品及推動月經平權計畫,國立基隆高級中學,"48,000"
113/03/08,國民及學前教育行政及督導-對特種基金之補助,113年度高級中等以下學校友善提供多元生理用品及推動月經平權計畫,國立新竹高級中學,"21,600"
113/03/08,國民及學前教育行政及督導-對特種基金之補助,113年度高級中等以下學校友善提供多元生理用品及推動月經平權計畫,國立新豐高級中學,"9,600"
113/03/08,國民及學前教育行政及督導-對特種基金之補助,113年度高級中等以下學校友善提供多元生理用品及推動月經平權計畫,國立關西高級中學,"55,200"
113/03/08,國民及學前教育行政及督導-對特種基金之補助,113年度高級中等以下學校友善提供多元生理用品及推動月經平權計畫,國立嘉義高級中學,"9,600"
113/03/08,國民及學前教育行政及督導-對特種基金之補助,113年度高級中等以下學校友善提供多元生理用品及推動月經平權計畫,國立臺灣戲曲學院,"153,600"
113/03/08,國民及學前教育行政及督導-對特種基金之補助,113年度高級中等以下學校友善提供多元生理用品及推動月經平權計畫,國立金門高級中學,"105,600"
113/03/08,國民及學前教育行政及督導-對特種基金之補助,113年度高級中等以下學校友善提供多元生理用品及推動月經平權計畫,國立嘉義特教學校,"52,800"
113/03/08,國民及學前教育行政及督導-對私校之獎助,112學年度健康促進學校計畫經費,台南市德光高級中學,"30,000"
113/03/08,國民及學前教育行政及督導-對私校之獎助,113年度高級中等以下學校友善提供多元生理用品及推動月經平權計畫,新竹縣仰德高級中學,"67,200"
113/03/08,國民及學前教育行政及督導-對特種基金之補助,112學年度職場互助教保服務中心業務費第2期款,中華郵政股份有限公司,"240,000"
113/03/08,國民及學前教育行政及督導-對特種基金之補助,112學年度獎勵無償提供場地、設施及設備辦理職場互助教保服務中心第2期款,中華郵政股份有限公司,"160,000"
113/03/08,國民及學前教育行政及督導-對特種基金之補助,112學年度獎勵無償提供場地、設施及設備辦理職場互助教保服務中心第2期款,中華郵政股份有限公司,"960,000"
113/03/08,國民及學前教育行政及督導-對特種基金之補助,112學年度第2學期辦理兒童課後照顧服務經費,國立基隆特殊教育學校,"368,333"
113/03/08,國民及學前教育行政及督導-對特種基金之補助,112學年度第2學期辦理兒童課後照顧服務經費,國立新竹特殊教育學校,"1,219,729"
113/03/08,國民及學前教育行政及督導-對學生之獎助,113年度補助校軍公教遺族與傷殘榮軍子女就學費用優待經費,慈濟大學附屬高級中學,"25,716"
113/03/08,國民及學前教育行政及督導-對特種基金之補助,113學年度健康促進學校計畫經費,國立基隆女子高級中學,"45,000"
113/03/08,國民及學前教育行政及督導-對特種基金之補助,113學年度健康促進學校計畫經費,國立台東女子高級中學,"30,000"
113/03/08,國民及學前教育行政及督導-對特種基金之補助,113年度高級中等以下學校友善提供多元生理用品及推動月經平權計畫,國立新港藝術高級中學,"16,800"
113/03/08,國民及學前教育行政及督導-對特種基金之補助,113年度高級中等以下學校友善提供多元生理用品及推動月經平權計畫,國立台東女子高級中學,"45,600"
113/03/08,國民及學前教育行政及督導-對特種基金之補助,113年度高級中等以下學校友善提供多元生理用品及推動月經平權計畫,國立卓蘭高級中等學校,"105,600"
113/03/08,國民及學前教育行政及督導-對特種基金之補助,113年度高級中等以下學校友善提供多元生理用品及推動月經平權計畫,國立基隆女子高級中學,"213,600"
113/03/08,國民及學前教育行政及督導-對特種基金之補助,113年度高級中等以下學校友善提供多元生理用品及推動月經平權計畫,國立台南家齊高級中學,"180,000"
113/03/08,國民及學前教育行政及督導-對特種基金之補助,113年度高級中等以下學校友善提供多元生理用品及推動月經平權計畫,國立臺南特殊教育學校,"40,800"
113/03/08,國民及學前教育行政及督導-對特種基金之補助,113年度高級中等以下學校友善提供多元生理用品及推動月經平權計畫,國立宜蘭特殊教育學校,"26,400"
113/03/08,國民及學前教育行政及督導-對特種基金之補助,113年度高級中等以下學校友善提供多元生理用品及推動月經平權計畫,國立屏東特殊教育學校,"24,000"
113/03/08,國民及學前教育行政及督導-對特種基金之補助,113年度高級中等以下學校友善提供多元生理用品及推動月經平權計畫,國立臺東大學附設實小,"26,400"
113/03/08,國民及學前教育行政及督導-對特種基金之補助,113年度高級中等以下學校友善提供多元生理用品及推動月經平權計畫,國立蘭陽女子高級中學,"216,000"
113/03/08,國民及學前教育行政及督導-對特種基金之補助,113年度高級中等以下學校友善提供多元生理用品及推動月經平權計畫,國立彰化女子高級中學,"206,400"
113/03/08,國民及學前教育行政及督導-對特種基金之補助,113年度高級中等以下學校友善提供多元生理用品及推動月經平權計畫,國立嘉義女子高級中學,"180,000"
113/03/08,國民及學前教育行政及督導-對學生之獎助,113年度補助校軍公教遺族與傷殘榮軍子女就學費用優待經費,基隆市私立二信高級中學,"28,528"
113/03/08,國民及學前教育行政及督導-對學生之獎助,113年度補助校軍公教遺族與傷殘榮軍子女就學費用優待經費,臺南市私立港明高級中學,"25,476"
113/03/08,國民及學前教育行政及督導-對學生之獎助,113年度補助校軍公教遺族與傷殘榮軍子女就學費用優待經費,台南市私立長榮高級中學,"25,476"
113/03/08,國民及學前教育行政及督導-對私校之獎助,112學年度健康促進學校計畫經費,基隆市私立二信高級中學,"30,000"
113/03/08,國民及學前教育行政及督導-對私校之獎助,112學年度健康促進學校計畫經費,新竹市私立磐石高級中學,"45,000"
113/03/08,國民及學前教育行政及督導-對私校之獎助,112學年度健康促進學校計畫經費,臺南市私立慈濟高級中學,"45,000"
113/03/08,國民及學前教育行政及督導-對私校之獎助,112學年度健康促進學校計畫經費,臺南市私立瀛海高級中學,"30,000"
113/03/08,國民及學前教育行政及督導-對私校之獎助,112學年度健康促進學校計畫經費,臺南市私立南光高級中學,"30,000"
113/03/08,國民及學前教育行政及督導-對私校之獎助,112學年度健康促進學校計畫經費,臺南市私立明達高級中學,"45,000"
113/03/08,國民及學前教育行政及督導-對私校之獎助,113年度高級中等以下學校友善提供多元生理用品及推動月經平權計畫,苗栗縣私立建臺高級中學,"100,800"
113/03/08,國民及學前教育行政及督導-對私校之獎助,113年度高級中等以下學校友善提供多元生理用品及推動月經平權計畫,臺南市私立新榮高級中學,"4,800"
113/03/08,國民及學前教育行政及督導-對私校之獎助,113年度高級中等以下學校友善提供多元生理用品及推動月經平權計畫,高雄市私立正義高級中學,"28,800"
113/03/08,國民及學前教育行政及督導-對私校之獎助,113年度高級中等以下學校友善提供多元生理用品及推動月經平權計畫,花蓮縣私立四維高級中學,"127,200"
113/03/08,國民及學前教育行政及督導-對私校之獎助,113年度高級中等以下學校友善提供多元生理用品及推動月經平權計畫,基隆市私立二信高級中學,"52,800"
113/03/08,國民及學前教育行政及督導-對私校之獎助,113年度高級中等以下學校友善提供多元生理用品及推動月經平權計畫,新竹市私立磐石高級中學,"26,400"
113/03/08,國民及學前教育行政及督導-對私校之獎助,113年度高級中等以下學校友善提供多元生理用品及推動月經平權計畫,臺南市私立瀛海高級中學,"36,000"
113/03/08,國民及學前教育行政及督導-投資,110年度改善無障礙校園環境計畫,國立金門高級農工職業學校,"4,000,000"
113/03/08,國民及學前教育行政及督導-政府機關間之補助,112學年度職場互助教保服務中心業務費(含聘請簽證會計師經費)第2期款,經濟部標準檢驗局臺中分局,"120,000"
113/03/08,國民及學前教育行政及督導-對特種基金之補助,112學年度第2學期身心障礙學生學習扶助實施計畫,國立民雄高級農工職業學校,"236,736"
113/03/08,國民及學前教育行政及督導-對特種基金之補助,113學年度健康促進學校計畫經費,國立埔里高級工業職業學校,"45,000"
113/03/08,國民及學前教育行政及督導-對特種基金之補助,113學年度健康促進學校計畫經費,國立光復高級商工職業學校,"45,000"
113/03/08,國民及學前教育行政及督導-對特種基金之補助,113年度高級中等以下學校友善提供多元生理用品及推動月經平權計畫,國立南投高級商業職業學校,"52,800"
113/03/08,國民及學前教育行政及督導-對特種基金之補助,113年度高級中等以下學校友善提供多元生理用品及推動月經平權計畫,國立西螺高級農工職業學校,"81,600"
113/03/08,國民及學前教育行政及督導-對特種基金之補助,113年度高級中等以下學校友善提供多元生理用品及推動月經平權計畫,國立土庫高級商工職業學校,"180,000"
113/03/08,國民及學前教育行政及督導-對特種基金之補助,113年度高級中等以下學校友善提供多元生理用品及推動月經平權計畫,國立民雄高級農工職業學校,"36,000"
113/03/08,國民及學前教育行政及督導-對特種基金之補助,113年度高級中等以下學校友善提供多元生理用品及推動月經平權計畫,國立北門高級農工職業學校,"12,000"
113/03/08,國民及學前教育行政及督導-對特種基金之補助,113年度高級中等以下學校友善提供多元生理用品及推動月經平權計畫,國立岡山高級農工職業學校,"93,600"
113/03/08,國民及學前教育行政及督導-對特種基金之補助,113年度高級中等以下學校友善提供多元生理用品及推動月經平權計畫,國立鳳山高級商工職業學校,"235,200"
113/03/08,國民及學前教育行政及督導-對特種基金之補助,113年度高級中等以下學校友善提供多元生理用品及推動月經平權計畫,國立內埔高級農工職業學校,"129,600"
113/03/08,國民及學前教育行政及督導-對特種基金之補助,113年度高級中等以下學校友善提供多元生理用品及推動月經平權計畫,國立屏東高級工業職業學校,"127,200"
113/03/08,國民及學前教育行政及督導-對特種基金之補助,113年度高級中等以下學校友善提供多元生理用品及推動月經平權計畫,國立花蓮高級農業職業學校,"93,600"
113/03/08,國民及學前教育行政及督導-對特種基金之補助,113年度高級中等以下學校友善提供多元生理用品及推動月經平權計畫,國立玉井高級工商職業學校,"105,600"
113/03/08,國民及學前教育行政及督導-對特種基金之補助,113年度高級中等以下學校友善提供多元生理用品及推動月經平權計畫,國立苗栗高級商業職業學校,"81,600"
113/03/08,國民及學前教育行政及督導-對特種基金之補助,113年度高級中等以下學校友善提供多元生理用品及推動月經平權計畫,國立永靖高級工業職業學校,"64,800"
113/03/08,國民及學前教育行政及督導-對特種基金之補助,113年度高級中等以下學校友善提供多元生理用品及推動月經平權計畫,國立花蓮高級工業職業學校,"28,800"
113/03/08,國民及學前教育行政及督導-對特種基金之補助,113年度高級中等以下學校友善提供多元生理用品及推動月經平權計畫,國立華南高級商業職業學校,"252,000"
113/03/08,國民及學前教育行政及督導-對特種基金之補助,113年度高級中等以下學校友善提供多元生理用品及推動月經平權計畫,國立臺南大學附屬啟聰學校,"33,600"
113/03/08,國民及學前教育行政及督導-對特種基金之補助,113年度高級中等以下學校友善提供多元生理用品及推動月經平權計畫,國立臺東專科學校校務基金,"69,600"
113/03/08,國民及學前教育行政及督導-對特種基金之補助,113年度高級中等以下學校友善提供多元生理用品及推動月經平權計畫,國立宜蘭高級商業職業學校,"132,000"
113/03/08,國民及學前教育行政及督導-對特種基金之補助,113年度高級中等以下學校友善提供多元生理用品及推動月經平權計畫,國立大湖高級農工職業學校,"81,600"
113/03/08,國民及學前教育行政及督導-對特種基金之補助,113年度高級中等以下學校友善提供多元生理用品及推動月經平權計畫,國立苗栗高級農工職業學校,"142,000"
113/03/08,國民及學前教育行政及督導-對特種基金之補助,113年度高級中等以下學校友善提供多元生理用品及推動月經平權計畫,國立秀水高級工業職業學校,"108,000"
113/03/08,國民及學前教育行政及督導-對特種基金之補助,113年度高級中等以下學校友善提供多元生理用品及推動月經平權計畫,國立彰化高級商業職業學校,"230,400"
113/03/08,國民及學前教育行政及督導-對特種基金之補助,113年度高級中等以下學校友善提供多元生理用品及推動月經平權計畫,國立佳冬高級農業職業學校,"201,600"
113/03/08,國民及學前教育行政及督導-對特種基金之補助,113年度高級中等以下學校友善提供多元生理用品及推動月經平權計畫,國立光復高級商工職業學校,"52,800"
113/03/08,國民及學前教育行政及督導-對特種基金之補助,113年度高級中等以下學校友善提供多元生理用品及推動月經平權計畫,國立基隆高級商工職業學校,"115,200"
113/03/08,國民及學前教育行政及督導-對特種基金之補助,113年度高級中等以下學校友善提供多元生理用品及推動月經平權計畫,國立臺中教育大學附設實小,"9,600"
113/03/08,國民及學前教育行政及督導-對私校之獎助,113年度高級中等以下學校友善提供多元生理用品及推動月經平權計畫,南投縣私立弘明實驗高級中學,"7,200"
113/03/08,國民及學前教育行政及督導-對私校之獎助,113年度高級中等以下學校友善提供多元生理用品及推動月經平權計畫,嘉義市私立宏仁女子高級中學,"45,600"
113/03/08,國民及學前教育行政及督導-對特種基金之補助,113學年度健康促進學校計畫經費,國立中山大學附屬國光高級中學,"30,000"
113/03/08,國民及學前教育行政及督導-對特種基金之補助,113年度高級中等以下學校友善提供多元生理用品及推動月經平權計畫,國立東港高級海事水產職業學校,"57,600"
113/03/08,國民及學前教育行政及督導-對特種基金之補助,113年度高級中等以下學校友善提供多元生理用品及推動月經平權計畫,國立臺東大學附屬體育高級中學,"81,600"
113/03/08,國民及學前教育行政及督導-對特種基金之補助,113年度高級中等以下學校友善提供多元生理用品及推動月經平權計畫,國立頭城高級家事商業職業學校,"127,200"
113/03/08,國民及學前教育行政及督導-對特種基金之補助,113年度高級中等以下學校友善提供多元生理用品及推動月經平權計畫,國立員林高級家事商業職業學校,"439,200"
113/03/08,國民及學前教育行政及督導-對特種基金之補助,113年度高級中等以下學校友善提供多元生理用品及推動月經平權計畫,國立北斗高級家事商業職業學校,"787,200"
113/03/08,國民及學前教育行政及督導-對特種基金之補助,113年度高級中等以下學校友善提供多元生理用品及推動月經平權計畫,國立澎湖高級海事水產職業學校,"129,600"
113/03/08,國民及學前教育行政及督導-對特種基金之補助,113年度高級中等以下學校友善提供多元生理用品及推動月經平權計畫,國立臺灣師範大學附屬高級中學,"72,000"
113/03/08,國民及學前教育行政及督導-對特種基金之補助,113年度高級中等以下學校友善提供多元生理用品及推動月經平權計畫,國立中山大學附屬國光高級中學,"96,000"
113/03/08,國民及學前教育行政及督導-對特種基金之補助,113年度高級中等以下學校友善提供多元生理用品及推動月經平權計畫,國立臺東大學附屬特殊教育學校,"24,000"
113/03/08,國民及學前教育行政及督導-對特種基金之補助,113年度高級中等以下學校友善提供多元生理用品及推動月經平權計畫,國立曾文高級家事商業職業學校,"175,200"
113/03/08,國民及學前教育行政及督導-對私校之獎助,112學年度健康促進學校計畫經費,苗栗縣私立龍德家事商業職業學校,"45,000"
113/03/08,國民及學前教育行政及督導-對私校之獎助,113年度高級中等以下學校友善提供多元生理用品及推動月經平權計畫,財團法人雲林縣私立永年高級中學,"57,600"
113/03/08,國民及學前教育行政及督導-對私校之獎助,113年度高級中等以下學校友善提供多元生理用品及推動月經平權計畫,彰化縣私立達德高級商工職業學校,"492,000"
113/03/08,國民及學前教育行政及督導-對私校之獎助,113年度高級中等以下學校友善提供多元生理用品及推動月經平權計畫,財團法人雲林縣私立正心高級中學,"43,200"
113/03/08,國民及學前教育行政及督導-對私校之獎助,113年度高級中等以下學校友善提供多元生理用品及推動月經平權計畫,高雄縣私立高苑高級工商職業學校,"219,400"
113/03/08,國民及學前教育行政及督導-對私校之獎助,112學年度實施十二年國民基本教育課程新增鐘點費第2期款,陸興學校財團法人屏東縣陸興高級中學,"33,600"
113/03/08,國民及學前教育行政及督導-對私校之獎助,112學年度第2學期身心障礙學生學習扶助實施計畫,財團法人台南市亞洲高級餐旅職業學校,"75,945"
113/03/08,國民及學前教育行政及督導-對私校之獎助,112學年度健康促進學校計畫經費,屏榮學校財團法人屏東縣屏榮高級中學,"45,000"
113/03/08,國民及學前教育行政及督導-對私校之獎助,113年度高級中等以下學校友善提供多元生理用品及推動月經平權計畫,屏東縣私立民生高級家事商業職業學校,"93,600"
113/03/08,國民及學前教育行政及督導-對特種基金之補助,112學年度第2學期身心障礙學生學習扶助實施計畫,國立高雄餐旅大學附屬餐旅高級中等學校,"178,912"
113/03/08,國民及學前教育行政及督導-對私校之獎助,112學年度健康促進學校計畫經費,臺灣省台南市私立南英高級商工職業學校,"45,000"
113/03/08,國民及學前教育行政及督導-對私校之獎助,112學年度健康促進學校計畫經費,財團法人台灣省宜蘭縣私立中道高級中學,"45,000"
113/03/08,國民及學前教育行政及督導-對特種基金之補助,113學年度健康促進學校計畫經費,國立高雄餐旅大學附屬餐旅高級中等學校,"45,000"
113/03/08,國民及學前教育行政及督導-對私校之獎助,113年度高級中等以下學校友善提供多元生理用品及推動月經平權計畫,方濟會學校財團法人臺南市黎明高級中學,"45,600"
113/03/08,國民及學前教育行政及督導-對私校之獎助,113年度高級中等以下學校友善提供多元生理用品及推動月經平權計畫,佛光山學校財團法人高雄市普門高級中學,"112,800"
113/03/08,國民及學前教育行政及督導-對特種基金之補助,113年度高級中等以下學校友善提供多元生理用品及推動月經平權計畫,國立彰化師範大學附屬高級工業職業學校,"72,000"
113/03/08,國民及學前教育行政及督導-政府機關間之補助,112學年度辦理非營利幼兒園相關業務經費第2期款,國軍退除役官兵輔導委員會馬蘭榮譽國民之家,"120,000"
113/03/08,國民及學前教育行政及督導-對學生之獎助,113年度補助校軍公教遺族與傷殘榮軍子女就學費用優待經費,中山學校財團法人高雄市中山高級工商職業學校,"25,476"
113/03/08,國民及學前教育行政及督導-對私校之獎助,113年度高級中等以下學校友善提供多元生理用品及推動月經平權計畫,內思學校財團法人新竹縣內思工業高級中等學校,"33,600"
113/03/08,國民及學前教育行政及督導-對私校之獎助,113年度高級中等以下學校友善提供多元生理用品及推動月經平權計畫,中山學校財團法人高雄市中山高級工商職業學校,"12,000"
113/03/08,國民及學前教育行政及督導-對私校之獎助,112學年度健康促進學校計畫經費,財團法人台灣省苗栗縣私立中興高級商工職業學校,"30,000"
113/03/11,國民及學前教育行政及督導-對各縣市政府之補助,113年度新住民語文樂學活動補助經費,雲林縣政府,"265,711"
113/03/11,國民及學前教育行政及督導-對各縣市政府之補助,113年度新住民子女教育經費,新竹市政府,"216,297"
113/03/11,國民及學前教育行政及督導-對各縣市政府之補助,112學年度本土語文及台灣手語國中開課經費(第2期),苗栗縣政府,"239,368"
113/03/11,國民及學前教育行政及督導-對各縣市政府之補助,112學年度本土語文及台灣手語國中開課經費(第2期),苗栗縣政府,"167,887"
113/03/11,國民及學前教育行政及督導-對各縣市政府之補助,112學年度本土語文及台灣手語國中開課經費(第2期),苗栗縣政府,"25,206"
113/03/11,國民及學前教育行政及督導-對各縣市政府之補助,112年度補助各縣市無障礙校園環境(新建無障礙電梯)經費(第2期),宜蘭縣政府,"11,412,044"
113/03/11,國民及學前教育行政及督導-對各縣市政府之補助,113年補助縣市政府辦理身心障礙教育經費,彰化縣政府,"6,646,804"
113/03/11,國民及學前教育行政及督導-對各縣市政府之補助,113年補助縣市政府辦理身心障礙教育經費,彰化縣政府,"1,453,548"
113/03/11,國民及學前教育行政及督導-對各縣市政府之補助,113年度充實營養師人力經費,新竹縣政府,"7,940,239"
113/03/11,國民及學前教育行政及督導-對各縣市政府之補助,113年度全國高級中等學校學生校園刊物印製實施計畫經費,苗栗縣政府,"24,300"
113/03/11,國民及學前教育行政及督導-對各縣市政府之補助,113年度全國高級中等學校學生校園刊物印製實施計畫經費,嘉義縣政府,"27,000"
113/03/11,國民及學前教育行政及督導-對各縣市政府之補助,112學年度中輟生預防追蹤及復學輔導工作計畫經費第3期,嘉義縣政府,"4,175,441"
113/03/11,國民及學前教育行政及督導-對各縣市政府之補助,112學年度中輟生預防追蹤及復學輔導工作計畫經費第3期,花蓮縣政府,"4,244,101"
113/03/11,國民及學前教育行政及督導-對各縣市政府之補助,113年度補助直轄市及縣市政府執行學生校外生活輔導工作經費,新竹縣政府,"110,000"
113/03/11,國民及學前教育行政及督導-對各縣市政府之補助,臺東考區113年國中教育會考試務籌辦計畫第2期款,臺東縣政府,"2,322,275"
113/03/11,國民及學前教育行政及督導-對各縣市政府之補助,臺東考區113年國中教育會考試務籌辦計畫第2期款,臺東縣政府,"81,000"
113/03/11,國民及學前教育行政及督導-對各縣市政府之補助,達邦國小109年度改善偏遠地區國民中小學宿舍計畫宿舍興建工程經費,嘉義縣政府,"3,215,686"
113/03/11,國民及學前教育行政及督導-對各縣市政府之補助,112學年度第1學期公共化教保服務機構辦理延長照顧服務經費,新竹市政府,"26,364"
113/03/11,國民及學前教育行政及督導-對各縣市政府之補助,112學年度準公共幼兒園24園輔導計畫第2期款,彰化縣政府,"673,222"
113/03/11,國民及學前教育行政及督導-對各縣市政府之補助,113年度教保研習經費,苗栗縣政府,"1,697,552"
113/03/11,國民及學前教育行政及督導-對各縣市政府之補助,大額通報教補3月13日-112學年度一般地區學校推動國小合理教師員額事項所需經費第2期款,苗栗縣政府,"62,243,328"
113/03/11,國民及學前教育行政及督導-對各縣市政府之補助,大額通報教補3月13日-112學年度一般地區學校推動國小合理教師員額事項所需經費第2期款,苗栗縣政府,"29,048,235"
113/03/11,國民及學前教育行政及督導-對各縣市政府之補助,112學年度教育優先區計畫(除補助項目四)第2期款,嘉義縣政府,"6,151,363"
113/03/11,國民及學前教育行政及督導-對各縣市政府之補助,112學年度教育優先區計畫(除補助項目四)第2期款,嘉義縣政府,"322,157"
113/03/11,國民及學前教育行政及督導-對各縣市政府之補助,113年度國民中小學閱讀推動計畫經費,嘉義縣政府,"840,000"
113/03/11,國民及學前教育行政及督導-對各縣市政府之補助,113年度教育部卓越獎初選活動經費及獎金補助經費,南投縣政府,"79,200"
113/03/11,國民及學前教育行政及督導-對特種基金之補助,113年度國民中小學閱讀推動計畫經費,國立東華大學,"600,000"
113/03/11,國民及學前教育行政及督導-對國內團體之捐助,113年度民間團體辦理國民中小學閱讀推動計畫經費,台東縣故事協會,"480,000"
113/03/11,國民及學前教育行政及督導-對特種基金之補助,112學年度原住民學生一般課業輔導鐘點費 (第二期),國立彰化高級中學,"22,000"
113/03/11,國民及學前教育行政及督導-對直轄市政府之補助,112年度提供私立幼兒園教保服務人員在職進修特教專業知能及進用專任合格學前特教教師經費,臺中市政府教育局,"51,600"
113/03/11,國民及學前教育行政及督導-對直轄市政府之補助,113年度特殊教育學校及高級中等學校集中式特教班暨職業輔導員計畫經費,高雄市政府教育局,"6,431,100"
113/03/11,國民及學前教育行政及督導-對直轄市政府之補助,113年度特殊教育學校及高級中等學校集中式特教班暨職業輔導員計畫經費,高雄市政府教育局,"599,250"
113/03/11,國民及學前教育行政及督導-對直轄市政府之補助,113年補助縣市政府辦理身心障礙教育經費,臺北市政府教育局,"12,590,790"
113/03/11,國民及學前教育行政及督導-對直轄市政府之補助,113年補助縣市政府辦理身心障礙教育經費,臺北市政府教育局,"4,296,954"
113/03/11,國民及學前教育行政及督導-對直轄市政府之補助,112學年度學務創新人力第2期款,新北市政府教育局,"19,412,990"
113/03/11,國民及學前教育行政及督導-對特種基金之補助,113年度全國高級中等學校學生校園刊物印製實施計畫經費,國立華僑高級中學,"30,000"
113/03/11,國民及學前教育行政及督導-對特種基金之補助,113年度全國高級中等學校學生校園刊物印製實施計畫經費,國立溪湖高級中學,"11,500"
113/03/11,國民及學前教育行政及督導-對特種基金之補助,113年度全國高級中等學校學生校園刊物印製實施計畫經費,國立竹山高級中學,"30,000"
113/03/11,國民及學前教育行政及督導-對特種基金之補助,113年度全國高級中等學校學生校園刊物印製實施計畫經費,國立斗六高級中學,"30,000"
113/03/11,國民及學前教育行政及督導-對特種基金之補助,113年度全國高級中等學校學生校園刊物印製實施計畫經費,國立虎尾高級中學,"30,000"
113/03/11,國民及學前教育行政及督導-對特種基金之補助,113年度全國高級中等學校學生校園刊物印製實施計畫經費,國立鳳山高級中學,"30,000"
113/03/11,國民及學前教育行政及督導-對特種基金之補助,113年度全國高級中等學校學生校園刊物印製實施計畫經費,國立宜蘭高級中學,"30,000"
113/03/11,國民及學前教育行政及督導-對特種基金之補助,113年度全國高級中等學校學生校園刊物印製實施計畫經費,國立玉里高級中學,"30,000"
113/03/11,國民及學前教育行政及督導-對直轄市政府之補助,113年度補助地方政府暨本部主管學校執行強化校園安全防護工作經費,臺南市政府教育局,"996,688"
113/03/11,國民及學前教育行政及督導-對特種基金之補助,112學年度家庭教育經費,國立竹北高級中學,"23,000"
113/03/11,國民及學前教育行政及督導-對特種基金之補助,112學年度家庭教育經費,國立屏東高級中學,"23,000"
113/03/11,國民及學前教育行政及督導-對特種基金之補助,112學年度家庭教育經費,國立花蓮高級中學,"23,000"
113/03/11,國民及學前教育行政及督導-對直轄市政府之補助,112學年度準公共幼兒園13園輔導計畫第2期款,臺南市政府教育局,"338,291"
113/03/11,國民及學前教育行政及督導-對直轄市政府之補助,112學年度國民小學及國民中學活化教學與多元學習計畫第2期款,臺北市政府教育局,"5,113,609"
113/03/11,國民及學前教育行政及督導-對特種基金之補助,112學年度國民小學及國民中學活化教學與多元學習計畫第2期款,臺北市政府教育局,"160,465"
113/03/11,國民及學前教育行政及督導-對直轄市政府之補助,大額通報教補3月13日-112學年度一般地區學校推動國小合理教師員額事項所需經費第2期款,臺中市政府教育局,"304,123,008"
113/03/11,國民及學前教育行政及督導-對直轄市政府之補助,大額通報教補3月13日-112學年度一般地區學校推動國小合理教師員額事項所需經費第2期款,臺中市政府教育局,"73,265,427"
113/03/11,國民及學前教育行政及督導-對直轄市政府之補助,112學年度教育優先區計畫(除補助項目四)第2期款,臺北市政府教育局,"817,099"
113/03/11,國民及學前教育行政及督導-對直轄市政府之補助,113年度國民中小學閱讀推動計畫經費,臺南市政府教育局,"1,111,766"
113/03/11,國民及學前教育行政及督導-對直轄市政府之補助,113年度國民中小學閱讀推動計畫經費,高雄市政府教育局,"1,155,200"
113/03/11,國民及學前教育行政及督導-對直轄市政府之補助,112年度教育部卓越獎初選活動經費及獎金補助經費,新北市政府教育局,"327,600"
113/03/11,國民及學前教育行政及督導-對直轄市政府之補助,112年度教育部卓越獎初選活動經費及獎金補助經費,臺中市政府教育局,"235,200"
113/03/11,國民及學前教育行政及督導-對直轄市政府之補助,112年度教育部卓越獎初選活動經費及獎金補助經費,臺北市政府教育局,"295,200"
113/03/11,國民及學前教育行政及督導-對私校之獎助,113年度全國高級中等學校學生校園刊物印製實施計畫經費,新竹縣仰德高級中學,"30,000"
113/03/11,國民及學前教育行政及督導-對私校之獎助,112學年度家庭教育經費,新竹縣仰德高級中學,"23,000"
113/03/11,國民及學前教育行政及督導-對特種基金之補助,112學年度第2學期國立特教學校課後照顧經費,國立雲林特殊教育學校,"1,114,753"
113/03/11,國民及學前教育行政及督導-對特種基金之補助,112學年度第2學期國立特教學校課後照顧經費,國立臺南特殊教育學校,"1,330,408"
113/03/11,國民及學前教育行政及督導-對特種基金之補助,112學年度第2學期國立特教學校課後照顧經費,國立花蓮特殊教育學校,"833,586"
113/03/11,國民及學前教育行政及督導-對特種基金之補助,113年國際啦啦隊錦標賽實施計畫經費,國立苗栗特殊教育學校,"1,008,000"
113/03/11,國民及學前教育行政及督導-對國內團體之捐助,113年特殊教育學生與家長活動計畫經費,全國家長教育志工聯盟,"1,200,000"
113/03/11,國民及學前教育行政及督導-對私校之獎助,113年度全國高級中等學校學生校園刊物印製實施計畫經費,慈濟大學附屬高級中學,"30,000"
113/03/11,國民及學前教育行政及督導-對特種基金之補助,113年度全國高級中等學校學生校園刊物印製實施計畫經費,國立新竹女子高級中學,"30,000"
113/03/11,國民及學前教育行政及督導-對特種基金之補助,113年度全國高級中等學校學生校園刊物印製實施計畫經費,國立花蓮女子高級中學,"30,000"
113/03/11,國民及學前教育行政及督導-對私校之獎助,112學年度辦理集中式特教班經費,新竹市私立光復高級中學,"1,860,000"
113/03/11,國民及學前教育行政及督導-對私校之獎助,112學年度辦理集中式特教班經費,新竹市私立光復高級中學,"116,000"
113/03/11,國民及學前教育行政及督導-對私校之獎助,辦理112穩定就學措施補助第2期經費,新竹市私立磐石高級中學,"160,000"
113/03/11,國民及學前教育行政及督導-對私校之獎助,113年度全國高級中等學校學生校園刊物印製實施計畫經費,基隆市私立二信高級中學,"30,000"
113/03/11,國民及學前教育行政及督導-對特種基金之補助,補助112學年度各地方政府及教育部轄管高中臺灣手語開班經費(第2期),國立大湖高級農工職業學校,"12,722"
113/03/11,國民及學前教育行政及督導-對特種基金之補助,補助112學年度各地方政府及教育部轄管高中臺灣手語開班經費(第2期),國立基隆高級商工職業學校,"41,716"
113/03/11,國民及學前教育行政及督導-對特種基金之補助,補助112學年度各地方政府及教育部轄管高中臺灣手語開班經費(第2期),國立羅東高級商業職業學校,"82,384"
113/03/11,國民及學前教育行政及督導-對特種基金之補助,112學年度高級中等學校原住民族語課程開課經費-第2期款,國立大湖高級農工職業學校,"137,198"
113/03/11,國民及學前教育行政及督導-對特種基金之補助,112學年度高級中等學校原住民族語課程開課經費-第2期款,國立基隆高級商工職業學校,"37,028"
113/03/11,國民及學前教育行政及督導-對特種基金之補助,112學年度高級中等學校原住民族語課程開課經費-第2期款,國立羅東高級商業職業學校,"51,544"
113/03/11,國民及學前教育行政及督導-對特種基金之補助,113年度新住民語文樂學活動經費,國立秀水高級工業職業學校,"62,000"
113/03/11,國民及學前教育行政及督導-對特種基金之補助,112學年度高級中等學校本土語文(閩南語、閩東語、客語文)課程開課經費-第2期款,國立北港高級農工職業學校,"23,266"
113/03/11,國民及學前教育行政及督導-對特種基金之補助,112學年度高級中等學校本土語文(閩南語、閩東語、客語文)課程開課經費-第2期款,國立羅東高級商業職業學校,"77,938"
113/03/11,國民及學前教育行政及督導-對特種基金之補助,112學年度第2學期國立特教學校課後照顧經費,國立臺南大學附屬啟聰學校,"277,344"
113/03/11,國民及學前教育行政及督導-對特種基金之補助,113年臨時約聘（僱）職業輔導員經費,國立白河高級商工職業學校,"599,860"
113/03/11,國民及學前教育行政及督導-對特種基金之補助,113年臨時約聘（僱）職業輔導員經費,國立岡山高級農工職業學校,"599,860"
113/03/11,國民及學前教育行政及督導-對特種基金之補助,辦理112穩定就學措施補助第2期經費,國立曾文高級農工職業學校,"50,000"
113/03/11,國民及學前教育行政及督導-對特種基金之補助,113年度全國高級中等學校學生校園刊物印製實施計畫經費,國立基隆高級商工職業學校,"15,000"
113/03/11,國民及學前教育行政及督導-對特種基金之補助,113年度全國高級中等學校學生校園刊物印製實施計畫經費,國立苗栗高級商業職業學校,"30,000"
113/03/11,國民及學前教育行政及督導-對特種基金之補助,113年度全國高級中等學校學生校園刊物印製實施計畫經費,國立埔里高級工業職業學校,"30,000"
113/03/11,國民及學前教育行政及督導-對特種基金之補助,112學年度家庭教育經費,國立花蓮高級農業職業學校,"23,000"
113/03/11,國民及學前教育行政及督導-對特種基金之補助,112學年度家庭教育經費,國立旗山高級農工職業學校,"23,000"
113/03/11,國民及學前教育行政及督導-對特種基金之補助,113年度提升高雄市國小經典表達力應用實驗計畫第1期款,國立高雄師範大學校務基金,"1,565,856"
113/03/11,國民及學前教育行政及督導-對私校之獎助,113年度全國高級中等學校學生校園刊物印製實施計畫經費,嘉義市私立宏仁女子高級中學,"30,000"
113/03/11,國民及學前教育行政及督導-對國內團體之捐助,113年度學校護理人員緊急救護訓練研習(EMT複訓)經費,中華民國學校護理人員協進會,"85,800"
113/03/11,國民及學前教育行政及督導-對國內團體之捐助,113年度民間團體辦理國民中小學閱讀推動計畫經費,社團法人台南市府城故事協會,"168,000"
113/03/11,國民及學前教育行政及督導-對國內團體之捐助,113年度民間團體辦理國民中小學閱讀推動計畫經費,財團法人兒童文化藝術基金會,"184,000"
113/03/11,國民及學前教育行政及督導-投資,113年充實公立國民中小學圖書館(室)藏書量經費,國立屏東大學附設實驗國民小學,"99,850"
113/03/11,國民及學前教育行政及督導-對特種基金之補助,113年度新住民語文樂學活動經費,國立澎湖高級海事水產職業學校,"160,000"
113/03/11,國民及學前教育行政及督導-對特種基金之補助,112學年度本土語言及台灣手語國中本土語文開課經費(第2期款),國立臺灣師範大學附屬高級中學,"59,719"
113/03/11,國民及學前教育行政及督導-對特種基金之補助,112學年度本土語言及台灣手語國中手語開課經費(第2期),國立臺灣師範大學附屬高級中學,"43,197"
113/03/11,國民及學前教育行政及督導-對特種基金之補助,辦理112穩定就學措施補助第2期經費,國立澎湖高級海事水產職業學校,"160,000"
113/03/11,國民及學前教育行政及督導-對私校之獎助,113年度全國高級中等學校學生校園刊物印製實施計畫經費,台灣省基隆市私立聖心高級中學,"29,750"
113/03/11,國民及學前教育行政及督導-對私校之獎助,113年度全國高級中等學校學生校園刊物印製實施計畫經費,私立培德高級工業家事職業學校,"30,000"
113/03/11,國民及學前教育行政及督導-對私校之獎助,113年度全國高級中等學校學生校園刊物印製實施計畫經費,臺南市天主教聖功女子高級中學,"30,000"
113/03/11,國民及學前教育行政及督導-對特種基金之補助,113年度全國高級中等學校學生校園刊物印製實施計畫經費,國立中山大學附屬國光高級中學,"30,000"
113/03/11,國民及學前教育行政及督導-對特種基金之補助,113年度全國高級中等學校學生校園刊物印製實施計畫經費,國立頭城高級家事商業職業學校,"30,000"
113/03/11,國民及學前教育行政及督導-對特種基金之補助,112學年度家庭教育經費,國立員林高級家事商業職業學校,"23,000"
113/03/11,國民及學前教育行政及督導-對特種基金之補助,112學年度家庭教育經費,國立台南高級海事水產職業學校,"23,000"
113/03/11,國民及學前教育行政及督導-對特種基金之補助,112學年度家庭教育經費,國立北斗高級家事商業職業學校,"18,000"
113/03/11,國民及學前教育行政及督導-對私校之獎助,113年度新住民語文樂學活動經費,彰化縣私立達德高級商工職業學校,"42,752"
113/03/11,國民及學前教育行政及督導-對私校之獎助,112學年度高級中等以下學校原民實驗班-第2期款,財團法人花蓮縣私立海星高級中學,"592,000"
113/03/11,國民及學前教育行政及督導-對私校之獎助,112學年度高級中等以下學校原民實驗班-第2期款,財團法人花蓮縣私立海星高級中學,"35,000"
113/03/11,國民及學前教育行政及督導-對學生之獎助,113年度補助高級中等學校學生工讀獎助金實施計畫經費,雲林縣私立大成高級商工職業學校,"636,360"
113/03/11,國民及學前教育行政及督導-對私校之獎助,辦理112穩定就學措施補助第2期經費,高雄縣私立高英高級工商職業學校,"84,398"
113/03/11,國民及學前教育行政及督導-對特種基金之補助,113年度全國高級中等學校學生校園刊物印製實施計畫經費,國立新竹科學園區實驗高級中等學校,"30,000"
113/03/11,國民及學前教育行政及督導-對特種基金之補助,112學年度國立學校附設幼兒園導師職務加給差額及教保費第2期款,國立新竹科學園區實驗高級中等學校,"156,000"
113/03/11,國民及學前教育行政及督導-對私校之獎助,112學年度學務創新人力第2期款,屏榮學校財團法人屏東縣屏榮高級中學,"800,000"
113/03/11,國民及學前教育行政及督導-對私校之獎助,113年度全國高級中等學校學生校園刊物印製實施計畫經費,高雄縣私立華德高級工業家事職業學校,"30,000"
113/03/11,國民及學前教育行政及督導-對特種基金之補助,113年臨時約聘（僱）職業輔導員經費,國立成功大學附屬臺南工業高級中等學校,"599,860"
113/03/11,國民及學前教育行政及督導-對私校之獎助,辦理112穩定就學措施補助第2期經費,佛光山學校財團法人高雄市普門高級中學,"38,000"
113/03/11,國民及學前教育行政及督導-對私校之獎助,113年度全國高級中等學校學生校園刊物印製實施計畫經費,佛光山學校財團法人高雄市普門高級中學,"30,000"
113/03/11,國民及學前教育行政及督導-對特種基金之補助,113年度全國高級中等學校學生校園刊物印製實施計畫經費,國立成功大學附屬臺南工業高級中等學校,"30,000"
113/03/11,國民及學前教育行政及督導-對私校之獎助,辦理112穩定就學措施補助第2期經費,揚子學校財團法人雲林縣揚子高級中等學校,"160,000"
113/03/11,國民及學前教育行政及督導-對私校之獎助,113年度全國高級中等學校學生校園刊物印製實施計畫經費,高鳳學校財團法人屏東縣崇華高級中等學校,"30,000"
113/03/11,國民及學前教育行政及督導-對特種基金之補助,113年度全國高級中等學校學生校園刊物印製實施計畫經費,國立臺北科技大學附屬桃園農工高級中等學校,"30,000"
113/03/11,國民及學前教育行政及督導-對私校之獎助,112學年度學務創新人力第2期款,內思學校財團法人新竹縣內思工業高級中等學校,"464,859"
113/03/11,國民及學前教育行政及督導-對私校之獎助,113年度全國高級中等學校學生校園刊物印製實施計畫經費,崑山國際學校財團法人臺南市崑山高級中等學校,"13,000"
113/03/12,國民及學前教育行政及督導-對直轄市政府之補助,112學年度科學班實驗計畫第2期款,桃園市政府,"1,579,367"
113/03/12,國民及學前教育行政及督導-對學生之獎助,112學年度第2學期高級中等學校學生免學費,宜蘭縣政府,"799,608"
113/03/12,國民及學前教育行政及督導-對學生之獎助,112學年度第2學期高級中等學校學生免學費,苗栗縣政府,"4,277,482"
113/03/12,國民及學前教育行政及督導-對學生之獎助,112學年度第2學期高級中等學校學生免學費,基隆市政府,"2,208,450"
113/03/12,國民及學前教育行政及督導-對學生之獎助,112學年度第2學期高級中等學校學生免學費,宜蘭縣政府,"449,780"
113/03/12,國民及學前教育行政及督導-對學生之獎助,112學年度第2學期高級中等學校學生免學費,苗栗縣政府,"2,406,084"
113/03/12,國民及學前教育行政及督導-對學生之獎助,112學年度第2學期高級中等學校學生免學費,基隆市政府,"1,242,253"
113/03/12,國民及學前教育行政及督導-對各縣市政府之補助,四維及社皮非營利幼兒園112學年度增置教保服務人員人力經費,屏東縣政府,"470,400"
113/03/12,國民及學前教育行政及督導-對各縣市政府之補助,112學年度教保服務機構親職教育經費,新竹市政府,"18,420"
113/03/12,國民及學前教育行政及督導-對各縣市政府之補助,112學年度社區教保資源中心業務第2期款,宜蘭縣政府,"7,542"
113/03/12,國民及學前教育行政及督導-對各縣市政府之補助,112學年度社區教保資源中心業務第2期款,宜蘭縣政府,"606,502"
113/03/12,國民及學前教育行政及督導-對各縣市政府之補助,113年度教保研習經費,宜蘭縣政府,"1,447,537"
113/03/12,國民及學前教育行政及督導-對各縣市政府之補助,113年度教保研習經費,彰化縣政府,"2,202,288"
113/03/12,國民及學前教育行政及督導-對各縣市政府之補助,113年度教保研習經費,南投縣政府,"1,735,678"
113/03/12,國民及學前教育行政及督導-對各縣市政府之補助,112年度富世國小附設幼兒園等3園充實及改善教學環境設施設備經費,花蓮縣政府,"846,660"
113/03/12,國民及學前教育行政及督導-對各縣市政府之補助,福興鄉立幼兒園等2園110年度充實及改善教學環境設施設備經費,彰化縣政府,"5,156,929"
113/03/12,國民及學前教育行政及督導-對各縣市政府之補助,112學年度非營利幼兒園配置助理人員第2期款,宜蘭縣政府,"4,308,544"
113/03/12,國民及學前教育行政及督導-對各縣市政府之補助,112學年度準公共教保服務機構經濟需要協助幼兒課後延長照顧所需經費第2、3期款,彰化縣政府,"1,542,456"
113/03/12,國民及學前教育行政及督導-對各縣市政府之補助,112年度提供私立幼兒園教保服務人員在職進修特教專業知能及進用專任合格學前特教教師經費,宜蘭縣政府,"60,000"
113/03/12,國民及學前教育行政及督導-對各縣市政府之補助,113年度推動學前教保、少子女化對策計畫、幼兒園稽核及辦理相關人員違法對待幼兒案件等相關業務增置人力經費第1期款,臺東縣政府,"1,512,000"
113/03/12,國民及學前教育行政及督導-對各縣市政府之補助,113年度推動學前教保、少子女化對策計畫、幼兒園稽核及辦理相關人員違法對待幼兒案件等相關業務增置人力經費第1期款,臺東縣政府,"378,000"
113/03/12,國民及學前教育行政及督導-對各縣市政府之補助,112學年度公立幼兒園導師職務加給差額及教保費第2期款,嘉義縣政府,"5,016,000"
113/03/12,國民及學前教育行政及督導-對各縣市政府之補助,112學年度私立教保服務機構導師職務加給差額及教保費第2期款,嘉義縣政府,"6,062,000"
113/03/12,國民及學前教育行政及督導-對各縣市政府之補助,大額通報教補3月14日-112學年度我國少子女化對策計畫之各項幼生就學補助及育兒津貼等經費第4期款,嘉義縣政府,"117,605,500"
113/03/12,國民及學前教育行政及督導-對各縣市政府之補助,大額通報教補3月14日-112學年度我國少子女化對策計畫之各項幼生就學補助及育兒津貼等經費第4期款,金門縣政府,"20,016,000"
113/03/12,國民及學前教育行政及督導-對各縣市政府之補助,大額通報教補3月14日-112學年度一般地區學校推動國小合理教師員額事項所需經費第2期款,南投縣政府,"39,927,552"
113/03/12,國民及學前教育行政及督導-對各縣市政府之補助,大額通報教補3月14日-112學年度一般地區學校推動國小合理教師員額事項所需經費第2期款,南投縣政府,"25,939,047"
113/03/12,國民及學前教育行政及督導-對各縣市政府之補助,大額通報教補3月14日-112學年度一般地區學校推動國小合理教師員額事項所需經費第2期款,彰化縣政府,"120,460,032"
113/03/12,國民及學前教育行政及督導-對各縣市政府之補助,大額通報教補3月14日-112學年度一般地區學校推動國小合理教師員額事項所需經費第2期款,彰化縣政府,"53,981,175"
113/03/12,國民及學前教育行政及督導-對各縣市政府之補助,大額通報教補3月14日-112學年度一般地區學校推動國小合理教師員額事項所需經費第2期款,屏東縣政府,"56,259,840"
113/03/12,國民及學前教育行政及督導-對各縣市政府之補助,大額通報教補3月14日-112學年度一般地區學校推動國小合理教師員額事項所需經費第2期款,屏東縣政府,"34,070,037"
113/03/12,國民及學前教育行政及督導-對直轄市政府之補助,大額通報教補3月14日-112學年度一般地區學校推動國小合理教師員額事項所需經費第2期款,桃園市政府,"255,505,152"
113/03/12,國民及學前教育行政及督導-對直轄市政府之補助,大額通報教補3月14日-112學年度一般地區學校推動國小合理教師員額事項所需經費第2期款,桃園市政府,"47,873,509"
113/03/12,國民及學前教育行政及督導-對直轄市政府之補助,112學年度獎勵無償提供場地、設施及設備辦理非營利幼兒園第2期款,臺北市政府,"600,000"
113/03/12,國民及學前教育行政及督導-對直轄市政府之補助,112學年度獎勵無償提供場地、設施及設備辦理非營利幼兒園第2期款,臺北市政府,"400,000"
113/03/12,國民及學前教育行政及督導-對各縣市政府之補助,112年度教保服務人員及助理人員在職進修照顧服務知能經費,南投縣政府,"5,340"
113/03/12,國民及學前教育行政及督導-對各縣市政府之補助,112年度教保服務人員及助理人員在職進修照顧服務知能經費,臺東縣政府,"2,682"
113/03/12,國民及學前教育行政及督導-對各縣市政府之補助,112年度教保服務人員及助理人員在職進修照顧服務知能經費,苗栗縣政府,"13,986"
113/03/12,國民及學前教育行政及督導-對各縣市政府之補助,112學年度準公共幼兒園未因調薪而調整收費者之「園務營運費」經費,彰化縣政府,"4,109,357"
113/03/12,國民及學前教育行政及督導-對各縣市政府之補助,112學年度準公共幼兒園未因調薪而調整收費者之「園務營運費」經費,新竹市政府,"3,983,104"
113/03/12,國民及學前教育行政及督導-對各縣市政府之補助,112學年度準公共幼兒園未因調薪而調整收費者之「園務營運費」經費,雲林縣政府,"1,714,489"
113/03/12,國民及學前教育行政及督導-對各縣市政府之補助,112學年度第2學期身心障礙幼兒學前特教經費,苗栗縣政府,"700,000"
113/03/12,國民及學前教育行政及督導-對各縣市政府之補助,112學年度第2學期身心障礙幼兒學前特教經費,新竹市政府,"2,587,500"
113/03/12,國民及學前教育行政及督導-對各縣市政府之補助,112學年度第2學期身心障礙幼兒學前特教經費,南投縣政府,"275,000"
113/03/12,國民及學前教育行政及督導-對各縣市政府之補助,112學年度第2學期身心障礙幼兒學前特教經費,臺東縣政府,"75,000"
113/03/12,國民及學前教育行政及督導-對各縣市政府之補助,112學年度第2學期身心障礙幼兒學前特教經費,彰化縣政府,"3,415,000"
113/03/12,國民及學前教育行政及督導-對各縣市政府之補助,112學年度第2學期身心障礙幼兒學前特教經費,金門縣政府,"25,000"
113/03/12,國民及學前教育行政及督導-政府機關間之補助,112學年度職場互助教保服務中心業務費經費,陸軍後勤指揮部,"200,000"
113/03/12,國民及學前教育行政及督導-對特種基金之補助,113年度『臺灣青年學生物理辯論競賽』及『國際青年學生物理辯論錦標賽』國家代表隊選訓及參賽計畫,國立臺灣師範大學,"200,000"
113/03/12,國民及學前教育行政及督導-對直轄市政府之補助,113年度公立高級中等學校充實行政人力計畫,臺北市政府教育局,"10,001,271"
113/03/12,國民及學前教育行政及督導-對直轄市政府之補助,113年度公立高級中等學校建置學生學習歷程人力計畫,臺北市政府教育局,"765,000"
113/03/12,國民及學前教育行政及督導-對學生之獎助,112學年度第2學期高級中等學校學生免學費,臺南市政府教育局,"3,751,937"
113/03/12,國民及學前教育行政及督導-對學生之獎助,112學年度第2學期高級中等學校學生免學費,臺南市政府教育局,"2,110,464"
113/03/12,國民及學前教育行政及督導-對直轄市政府之補助,四維國小112年度充實設施設備-路面高低差安全設施及附屬周邊改善工程經費,臺中市政府教育局,"1,350,045"
113/03/12,國民及學前教育行政及督導-對直轄市政府之補助,私立新乖乖幼兒園等2園112學年度準公共幼兒園設施設備補助經費,新北市政府教育局,"42,815"
113/03/12,國民及學前教育行政及督導-對直轄市政府之補助,私立新乖乖幼兒園等2園112學年度準公共幼兒園設施設備補助經費,新北市政府教育局,"357,185"
113/03/12,國民及學前教育行政及督導-政府機關間之補助,112學年度職場互助教保服務中心業務費第2期款,財政部北區國稅局,"120,000"
113/03/12,國民及學前教育行政及督導-對直轄市政府之補助,112學年度公立國民補習學校擔任導師工作人員之導師職務加給經費第2期款,新北市政府教育局,"1,338,000"
113/03/12,國民及學前教育行政及督導-對直轄市政府之補助,大額通報教補3月14日-112學年度一般地區學校推動國小合理教師員額事項所需經費第2期款,新北市政府教育局,"443,803,396"
113/03/12,國民及學前教育行政及督導-對直轄市政府之補助,大額通報教補3月14日-112學年度一般地區學校推動國小合理教師員額事項所需經費第2期款,新北市政府教育局,"49,422,406"
113/03/12,國民及學前教育行政及督導-對直轄市政府之補助,112學年度國立中小學及直轄市立特殊教育學校調整教師授課節數及導師職務加給實施計畫第2期款,新北市政府教育局,"75,257"
113/03/12,國民及學前教育行政及督導-對特種基金之補助,112學年度國立中小學及直轄市立特殊教育學校調整教師授課節數及導師職務加給實施計畫第2期款,國立臺灣戲曲學院,"235,498"
113/03/12,國民及學前教育行政及督導-政府機關間之補助,112學年度獎勵無償提供場地、設施及設備辦理非營利幼兒園第2期款,國防部海軍司令部,"950,000"
113/03/12,國民及學前教育行政及督導-政府機關間之補助,112學年度獎勵無償提供場地、設施及設備辦理非營利幼兒園第2期款,國防部海軍司令部,"760,000"
113/03/12,國民及學前教育行政及督導-對直轄市政府之補助,112學年度獎勵無償提供場地、設施及設備辦理非營利幼兒園第2期款,臺中市政府教育局,"8,576,250"
113/03/12,國民及學前教育行政及督導-對直轄市政府之補助,112學年度獎勵無償提供場地、設施及設備辦理非營利幼兒園第2期款,臺中市政府教育局,"6,861,000"
113/03/12,國民及學前教育行政及督導-對直轄市政府之補助,112年度教保服務人員及助理人員在職進修照顧服務知能經費,臺南市政府教育局,"25,520"
113/03/12,國民及學前教育行政及督導-對直轄市政府之補助,112學年度準公共幼兒園未因調薪而調整收費者之「園務營運費」經費,臺南市政府教育局,"8,621,964"
113/03/12,國民及學前教育行政及督導-對直轄市政府之補助,112學年度準公共幼兒園未因調薪而調整收費者之「園務營運費」經費,高雄市政府教育局,"7,906,493"
113/03/12,國民及學前教育行政及督導-對直轄市政府之補助,112學年度第2學期身心障礙幼兒學前特教經費,高雄市政府教育局,"8,267,500"
113/03/12,國民及學前教育行政及督導-對直轄市政府之補助,112學年度第2學期身心障礙幼兒學前特教經費,臺中市政府教育局,"10,631,750"
113/03/12,國民及學前教育行政及督導-對直轄市政府之補助,113年2月份921地震公私立學校修復重建教學建築與設施專案貸款利息差額及手續費,台灣銀行企業金融部,"6,473"
113/03/12,國民及學前教育行政及督導-政府機關間之補助,112學年度獎勵無償提供場地、設施及設備辦理職場互助教保服務中心第2期款,臺灣高雄地方檢察署,"60,000"
113/03/12,國民及學前教育行政及督導-政府機關間之補助,112學年度獎勵無償提供場地、設施及設備辦理職場互助教保服務中心第2期款,臺灣高雄地方檢察署,"360,000"
113/03/12,國民及學前教育行政及督導-對學生之獎助,112學年度第2學期高級中等學校學生免學費,台南市私立長榮高級中學,"26,131,984"
113/03/12,國民及學前教育行政及督導-對學生之獎助,112學年度第2學期高級中等學校學生免學費,台南市私立長榮高級中學,"9,181,508"
113/03/12,國民及學前教育行政及督導-對特種基金之補助,112學年度偏遠地區及非山非市公立高級中等學校學生通學交通費實施計畫,國立仁愛高級農業職業學校,"3,991,840"
113/03/12,國民及學前教育行政及督導-對特種基金之補助,112學年度國立中小學及直轄市立特殊教育學校調整教師授課節數及導師職務加給實施計畫第2期款,國立臺中教育大學附設實小,"255,936"
113/03/12,國民及學前教育行政及督導-投資,輪機、食品實習工廠修繕工程經費,國立澎湖高級海事水產職業學校,"12,000,000"
113/03/12,國民及學前教育行政及督導-對學生之獎助,112學年度第2學期高級中等學校學生免學費,臺南市天主教聖功女子高級中學,"13,758,672"
113/03/12,國民及學前教育行政及督導-對學生之獎助,112學年度第2學期高級中等學校學生免學費,臺灣省彰化縣私立文興高級中學,"9,423,324"
113/03/12,國民及學前教育行政及督導-對學生之獎助,112學年度第2學期高級中等學校學生免學費,臺南市天主教聖功女子高級中學,"4,834,128"
113/03/12,國民及學前教育行政及督導-對學生之獎助,112學年度第2學期高級中等學校學生免學費,臺灣省彰化縣私立文興高級中學,"3,310,897"
113/03/12,國民及學前教育行政及督導-對學生之獎助,112學年度第1學期高級中等學校學生免學費,財團法人嘉義市私立興華高級中學,"6,623"
113/03/12,國民及學前教育行政及督導-對學生之獎助,112學年度第2學期高級中等學校學生免學費,臺南市私立育德工業家事職業學校,"2,026,199"
113/03/12,國民及學前教育行政及督導-對學生之獎助,112學年度第2學期高級中等學校學生免學費,雲林縣私立大成高級商工職業學校,"902,208"
113/03/12,國民及學前教育行政及督導-對學生之獎助,112學年度第2學期高級中等學校學生免學費,臺南市私立育德工業家事職業學校,"1,597,660"
113/03/12,國民及學前教育行政及督導-對學生之獎助,112學年度第2學期高級中等學校學生免學費,高雄縣私立旗美高級商工職業學校,"263,144"
113/03/12,國民及學前教育行政及督導-對學生之獎助,112學年度第2學期高級中等學校學生免學費,彰化縣私立大慶高級商工職業學校,"2,708,965"
113/03/12,國民及學前教育行政及督導-對學生之獎助,112學年度第2學期高級中等學校學生免學費,臺南市私立育德工業家事職業學校,"711,908"
113/03/12,國民及學前教育行政及督導-對學生之獎助,112學年度第2學期高級中等學校學生免學費,雲林縣私立大成高級商工職業學校,"316,992"
113/03/12,國民及學前教育行政及督導-對學生之獎助,112學年度第2學期高級中等學校學生免學費,臺南市私立育德工業家事職業學校,"561,340"
113/03/12,國民及學前教育行政及督導-對學生之獎助,112學年度第2學期高級中等學校學生免學費,高雄縣私立旗美高級商工職業學校,"92,456"
113/03/12,國民及學前教育行政及督導-對學生之獎助,112學年度第2學期高級中等學校學生免學費,彰化縣私立大慶高級商工職業學校,"951,798"
113/03/12,國民及學前教育行政及督導-對學生之獎助,112學年度第2學期高級中等學校學生免學費,新竹縣政府教育局地方教育發展基金專戶,"2,284,226"
113/03/12,國民及學前教育行政及督導-對學生之獎助,112學年度第2學期高級中等學校學生免學費,新竹縣政府教育局地方教育發展基金專戶,"1,284,877"
113/03/12,國民及學前教育行政及督導-對學生之獎助,112學年度第2學期高級中等學校學生免學費,財團法人台灣省雲林縣私立文生高級中學,"4,163,477"
113/03/12,國民及學前教育行政及督導-對學生之獎助,112學年度第2學期高級中等學校學生免學費,台灣省台南市私立慈幼高級工商職業學校,"6,539,518"
113/03/12,國民及學前教育行政及督導-對學生之獎助,112學年度第2學期高級中等學校學生免學費,財團法人台灣省雲林縣私立文生高級中學,"1,462,843"
113/03/12,國民及學前教育行政及督導-對學生之獎助,112學年度第2學期高級中等學校學生免學費,台灣省台南市私立慈幼高級工商職業學校,"2,297,668"
113/03/12,國民及學前教育行政及督導-對學生之獎助,112學年度第2學期高級中等學校學生免學費,未來學校財團法人臺東縣育仁高級中等學校,"695,452"
113/03/12,國民及學前教育行政及督導-對學生之獎助,112學年度第2學期高級中等學校學生免學費,全人學校財團法人苗栗縣全人實驗高級中學,"375,920"
113/03/12,國民及學前教育行政及督導-對學生之獎助,112學年度第2學期高級中等學校學生免學費,未來學校財團法人臺東縣育仁高級中等學校,"244,348"
113/03/12,國民及學前教育行政及督導-對學生之獎助,112學年度第2學期高級中等學校學生免學費,全人學校財團法人苗栗縣全人實驗高級中學,"132,080"
113/03/12,國民及學前教育行政及督導-對學生之獎助,112學年度第2學期高級中等學校學生免學費,陽明學校財團法人臺南市陽明高級工商職業學校,"808,228"
113/03/12,國民及學前教育行政及督導-對學生之獎助,112學年度第2學期高級中等學校學生免學費,陽明學校財團法人臺南市陽明高級工商職業學校,"916,177"
113/03/12,國民及學前教育行政及督導-對學生之獎助,112學年度第2學期高級中等學校學生免學費,陽明學校財團法人臺南市陽明高級工商職業學校,"283,972"
113/03/12,國民及學前教育行政及督導-對學生之獎助,112學年度第2學期高級中等學校學生免學費,陽明學校財團法人臺南市陽明高級工商職業學校,"321,900"
113/03/13,國民及學前教育行政及督導-對各縣市政府之補助,113年度補助各地方政府設置學生輔導諮商中心經費,南投縣政府,"1,743,706"
113/03/13,國民及學前教育行政及督導-對各縣市政府之補助,113年度補助各地方政府設置學生輔導諮商中心經費,南投縣政府,"74,760"
113/03/13,國民及學前教育行政及督導-對各縣市政府之補助,113年度實施新住民子女教育經費,新竹縣政府,"300,254"
113/03/13,國民及學前教育行政及督導-對各縣市政府之補助,113年度實施新住民子女華語文學習扶助課程經費,新竹縣政府,"251,433"
113/03/13,國民及學前教育行政及督導-對各縣市政府之補助,113學年度各就學區高級中等學校免試入學經費第2期款,花蓮縣政府,"980,000"
113/03/13,國民及學前教育行政及督導-對各縣市政府之補助,113學年度各就學區高級中等學校免試入學經費第2期款,臺東縣政府,"1,050,000"
113/03/13,國民及學前教育行政及督導-對直轄市政府之補助,112學年度本土語文指導員第2期款,桃園市政府,"1,108,800"
113/03/13,國民及學前教育行政及督導-對各縣市政府之補助,112學年度學習區完全免試國中提升學習品質計畫第2期款,屏東縣政府,"661,293"
113/03/13,國民及學前教育行政及督導-對各縣市政府之補助,112學年度偏遠地區學校推動國小合理教師員額事項所需經費第2期款,嘉義縣政府,"26,285,952"
113/03/13,國民及學前教育行政及督導-對各縣市政府之補助,112學年度偏遠地區學校推動國小合理教師員額事項所需經費第2期款,嘉義縣政府,"19,180,728"
113/03/13,國民及學前教育行政及督導-對各縣市政府之補助,112學年度教學訪問教師計畫之原服務學校聘任代理教師第2期款,新竹縣政府,"325,000"
113/03/13,國民及學前教育行政及督導-對各縣市政府之補助,112學年度國民中小學充實行政人力第2期款,南投縣政府,"9,880,000"
113/03/13,國民及學前教育行政及督導-對各縣市政府之補助,112學年度偏遠地區學校國中合理教師員額事項經費第2期款,臺東縣政府,"17,252,608"
113/03/13,國民及學前教育行政及督導-對各縣市政府之補助,112學年度偏遠地區學校國中合理教師員額事項經費第2期款,臺東縣政府,"3,577,392"
113/03/13,國民及學前教育行政及督導-對各縣市政府之補助,112學年度偏遠地區學校國中增置專長教師員額所需經費第2期款,臺東縣政府,"819,000"
113/03/13,國民及學前教育行政及督導-對各縣市政府之補助,112學年度活化教學~分組合作學習的理念與實踐方案第2期款,嘉義縣政府,"25,500"
113/03/13,國民及學前教育行政及督導-對各縣市政府之補助,113年度國民中小學閱讀推動計畫經費,臺東縣政府,"827,200"
113/03/13,國民及學前教育行政及督導-對直轄市政府之補助,113年度教育部卓越獎初選活動經費及獎金補助經費,桃園市政府,"258,000"
113/03/13,國民及學前教育行政及督導-對各縣市政府之補助,113年度教育部卓越獎初選活動經費及獎金補助經費,新竹市政府,"77,400"
113/03/13,國民及學前教育行政及督導-對各縣市政府之補助,113年度教育部卓越獎初選活動經費及獎金補助經費,花蓮縣政府,"79,200"
113/03/13,國民及學前教育行政及督導-對各縣市政府之補助,113年度教育部卓越獎初選活動經費及獎金補助經費,雲林縣政府,"108,000"
113/03/13,國民及學前教育行政及督導-對各縣市政府之補助,113年度教育部卓越獎初選活動經費及獎金補助經費,宜蘭縣政府,"79,200"
113/03/13,國民及學前教育行政及督導-對各縣市政府之補助,113年度教育部卓越獎初選活動經費及獎金補助經費,屏東縣政府,"108,000"
113/03/13,國民及學前教育行政及督導-對各縣市政府之補助,113年度教育部卓越獎初選活動經費及獎金補助經費,嘉義市政府,"79,200"
113/03/13,國民及學前教育行政及督導-對各縣市政府之補助,113年度教育部卓越獎初選活動經費及獎金補助經費,基隆市政府,"77,400"
113/03/13,國民及學前教育行政及督導-對國內團體之捐助,2024年寒假教師研習計畫經費,台灣教師聯盟,"176,600"
113/03/13,國民及學前教育行政及督導-對特種基金之補助,113年度度臺灣高中職思辨與英語論辯推廣計畫,國立臺灣師範大學,"2,570,000"
113/03/13,國民及學前教育行政及督導-對直轄市政府之補助,113學年度各就學區高級中等學校免試入學經費第2期款,臺南市政府教育局,"770,000"
113/03/13,國民及學前教育行政及督導-對特種基金之補助,112下半年高級中等學校編制內教師參加客語及閩南語能力認證中高級報名費,國立竹南高級中學,"3,050"
113/03/13,國民及學前教育行政及督導-對特種基金之補助,112下半年高級中等學校編制內教師參加客語及閩南語能力認證中高級報名費,國立北門高級中學,"5,600"
113/03/13,國民及學前教育行政及督導-對直轄市政府之補助,桃源及那瑪夏國中113年度莫拉克風災國小學生安置計畫經費,高雄市政府教育局,"924,000"
113/03/13,國民及學前教育行政及督導-對直轄市政府之補助,112學年度科技教育推動總體計畫第3期款,臺中市政府教育局,"5,320,000"
113/03/13,國民及學前教育行政及督導-對直轄市政府之補助,112學年度活化教學~分組合作學習的理念與實踐方案第2期款,臺中市政府教育局,"464,000"
113/03/13,國民及學前教育行政及督導-對直轄市政府之補助,113年度國民中小學閱讀推動計畫經費,臺北市政府教育局,"392,070"
113/03/13,國民及學前教育行政及督導-對直轄市政府之補助,113年度教育部卓越獎初選活動經費及獎金補助經費,高雄市政府教育局,"309,600"
113/03/13,國民及學前教育行政及督導-對直轄市政府之補助,113年度教育部卓越獎初選活動經費及獎金補助經費,臺南市政府教育局,"206,400"
113/03/13,國民及學前教育行政及督導-對私校之獎助,補助113年度綜合高中學程經費,嘉義市立仁高級中學,"155,000"
113/03/13,國民及學前教育行政及督導-對私校之獎助,補助113年度綜合高中學程經費(資),嘉義市立仁高級中學,"20,000"
113/03/13,國民及學前教育行政及督導-對私校之獎助,112學年度(113年1─7月)辦理集中式特教班經費,新竹市世界高級中學,"869,000"
113/03/13,國民及學前教育行政及督導-對私校之獎助,112學年度(113年1─7月)辦理集中式特教班經費,新竹縣仰德高級中學,"2,525,000"
113/03/13,國民及學前教育行政及督導-對私校之獎助,112學年度(113年1─7月)辦理集中式特教班經費,新竹市世界高級中學,"58,000"
113/03/13,國民及學前教育行政及督導-對私校之獎助,112學年度(113年1─7月)辦理集中式特教班經費,新竹縣仰德高級中學,"175,000"
113/03/13,國民及學前教育行政及督導-對學生之獎助,沖轉黃品婕借支113年1-6月國際數理奧林匹亞競賽金牌及美國國際科展一等獎學生出國留學獎學金及匯費手續費-學生劉〇愉,交臺銀霧峰分行結匯,"237,863"
113/03/13,國民及學前教育行政及督導-投資,113年充實公立國民中小學圖書館(室)藏書量經費,國立卓蘭高級中等學校,"98,950"
113/03/13,國民及學前教育行政及督導-對特種基金之補助,113年度高級中等學校充實教學及實習設備計畫-一般科目(資),國立中科實驗高級中學,"257,000"
113/03/13,國民及學前教育行政及督導-對特種基金之補助,112下半年高級中等學校編制內教師參加客語及閩南語能力認證中高級報名費,國立新竹特殊教育學校,"7,100"
113/03/13,國民及學前教育行政及督導-對私校之獎助,112學年度(113年1─7月)辦理集中式特教班經費,臺南市私立新榮高級中學,"834,000"
113/03/13,國民及學前教育行政及督導-對私校之獎助,112學年度(113年1─7月)辦理集中式特教班經費,臺南市私立新榮高級中學,"58,000"
113/03/13,國民及學前教育行政及督導-投資,113年度公立國民中小學老舊廁所整修工程計畫第1期款,國立臺北教育大學附設實小,"2,774,400"
113/03/13,國民及學前教育行政及督導-對特種基金之補助,112學年度第2學期聘任資源班外加代理教師經費,國立新竹高級商業職業學校,"355,938"
113/03/13,國民及學前教育行政及督導-對特種基金之補助,113年度高級中等學校充實教學及實習設備計畫-一般科目,國立南科國際實驗高級中學,"82,630"
113/03/13,國民及學前教育行政及督導-對特種基金之補助,113年度高級中等學校充實教學及實習設備計畫-一般科目(資),國立南科國際實驗高級中學,"174,370"
113/03/13,國民及學前教育行政及督導-對特種基金之補助,112學年度月薪制教師助理員經費,國立屏東高級工業職業學校,"253,144"
113/03/13,國民及學前教育行政及督導-對特種基金之補助,112學年度月薪制教師助理員經費,國立佳冬高級農業職業學校,"253,144"
113/03/13,國民及學前教育行政及督導-對特種基金之補助,112學年度臨時特殊教育助理人員經費,國立旗山高級農工職業學校,"167,021"
113/03/13,國民及學前教育行政及督導-對特種基金之補助,112學年度臨時特殊教育助理人員經費,國立秀水高級工業職業學校,"84,479"
113/03/13,國民及學前教育行政及督導-對特種基金之補助,112下半年高級中等學校編制內教師參加客語及閩南語能力認證中高級報名費,國立恆春高級工商職業學校,"3,300"
113/03/13,國民及學前教育行政及督導-對特種基金之補助,112下半年高級中等學校編制內教師參加客語及閩南語能力認證中高級報名費,國立宜蘭高級商業職業學校,750
113/03/13,國民及學前教育行政及督導-對特種基金之補助,112下半年高級中等學校編制內教師參加客語及閩南語能力認證中高級報名費,國立彰化高級商業職業學校,"3,300"
113/03/13,國民及學前教育行政及督導-對特種基金之補助,112下半年高級中等學校編制內教師參加客語及閩南語能力認證中高級報名費,國立嘉義高級商業職業學校,"2,800"
113/03/13,國民及學前教育行政及督導-對特種基金之補助,112下半年高級中等學校編制內教師參加客語及閩南語能力認證中高級報名費,國立內埔高級農工職業學校,"5,600"
113/03/13,國民及學前教育行政及督導-對國內團體之捐助,自主學習帶領者培力計畫經費,社團法人中華民國振鐸學會,"431,352"
113/03/13,國民及學前教育行政及督導-對私校之獎助,113年度高級中等學校充實建置學生學習歷程檔案之學校專責辦理學習歷程檔案業務人員加班費,新竹市私立曙光女子高級中學,"30,000"
113/03/13,國民及學前教育行政及督導-投資,111年度改善無障礙校園環境計畫(新建無障礙電梯)經費,國立台南高級海事水產職業學校,"3,600,000"
113/03/13,國民及學前教育行政及督導-對私校之獎助,補助113年度綜合高中學程經費,臺灣省雲林縣私立巨人高級中學,"260,000"
113/03/13,國民及學前教育行政及督導-對私校之獎助,補助113年度綜合高中學程經費(資),臺灣省雲林縣私立巨人高級中學,"48,000"
113/03/13,國民及學前教育行政及督導-對特種基金之補助,112下半年高級中等學校編制內教師參加客語及閩南語能力認證中高級報名費,國立曾文高級家事商業職業學校,"5,850"
113/03/13,國民及學前教育行政及督導-對特種基金之補助,112下半年高級中等學校編制內教師參加客語及閩南語能力認證中高級報名費,國立澎湖高級海事水產職業學校,"3,050"
113/03/13,國民及學前教育行政及督導-對私校之獎助,112學年度寒假輔導臨時特殊教育助理人員經費,財團法人雲林縣私立正心高級中學,"6,100"
113/03/13,國民及學前教育行政及督導-對學生之獎助,"112學年度第2學期建教合作班學生免學雜費補助(1,701,800、169,175)",彰化縣私立大慶高級商工職業學校,"1,870,975"
113/03/13,國民及學前教育行政及督導-對學生之獎助,112學年度第2學期產業特殊需求類科學生免學雜費補助,雲林縣私立大成高級商工職業學校,"1,919,419"
113/03/13,國民及學前教育行政及督導-對私校之獎助,補助113年度綜合高中學程經費,財團法人花蓮縣私立海星高級中學,"365,000"
113/03/13,國民及學前教育行政及督導-對私校之獎助,補助113年度綜合高中學程經費(資),財團法人花蓮縣私立海星高級中學,"76,000"
113/03/13,國民及學前教育行政及督導-對私校之獎助,113年度聘任特殊教育行政助理經費,財團法人南投縣私立五育高級中學,"306,026"
113/03/13,國民及學前教育行政及督導-對學生之獎助,112學年度第2學期實用技能學程學生免學雜費補助,臺東縣私立公東高級工業職業學校,"1,222,340"
113/03/13,國民及學前教育行政及督導-對私校之獎助,112學年度第2學期高級中等學校遴聘業界專家協同教學經費,雲林縣私立大德工業商業職業學校,"40,898"
113/03/13,國民及學前教育行政及督導-對私校之獎助,112下半年高級中等學校編制內教師參加客語及閩南語能力認證中高級報名費,財團法人嘉義市私立興華高級中學,"3,050"
113/03/13,國民及學前教育行政及督導-對私校之獎助,112學年度(113年1─7月)辦理集中式特教班經費,雲林縣私立大德工業商業職業學校,"1,277,000"
113/03/13,國民及學前教育行政及督導-對私校之獎助,112學年度(113年1─7月)辦理集中式特教班經費,高雄縣私立旗美高級商工職業學校,"834,000"
113/03/13,國民及學前教育行政及督導-對私校之獎助,112學年度(113年1─7月)辦理集中式特教班經費,高雄縣私立高苑高級工商職業學校,"1,289,000"
113/03/13,國民及學前教育行政及督導-對私校之獎助,112學年度(113年1─7月)辦理集中式特教班經費,雲林縣私立大德工業商業職業學校,"87,000"
113/03/13,國民及學前教育行政及督導-對私校之獎助,112學年度(113年1─7月)辦理集中式特教班經費,高雄縣私立旗美高級商工職業學校,"58,000"
113/03/13,國民及學前教育行政及督導-對私校之獎助,112學年度(113年1─7月)辦理集中式特教班經費,高雄縣私立高苑高級工商職業學校,"87,000"
113/03/13,國民及學前教育行政及督導-對私校之獎助,113年度聘任特殊教育行政助理經費,嘉義市私立東吳高級工業家事職業學校,"218,590"
113/03/13,國民及學前教育行政及督導-對私校之獎助,112學年度(113年1─7月)辦理集中式特教班經費,義峰學校財團法人雲林縣義峰高級中學,"880,000"
113/03/13,國民及學前教育行政及督導-對私校之獎助,112學年度(113年1─7月)辦理集中式特教班經費,義峰學校財團法人雲林縣義峰高級中學,"58,000"
113/03/13,國民及學前教育行政及督導-對私校之獎助,112學年度第2學期高級中等學校遴聘業界專家協同教學經費,台灣省台南市私立慈幼高級工商職業學校,"205,365"
113/03/13,國民及學前教育行政及督導-對私校之獎助,112下半年高級中等學校編制內教師參加客語及閩南語能力認證中高級報名費,臺灣省台南市私立南英高級商工職業學校,"3,050"
113/03/13,國民及學前教育行政及督導-對私校之獎助,112下半年高級中等學校編制內教師參加客語及閩南語能力認證中高級報名費,方濟會學校財團法人臺南市黎明高級中學,"3,300"
113/03/13,國民及學前教育行政及督導-對學生之獎助,112學年度第2學期實用技能學程學生免學雜費補助,陽明學校財團法人臺南市陽明高級工商職業學校,"343,800"
113/03/13,國民及學前教育行政及督導-對私校之獎助,112學年度(113年1─7月)辦理集中式特教班經費,崑山國際學校財團法人臺南市崑山高級中等學校,"1,324,000"
113/03/13,國民及學前教育行政及督導-對私校之獎助,112學年度(113年1─7月)辦理集中式特教班經費,崑山國際學校財團法人臺南市崑山高級中等學校,"87,000"
113/03/14,國民及學前教育行政及督導-對私校之獎助,補助113年本署所轄私立高中職公保養老超額年金費用-2月支票,賴〇誌,"4,253"
113/03/14,國民及學前教育行政及督導-對私校之獎助,補助113年本署所轄私立高中職公保養老超額年金費用-2月支票,黃〇華,"2,302"
113/03/14,國民及學前教育行政及督導-對私校之獎助,補助113年本署所轄私立高中職公保養老超額年金費用-2月支票,李〇華,"3,923"
113/03/14,國民及學前教育行政及督導-對私校之獎助,補助113年本署所轄私立高中職公保養老超額年金費用-2月支票,施〇娥,"4,581"
113/03/14,國民及學前教育行政及督導-政府機關間之補助,113年度高級中等學校充實教學及實習設備計畫-一般科目(資),敦品中學,"257,000"
113/03/14,國民及學前教育行政及督導-政府機關間之補助,113年度高級中等學校充實教學及實習設備計畫-一般科目(資),勵志中學,"253,500"
113/03/14,國民及學前教育行政及督導-政府機關間之補助,113年度高級中等學校充實教學及實習設備計畫-一般科目,勵志中學,"3,500"
113/03/14,國民及學前教育行政及督導-對各縣市政府之補助,112學年度精進國民中小學教師教學專業與課程品質計畫第2期經費,金門縣政府,"6,794,653"
113/03/14,國民及學前教育行政及督導-對各縣市政府之補助,保長國小112年度充實設施設備-智慧學習教室教學設備經費,雲林縣政府,"882,000"
113/03/14,國民及學前教育行政及督導-對各縣市政府之補助,112學年度一般地區學校推動國小合理教師員額事項所需經費第2期款,新竹縣政府,"74,884,992"
113/03/14,國民及學前教育行政及督導-對各縣市政府之補助,112學年度一般地區學校推動國小合理教師員額事項所需經費第2期款,新竹縣政府,"11,599,090"
113/03/14,國民及學前教育行政及督導-對各縣市政府之補助,112學年度國民中小學充實行政人力第2期款,新竹縣政府,"5,460,000"
113/03/14,國民及學前教育行政及督導-對各縣市政府之補助,112學年度國民中小學本土教育整體推動方案暨教師及學生多元相關活動第2期款,嘉義市政府,"1,237,716"
113/03/14,國民及學前教育行政及督導-對直轄市政府之補助,大額通報教補3月18日-112學年度公私立國民中小學調整教師授課節數及導師費實施計畫第3期款,桃園市政府,"171,592,167"
113/03/14,國民及學前教育行政及督導-對各縣市政府之補助,大額通報教補3月18日-112學年度公私立國民中小學調整教師授課節數及導師費實施計畫第3期款,雲林縣政府,"43,144,124"
113/03/14,國民及學前教育行政及督導-對各縣市政府之補助,大額通報教補3月18日-112學年度我國少子女化對策計畫之各項幼生就學補助及育兒津貼等經費第4期款,嘉義市政府,"85,098,500"
113/03/14,國民及學前教育行政及督導-對各縣市政府之補助,大額通報教補3月18日-112學年度我國少子女化對策計畫之各項幼生就學補助及育兒津貼等經費第4期款,花蓮縣政府,"99,160,000"
113/03/14,國民及學前教育行政及督導-對直轄市政府之補助,113年導師職務加給差額經費撥付-第1期,桃園市政府,"4,999,104"
113/03/14,國民及學前教育行政及督導-對各縣市政府之補助,113年導師職務加給差額經費撥付-第1期,宜蘭縣政府,"96,120"
113/03/14,國民及學前教育行政及督導-對各縣市政府之補助,113年導師職務加給差額經費撥付-第1期,苗栗縣政府,"447,120"
113/03/14,國民及學前教育行政及督導-對各縣市政府之補助,113年導師職務加給差額經費撥付-第1期,彰化縣政府,"563,904"
113/03/14,國民及學前教育行政及督導-對各縣市政府之補助,113年導師職務加給差額經費撥付-第1期,南投縣政府,"134,568"
113/03/14,國民及學前教育行政及督導-對各縣市政府之補助,113年導師職務加給差額經費撥付-第1期,雲林縣政府,"330,480"
113/03/14,國民及學前教育行政及督導-對各縣市政府之補助,113年導師職務加給差額經費撥付-第1期,嘉義縣政府,"246,240"
113/03/14,國民及學前教育行政及督導-對各縣市政府之補助,113年導師職務加給差額經費撥付-第1期,屏東縣政府,"414,720"
113/03/14,國民及學前教育行政及督導-對各縣市政府之補助,113年導師職務加給差額經費撥付-第1期,臺東縣政府,"19,440"
113/03/14,國民及學前教育行政及督導-對各縣市政府之補助,113年導師職務加給差額經費撥付-第1期,花蓮縣政府,"38,448"
113/03/14,國民及學前教育行政及督導-對各縣市政府之補助,113年導師職務加給差額經費撥付-第1期,基隆市政府,"316,800"
113/03/14,國民及學前教育行政及督導-對各縣市政府之補助,113年導師職務加給差額經費撥付-第1期,新竹市政府,"506,880"
113/03/14,國民及學前教育行政及督導-對各縣市政府之補助,112學年度補助地方政府辦理健康促進學校經費第2期款,苗栗縣政府,"1,215,520"
113/03/14,國民及學前教育行政及督導-對各縣市政府之補助,112學年度補助地方政府辦理健康促進學校經費第2期款,臺東縣政府,"816,912"
113/03/14,國民及學前教育行政及督導-對各縣市政府之補助,112學年度原住民族教育資源中心第3期款,新竹市政府,"189,200"
113/03/14,國民及學前教育行政及督導-對各縣市政府之補助,112學年度原住民族教育資源中心第3期款,澎湖縣政府,"270,000"
113/03/14,國民及學前教育行政及督導-對各縣市政府之補助,113年度國民中小學閱讀推動計畫經費,雲林縣政府,"972,400"
113/03/14,國民及學前教育行政及督導-對各縣市政府之補助,112學年度偏遠地區學校及非山非市學校整合性計畫第2期款,基隆市政府,"1,959,999"
113/03/14,國民及學前教育行政及督導-對各縣市政府之補助,112學年度偏遠地區學校及非山非市學校整合性計畫第2期款,苗栗縣政府,"1,720,000"
113/03/14,國民及學前教育行政及督導-對直轄市政府之補助,113年度高級中等學校充實教學及實習設備計畫-一般科目,桃園市政府,"1,874,040"
113/03/14,國民及學前教育行政及督導-對各縣市政府之補助,113年度高級中等學校充實教學及實習設備計畫-一般科目,新竹縣政府,"450,245"
113/03/14,國民及學前教育行政及督導-對各縣市政府之補助,113年度高級中等學校充實教學及實習設備計畫-一般科目,新竹縣政府,"205,955"
113/03/14,國民及學前教育行政及督導-對直轄市政府之補助,113年度實施新住民子女教育經費,桃園市政府,"1,305,436"
113/03/14,國民及學前教育行政及督導-對各縣市政府之補助,113年度實施新住民子女教育經費,苗栗縣政府,"161,120"
113/03/14,國民及學前教育行政及督導-對各縣市政府之補助,113年度實施新住民子女華語文學習扶助課程,屏東縣政府,"35,058"
113/03/14,國民及學前教育行政及督導-對各縣市政府之補助,113年度實施新住民子女華語文學習扶助課程,苗栗縣政府,"312,445"
113/03/14,國民及學前教育行政及督導-對各縣市政府之補助,112下半年高級中等學校編制內教師參加客語及閩南語能力認證中高級報名費,彰化縣政府,"2,937"
113/03/14,國民及學前教育行政及督導-對直轄市政府之補助,大額通報教補3月18日-113年桃園市政府承接教育部國、私立高級中等學校功能調整及業務移撥所需經費-3,桃園市政府,"151,429,000"
113/03/14,國民及學前教育行政及督導-對直轄市政府之補助,112學年度學務創新人力第2期款,高雄市政府教育局,"4,343,570"
113/03/14,國民及學前教育行政及督導-對特種基金之補助,113年度高級中等以下學校友善提供多元生理用品及推動月經平權計畫,國立虎尾高級中學,"84,000"
113/03/14,國民及學前教育行政及督導-對特種基金之補助,113年度高級中等以下學校友善提供多元生理用品及推動月經平權計畫,國立新化高級中學,"105,600"
113/03/14,國民及學前教育行政及督導-對特種基金之補助,113年度高級中等以下學校友善提供多元生理用品及推動月經平權計畫,國立旗美高級中學,"201,600"
113/03/14,國民及學前教育行政及督導-對特種基金之補助,113年度高級中等以下學校友善提供多元生理用品及推動月經平權計畫,國立屏東高級中學,"52,800"
113/03/14,國民及學前教育行政及督導-對特種基金之補助,113年度高級中等以下學校友善提供多元生理用品及推動月經平權計畫,國立潮州高級中學,"276,000"
113/03/14,國民及學前教育行政及督導-對直轄市政府之補助,臺南400全民教育-教育的時空旅行主題展推廣實施計畫第2期款,臺南市政府教育局,"2,940,000"
113/03/14,國民及學前教育行政及督導-對直轄市政府之補助,大額通報教補3月18日-112學年度公私立國民中小學調整教師授課節數及導師費實施計畫第3期款,臺北市政府教育局,"196,688,478"
113/03/14,國民及學前教育行政及督導-對直轄市政府之補助,大額通報教補3月18日-112學年度公私立國民中小學調整教師授課節數及導師費實施計畫第3期款,新北市政府教育局,"268,483,663"
113/03/14,國民及學前教育行政及督導-對直轄市政府之補助,大額通報教補3月18日-112學年度我國少子女化對策計畫之各項幼生就學補助及育兒津貼等經費第4期款,高雄市政府教育局,"906,915,000"
113/03/14,國民及學前教育行政及督導-對直轄市政府之補助,113年導師職務加給差額經費撥付-第1期,臺中市政府教育局,"7,410,312"
113/03/14,國民及學前教育行政及督導-對直轄市政府之補助,113年導師職務加給差額經費撥付-第1期,臺南市政府教育局,"323,136"
113/03/14,國民及學前教育行政及督導-對直轄市政府之補助,113年導師職務加給差額經費撥付-第1期,高雄市政府教育局,"6,513,408"
113/03/14,國民及學前教育行政及督導-對直轄市政府之補助,112學年度國立中小學及直轄市立特殊教育學校調整教師授課節數及導師職務加給實施計畫第2期款,高雄市政府教育局,"2,108,341"
113/03/14,國民及學前教育行政及督導-對特種基金之補助,112學年度偏遠地區及非山非市公立高級中等學校學生通學交通費實施計畫,國立北門高級中學,"3,059,936"
113/03/14,國民及學前教育行政及督導-對直轄市政府之補助,112學年度國立學校本土語文(閩南語﹑閩東語﹑客語及原住民族語)及臺灣手語國中開課經費,臺北市政府教育局,"5,785,585"
113/03/14,國民及學前教育行政及督導-對直轄市政府之補助,112學年度國立學校本土語文(閩南語﹑閩東語﹑客語及原住民族語)及臺灣手語國中開課經費,臺北市政府教育局,"6,154,878"
113/03/14,國民及學前教育行政及督導-對直轄市政府之補助,112學年度國立學校本土語文(閩南語﹑閩東語﹑客語及原住民族語)及臺灣手語國中開課經費,臺北市政府教育局,"369,293"
113/03/14,國民及學前教育行政及督導-對特種基金之補助,112學年度高級中等學校本土語文(閩南語、閩東語、客語文)課程開課經費(第2期),國立鳳新高級中學,"161,606"
113/03/14,國民及學前教育行政及督導-對特種基金之補助,112學年度高級中等學校臺灣手語課程開課經費(第2期),國立斗六高級中學,"147,859"
113/03/14,國民及學前教育行政及督導-對直轄市政府之補助,112學年度科技教育推動總體計畫第3期款,臺南市政府教育局,"632,632"
113/03/14,國民及學前教育行政及督導-對特種基金之補助,112下半年高級中等學校編制內教師參加客語及閩南語能力認證中高級報名費,國立東石高級中學,"2,800"
113/03/14,國民及學前教育行政及督導-對特種基金之補助,112下半年高級中等學校編制內教師參加客語及閩南語能力認證中高級報名費,國立竹山高級中學,"2,800"
113/03/14,國民及學前教育行政及督導-對特種基金之補助,112下半年高級中等學校編制內教師參加客語及閩南語能力認證中高級報名費,國立宜蘭高級中學,500
113/03/14,國民及學前教育行政及督導-對特種基金之補助,112下半年高級中等學校編制內教師參加客語及閩南語能力認證中高級報名費,國立鳳新高級中學,250
113/03/14,國民及學前教育行政及督導-對特種基金之補助,112下半年高級中等學校編制內教師參加客語及閩南語能力認證中高級報名費,國立花蓮高級中學,500
113/03/14,國民及學前教育行政及督導-對特種基金之補助,112下半年高級中等學校編制內教師參加客語及閩南語能力認證中高級報名費,國立鹿港高級中學,"3,050"
113/03/14,國民及學前教育行政及督導-對直轄市政府之補助,112下半年高級中等學校編制內教師參加客語及閩南語能力認證中高級報名費,臺中市政府教育局,"29,325"
113/03/14,國民及學前教育行政及督導-對私校之獎助,113年度高級中等以下學校友善提供多元生理用品及推動月經平權計畫,嘉義市立仁高級中學,"12,000"
113/03/14,國民及學前教育行政及督導-政府機關間之補助,113年度高級中等學校充實教學及實習設備計畫-一般科目(資),誠正中學301專戶,"257,000"
113/03/14,國民及學前教育行政及督導-政府機關間之補助,113年度高級中等學校充實教學及實習設備計畫-一般科目(資),明陽中學301專戶,"172,700"
113/03/14,國民及學前教育行政及督導-政府機關間之補助,113年度高級中等學校充實教學及實習設備計畫-一般科目,明陽中學301專戶,"84,300"
113/03/14,國民及學前教育行政及督導-對學生之獎助,112學年度第2學期高級中等學校特殊境遇家庭子女孫子女學雜費減免補助,新竹縣仰德高級中學,"12,591"
113/03/14,國民及學前教育行政及督導-對學生之獎助,112學年度第2學期高級中等學校低收入戶及中低收入戶學生學雜費減免補助,新竹縣仰德高級中學,"559,020"
113/03/14,國民及學前教育行政及督導-對學生之獎助,112學年度第2學期高級中等學校低收入戶及中低收入戶學生學雜費減免補助,新竹縣仰德高級中學,"63,849"
113/03/14,國民及學前教育行政及督導-對私校之獎助,113年度高級中等以下學校友善提供多元生理用品及推動月經平權計畫,慈濟大學附屬高級中學,"60,000"
113/03/14,國民及學前教育行政及督導-對特種基金之補助,113年度高級中等以下學校友善提供多元生理用品及推動月經平權計畫,國立屏東女子高級中學,"410,400"
113/03/14,國民及學前教育行政及督導-對特種基金之補助,113年度高級中等以下學校友善提供多元生理用品及推動月經平權計畫,國立苗栗特殊教育學校,"45,600"
113/03/14,國民及學前教育行政及督導-對特種基金之補助,112學年度學務創新人力第2期款,國立台東女子高級中學,"557,453"
113/03/14,國民及學前教育行政及督導-對特種基金之補助,112學年度國民中學生涯發展教育計畫第2期款,國立中科實驗高級中學,"27,200"
113/03/14,國民及學前教育行政及督導-對特種基金之補助,112學年度國立中小學及直轄市立特殊教育學校調整教師授課節數及導師職務加給實施計畫第2期款,國立嘉義大學附設實小,"222,375"
113/03/14,國民及學前教育行政及督導-對特種基金之補助,112學年度國立中小學及直轄市立特殊教育學校調整教師授課節數及導師職務加給實施計畫第2期款,國立卓蘭高級中等學校,"677,825"
113/03/14,國民及學前教育行政及督導-對特種基金之補助,112學年度國立中小學及直轄市立特殊教育學校調整教師授課節數及導師職務加給實施計畫第2期款,國立臺南大學附設實小,"288,749"
113/03/14,國民及學前教育行政及督導-對國內團體之捐助,2024第7屆全國高中物理探究與實作競賽計畫,中華民國物理教育學會,"800,000"
113/03/14,國民及學前教育行政及督導-對特種基金之補助,高級中等學校辦理交通安全教育課程活動實施計畫,國立中科實驗高級中學,"100,000"
113/03/14,國民及學前教育行政及督導-對特種基金之補助,112下半年高級中等學校編制內教師參加客語及閩南語能力認證中高級報名費,國立嘉義女子高級中學,500
113/03/14,國民及學前教育行政及督導-對特種基金之補助,112下半年高級中等學校編制內教師參加客語及閩南語能力認證中高級報名費,國立宜蘭特殊教育學校,"2,800"
113/03/14,國民及學前教育行政及督導-對私校之獎助,113年度高級中等以下學校友善提供多元生理用品及推動月經平權計畫,新竹縣私立義民高級中學,"96,000"
113/03/14,國民及學前教育行政及督導-對私校之獎助,113年度高級中等以下學校友善提供多元生理用品及推動月經平權計畫,臺南市私立南光高級中學,"50,400"
113/03/14,國民及學前教育行政及督導-對私校之獎助,113年度高級中等以下學校友善提供多元生理用品及推動月經平權計畫,臺南市私立港明高級中學,"21,600"
113/03/14,國民及學前教育行政及督導-對私校之獎助,113年度高級中等以下學校友善提供多元生理用品及推動月經平權計畫,新竹市私立光復高級中學,"252,000"
113/03/14,國民及學前教育行政及督導-對私校之獎助,112下半年高級中等學校編制內教師參加客語及閩南語能力認證中高級報名費,新竹縣私立義民高級中學,"8,650"
113/03/14,國民及學前教育行政及督導-對學生之獎助,112學年度第2學期高級中等學校特殊境遇家庭子女孫子女學雜費減免補助,新竹縣私立義民高級中學,"4,641"
113/03/14,國民及學前教育行政及督導-對學生之獎助,112學年度第2學期高級中等學校低收入戶及中低收入戶學生學雜費減免補助,新竹縣私立義民高級中學,"377,335"
113/03/14,國民及學前教育行政及督導-對學生之獎助,112學年度第2學期高級中等學校低收入戶及中低收入戶學生學雜費減免補助,新竹市私立磐石高級中學,"155,135"
113/03/14,國民及學前教育行政及督導-對學生之獎助,112學年度第2學期高級中等學校低收入戶及中低收入戶學生學雜費減免補助,新竹市私立磐石高級中學,"30,300"
113/03/14,國民及學前教育行政及督導-對學生之獎助,112學年度第2學期高級中等學校低收入戶及中低收入戶學生學雜費減免補助,新竹縣私立義民高級中學,"22,524"
113/03/14,國民及學前教育行政及督導-對學生之獎助,112學年度第2學期高級中等學校低收入戶及中低收入戶學生學雜費減免補助,新竹市私立磐石高級中學,"42,348"
113/03/14,國民及學前教育行政及督導-對學生之獎助,112學年度第2學期高級中等學校低收入戶及中低收入戶學生學雜費減免補助,高雄市私立正義高級中學,"27,558"
113/03/14,國民及學前教育行政及督導-對學生之獎助,112學年度第2學期高級中等學校學生免學費,苗栗縣私立建臺高級中學,"9,226,697"
113/03/14,國民及學前教育行政及督導-對學生之獎助,112學年度第2學期高級中等學校學生免學費,新竹縣私立忠信高級中學,"7,781,544"
113/03/14,國民及學前教育行政及督導-對學生之獎助,112學年度第2學期高級中等學校學生免學費,臺南市私立明達高級中學,"3,345,688"
113/03/14,國民及學前教育行政及督導-對學生之獎助,112學年度第2學期高級中等學校學生免學費,嘉義縣私立同濟高級中學,"631,258"
113/03/14,國民及學前教育行政及督導-對學生之獎助,112學年度第2學期高級中等學校學生免學費,苗栗縣私立建臺高級中學,"3,241,813"
113/03/14,國民及學前教育行政及督導-對學生之獎助,112學年度第2學期高級中等學校學生免學費,新竹縣私立忠信高級中學,"2,734,056"
113/03/14,國民及學前教育行政及督導-對學生之獎助,112學年度第2學期高級中等學校學生免學費,臺南市私立明達高級中學,"1,175,512"
113/03/14,國民及學前教育行政及督導-對學生之獎助,112學年度第2學期高級中等學校學生免學費,嘉義縣私立同濟高級中學,"221,794"
113/03/14,國民及學前教育行政及督導-投資,113年度改善或充實國立高級中等學校一般建築及設備,國立金門高級農工職業學校,"3,000,000"
113/03/14,國民及學前教育行政及督導-對特種基金之補助,113年度高級中等以下學校友善提供多元生理用品及推動月經平權計畫,國立臺南大學附屬高級中學,"96,000"
113/03/14,國民及學前教育行政及督導-對特種基金之補助,113年度高級中等以下學校友善提供多元生理用品及推動月經平權計畫,國立羅東高級工業職業學校,"36,000"
113/03/14,國民及學前教育行政及督導-對特種基金之補助,113年度高級中等以下學校友善提供多元生理用品及推動月經平權計畫,國立中興大學附屬高級中學,"93,600"
113/03/14,國民及學前教育行政及督導-對特種基金之補助,113年度高級中等以下學校友善提供多元生理用品及推動月經平權計畫,國立暨南大學附屬高級中學,"165,600"
113/03/14,國民及學前教育行政及督導-對特種基金之補助,113年度高級中等以下學校友善提供多元生理用品及推動月經平權計畫,國立水里高級商工職業學校,"153,600"
113/03/14,國民及學前教育行政及督導-對特種基金之補助,113年度高級中等以下學校友善提供多元生理用品及推動月經平權計畫,國立花蓮高級商業職業學校,"117,600"
113/03/14,國民及學前教育行政及督導-對特種基金之補助,113年度高級中等以下學校友善提供多元生理用品及推動月經平權計畫,國立嘉義高級工業職業學校,"280,800"
113/03/14,國民及學前教育行政及督導-對特種基金之補助,辦理112穩定就學措施補助經費,國立白河高級商工職業學校,"110,000"
113/03/14,國民及學前教育行政及督導-對特種基金之補助,113年度補助全國高級中等學校學生自治組織暨法人或團體辦理相關知能工作坊」計畫經費,國立成功商業水產職業學校,"48,000"
113/03/14,國民及學前教育行政及督導-對特種基金之補助,112學年度國立中小學及直轄市立特殊教育學校調整教師授課節數及導師職務加給實施計畫第2期款,國立臺北教育大學附設實小,"397,498"
113/03/14,國民及學前教育行政及督導-對特種基金之補助,112學年度國立中小學及直轄市立特殊教育學校調整教師授課節數及導師職務加給實施計畫第2期款,國立政治大學附屬高級中學,"830,681"
113/03/14,國民及學前教育行政及督導-對特種基金之補助,商借旗山農工教師至本署所需聘任代理代課教師經費,國立旗山高級農工職業學校,"15,912"
113/03/14,國民及學前教育行政及督導-對特種基金之補助,112學年度高級中等學校原住民族語課程開課經費(第2期),國立屏東高級工業職業學校,"91,370"
113/03/14,國民及學前教育行政及督導-對特種基金之補助,112學年度高級中等學校本土語文(閩南語、閩東語、客語文)課程開課經費(第2期),國立屏東高級工業職業學校,"90,594"
113/03/14,國民及學前教育行政及督導-對特種基金之補助,112學年度高級中等學校臺灣手語課程開課經費(第2期),國立屏東高級工業職業學校,"70,562"
113/03/14,國民及學前教育行政及督導-對特種基金之補助,112下半年高級中等學校編制內教師參加客語及閩南語能力認證中高級報名費,國立土庫高級商工職業學校,"2,800"
113/03/14,國民及學前教育行政及督導-對特種基金之補助,112下半年高級中等學校編制內教師參加客語及閩南語能力認證中高級報名費,國立華南高級商業職業學校,"3,050"
113/03/14,國民及學前教育行政及督導-對特種基金之補助,112下半年高級中等學校編制內教師參加客語及閩南語能力認證中高級報名費,國立埔里高級工業職業學校,"1,250"
113/03/14,國民及學前教育行政及督導-對特種基金之補助,112下半年高級中等學校編制內教師參加客語及閩南語能力認證中高級報名費,國立嘉義高級家事職業學校,250
113/03/14,國民及學前教育行政及督導-對特種基金之補助,112下半年高級中等學校編制內教師參加客語及閩南語能力認證中高級報名費,國立民雄高級農工職業學校,"2,800"
113/03/14,國民及學前教育行政及督導-對私校之獎助,113年度高級中等以下學校友善提供多元生理用品及推動月經平權計畫,私立培德高級工業家事職業學校,"14,400"
113/03/14,國民及學前教育行政及督導-對私校之獎助,113年度高級中等以下學校友善提供多元生理用品及推動月經平權計畫,臺南市天主教聖功女子高級中學,"38,400"
113/03/14,國民及學前教育行政及督導-對特種基金之補助,113年度高級中等以下學校友善提供多元生理用品及推動月經平權計畫,國立斗六高級家事商業職業學校,"127,200"
113/03/14,國民及學前教育行政及督導-對特種基金之補助,113年度高級中等以下學校友善提供多元生理用品及推動月經平權計畫,國立高雄師範大學附屬高級中學,"9,600"
113/03/14,國民及學前教育行政及督導-對學生之獎助,113年度補助高級中等學校學生工讀獎助金實施計畫經費,台灣省基隆市私立聖心高級中學,"254,544"
113/03/14,國民及學前教育行政及督導-對特種基金之補助,112學年度國立中小學及直轄市立特殊教育學校調整教師授課節數及導師職務加給實施計畫第2期款,國立高雄師範大學附屬高級中學,"812,307"
113/03/14,國民及學前教育行政及督導-對特種基金之補助,112學年度國立中小學及直轄市立特殊教育學校調整教師授課節數及導師職務加給實施計畫第2期款,國立清華大學附設實驗國民小學,"519,744"
113/03/14,國民及學前教育行政及督導-對特種基金之補助,112學年度國立中小學及直轄市立特殊教育學校調整教師授課節數及導師職務加給實施計畫第2期款,國立臺灣師範大學附屬高級中學,"1,208,393"
113/03/14,國民及學前教育行政及督導-對特種基金之補助,112學年度科學班實驗計畫第2期款,國立臺灣師範大學附屬高級中學,"1,836,138"
113/03/14,國民及學前教育行政及督導-對私校之獎助,113年2月份921地震公私立學校修復重建教學建築與設施專案貸款利息差額及手續費,合作金庫商業銀行股份有限公司,"13,959"
113/03/14,國民及學前教育行政及督導-對直轄市政府之補助,113年補助921震災修復經費利息及手續費補貼經費(非部管學校),合作金庫商業銀行股份有限公司,"6,488"
113/03/14,國民及學前教育行政及督導-對特種基金之補助,112學年度第2學期高級中等學校適性學習社區推動校訂課程及彈性學習時間與大專校院協作共好計畫,國立中央大學附屬中壢高級中學,"640,000"
113/03/14,國民及學前教育行政及督導-對特種基金之補助,113年2-7月聘任特殊教育行政助理經費,國立頭城高級家事商業職業學校,"262,308"
113/03/14,國民及學前教育行政及督導-對私校之獎助,補助113年度綜合高中學程經費,臺灣省彰化縣私立文興高級中學,"470,000"
113/03/14,國民及學前教育行政及督導-對私校之獎助,補助113年度綜合高中學程經費,臺灣省彰化縣私立文興高級中學,"104,000"
113/03/14,國民及學前教育行政及督導-對特種基金之補助,112下半年高級中等學校編制內教師參加客語及閩南語能力認證中高級報名費,國立頭城高級家事商業職業學校,"2,800"
113/03/14,國民及學前教育行政及督導-對特種基金之補助,112下半年高級中等學校編制內教師參加客語及閩南語能力認證中高級報名費,國立員林高級家事商業職業學校,"1,250"
113/03/14,國民及學前教育行政及督導-對特種基金之補助,112下半年高級中等學校編制內教師參加客語及閩南語能力認證中高級報名費,國立斗六高級家事商業職業學校,500
113/03/14,國民及學前教育行政及督導-對私校之獎助,113年度高級中等以下學校友善提供多元生理用品及推動月經平權計畫,財團法人宜蘭縣私立慧燈高級中學,"36,000"
113/03/14,國民及學前教育行政及督導-對私校之獎助,113年度高級中等以下學校友善提供多元生理用品及推動月經平權計畫,苗栗縣私立龍德家事商業職業學校,"19,200"
113/03/14,國民及學前教育行政及督導-對特種基金之補助,113年度高級中等以下學校友善提供多元生理用品及推動月經平權計畫,國立東華大學附設實小401專戶,"16,800"
113/03/14,國民及學前教育行政及督導-對私校之獎助,112學年度學務創新人力第2期款,高雄縣私立高苑高級工商職業學校,"351,200"
113/03/14,國民及學前教育行政及督導-對私校之獎助,補助113年2月本署所轄私立高中職公保養老超額年金費用,臺灣銀行股份有限公司公教保險部,"7,544,303"
113/03/14,國民及學前教育行政及督導-對私校之獎助,補助113年2月本署所轄私立高中職公保養老超額年金費用-解散學校,臺灣銀行股份有限公司公教保險部,"330,826"
113/03/14,國民及學前教育行政及督導-對私校之獎助,112下半年高級中等學校編制內教師參加客語及閩南語能力認證中高級報名費,彰化縣私立達德高級商工職業學校,750
113/03/14,國民及學前教育行政及督導-對私校之獎助,112下半年高級中等學校編制內教師參加客語及閩南語能力認證中高級報名費,高雄縣私立旗美高級商工職業學校,"2,800"
113/03/14,國民及學前教育行政及督導-對學生之獎助,112學年度第2學期高級中等學校低收入戶及中低收入戶學生學雜費減免補助,屏東縣私立日新高級工商職業學校,"31,735"
113/03/14,國民及學前教育行政及督導-對學生之獎助,112學年度第2學期高級中等學校低收入戶及中低收入戶學生學雜費減免補助,屏東縣私立日新高級工商職業學校,"2,607"
113/03/14,國民及學前教育行政及督導-對學生之獎助,112學年度第2學期高級中等學校低收入戶及中低收入戶學生學雜費減免補助,屏東縣私立日新高級工商職業學校,"11,403"
113/03/14,國民及學前教育行政及督導-對學生之獎助,112學年度第2學期高級中等學校低收入戶及中低收入戶學生學雜費減免補助,雲林縣私立大德工業商業職業學校,"10,428"
113/03/14,國民及學前教育行政及督導-對學生之獎助,112學年度第2學期高級中等學校學生免學費,彰化縣私立達德高級商工職業學校,"114,194"
113/03/14,國民及學前教育行政及督導-對學生之獎助,112學年度第2學期高級中等學校學生免學費,臺東縣私立公東高級工業職業學校,"2,274,316"
113/03/14,國民及學前教育行政及督導-對學生之獎助,112學年度第2學期高級中等學校學生免學費,彰化縣私立達德高級商工職業學校,"40,122"
113/03/14,國民及學前教育行政及督導-對學生之獎助,112學年度第2學期高級中等學校學生免學費,臺東縣私立公東高級工業職業學校,"799,084"
113/03/14,國民及學前教育行政及督導-對私校之獎助,113年度高級中等以下學校友善提供多元生理用品及推動月經平權計畫,義峰學校財團法人雲林縣義峰高級中學,"86,400"
113/03/14,國民及學前教育行政及督導-對私校之獎助,113年度高級中等以下學校友善提供多元生理用品及推動月經平權計畫,興國學校財團法人臺南市興國高級中學,"48,000"
113/03/14,國民及學前教育行政及督導-對私校之獎助,113年度高級中等以下學校友善提供多元生理用品及推動月經平權計畫,屏榮學校財團法人屏東縣屏榮高級中學,"235,200"
113/03/14,國民及學前教育行政及督導-對私校之獎助,113年度高級中等以下學校友善提供多元生理用品及推動月經平權計畫,財團法人台灣省宜蘭縣私立中道高級中學,"12,000"
113/03/14,國民及學前教育行政及督導-對私校之獎助,113年度高級中等以下學校友善提供多元生理用品及推動月經平權計畫,財團法人台灣省雲林縣私立文生高級中學,"31,200"
113/03/14,國民及學前教育行政及督導-對特種基金之補助,113年度高級中等以下學校友善提供多元生理用品及推動月經平權計畫,國立高雄餐旅大學附屬餐旅高級中等學校,"69,600"
113/03/14,國民及學前教育行政及督導-對特種基金之補助,113年度高級中等以下學校友善提供多元生理用品及推動月經平權計畫,國立成功大學附屬臺南工業高級中等學校,"64,800"
113/03/14,國民及學前教育行政及督導-對學生之獎助,112學年度第2學期高級中等學校學生免學費,臺灣省台南市私立南英高級商工職業學校,"12,074,314"
113/03/14,國民及學前教育行政及督導-對學生之獎助,112學年度第2學期高級中等學校學生免學費,臺灣省台南市私立南英高級商工職業學校,"1,838,309"
113/03/14,國民及學前教育行政及督導-對學生之獎助,112學年度第2學期高級中等學校學生免學費,臺灣省台南市私立南英高級商工職業學校,"4,242,327"
113/03/14,國民及學前教育行政及督導-對學生之獎助,112學年度第2學期高級中等學校學生免學費,臺灣省台南市私立南英高級商工職業學校,"645,892"
113/03/14,國民及學前教育行政及督導-對學生之獎助,112學年度第2學期高級中等學校學生免學費,未來學校財團法人臺東縣育仁高級中等學校,"37,592"
113/03/14,國民及學前教育行政及督導-對學生之獎助,112學年度第2學期高級中等學校學生免學費,未來學校財團法人臺東縣育仁高級中等學校,"13,208"
113/03/14,國民及學前教育行政及督導-對特種基金之補助,113年度高級中等以下學校友善提供多元生理用品及推動月經平權計畫,國立臺灣海洋大學附屬基隆海事高級中等學校,"69,600"
113/03/14,國民及學前教育行政及督導-對特種基金之補助,112下半年高級中等學校編制內教師參加客語及閩南語能力認證中高級報名費,國立臺灣海洋大學附屬基隆海事高級中等學校,750
113/03/14,國民及學前教育行政及督導-對私校之獎助,113年度高級中等以下學校友善提供多元生理用品及推動月經平權計畫,上騰學校財團法人花蓮縣上騰高級工商職業學校,"60,000"
113/03/14,國民及學前教育行政及督導-對私校之獎助,112學年度(113年1─7月)辦理集中式特教班經費(資),中山學校財團法人高雄市中山高級工商職業學校,"315,000"
113/03/14,國民及學前教育行政及督導-對私校之獎助,112學年度(113年1─7月)辦理集中式特教班經費,中山學校財團法人高雄市中山高級工商職業學校,"5,369,000"
113/03/14,國民及學前教育行政及督導-對學生之獎助,112學年度第2學期高級中等學校低收入戶及中低收入戶學生學雜費減免補助,陽明學校財團法人臺南市陽明高級工商職業學校,"20,856"
113/03/14,國民及學前教育行政及督導-對學生之獎助,112學年度第2學期高級中等學校低收入戶及中低收入戶學生學雜費減免補助,陽明學校財團法人臺南市陽明高級工商職業學校,"39,972"
113/03/14,國民及學前教育行政及督導-對私校之獎助,112學年度第2學期高級中等學校適性學習社區推動校訂課程及彈性學習時間與大專校院協作共好計畫,財團法人台灣省嘉義縣私立萬能高級工商職業學校,"71,000"
113/03/14,國民及學前教育行政及督導-對私校之獎助,112學年度第2學期高級中等學校適性學習社區教育資源均質化實施方案,財團法人台灣省嘉義縣私立萬能高級工商職業學校,"276,000"
113/03/14,國民及學前教育行政及督導-對私校之獎助,112學年度第2學期高級中等學校適性學習社區教育資源均質化實施方案,財團法人台灣省嘉義縣私立萬能高級工商職業學校,"193,000"
113/03/14,國民及學前教育行政及督導-對學生之獎助,112學年度第2學期高級中等學校低收入戶及中低收入戶學生學雜費減免補助,財團法人台灣省嘉義縣私立萬能高級工商職業學校,"535,695"
113/03/14,國民及學前教育行政及督導-對學生之獎助,112學年度第2學期高級中等學校低收入戶及中低收入戶學生學雜費減免補助,財團法人台灣省嘉義縣私立萬能高級工商職業學校,"56,799"
113/03/15,國民及學前教育行政及督導-對特種基金之補助,112學年度實施十二年國民基本教育課程新增鐘點費第2期款,國立新竹高級中學,"1,100,400"
113/03/15,國民及學前教育行政及督導-對直轄市政府之補助,112學年度第2學期高職優質化輔助方案(資),臺中市政府教育局,"5,139,000"
113/03/15,國民及學前教育行政及督導-對學生之獎助,大額通報教補3月19日-112學年度第2學期高級中等學校學生免學費,新北市政府教育局,"288,895,392"
113/03/15,國民及學前教育行政及督導-對學生之獎助,大額通報教補3月19日-112學年度第2學期高級中等學校學生免學費,高雄市政府教育局,"77,732,653"
113/03/15,國民及學前教育行政及督導-對學生之獎助,大額通報教補3月19日-112學年度第2學期高級中等學校學生免學費,新北市政府教育局,"101,503,786"
113/03/15,國民及學前教育行政及督導-對學生之獎助,大額通報教補3月19日-112學年度第2學期高級中等學校學生免學費,高雄市政府教育局,"27,311,473"
113/03/15,國民及學前教育行政及督導-對學生之獎助,113年度高級中等學校現役軍人子女身分之學生就學優待經費,雲林縣福智高級中學,"7,620"
113/03/15,國民及學前教育行政及督導-對特種基金之補助,112學年度實施十二年國民基本教育課程新增鐘點費第2期款,國立新港藝術高級中學,"33,600"
113/03/15,國民及學前教育行政及督導-投資,112學年度第2學期高職優質化輔助方案(資),國立苗栗高級農工職業學校,"429,000"
113/03/15,國民及學前教育行政及督導-投資,112學年度第2學期高職優質化輔助方案(資),國立關山高級工商職業學校,"355,000"
113/03/15,國民及學前教育行政及督導-對特種基金之補助,112學年度技術型及綜合型高級中等學校十二年國民基本教育課程綱要前導學校工作計畫,國立臺東專科學校校務基金,"625,000"
113/03/15,國民及學前教育行政及督導-對特種基金之補助,112學年度第2學期高職優質化輔助方案,國立苗栗高級農工職業學校,"1,001,000"
113/03/15,國民及學前教育行政及督導-對特種基金之補助,112學年度第2學期高職優質化輔助方案,國立關山高級工商職業學校,"830,000"
113/03/15,國民及學前教育行政及督導-對私校之獎助,補助113年度綜合高中學程經費,高雄縣私立高苑高級工商職業學校,"185,000"
113/03/15,國民及學前教育行政及督導-對私校之獎助,補助113年度綜合高中學程經費,高雄縣私立高苑高級工商職業學校,"28,000"
113/03/15,國民及學前教育行政及督導-對特種基金之補助,112學年度實施十二年國民基本教育課程新增鐘點費第2期款,國立成功大學附屬臺南工業高級中等學校,"512,400"
113/03/18,國民及學前教育行政及督導-對各縣市政府之補助,112年度三江國小附設幼兒園充實及改善教學環境設施設備第1、2期款,嘉義縣政府,"1,196,000"
113/03/18,國民及學前教育行政及督導-對各縣市政府之補助,112年度內埔國小附設幼兒園充實及改善教學環境設施設備經費,嘉義縣政府,"297,500"
113/03/18,國民及學前教育行政及督導-對直轄市政府之補助,私立小奶爸幼兒園等87園112學年度準公共幼兒園設施設備補助經費第2期款,桃園市政府,"2,455,608"
113/03/18,國民及學前教育行政及督導-對直轄市政府之補助,私立小奶爸幼兒園等87園112學年度準公共幼兒園設施設備補助經費第2期款,桃園市政府,"21,628,748"
113/03/18,國民及學前教育行政及督導-對直轄市政府之補助,私立幼兒園等85園112學年度準公共幼兒園設施設備補助經費第2期款,桃園市政府,"3,259,928"
113/03/18,國民及學前教育行政及督導-對直轄市政府之補助,私立幼兒園等85園112學年度準公共幼兒園設施設備補助經費第2期款,桃園市政府,"17,339,339"
113/03/18,國民及學前教育行政及督導-對各縣市政府之補助,112學年度第2學期專職原住民族語老師經費,彰化縣政府,"427,200"
113/03/18,國民及學前教育行政及督導-對直轄市政府之補助,113年度新住民語文樂學活動補助經費,桃園市政府,"343,864"
113/03/18,國民及學前教育行政及督導-對各縣市政府之補助,113年度新住民語文樂學活動補助經費,嘉義縣政府,"257,849"
113/03/18,國民及學前教育行政及督導-對各縣市政府之補助,113年度新住民語文樂學活動補助經費,苗栗縣政府,"198,397"
113/03/18,國民及學前教育行政及督導-對各縣市政府之補助,113年度新住民語文樂學活動補助經費,新竹市政府,"70,408"
113/03/18,國民及學前教育行政及督導-對各縣市政府之補助,113年度新住民語文樂學活動補助經費,宜蘭縣政府,"68,143"
113/03/18,國民及學前教育行政及督導-對各縣市政府之補助,113年度新住民語文樂學活動補助經費,臺東縣政府,"150,776"
113/03/18,國民及學前教育行政及督導-對各縣市政府之補助,113年度新住民語文樂學活動補助經費,彰化縣政府,"413,222"
113/03/18,國民及學前教育行政及督導-對各縣市政府之補助,112學年度高級中等學校原住民族語課程開課經費-第2期款,彰化縣政府,"16,940"
113/03/18,國民及學前教育行政及督導-對各縣市政府之補助,112學年度高中臺灣手語開班經費(第2期),彰化縣政府,"16,847"
113/03/18,國民及學前教育行政及督導-對各縣市政府之補助,112學年度中輟生預防追蹤及復學輔導工作計畫第3期,新竹縣政府,"1,487,915"
113/03/18,國民及學前教育行政及督導-對各縣市政府之補助,112學年度中輟生預防追蹤及復學輔導工作計畫第3期,屏東縣政府,"2,176,672"
113/03/18,國民及學前教育行政及督導-對直轄市政府之補助,112下半年高級中等學校編制內教師參加客語及閩南語能力認證中高級報名費,桃園市政府,"35,024"
113/03/18,國民及學前教育行政及督導-對各縣市政府之補助,聚集德非營利幼兒園112學年度永續經營之房舍修繕及設施設備改善、維護與購置經費,新竹縣政府,"517,650"
113/03/18,國民及學前教育行政及督導-對各縣市政府之補助,112學年度社區教保資源中心業務第2期款,花蓮縣政府,"515,474"
113/03/18,國民及學前教育行政及督導-對各縣市政府之補助,112學年度社區教保資源中心業務第2期款,花蓮縣政府,"32,536"
113/03/18,國民及學前教育行政及督導-對各縣市政府之補助,大埔國中小附設幼兒園購置幼童專用車經費,嘉義縣政府,"891,000"
113/03/18,國民及學前教育行政及督導-對各縣市政府之補助,113年度教育部卓越獎初選活動經費及獎金補助經費,嘉義縣政府,"81,000"
113/03/18,國民及學前教育行政及督導-對各縣市政府之補助,113年度學前特殊教育專業知能研習經費,彰化縣政府,"833,442"
113/03/18,國民及學前教育行政及督導-對各縣市政府之補助,大額通報教補3月20日-112學年度我國少子女化對策計畫之各項幼生就學補助及育兒津貼等經費第4期款,雲林縣政府,"210,542,500"
113/03/18,國民及學前教育行政及督導-對各縣市政府之補助,113年度推動學前教保、少子女化對策計畫、幼兒園稽核及辦理相關人員違法對待幼兒案件等相關業務增置人力經費第1期款,新竹縣政府,"1,747,200"
113/03/18,國民及學前教育行政及督導-對各縣市政府之補助,113年度推動學前教保、少子女化對策計畫、幼兒園稽核及辦理相關人員違法對待幼兒案件等相關業務增置人力經費第1期款,新竹縣政府,"714,000"
113/03/18,國民及學前教育行政及督導-對直轄市政府之補助,112學年度偏遠地區學校推動國小合理教師員額事項所需經費第2期款,桃園市政府,"7,311,360"
113/03/18,國民及學前教育行政及督導-對直轄市政府之補助,112學年度偏遠地區學校推動國小合理教師員額事項所需經費第2期款,桃園市政府,"16,243,360"
113/03/18,國民及學前教育行政及督導-對各縣市政府之補助,112學年度提高國小教師員額編制至每班1.65名所需經費第2期款,新竹縣政府,"27,322,400"
113/03/18,國民及學前教育行政及督導-對各縣市政府之補助,113年充實公立國民中小學圖書館(室)藏書量經費,金門縣政府,"1,914,450"
113/03/18,國民及學前教育行政及督導-對各縣市政府之補助,112學年度學前教育階段專業團隊專業人員及助理人員第2期款,雲林縣政府,"1,880,010"
113/03/18,國民及學前教育行政及督導-對直轄市政府之補助,112學年度非營利幼兒園早期療育專業輔導費用第2期款,桃園市政府,"666,000"
113/03/18,國民及學前教育行政及督導-對各縣市政府之補助,112學年度非營利幼兒園早期療育專業輔導費用第2期款,宜蘭縣政府,"161,500"
113/03/18,國民及學前教育行政及督導-對各縣市政府之補助,112年度教保服務人員及助理人員在職進修照顧服務知能經費,嘉義縣政府,"11,340"
113/03/18,國民及學前教育行政及督導-對各縣市政府之補助,112學年度準公共幼兒園未因調薪而調整收費者之「園務營運費」經費,嘉義市政府,"1,198,320"
113/03/18,國民及學前教育行政及督導-對各縣市政府之補助,112學年度準公共幼兒園未因調薪而調整收費者之「園務營運費」經費,宜蘭縣政府,"1,418,955"
113/03/18,國民及學前教育行政及督導-對各縣市政府之補助,112學年度2至未滿5歲幼兒育兒津貼及5歲至入國民小學前幼兒就學補助行政業務費第2期款,基隆市政府,"140,000"
113/03/18,國民及學前教育行政及督導-對各縣市政府之補助,112學年度2至未滿5歲幼兒育兒津貼及5歲至入國民小學前幼兒就學補助行政業務費第2期款,南投縣政府,"148,000"
113/03/18,國民及學前教育行政及督導-對各縣市政府之補助,大額通報教補3月20日-112學年度公私立國民中小學調整教師授課節數及導師費實施計畫第3期款,宜蘭縣政府,"38,767,968"
113/03/18,國民及學前教育行政及督導-對各縣市政府之補助,大額通報教補3月20日-112學年度公私立國民中小學調整教師授課節數及導師費實施計畫第3期款,苗栗縣政府,"40,534,030"
113/03/18,國民及學前教育行政及督導-對各縣市政府之補助,大額通報教補3月20日-112學年度公私立國民中小學調整教師授課節數及導師費實施計畫第3期款,澎湖縣政府,"6,144,767"
113/03/18,國民及學前教育行政及督導-對各縣市政府之補助,112學年度獎勵無償提供場地、設施及設備辦理非營利幼兒園第2期款,宜蘭縣政府,"2,268,000"
113/03/18,國民及學前教育行政及督導-對各縣市政府之補助,112學年度獎勵無償提供場地、設施及設備辦理非營利幼兒園第2期款,宜蘭縣政府,"1,814,400"
113/03/18,國民及學前教育行政及督導-對各縣市政府之補助,112學年度獎勵無償提供場地、設施及設備辦理非營利幼兒園第2期款,嘉義市政府,"1,281,500"
113/03/18,國民及學前教育行政及督導-對各縣市政府之補助,112學年度獎勵無償提供場地、設施及設備辦理非營利幼兒園第2期款,嘉義市政府,"1,025,200"
113/03/18,國民及學前教育行政及督導-對各縣市政府之補助,職場互助教保服務中心112學年度配置助理人員及早期療育專業團隊專業人員輔導第2期款,嘉義市政府,"30,000"
113/03/18,國民及學前教育行政及督導-對各縣市政府之補助,職場互助教保服務中心112學年度配置助理人員及早期療育專業團隊專業人員輔導第2期款,臺東縣政府,"92,716"
113/03/18,國民及學前教育行政及督導-對各縣市政府之補助,職場互助教保服務中心112學年度配置助理人員及早期療育專業團隊專業人員輔導第2期款,雲林縣政府,"254,149"
113/03/18,國民及學前教育行政及督導-對各縣市政府之補助,職場互助教保服務中心112學年度配置助理人員及早期療育專業團隊專業人員輔導第2期款,新竹縣政府,"346,866"
113/03/18,國民及學前教育行政及督導-對直轄市政府之補助,112學年度第2學期身心障礙幼兒學前特教經費,桃園市政府,"6,150,000"
113/03/18,國民及學前教育行政及督導-對各縣市政府之補助,112學年度第2學期身心障礙幼兒學前特教經費,基隆市政府,"1,120,000"
113/03/18,國民及學前教育行政及督導-對各縣市政府之補助,112學年度第2學期身心障礙幼兒學前特教經費,嘉義縣政府,"632,500"
113/03/18,國民及學前教育行政及督導-對各縣市政府之補助,112學年度第2學期身心障礙幼兒學前特教經費,雲林縣政府,"902,500"
113/03/18,國民及學前教育行政及督導-對各縣市政府之補助,112學年度第2學期身心障礙幼兒學前特教經費,宜蘭縣政府,"505,000"
113/03/18,國民及學前教育行政及督導-對各縣市政府之補助,112學年度第2學期身心障礙幼兒學前特教經費,嘉義市政府,"1,295,000"
113/03/18,國民及學前教育行政及督導-對各縣市政府之補助,112學年度第2學期身心障礙幼兒學前特教經費,花蓮縣政府,"272,500"
113/03/18,國民及學前教育行政及督導-政府機關間之補助,112下半年高級中等學校編制內教師參加客語及閩南語能力認證中高級報名費,法務部矯正署,500
113/03/18,國民及學前教育行政及督導-政府機關間之補助,111學年度職場互助教保服務中心績效獎金,陸軍後勤指揮部,"80,000"
113/03/18,國民及學前教育行政及督導-政府機關間之補助,112學年度辦理非營利幼兒園相關業務經費第2期款,國防部陸軍司令部,"240,000"
113/03/18,國民及學前教育行政及督導-政府機關間之補助,112學年度職場互助教保服務中心業務費第2期款,農業部水產試驗所,"120,000"
113/03/18,國民及學前教育行政及督導-政府機關間之補助,112學年度職場互助教保服務中心業務費第2期款,國防部憲兵指揮部,"120,000"
113/03/18,國民及學前教育行政及督導-對直轄市政府之補助,和平國小112年度充實設施設備-A棟二樓走廊洗手台整修工程經費,高雄市政府教育局,"280,000"
113/03/18,國民及學前教育行政及督導-對直轄市政府之補助,西港國中112年度充實設施設備-後棟及西棟專科教室設備採購經費,臺南市政府教育局,"1,280,580"
113/03/18,國民及學前教育行政及督導-對直轄市政府之補助,喀哩國小112年度充實設施設備-校園鋪面及排水系統改善工程經費,臺中市政府教育局,"1,627,680"
113/03/18,國民及學前教育行政及督導-對直轄市政府之補助,春安國小112年度充實設施設備-春安館設施設備修繕工程經費,臺中市政府教育局,"4,702,762"
113/03/18,國民及學前教育行政及督導-對直轄市政府之補助,112年度小康幼兒園等4園充實及改善教學環境設施設備經費,臺南市政府教育局,"1,544,950"
113/03/18,國民及學前教育行政及督導-對直轄市政府之補助,112年度北新國小附設幼兒園充實及改善教學環境設施設備經費,新北市政府教育局,"83,700"
113/03/18,國民及學前教育行政及督導-對直轄市政府之補助,私立童心園地幼兒園112學年度準公共幼兒園設施設備補助經費,高雄市政府教育局,"300,000"
113/03/18,國民及學前教育行政及督導-對直轄市政府之補助,112下半年高級中等學校編制內教師參加客語及閩南語能力認證中高級報名費,高雄市政府教育局,"27,500"
113/03/18,國民及學前教育行政及督導-對特種基金之補助,112下半年高級中等學校編制內教師參加客語及閩南語能力認證中高級報名費,國立岡山高級中學,250
113/03/18,國民及學前教育行政及督導-對特種基金之補助,112下半年高級中等學校編制內教師參加客語及閩南語能力認證中高級報名費,國立溪湖高級中學,"2,800"
113/03/18,國民及學前教育行政及督導-對特種基金之補助,112下半年高級中等學校編制內教師參加客語及閩南語能力認證中高級報名費,國立鳳山高級中學,"2,800"
113/03/18,國民及學前教育行政及督導-對特種基金之補助,112下半年高級中等學校編制內教師參加客語及閩南語能力認證中高級報名費,國立金門高級中學,"3,050"
113/03/18,國民及學前教育行政及督導-對特種基金之補助,112下半年高級中等學校編制內教師參加客語及閩南語能力認證中高級報名費,國立新營高級中學,"2,800"
113/03/18,國民及學前教育行政及督導-對特種基金之補助,112下半年高級中等學校編制內教師參加客語及閩南語能力認證中高級報名費,國立旗美高級中學,"3,300"
113/03/18,國民及學前教育行政及督導-對特種基金之補助,112下半年高級中等學校編制內教師參加客語及閩南語能力認證中高級報名費,國立苑裡高級中學,"2,800"
113/03/18,國民及學前教育行政及督導-對特種基金之補助,112下半年高級中等學校編制內教師參加客語及閩南語能力認證中高級報名費,國立基隆高級中學,"2,800"
113/03/18,國民及學前教育行政及督導-對直轄市政府之補助,112學年度第2學期專職原住民族語老師經費,新北市政府教育局,"4,692,000"
113/03/18,國民及學前教育行政及督導-對直轄市政府之補助,113年度新住民語文樂學活動補助經費,高雄市政府教育局,"370,166"
113/03/18,國民及學前教育行政及督導-對直轄市政府之補助,113年度新住民語文樂學活動補助經費,臺中市政府教育局,"393,554"
113/03/18,國民及學前教育行政及督導-對直轄市政府之補助,113年度新住民語文樂學活動補助經費,臺南市政府教育局,"198,206"
113/03/18,國民及學前教育行政及督導-對直轄市政府之補助,113年度新住民語文樂學活動補助經費,新北市政府教育局,"568,365"
113/03/18,國民及學前教育行政及督導-對特種基金之補助,112學年度高級中等學校原住民族語課程開課經費-第2期款,國立鳳新高級中學,"62,086"
113/03/18,國民及學前教育行政及督導-對特種基金之補助,112學年度高中臺灣手語開班經費(第2期),國立基隆高級中學,"44,147"
113/03/18,國民及學前教育行政及督導-對直轄市政府之補助,商借新北三重商工教師經費第二期款,新北市政府教育局,"510,094"
113/03/18,國民及學前教育行政及督導-對直轄市政府之補助,113年度補助各地方政府設置輔諮中心計畫經費,臺中市政府教育局,"2,429,823"
113/03/18,國民及學前教育行政及督導-對直轄市政府之補助,113年度補助各地方政府設置輔諮中心計畫經費,臺中市政府教育局,"200,503"
113/03/18,國民及學前教育行政及督導-對直轄市政府之補助,113年度補助各地方政府設置輔諮中心計畫經費,高雄市政府教育局,"1,116,038"
113/03/18,國民及學前教育行政及督導-對直轄市政府之補助,113年度補助各地方政府設置輔諮中心計畫經費,高雄市政府教育局,"67,500"
113/03/18,國民及學前教育行政及督導-對特種基金之補助,補助各縣市聯絡處辦理防制學生藥物濫用校園宣導活動經費,國立宜蘭高級中學,"293,202"
113/03/18,國民及學前教育行政及督導-對特種基金之補助,補助各縣市聯絡處辦理防制學生藥物濫用校園宣導活動經費,國立虎尾高級中學,"66,000"
113/03/18,國民及學前教育行政及督導-對特種基金之補助,112下半年高級中等學校編制內教師參加客語及閩南語能力認證中高級報名費,國立斗六高級中學,500
113/03/18,國民及學前教育行政及督導-對直轄市政府之補助,113年度實施新住民子女華語文學習扶助課程,高雄市政府教育局,"46,040"
113/03/18,國民及學前教育行政及督導-對直轄市政府之補助,112學年度第1學期公共化教保服務機構辦理延長照顧服務經費,臺中市政府教育局,"17,424"
113/03/18,國民及學前教育行政及督導-對直轄市政府之補助,113年1月至7月商借教師至國教署服務所需代理代課教師經費,新北市政府教育局,"1,400,000"
113/03/18,國民及學前教育行政及督導-對直轄市政府之補助,112學年度教學訪問教師計畫之原服務學校聘任代理教師第2期款,臺中市政府教育局,"325,000"
113/03/18,國民及學前教育行政及督導-對直轄市政府之補助,112學年度學前階段巡迴輔導教師及專業人員巡迴服務交通費第2期款,高雄市政府教育局,"2,674,980"
113/03/18,國民及學前教育行政及督導-對直轄市政府之補助,112年度偏遠地區學校及非山非市學校(原住民學校)設施設備計畫第3期款,高雄市政府教育局,"605,000"
113/03/18,國民及學前教育行政及督導-對直轄市政府之補助,112年度教保服務人員及助理人員在職進修照顧服務知能經費,高雄市政府教育局,"4,400"
113/03/18,國民及學前教育行政及督導-對直轄市政府之補助,大額通報教補3月20日-112學年度公私立國民中小學調整教師授課節數及導師費實施計畫第3期款,臺中市政府教育局,"220,104,689"
113/03/18,國民及學前教育行政及督導-對直轄市政府之補助,大額通報教補3月20日-112學年度公私立國民中小學調整教師授課節數及導師費實施計畫第3期款,高雄市政府教育局,"185,724,732"
113/03/18,國民及學前教育行政及督導-政府機關間之補助,112學年度獎勵無償提供場地、設施及設備辦理非營利幼兒園第2期款,國防部陸軍司令部,"1,100,000"
113/03/18,國民及學前教育行政及督導-政府機關間之補助,112學年度獎勵無償提供場地、設施及設備辦理非營利幼兒園第2期款,國防部陸軍司令部,"880,000"
113/03/18,國民及學前教育行政及督導-對直轄市政府之補助,112學年度獎勵無償提供場地、設施及設備辦理非營利幼兒園第2期款,臺北市政府教育局,"18,165,000"
113/03/18,國民及學前教育行政及督導-對直轄市政府之補助,112學年度獎勵無償提供場地、設施及設備辦理非營利幼兒園第2期款,臺北市政府教育局,"14,532,000"
113/03/18,國民及學前教育行政及督導-對直轄市政府之補助,112學年度第2學期身心障礙幼兒學前特教經費,新北市政府教育局,"13,881,690"
113/03/18,國民及學前教育行政及督導-對直轄市政府之補助,112學年度第2學期身心障礙幼兒學前特教經費,臺北市政府教育局,"5,214,750"
113/03/18,國民及學前教育行政及督導-對直轄市政府之補助,112學年度第2學期身心障礙幼兒學前特教經費,臺南市政府教育局,"9,050,000"
113/03/18,國民及學前教育行政及督導-對直轄市政府之補助,大額通報教補3月20日-113年新北市政府承接教育部國、私立高級中等學校功能調整及業務移撥所需經費-2,新北市政府教育局,"304,457,000"
113/03/18,國民及學前教育行政及督導-對直轄市政府之補助,大額通報教補3月20日-113年新北市政府承接教育部國、私立高級中等學校功能調整及業務移撥所需經費-2,新北市政府教育局,"11,000,000"
113/03/18,國民及學前教育行政及督導-對私校之獎助,112下半年高級中等學校編制內教師參加客語及閩南語能力認證中高級報名費,新竹縣仰德高級中學,250
113/03/18,國民及學前教育行政及督導-對學生之獎助,補助私立高級中等學校原住民學生助學金,嘉義市立仁高級中學,"211,540"
113/03/18,國民及學前教育行政及督導-對特種基金之補助,112下半年高級中等學校編制內教師參加客語及閩南語能力認證中高級報名費,國立台南第一高級中學,"2,800"
113/03/18,國民及學前教育行政及督導-對特種基金之補助,112學年度高級中等學校原住民族語課程開課經費-第2期款,國立台南家齊高級中學,"74,818"
113/03/18,國民及學前教育行政及督導-對特種基金之補助,112學年度高中臺灣手語開班經費(第2期),國立台南家齊高級中學,"61,005"
113/03/18,國民及學前教育行政及督導-對特種基金之補助,112學年度增置國小教師員額經費第2期款,國立臺南大學附設實小,"1,241,600"
113/03/18,國民及學前教育行政及督導-對特種基金之補助,112學年度增置國小教師員額經費第2期款,國立臺南大學附設實小,"1,383,400"
113/03/18,國民及學前教育行政及督導-對特種基金之補助,112學年度增置國小教師員額經費第2期款,國立嘉義大學附設實小,"1,036,800"
113/03/18,國民及學前教育行政及督導-對特種基金之補助,112學年度增置國小教師員額經費第2期款,國立嘉義大學附設實小,"2,713,200"
113/03/18,國民及學前教育行政及督導-對特種基金之補助,112學年度增置國小教師員額經費第2期款,國立臺東大學附設實小,"1,216,000"
113/03/18,國民及學前教育行政及督導-對特種基金之補助,112學年度增置國小教師員額經費第2期款,國立臺東大學附設實小,"2,534,000"
113/03/18,國民及學前教育行政及督導-對私校之獎助,112下半年高級中等學校編制內教師參加客語及閩南語能力認證中高級報名費,臺南市私立港明高級中學,750
113/03/18,國民及學前教育行政及督導-對學生之獎助,補助私立高級中等學校原住民學生助學金,新竹縣私立忠信高級中學,"119,860"
113/03/18,國民及學前教育行政及督導-對私校之獎助,112學年第2學期高級中等學校原住民族教育校訂課程推廣計畫經費,南投縣私立三育高級中學,"100,000"
113/03/18,國民及學前教育行政及督導-政府機關間之補助,員工子女非營利幼兒園111學年度績效獎金,法務部矯正署臺東戒治所,"60,000"
113/03/18,國民及學前教育行政及督導-政府機關間之補助,112學年度獎勵無償提供場地、設施及設備辦理職場互助教保服務中心第2期款,國防部軍備局規格鑑測中心,"50,000"
113/03/18,國民及學前教育行政及督導-政府機關間之補助,112學年度獎勵無償提供場地、設施及設備辦理職場互助教保服務中心第2期款,國防部軍備局規格鑑測中心,"300,000"
113/03/18,國民及學前教育行政及督導-對特種基金之補助,112下半年高級中等學校編制內教師參加客語及閩南語能力認證中高級報名費,國立羅東高級商業職業學校,"2,800"
113/03/18,國民及學前教育行政及督導-對特種基金之補助,112下半年高級中等學校編制內教師參加客語及閩南語能力認證中高級報名費,國立臺東專科學校校務基金,"3,050"
113/03/18,國民及學前教育行政及督導-對特種基金之補助,112下半年高級中等學校編制內教師參加客語及閩南語能力認證中高級報名費,國立臺東專科學校校務基金,250
113/03/18,國民及學前教育行政及督導-對特種基金之補助,112下半年高級中等學校編制內教師參加客語及閩南語能力認證中高級報名費,國立新竹高級工業職業學校,"2,800"
113/03/18,國民及學前教育行政及督導-對特種基金之補助,112下半年高級中等學校編制內教師參加客語及閩南語能力認證中高級報名費,國立南科國際實驗高級中學,"3,050"
113/03/18,國民及學前教育行政及督導-對特種基金之補助,112下半年高級中等學校編制內教師參加客語及閩南語能力認證中高級報名費,國立屏東高級工業職業學校,"5,850"
113/03/18,國民及學前教育行政及督導-對特種基金之補助,113年度新住民語文樂學活動補助經費,國立曾文高級農工職業學校,"68,600"
113/03/18,國民及學前教育行政及督導-對特種基金之補助,補助各縣市聯絡處辦理防制學生藥物濫用校園宣導活動經費,國立基隆高級商工職業學校,"197,000"
113/03/18,國民及學前教育行政及督導-對特種基金之補助,補助各縣市聯絡處辦理防制學生藥物濫用校園宣導活動經費,國立屏東高級工業職業學校,"398,330"
113/03/18,國民及學前教育行政及督導-對特種基金之補助,112下半年高級中等學校編制內教師參加客語及閩南語能力認證中高級報名費,國立北港高級農工職業學校,"3,050"
113/03/18,國民及學前教育行政及督導-對特種基金之補助,112下半年高級中等學校編制內教師參加客語及閩南語能力認證中高級報名費,國立西螺高級農工職業學校,"6,100"
113/03/18,國民及學前教育行政及督導-對特種基金之補助,112下半年高級中等學校編制內教師參加客語及閩南語能力認證中高級報名費,國立嘉義高級工業職業學校,250
113/03/18,國民及學前教育行政及督導-對特種基金之補助,112下半年高級中等學校編制內教師參加客語及閩南語能力認證中高級報名費,國立苗栗高級商業職業學校,250
113/03/18,國民及學前教育行政及督導-對特種基金之補助,112學年度增置國小教師員額經費第2期款,國立臺中教育大學附設實小,"1,036,800"
113/03/18,國民及學前教育行政及督導-對特種基金之補助,112學年度增置國小教師員額經費第2期款,國立臺中教育大學附設實小,"1,963,200"
113/03/18,國民及學前教育行政及督導-對特種基金之補助,112學年度增置國小教師員額經費第2期款,國立臺北教育大學附設實小,"1,267,200"
113/03/18,國民及學前教育行政及督導-對特種基金之補助,112學年度增置國小教師員額經費第2期款,國立臺北教育大學附設實小,"3,607,800"
113/03/18,國民及學前教育行政及督導-政府機關間之補助,112學年度職場互助教保服務中心業務費第2期款,農業部農業科技園區管理中心,"120,000"
113/03/18,國民及學前教育行政及督導-政府機關間之補助,112學年度獎勵無償提供場地、設施及設備辦理職場互助教保服務中心第2期款,臺灣高等檢察署臺中檢察分署,"50,000"
113/03/18,國民及學前教育行政及督導-政府機關間之補助,112學年度獎勵無償提供場地、設施及設備辦理職場互助教保服務中心第2期款,臺灣高等檢察署臺中檢察分署,"300,000"
113/03/18,國民及學前教育行政及督導-對私校之獎助,112學年度英語學伴-大手攜小手計畫第2期款,致理學校財團法人致理科技大學,"2,417,798"
113/03/18,國民及學前教育行政及督導-對特種基金之補助,112下半年高級中等學校編制內教師參加客語及閩南語能力認證中高級報名費,國立中央大學附屬中壢高級中學,"3,050"
113/03/18,國民及學前教育行政及督導-對特種基金之補助,112下半年高級中等學校編制內教師參加客語及閩南語能力認證中高級報名費,國立東港高級海事水產職業學校,"2,800"
113/03/18,國民及學前教育行政及督導-對私校之獎助,112學年度家庭教育經費,臺灣省彰化縣私立文興高級中學,"23,000"
113/03/18,國民及學前教育行政及督導-對特種基金之補助,補助各縣市聯絡處辦理防制學生藥物濫用校園宣導活動經費,國立台南高級海事水產職業學校,"235,542"
113/03/18,國民及學前教育行政及督導-對特種基金之補助,112學年度增置國小教師員額經費第2期款,國立政治大學附設實驗國民小學,"448,000"
113/03/18,國民及學前教育行政及督導-對特種基金之補助,112學年度增置國小教師員額經費第2期款,國立政治大學附設實驗國民小學,"677,000"
113/03/18,國民及學前教育行政及督導-對特種基金之補助,112學年度增置國小教師員額經費第2期款,國立屏東大學附設實驗國民小學,"844,800"
113/03/18,國民及學前教育行政及督導-對特種基金之補助,112學年度增置國小教師員額經費第2期款,國立屏東大學附設實驗國民小學,"1,405,200"
113/03/18,國民及學前教育行政及督導-對特種基金之補助,112學年度增置國小教師員額經費第2期款,國立清華大學附設實驗國民小學,"1,049,600"
113/03/18,國民及學前教育行政及督導-對特種基金之補助,112學年度增置國小教師員額經費第2期款,國立清華大學附設實驗國民小學,"1,200,400"
113/03/18,國民及學前教育行政及督導-對國內團體之捐助,112學年度獎勵非營利法人之補助經費,社團法人金字塔幼兒教育研究學會,"150,000"
113/03/18,國民及學前教育行政及督導-對學生之獎助,補助私立高級中等學校原住民學生助學金,雲林縣私立大德工業商業職業學校,"257,620"
113/03/18,國民及學前教育行政及督導-對特種基金之補助,112學年度增置國小教師員額經費第2期款,國立東華大學附設實小401專戶,"1,075,200"
113/03/18,國民及學前教育行政及督導-對特種基金之補助,112學年度增置國小教師員額經費第2期款,國立東華大學附設實小401專戶,"1,924,800"
113/03/18,國民及學前教育行政及督導-對特種基金之補助,112學年度職場互助教保服務中心業務費第2期款,國軍高雄總院醫院附設民眾診療服務處,"120,000"
113/03/18,國民及學前教育行政及督導-對學生之獎助,補助私立高級中等學校原住民學生助學金,興國學校財團法人臺南市興國高級中學,"89,730"
113/03/18,國民及學前教育行政及督導-對學生之獎助,補助私立高級中等學校原住民學生助學金,臺灣省台南市私立南英高級商工職業學校,"704,007"
113/03/18,國民及學前教育行政及督導-對學生之獎助,補助私立高級中等學校原住民學生助學金,佛光山學校財團法人高雄市普門高級中學,"1,196,400"
113/03/18,國民及學前教育行政及督導-對學生之獎助,補助私立高級中等學校原住民學生助學金,未來學校財團法人臺東縣育仁高級中等學校,"209,370"
113/03/18,國民及學前教育行政及督導-對特種基金之補助,112下半年高級中等學校編制內教師參加客語及閩南語能力認證中高級報名費,國立臺北科技大學附屬桃園農工高級中等學校,"3,050"
113/03/18,國民及學前教育行政及督導-對私校之獎助,112下半年高級中等學校編制內教師參加客語及閩南語能力認證中高級報名費,中山學校財團法人高雄市中山高級工商職業學校,"16,000"
113/03/18,國民及學前教育行政及督導-對私校之獎助,113年度新住民語文樂學活動補助經費,中山學校財團法人高雄市中山高級工商職業學校,"44,000"
113/03/18,國民及學前教育行政及督導-對學生之獎助,補助私立高級中等學校原住民學生助學金,陽明學校財團法人臺南市陽明高級工商職業學校,"27,705"
113/03/18,國民及學前教育行政及督導-對學生之獎助,補助私立高級中等學校原住民學生助學金,陽明學校財團法人臺南市陽明高級工商職業學校,"172,575"
113/03/18,國民及學前教育行政及督導-對國內團體之捐助,113年偏鄉希望種子原住民文化紮根計畫經費,社團法人臺東縣原住民以便以謝全人關懷發展協會,"450,000"
113/03/19,國民及學前教育行政及督導-對直轄市政府之補助,快樂國小112年度充實設施設備-86吋觸碰屏幕及電腦設備汰換更新經費,桃園市政府,"574,000"
113/03/19,國民及學前教育行政及督導-對各縣市政府之補助,112學年度學前特教服務據點第2期款,花蓮縣政府,"1,070,101"
113/03/19,國民及學前教育行政及督導-對各縣市政府之補助,關山國中108年改善偏遠地區國民中小學宿舍計畫(第二次)興建工程第3期款,臺東縣政府,"701,237"
113/03/19,國民及學前教育行政及督導-對各縣市政府之補助,112學年度科技教育推動總體計畫第3期款,臺東縣政府,"2,385,000"
113/03/19,國民及學前教育行政及督導-對各縣市政府之補助,112學年度準公共幼兒園未因調薪而調整收費者之「園務營運費」經費,花蓮縣政府,"117,811"
113/03/19,國民及學前教育行政及督導-對各縣市政府之補助,112學年度公私立國民中小學調整教師授課節數及導師費實施計畫第3期款,基隆市政府,"23,584,776"
113/03/19,國民及學前教育行政及督導-對各縣市政府之補助,112學年度準公共教保服務機構配置教師助理員第2期款,屏東縣政府,"6,372,652"
113/03/19,國民及學前教育行政及督導-對各縣市政府之補助,112學年度2至未滿5歲幼兒育兒津貼及5歲至入國民小學前幼兒就學補助行政業務費第2期款,臺東縣政府,"78,000"
113/03/19,國民及學前教育行政及督導-對各縣市政府之補助,113年度國民中小學閱讀推動計畫經費,苗栗縣政府,"753,600"
113/03/19,國民及學前教育行政及督導-對各縣市政府之補助,113年度教育部卓越獎初選活動經費及獎金補助經費,連江縣政府,"81,000"
113/03/19,國民及學前教育行政及督導-對各縣市政府之補助,113年度教育部卓越獎初選活動經費及獎金補助經費,臺東縣政府,"81,000"
113/03/19,國民及學前教育行政及督導-對各縣市政府之補助,113年度教育部卓越獎初選活動經費及獎金補助經費,彰化縣政府,"158,400"
113/03/19,國民及學前教育行政及督導-對直轄市政府之補助,113年度高級中等學校學生就學貸款信用保證專款,桃園市政府,"456,332"
113/03/19,國民及學前教育行政及督導-對各縣市政府之補助,112學年度地方政府精進高級中等學校課程與教學計畫第2期款,基隆市政府,"1,288,691"
113/03/19,國民及學前教育行政及督導-對直轄市政府之補助,112學年度1至7月暨113學年度國際教育總體工作計畫,屏東縣政府,"460,742"
113/03/19,國民及學前教育行政及督導-對各縣市政府之補助,112學年度1至7月暨113學年度國際教育總體工作計畫,屏東縣政府,"418,000"
113/03/19,國民及學前教育行政及督導-對各縣市政府之補助,112學年度1至7月暨113學年度國際教育總體工作計畫,南投縣政府,"389,585"
113/03/19,國民及學前教育行政及督導-對各縣市政府之補助,112學年度1至7月暨113學年度國際教育總體工作計畫,金門縣政府,"282,663"
113/03/19,國民及學前教育行政及督導-對各縣市政府之補助,112學年度1至7月暨113學年度國際教育總體工作計畫,屏東縣政府,"472,209"
113/03/19,國民及學前教育行政及督導-對各縣市政府之補助,113年度全國高級中等學校學生校園刊物印製實施計畫經費,新竹縣政府,"24,000"
113/03/19,國民及學前教育行政及督導-對各縣市政府之補助,113年導師職務加給差額經費撥付-第1期,新竹縣政府,"240,768"
113/03/19,國民及學前教育行政及督導-對各縣市政府之補助,113年補助縣市政府辦理身心障礙教育經費,南投縣政府,"4,523,100"
113/03/19,國民及學前教育行政及督導-對各縣市政府之補助,113年補助縣市政府辦理身心障礙教育經費,南投縣政府,"655,538"
113/03/19,國民及學前教育行政及督導-對各縣市政府之補助,辦理113年防制學生藥物濫用校園宣導活動經費,基隆市政府,"618,848"
113/03/19,國民及學前教育行政及督導-對各縣市政府之補助,辦理113年防制學生藥物濫用校園宣導活動經費,新竹縣政府,"93,280"
113/03/19,國民及學前教育行政及督導-對各縣市政府之補助,辦理113年防制學生藥物濫用校園宣導活動經費,屏東縣政府,"867,600"
113/03/19,國民及學前教育行政及督導-對各縣市政府之補助,辦理113年防制學生藥物濫用校園宣導活動經費,花蓮縣政府,"804,133"
113/03/19,國民及學前教育行政及督導-對直轄市政府之補助,112學年度學務創新人力第2期款,桃園市政府,"15,501,935"
113/03/19,國民及學前教育行政及督導-對直轄市政府之補助,112學年度幼兒園英語融入式課程試辦計畫第2期款,桃園市政府,"192,016"
113/03/19,國民及學前教育行政及督導-對各縣市政府之補助,113年度學前特殊教育專業知能研習經費,雲林縣政府,"345,986"
113/03/19,國民及學前教育行政及督導-對各縣市政府之補助,112學年度2至未滿5歲幼兒育兒津貼及5歲至入國民小學前幼兒就學補助行政業務費第2期款,澎湖縣政府,"52,000"
113/03/19,國民及學前教育行政及督導-對各縣市政府之補助,112學年度2至未滿5歲幼兒育兒津貼及5歲至入國民小學前幼兒就學補助行政業務費第2期款,金門縣政府,"48,000"
113/03/19,國民及學前教育行政及督導-對各縣市政府之補助,113年度教保研習經費,屏東縣政府,"1,995,080"
113/03/19,國民及學前教育行政及督導-對各縣市政府之補助,113年度教保研習經費,新竹縣政府,"1,915,638"
113/03/19,國民及學前教育行政及督導-對各縣市政府之補助,113年度教保研習經費,新竹市政府,"1,533,556"
113/03/19,國民及學前教育行政及督導-對各縣市政府之補助,113年度教保研習經費,臺東縣政府,"1,339,220"
113/03/19,國民及學前教育行政及督導-對各縣市政府之補助,112年度蓬萊國小附設幼兒園為轉型2歲專班申請充實及改善教學環境設施設備第1、2期款,宜蘭縣政府,"1,188,420"
113/03/19,國民及學前教育行政及督導-對國內團體之捐助,補助辦理2024我是冒險王-童軍探索暨親子露營活動計畫經費,南投縣童軍會,"303,400"
113/03/19,國民及學前教育行政及督導-對特種基金之補助,112學年度2學期社區(部落)互助教保服務中心輔導計畫經費,國立清華大學,"100,000"
113/03/19,國民及學前教育行政及督導-政府機關間之補助,112學年度國家教育研究院基地學校經費,國家教育研究院,"4,200,000"
113/03/19,國民及學前教育行政及督導-對直轄市政府之補助,113年2月份921地震公私立學校修復重建教學建築與設施專案貸款利息差額及手續費,彰化銀行作業處,"5,409"
113/03/19,國民及學前教育行政及督導-投資,113年度高級中等學校充實教學及實習設備計畫-一般科目(資),國立華僑高級中學,"312,000"
113/03/19,國民及學前教育行政及督導-投資,113年度高級中等學校充實教學及實習設備計畫-一般科目(資),國立竹北高級中學,"821,800"
113/03/19,國民及學前教育行政及督導-對直轄市政府之補助,112學年度辦理非營利幼兒園相關業務經費第2期款,高雄市政府教育局,"2,721,600"
113/03/19,國民及學前教育行政及督導-對直轄市政府之補助,旗山國小112年度充實設施設備-圖書館雨遮門窗防水改善工程經費,高雄市政府教育局,"1,120,000"
113/03/19,國民及學前教育行政及督導-對直轄市政府之補助,113年1月至7月商借教師至國教署服務所需代理代課教師經費,臺北市政府教育局,"700,000"
113/03/19,國民及學前教育行政及督導-對直轄市政府之補助,大額通報教補3月21日-112學年度我國少子女化對策計畫之各項幼生就學補助及育兒津貼等經費第4期款,臺南市政府教育局,"642,762,500"
113/03/19,國民及學前教育行政及督導-對直轄市政府之補助,112學年度國民中學數學領域數位適性分組教學試辦計畫第2期款,新北市政府教育局,"735,633"
113/03/19,國民及學前教育行政及督導-對直轄市政府之補助,112學年度活化教學~分組合作學習的理念與實踐方案第2期款,臺北市政府教育局,"401,250"
113/03/19,國民及學前教育行政及督導-對直轄市政府之補助,112學年度非營利幼兒園早期療育專業輔導費用第2期款,臺中市政府教育局,"460,000"
113/03/19,國民及學前教育行政及督導-對直轄市政府之補助,112年度偏遠地區學校及非山非市學校(非原住民學校)設施設備計畫第3期款,高雄市政府教育局,"7,528,403"
113/03/19,國民及學前教育行政及督導-對特種基金之補助,112學年度國立中小學及直轄市立特殊教育學校調整教師授課節數及導師職務加給實施計畫第2期款,國立華僑高級中學,"120,514"
113/03/19,國民及學前教育行政及督導-對直轄市政府之補助,112學年度第2學期高級中等學校特殊境遇家庭子女孫子女學雜費減免補助,臺中市政府教育局,"11,223"
113/03/19,國民及學前教育行政及督導-對直轄市政府之補助,113年度僑生輔導經費,新北市政府教育局,"552,240"
113/03/19,國民及學前教育行政及督導-對特種基金之補助,2024GoSTEAM自造之星競賽,國立臺灣師範大學,"2,500,000"
113/03/19,國民及學前教育行政及督導-對直轄市政府之補助,112學年度學生校外職場參觀與校外實習及校內併校外實習計畫,臺北市政府教育局,"729,222"
113/03/19,國民及學前教育行政及督導-對學生之獎助,112學年度第1學期高級中等學校學生免學費,高雄市政府教育局,"8,812,960"
113/03/19,國民及學前教育行政及督導-對學生之獎助,112學年度第1學期高級中等學校學生免學費,新北市政府教育局,"16,669,915"
113/03/19,國民及學前教育行政及督導-對直轄市政府之補助,112學年度1至7月暨113學年度國際教育總體工作計畫,新北市政府教育局,"403,987"
113/03/19,國民及學前教育行政及督導-對直轄市政府之補助,112學年度1至7月暨113學年度國際教育總體工作計畫,高雄市政府教育局,"423,932"
113/03/19,國民及學前教育行政及督導-對特種基金之補助,113年度高級中等學校專業群科專任教師赴公民營機構研習或研究計畫,國立玉里高級中學,"277,500"
113/03/19,國民及學前教育行政及督導-對特種基金之補助,113年度高級中等學校專業群科專任教師赴公民營機構研習或研究計畫,國立後壁高級中學,"255,000"
113/03/19,國民及學前教育行政及督導-對特種基金之補助,113年度高級中等學校專業群科專任教師赴公民營機構研習或研究計畫,國立和美實驗學校,"258,000"
113/03/19,國民及學前教育行政及督導-對學生之獎助,112學年度第1、2學期各校身心障礙學生及身心障礙人士子女就學費用減免,臺中市政府教育局,"315,326"
113/03/19,國民及學前教育行政及督導-對直轄市政府之補助,113年導師職務加給差額經費撥付-第1期,新北市政府教育局,"8,337,384"
113/03/19,國民及學前教育行政及督導-對直轄市政府之補助,113年導師職務加給差額經費撥付-第1期,臺北市政府教育局,"10,959,840"
113/03/19,國民及學前教育行政及督導-對特種基金之補助,112學年度臨時特殊教育助理人員第2期經費,國立竹南高級中學,"475,992"
113/03/19,國民及學前教育行政及督導-對特種基金之補助,112學年度臨時特殊教育助理人員第2期經費,國立竹山高級中學,"123,016"
113/03/19,國民及學前教育行政及督導-對特種基金之補助,112學年度臨時特殊教育助理人員第2期經費,國立馬公高級中學,"475,992"
113/03/19,國民及學前教育行政及督導-對特種基金之補助,112學年度臨時特殊教育助理人員第2期經費,國立金門高級中學,"475,992"
113/03/19,國民及學前教育行政及督導-對特種基金之補助,113年度全國高級中等學校學生校園刊物印製實施計畫經費,國立彰化高級中學,"30,000"
113/03/19,國民及學前教育行政及督導-對直轄市政府之補助,113年度新北市高級中等學校集中式特教班計畫經費(第1期),新北市政府教育局,"3,988,272"
113/03/19,國民及學前教育行政及督導-對直轄市政府之補助,113年度新北市高級中等學校集中式特教班計畫經費(第1期),新北市政府教育局,"343,743"
113/03/19,國民及學前教育行政及督導-對特種基金之補助,113年度高級中等以下學校友善提供多元生理用品及推動月經平權計畫,國立溪湖高級中學,"168,000"
113/03/19,國民及學前教育行政及督導-對特種基金之補助,113年度高級中等以下學校友善提供多元生理用品及推動月經平權計畫,國立北港高級中學,"124,800"
113/03/19,國民及學前教育行政及督導-對特種基金之補助,113年度高級中等以下學校友善提供多元生理用品及推動月經平權計畫,國立台東高級中學,"105,600"
113/03/19,國民及學前教育行政及督導-對特種基金之補助,113年度高級中等以下學校友善提供多元生理用品及推動月經平權計畫,國立和美實驗學校,"9,600"
113/03/19,國民及學前教育行政及督導-對特種基金之補助,113年度高級中等學校充實教學及實習設備計畫-一般科目,國立華僑高級中學,"72,000"
113/03/19,國民及學前教育行政及督導-對特種基金之補助,113年度高級中等學校充實教學及實習設備計畫-一般科目,國立竹北高級中學,"178,200"
113/03/19,國民及學前教育行政及督導-對特種基金之補助,112學年度全國藝術競賽(音樂、鄉土歌謠、創意戲劇及舞蹈)決賽之交通及膳雜費,國立羅東高級中學,"123,078"
113/03/19,國民及學前教育行政及督導-對特種基金之補助,112學年度全國藝術競賽(音樂、鄉土歌謠、創意戲劇及舞蹈)決賽之交通及膳雜費,國立玉里高級中學,"30,690"
113/03/19,國民及學前教育行政及督導-對特種基金之補助,112學年度全國藝術競賽(音樂、鄉土歌謠、創意戲劇及舞蹈)決賽之交通及膳雜費,國立潮州高級中學,"163,936"
113/03/19,國民及學前教育行政及督導-對特種基金之補助,112學年度全國藝術競賽(音樂、鄉土歌謠、創意戲劇及舞蹈)決賽之交通及膳雜費,國立屏北高級中學,"53,072"
113/03/19,國民及學前教育行政及督導-對特種基金之補助,112學年度全國藝術競賽(音樂、鄉土歌謠、創意戲劇及舞蹈)決賽之交通及膳雜費,國立鳳山高級中學,"24,112"
113/03/19,國民及學前教育行政及督導-對特種基金之補助,112學年度全國藝術競賽(音樂、鄉土歌謠、創意戲劇及舞蹈)決賽之交通及膳雜費,國立虎尾高級中學,"152,716"
113/03/19,國民及學前教育行政及督導-對特種基金之補助,112學年度全國藝術競賽(音樂、鄉土歌謠、創意戲劇及舞蹈)決賽之交通及膳雜費,國立新竹高級中學,"31,448"
113/03/19,國民及學前教育行政及督導-對特種基金之補助,112學年度全國藝術競賽(音樂、鄉土歌謠、創意戲劇及舞蹈)決賽之交通及膳雜費,國立竹東高級中學,"28,512"
113/03/19,國民及學前教育行政及督導-對特種基金之補助,112學年度全國藝術競賽(音樂、鄉土歌謠、創意戲劇及舞蹈)決賽之交通及膳雜費,國立溪湖高級中學,"25,100"
113/03/19,國民及學前教育行政及督導-對特種基金之補助,112學年度全國藝術競賽(音樂、鄉土歌謠、創意戲劇及舞蹈)決賽之交通及膳雜費,國立台東高級中學,"69,804"
113/03/19,國民及學前教育行政及督導-對直轄市政府之補助,112學年度學前教育階段專業團隊專業人員及助理人員第2、3期款,臺南市政府教育局,"9,680,000"
113/03/19,國民及學前教育行政及督導-對直轄市政府之補助,113年1月至7月商借教師至國教署服務所需代理代課教師經費,新北市政府教育局,"1,050,000"
113/03/19,國民及學前教育行政及督導-對直轄市政府之補助,112學年度2至未滿5歲幼兒育兒津貼及5歲至入國民小學前幼兒就學補助行政業務費第2期款,新北市政府教育局,"2,212,000"
113/03/19,國民及學前教育行政及督導-對直轄市政府之補助,112學年度2至未滿5歲幼兒育兒津貼及5歲至入國民小學前幼兒就學補助行政業務費第2期款,臺中市政府教育局,"1,521,436"
113/03/19,國民及學前教育行政及督導-對直轄市政府之補助,112學年度學前融合教育教師專業學習社群第2期款,新北市政府教育局,"87,000"
113/03/19,國民及學前教育行政及督導-對私校之獎助,112學年度第2學期高級中等學校遴聘業界專家協同教學經費,臺南市六信高級中學,"250,948"
113/03/19,國民及學前教育行政及督導-對學生之獎助,112學年度第2學期建教合作班學生免學雜費補助,新竹縣仰德高級中學,"1,954,750"
113/03/19,國民及學前教育行政及督導-對學生之獎助,112學年度第2學期高級中等學校特殊境遇家庭子女孫子女學雜費減免補助,嘉義市立仁高級中學,"2,940"
113/03/19,國民及學前教育行政及督導-對學生之獎助,112學年度第2學期高級中等學校特殊境遇家庭子女孫子女學雜費減免補助,新竹縣仰德高級中學,"2,607"
113/03/19,國民及學前教育行政及督導-對學生之獎助,112學年度第2學期高級中等學校低收入戶及中低收入戶學生學雜費減免補助,新竹縣仰德高級中學,"148,725"
113/03/19,國民及學前教育行政及督導-對學生之獎助,112學年度第2學期高級中等學校低收入戶及中低收入戶學生學雜費減免補助,新竹縣仰德高級中學,"15,642"
113/03/19,國民及學前教育行政及督導-對學生之獎助,112學年度第2學期高級中等學校低收入戶及中低收入戶學生學雜費減免補助,嘉義市立仁高級中學,"5,880"
113/03/19,國民及學前教育行政及督導-對學生之獎助,112學年度第2學期高級中等學校低收入戶及中低收入戶學生學雜費減免補助,嘉義市立仁高級中學,"90,620"
113/03/19,國民及學前教育行政及督導-對學生之獎助,112學年度第2學期實用技能學程學生免學雜費補助,新竹縣仰德高級中學,"3,149,364"
113/03/19,國民及學前教育行政及督導-對學生之獎助,112學年度第2學期高級中等學校學生免學費,嘉義市立仁高級中學,"1,234,860"
113/03/19,國民及學前教育行政及督導-對學生之獎助,112學年度第2學期高級中等學校學生免學費,嘉義市立仁高級中學,"433,870"
113/03/19,國民及學前教育行政及督導-對特種基金之補助,112學年度職場互助教保服務中心業務費(含聘請簽證會計師經費)第2期款,國立中正紀念堂管理處,"120,000"
113/03/19,國民及學前教育行政及督導-對特種基金之補助,113年度外包交通車租金及校車駕駛人力經費,國立臺南特殊教育學校,"5,654,600"
113/03/19,國民及學前教育行政及督導-對特種基金之補助,113年度高級中等學校專業群科專任教師赴公民營機構研習或研究計畫,國立彰化特殊教育學校,"330,000"
113/03/19,國民及學前教育行政及督導-對特種基金之補助,113年度高級中等學校專業群科專任教師赴公民營機構研習或研究計畫,國立南投特殊教育學校,"217,500"
113/03/19,國民及學前教育行政及督導-對特種基金之補助,112學年度第2學期國立特教學校課後照顧經費,國立屏東特殊教育學校,"550,660"
113/03/19,國民及學前教育行政及督導-對特種基金之補助,113年度高級中等以下學校友善提供多元生理用品及推動月經平權計畫,國立新竹女子高級中學,"60,000"
113/03/19,國民及學前教育行政及督導-對特種基金之補助,112學年度全國藝術競賽(音樂、鄉土歌謠、創意戲劇及舞蹈)決賽之交通及膳雜費,國立花蓮女子高級中學,"68,088"
113/03/19,國民及學前教育行政及督導-對特種基金之補助,112學年度全國藝術競賽(音樂、鄉土歌謠、創意戲劇及舞蹈)決賽之交通及膳雜費,國立屏東女子高級中學,"12,204"
113/03/19,國民及學前教育行政及督導-對特種基金之補助,112學年度全國藝術競賽(音樂、鄉土歌謠、創意戲劇及舞蹈)決賽之交通及膳雜費,國立台南第二高級中學,"21,666"
113/03/19,國民及學前教育行政及督導-對特種基金之補助,112學年度全國藝術競賽(音樂、鄉土歌謠、創意戲劇及舞蹈)決賽之交通及膳雜費,國立台南第一高級中學,"106,252"
113/03/19,國民及學前教育行政及督導-對特種基金之補助,112學年度全國藝術競賽(音樂、鄉土歌謠、創意戲劇及舞蹈)決賽之交通及膳雜費,國立台南女子高級中學,"115,282"
113/03/19,國民及學前教育行政及督導-對特種基金之補助,112學年度全國藝術競賽(音樂、鄉土歌謠、創意戲劇及舞蹈)決賽之交通及膳雜費,國立台南家齊高級中學,"72,630"
113/03/19,國民及學前教育行政及督導-對特種基金之補助,112學年度全國藝術競賽(音樂、鄉土歌謠、創意戲劇及舞蹈)決賽之交通及膳雜費,國立台東女子高級中學,"71,980"
113/03/19,國民及學前教育行政及督導-對國內團體之捐助,2024第2屆教科圖書設計獎─獎賽及推廣計畫第1期款,財團法人台灣設計研究院,"4,443,711"
113/03/19,國民及學前教育行政及督導-對私校之獎助,112學年度高級中等學校提升學生實習實作能力計畫,新竹縣私立義民高級中學,"284,000"
113/03/19,國民及學前教育行政及督導-對私校之獎助,112學年度第2學期高級中等學校遴聘業界專家協同教學經費,台南市私立長榮高級中學,"56,873"
113/03/19,國民及學前教育行政及督導-對私校之獎助,補助113年度綜合高中學程經費,花蓮縣私立四維高級中學,"680,000"
113/03/19,國民及學前教育行政及督導-對私校之獎助,補助113年度綜合高中學程經費,新竹縣私立忠信高級中學,"350,000"
113/03/19,國民及學前教育行政及督導-對私校之獎助,補助113年度綜合高中學程經費(資),花蓮縣私立四維高級中學,"160,000"
113/03/19,國民及學前教育行政及督導-對私校之獎助,補助113年度綜合高中學程經費(資),新竹縣私立忠信高級中學,"72,000"
113/03/19,國民及學前教育行政及督導-對學生之獎助,112學年度第1、2學期各校身心障礙學生及身心障礙人士子女就學費用減免,新竹市私立磐石高級中學,"502,344"
113/03/19,國民及學前教育行政及督導-對學生之獎助,112學年度第1、2學期各校身心障礙學生及身心障礙人士子女就學費用減免,臺南市私立港明高級中學,"290,817"
113/03/19,國民及學前教育行政及督導-對學生之獎助,113年度補助高級中等學校學生工讀獎助金實施計畫經費,台南市私立長榮高級中學,"636,360"
113/03/19,國民及學前教育行政及督導-對私校之獎助,112學年度學務創新人力第2期款,新竹縣私立義民高級中學,"460,371"
113/03/19,國民及學前教育行政及督導-對私校之獎助,113年度高級中等以下學校友善提供多元生理用品及推動月經平權計畫,彰化縣私立精誠高級中學,"28,800"
113/03/19,國民及學前教育行政及督導-對私校之獎助,113年度高級中等以下學校友善提供多元生理用品及推動月經平權計畫,南投縣私立三育高級中學,"9,600"
113/03/19,國民及學前教育行政及督導-對私校之獎助,113年度高級中等以下學校友善提供多元生理用品及推動月經平權計畫,嘉義縣私立同濟高級中學,"3,600"
113/03/19,國民及學前教育行政及督導-對私校之獎助,113年度高級中等以下學校友善提供多元生理用品及推動月經平權計畫,嘉義市私立嘉華高級中學,"12,000"
113/03/19,國民及學前教育行政及督導-對私校之獎助,113年度高級中等學校充實教學及實習設備計畫-一般科目,南投縣私立三育高級中學,"3,200"
113/03/19,國民及學前教育行政及督導-對私校之獎助,113年度高級中等學校充實教學及實習設備計畫-一般科目(資),新竹縣私立義民高級中學,"515,200"
113/03/19,國民及學前教育行政及督導-對私校之獎助,113年度高級中等學校充實教學及實習設備計畫-一般科目(資),南投縣私立三育高級中學,"168,000"
113/03/19,國民及學前教育行政及督導-對私校之獎助,112學年度全國藝術競賽(音樂、鄉土歌謠、創意戲劇及舞蹈)決賽之交通及膳雜費,花蓮縣私立四維高級中學,"53,160"
113/03/19,國民及學前教育行政及督導-對私校之獎助,112學年度全國藝術競賽(音樂、鄉土歌謠、創意戲劇及舞蹈)決賽之交通及膳雜費,嘉義市私立嘉華高級中學,"1,500"
113/03/19,國民及學前教育行政及督導-對私校之獎助,112學年度全國藝術競賽(音樂、鄉土歌謠、創意戲劇及舞蹈)決賽之交通及膳雜費,臺南市私立港明高級中學,"9,920"
113/03/19,國民及學前教育行政及督導-對學生之獎助,112學年度第2學期高級中等學校低收入戶及中低收入戶學生學雜費減免補助,屏東縣私立美和高級中學,"271,920"
113/03/19,國民及學前教育行政及督導-對學生之獎助,112學年度第2學期高級中等學校低收入戶及中低收入戶學生學雜費減免補助,嘉義縣私立協同高級中學,"2,706"
113/03/19,國民及學前教育行政及督導-對學生之獎助,112學年度第2學期實用技能學程學生免學雜費補助,新竹縣私立義民高級中學,"6,952,360"
113/03/19,國民及學前教育行政及督導-對學生之獎助,112學年度第2學期高級中等學校學生免學費,新竹縣私立義民高級中學,"28,032,306"
113/03/19,國民及學前教育行政及督導-對學生之獎助,112學年度第2學期高級中等學校學生免學費,新竹市私立磐石高級中學,"32,634,672"
113/03/19,國民及學前教育行政及督導-對學生之獎助,112學年度第2學期高級中等學校學生免學費,新竹縣私立義民高級中學,"9,849,189"
